Workbook

Sheet Mode d'emploi (hidden)
B2: Chemin du dossier Visionet : | C2: S:\NOTES_CONJONCTURE\1_ANIMAL\3_COTATIONS\Bases de données\COT-VIA-cotations_csv-A23-S06 | G2: Nom du fichier : | H2: =MID(CELL("filename",E1),SEARCH("[",CELL("filename",E1))+1,SEARCH("]",CELL("filename",E1))-SEARCH("[",CELL("filename",E1))-6) -> CotationsOutil_2025-LS
B3: Chemin de l'extraction RNM : | C3: S:\NOTES_CONJONCTURE\1_ANIMAL\3_COTATIONS\Bases de données\COT-MUL-prd_RNM-A23.csv
B4: Chemin du fichier TNO : | C4: S:\NOTES_CONJONCTURE\1_ANIMAL\3_COTATIONS\Bases de données\TNO.ods
B5: Chemin du fichier PLERIN COTATIONS : | C5: S:\NOTES_CONJONCTURE\1_ANIMAL\3_COTATIONS\Bases de données\PLERIN COTATIONS.ods | F5: Gros bovins
B6: Chemin du fichier des IPPAP : | C6: S:\NOTES_CONJONCTURE\1_ANIMAL\3_COTATIONS\Bases de données\selection_serie_17022023\valeurs_mensuelles.csv
B7: Chemin du fichier Valeurs_mensuelles : | C7: S:\NOTES_CONJONCTURE\1_ANIMAL\3_COTATIONS\Bases de données\IPPAP Volailles_ls.ods | F7: GBEA | G7: Nom du fichier GBEA : | H7: COT-VRO-GBST_regionale | J7: ="Fichier '" &H7&"'" -> Fichier 'COT-VRO-GBST_regionale'
G8: Lieu | H8: GRAND-OUEST | J8: Catégorie | K8: Nom de la colonne
B9: Année | C9: 2024 | G9: N° ligne des catégories | H9: 8 | J9: Jeunes bovins 12 à 24 mois | K9: Viande hors Bl/Parth.
B10: Semaine | C10: 6 | G10: N° ligne viande | H10: 9
G11: N° de la colonne lieu | H11: 1 | J11: Bœufs
G12: N° de la colonne classification | H12: 2 | J12: Vaches | K12: Viande hors Bl/Parth. -10 a +350kg
G13: N° de la colonne cot | H13: 3 | K13: Blonde/Parth. -10 ans +350Kg
F14: Gros bovins maigres | G14: Nom du fichier : Gros bovins maigres | H14: COT-VRO-GB_maigres
G15: Lieu | H15: NANTES
G16: Race | H16: CHAROLAIS | J16: Génisses | K16: Viande +350Kg
B17: Mode d'emploi | G17: Sexe | H17: M
G18: Age | H18: *6/12
G19: Tonnage (en kg) | H19: 350
B20: Champs à remplir à chaque utilisation | G20: Classification | H20: U
B21: Champs à vérifier | G21: N° de la ligne race | H21: 7
G22: N° de la ligne sexe | H22: 8
B23: Lien pour le site Visionet : | G23: N° de la ligne age | H23: 9
B24: https://visionet.franceagrimer.fr/Pages/Statistiques.aspx?menuurl=Statistiques/productions%20animales/viandes/cotations%20en%20format%20csv/ZIP%20csv%20toutes%20esp%C3%A8ces | G24: N° de la colonne lieu | H24: 1
G25: N° de la colonne classification | H25: 3
G27: ="Feuille de "&H2 -> Feuille de CotationsOutil_2025-LS | H27: =RIGHT(CELL("nomfichier",GrosBovinsAnneeEnCours!A1),LEN(CELL("nomfichier",GrosBovinsAnneeEnCours!A1))-FIND("]",CELL("nomfichier",GrosBovinsAnneeEnCours!A1))) -> GrosBovinsAnneeEnCours
H28: =RIGHT(CELL("nomfichier",GraphGrosBovins!A1),LEN(CELL("nomfichier",GraphGrosBovins!A1))-FIND("]",CELL("nomfichier",GraphGrosBovins!A1))) -> GraphGrosBovins
H29: =RIGHT(CELL("nomfichier",MoyQuinqHebdoGB!A1),LEN(CELL("nomfichier",MoyQuinqHebdoGB!A1))-FIND("]",CELL("nomfichier",MoyQuinqHebdoGB!A1))) -> MoyQuinqHebdoGB
F31: Veaux
B33: A noter un changement de nom de fichier cellule H7 | F33: Veaux Grand Nord | G33: Nom du fichier Veaux Grand Nord : | H33: COT-VRO-veaux_bouch_synthese
B34: COT-VRO-GBEA_regionale | C34: jusqu'en semaine 29-2022 | G34: Lieu | H34: NORD
G35: N° de la ligne race | H35: 7
B36: COT-VRO-GBST_regionale | C36: à partir de la semaine 30-2022 | G36: N° de la ligne classification | H36: 8
G37: N° de la colonne lieu | H37: 1
G38: Viande | H38: ROSE TRES CLAIR
B39: disparition du fichier COT-VRO-veaux14j_9_marches en semaine 47-2022 | H39: ROSE CLAIR
B40: pas de porc en semaine 2 et 3 2023? | H40: ROSE
F41: Veaux Château Gontier | G41: Nom du fichier Veaux Château Gontier : | H41: COT-VRO-veaux14j_9_marches | J41: ="Fichier '"&H2&"'" -> Fichier 'CotationsOutil_2025-LS' | K41: ="Fichier '" &H41&"'" -> Fichier 'COT-VRO-veaux14j_9_marches'
G42: Lieu | H42: CHAG | J42: NORMAND | K42: Normande
G43: Poids | H43: 45 A 50 KG | J43: LAITIERS | K43: Prim'Holstein
G44: N° de la ligne Lieu | H44: 7
G45: N° de la colonne race | H45: 2
G46: N° de la colonne poids | H46: 4
G48: ="Feuille de "&H2 -> Feuille de CotationsOutil_2025-LS | H48: =RIGHT(CELL("nomfichier",VeauxAnneeEnCours!A1),LEN(CELL("nomfichier",VeauxAnneeEnCours!A1))-FIND("]",CELL("nomfichier",VeauxAnneeEnCours!A1))) -> VeauxAnneeEnCours
H49: =RIGHT(CELL("nomfichier",GraphVeaux!A1),LEN(CELL("nomfichier",GraphVeaux!A1))-FIND("]",CELL("nomfichier",GraphVeaux!A1))) -> GraphVeaux
H50: =RIGHT(CELL("nomfichier",MoyQuinqHebdoVeaux!A1),LEN(CELL("nomfichier",MoyQuinqHebdoVeaux!A1))-FIND("]",CELL("nomfichier",MoyQuinqHebdoVeaux!A1))) -> MoyQuinqHebdoVeaux
F52: Porcs
G54: N° de la colonne semaine | H54: 2
G55: N° de la colonne du code produit | H55: 5
G56: N° de la colonne valeur | H56: 7
F58: Marché | G58: code produit | H58: produit
F59: Cadran de Plérin : porc charcutier | G59: PORC (carcasse) Nantes classe E + S | H59: 90190
F60: France : porc charcutier entrée abattoir | G60: PORC (carcasse) Rennes classe E + S | H60: 100190
G61: PORC (carcasse) France classe E + S | H61: 120190
G62: PORC (carcasse) Nantes classe E | H62: 57222090
G63: PORC (carcasse) Rennes classe E | H63: 57222091
G64: PORC (carcasse) France classe E | H64: 57222087
G65: PORC (carcasse) Nantes classe S | H65: 57222095
G66: PORC (carcasse) Rennes classe S | H66: 57222094
G67: PORC (carcasse) France classe S | H67: 57222098
G68: PORC (carcasse) 56% taux-de-muscle-des-pièces Bretagne | H68: 70178
G70: ="Feuille de "&H2 -> Feuille de CotationsOutil_2025-LS | H70: =RIGHT(CELL("nomfichier",'Porcs2015-2025'!#REF!),LEN(CELL("nomfichier",'Porcs2015-2025'!#REF!))-FIND("]",CELL("nomfichier",'Porcs2015-2025'!#REF!))) -> 
H71: =RIGHT(CELL("nomfichier",GraphPorcs!A2),LEN(CELL("nomfichier",GraphPorcs!A2))-FIND("]",CELL("nomfichier",GraphPorcs!A2))) -> GraphPorcs
H72: =RIGHT(CELL("nomfichier",MoyQuinqHebdoPorcs!A1),LEN(CELL("nomfichier",MoyQuinqHebdoPorcs!A1))-FIND("]",CELL("nomfichier",MoyQuinqHebdoPorcs!A1))) -> MoyQuinqHebdoPorcs
F74: Ovins
G76: Nom du fichier Ovins : | H76: COT-VRO-ovins_PMP
G77: N° de la colonne cotation | H77: 1
G78: N° de la colonne : P.M.P AGNEAUX | H78: 2
G80: ="Feuille de "&H2 -> Feuille de CotationsOutil_2025-LS | H80: =RIGHT(CELL("nomfichier",'Ovins2020-2025'!A1),LEN(CELL("nomfichier",'Ovins2020-2025'!A1))-FIND("]",CELL("nomfichier",'Ovins2020-2025'!A1))) -> Ovins2020-2025
H81: =RIGHT(CELL("nomfichier",GraphOvins!#REF!),LEN(CELL("nomfichier",GraphOvins!#REF!))-FIND("]",CELL("nomfichier",GraphOvins!#REF!))) -> 
H82: =RIGHT(CELL("nomfichier",MoyQuindHebdoOvins!A1),LEN(CELL("nomfichier",MoyQuindHebdoOvins!A1))-FIND("]",CELL("nomfichier",MoyQuindHebdoOvins!A1))) -> MoyQuindHebdoOvins
F84: VolaillesLapinsOeufs
F86: Marché | G86: Code produit | H86: Produit
F87: MIN de Rungis : volaille | G87: POULET (entier) prêt à cuire France standard | H87: 720156
G88: POULET (entier) prêt à cuire France label | H88: 730156
G89: DINDE (filet) France standard | H89: 1120156
G90: CANARD de Barbarie (filet) France standard | H90: 1030156
G91: PINTADE (entière) prêt à cuire France label | H91: 1950156
G92: LAPIN (entier) France standard | H92: 1280156
G94: ="Feuille de "&H2 -> Feuille de CotationsOutil_2025-LS | H94: =RIGHT(CELL("nomfichier",VolaillesLapinsOeufs!A3),LEN(CELL("nomfichier",VolaillesLapinsOeufs!A3))-FIND("]",CELL("nomfichier",VolaillesLapinsOeufs!A3))) -> VolaillesLapinsOeufs
H95: =RIGHT(CELL("nomfichier",GraphVolaillesOeufsLapins!#REF!),LEN(CELL("nomfichier",GraphVolaillesOeufsLapins!#REF!))-FIND("]",CELL("nomfichier",GraphVolaillesOeufsLapins!#REF!))) -> 

Sheet GraphHebdo (hidden)
R2: Commentaires
A4: COTATION REGIONALE ENTREE ABATTOIR GRAND OUEST FRANCEAGRIMER-HEBDOMADAIRE (€/Kg net)
A49: MOYENNE NATIONALE DES BOVINS MAIGRES DESTINES A L'ENGRAISSEMENT CHAROLAIS MALE de 6-12 mois catégorie U (350 kg) en €/kg vif
A64: Veaux de boucherie entrée abattoir région Grand Nord | G64: Prix "entrée abattoir" HT exprimé en Euro/Kg de carcasse (cinquième quartier compris) | O64: Veaux
A65: Source : DRAAF Pays de la Loire - SRISE - FranceAgriMer
A80: Marché de Château Gontier (marché de référence pour les petits veaux) : cotation des veaux destinés à l'engraissement
A81: Source : DRAAF Pays de la Loire - SRISE - FranceAgriMer
A97: Prix du porc entrée abattoir des carcasses de porcs charcutiers (€ HT/kg) | I97: Source : DRAAF Pays de la Loire - SRISE - FranceAgriMer | O97: Porcs
A113: COTATIONS AGNEAUX DE BOUCHERIE : ENTREE ABATTOIR | O113: Ovins
A114: Agneau de boucherie : Prix "entrée abattoir" HT en EURO/Kg de carcasse (cinquième quartier inclus)
A115: Etat d'engraissement : couvert
A116: Source : DRAAF Pays de la Loire-SRISE-FranceAgriMer
A131: Source : FranceAgriMer – RNM : Prix relevés sur le marché de Rungis | O131: Volailles

Sheet MoyQuinqHebdoGB (hidden)
A1: COTATION REGIONALE ENTREE ABATTOIR GRAND OUEST FRANCEAGRIMER-HEBDOMADAIRE (€/Kg net)
C3: 2020 | D3: 2021 | E3: 2022 | F3: 2023 | G3: 2024 | H3: MOYENNE 5 ANS | I3: 2020 | J3: 2021 | K3: 2022 | L3: 2023 | M3: 2024 | N3: MOYENNE 5 ANS | O3: 2020 | P3: 2021 | Q3: 2022 | R3: 2023 | S3: 2024 | T3: MOYENNE 5 ANS | U3: 2020 | V3: 2021 | W3: 2022 | X3: 2023 | Y3: 2024 | Z3: MOYENNE 5 ANS | AA3: 2020 | AB3: 2021 | AC3: 2022 | AD3: 2023 | AE3: 2024 | AF3: MOYENNE 5 ANS | AG3: 2020 | AH3: 2021 | AI3: 2022 | AJ3: 2023 | AK3: 2024 | AL3: MOYENNE 5 ANS | AM3: 2020 | AN3: 2021 | AO3: 2022 | AP3: 2023 | AQ3: 2024 | AR3: MOYENNE 5 ANS | AS3: 2020 | AT3: 2021 | AU3: 2022 | AV3: 2023 | AW3: 2024 | AX3: MOYENNE 5 ANS | AY3: 2020 | AZ3: 2021 | BA3: 2022 | BB3: 2023 | BC3: 2024 | BD3: MOYENNE 5 ANS | BE3: 2020 | BF3: 2021 | BG3: 2022 | BH3: 2023 | BI3: 2024 | BJ3: MOYENNE 5 ANS | BK3: 2020 | BL3: 2021 | BM3: 2022 | BN3: 2023 | BO3: 2024 | BP3: MOYENNE 5 ANS | BQ3: 2020 | BR3: 2020 | BS3: 2022 | BT3: 2023 | BU3: 2024 | BV3: MOYENNE 5 ANS
A4: Mois | B4: Sem. | C4: JB VIANDE U | I4: JB VIANDE R | O4: JB MIXTE O | U4: BOEUFS MIXTE O | AA4: VACHE VIANDE U | AG4: VACHE VIANDE R | AM4: VACHE BLONDE U | AS4: VACHE MIXTE O | AY4: VACHE LAIT P | BE4: GENISSE VIANDE U | BK4: GENISSE VIANDE R | BQ4: MAIGRE – CHAROLAIS 6/12 mois ( U )
B5: 1 | C5: 4.07 | D5: 3.82 | E5: 4.6 | F5: 5.54 | G5: 5.45 | H5: =AVERAGE(C5:G5) -> 4.696 | I5: 3.9 | J5: 3.66 | K5: 4.44 | L5: 5.4 | M5: 5.28 | N5: =AVERAGE(I5:M5) -> 4.536 | O5: 3.46 | P5: 3.39 | Q5: 3.79 | R5: 5.1 | T5: =AVERAGE(O5:S5) -> 3.935 | U5: 3.22 | V5: 3.14 | W5: 3.8 | X5: 5.05 | Y5: 4.6 | Z5: =AVERAGE(U5:Y5) -> 3.962 | AA5: 4.42 | AB5: 4.45 | AC5: 4.88 | AD5: 5.71 | AF5: =AVERAGE(AA5:AE5) -> 4.865 | AG5: 3.72 | AH5: 4.03 | AI5: 4.38 | AJ5: 5.41 | AK5: 5.44 | AL5: =AVERAGE(AG5:AK5) -> 4.596 | AM5: 5.1 | AN5: 5.17 | AO5: 5.5 | AP5: 6.05 | AQ5: 6.39 | AR5: =AVERAGE(AM5:AQ5) -> 5.642 | AS5: 3.14 | AT5: 3.07 | AU5: 3.76 | AV5: 4.93 | AW5: 4.44 | AX5: =AVERAGE(AS5:AW5) -> 3.868 | AY5: 2.54 | AZ5: 2.76 | BA5: 3.48 | BB5: 4.59 | BC5: 3.93 | BD5: =AVERAGE(AY5:BC5) -> 3.46 | BE5: 4.63 | BF5: 4.87 | BG5: 5.1 | BH5: 5.84 | BI5: 6.13 | BJ5: =AVERAGE(BE5:BI5) -> 5.314 | BK5: 3.8 | BL5: 4.03 | BM5: 4.32 | BN5: 5.41 | BO5: 5.43 | BP5: =AVERAGE(BK5:BO5) -> 4.598 | BQ5: 2.69 | BR5: 2.62 | BT5: 3.39 | BU5: 3.32 | BV5: =AVERAGE(BQ5:BU5) -> 3.005
B6: 2 | C6: 4.07 | D6: 3.82 | E6: 4.62 | F6: 5.54 | G6: 5.47 | H6: 4.704 | I6: 3.91 | J6: 3.66 | K6: 4.46 | L6: 5.4 | M6: 5.31 | N6: 4.548 | O6: 3.51 | P6: 3.37 | Q6: 3.82 | R6: 5.09 | S6: 4.85 | T6: 4.128 | U6: 3.25 | V6: 3.15 | W6: 3.81 | X6: 5.03 | Y6: 4.59 | Z6: 3.966 | AA6: 4.37 | AB6: 4.56 | AC6: 4.87 | AD6: 5.71 | AF6: 4.8775 | AG6: 3.75 | AH6: 4.01 | AI6: 4.41 | AJ6: 5.43 | AK6: 5.46 | AL6: 4.612 | AM6: 5.07 | AN6: 5.2 | AO6: 5.52 | AP6: 6.13 | AQ6: 6.36 | AR6: 5.656 | AS6: 3.15 | AT6: 3.08 | AU6: 3.79 | AV6: 4.94 | AW6: 4.49 | AX6: 3.89 | AY6: 2.57 | AZ6: 2.77 | BA6: 3.52 | BB6: 4.6 | BC6: 3.97 | BD6: 3.486 | BE6: 4.63 | BF6: 4.88 | BG6: 5.08 | BH6: 5.83 | BI6: 6.21 | BJ6: 5.326 | BK6: 3.84 | BL6: 4.04 | BM6: 4.38 | BN6: 5.41 | BO6: 5.43 | BP6: 4.62 | BQ6: 2.69 | BR6: 2.62 | BS6: 2.82 | BT6: 3.39 | BU6: 3.32 | BV6: 2.968
B7: 3 | C7: 4.07 | D7: 3.83 | E7: 4.65 | F7: 5.55 | G7: 5.49 | H7: 4.718 | I7: 3.9 | J7: 3.65 | K7: 4.5 | L7: 5.41 | M7: 5.32 | N7: 4.556 | O7: 3.49 | P7: 3.45 | Q7: 3.82 | R7: 5.11 | S7: 4.88 | T7: 4.15 | U7: 3.24 | V7: 3.15 | W7: 3.85 | X7: 5.02 | Y7: 4.66 | Z7: 3.984 | AA7: 4.38 | AB7: 4.48 | AC7: 4.97 | AD7: 5.76 | AE7: 5.88 | AF7: 5.094 | AG7: 3.72 | AH7: 4.02 | AI7: 4.44 | AJ7: 5.43 | AK7: 5.46 | AL7: 4.614 | AM7: 5.04 | AN7: 5.16 | AO7: 5.54 | AP7: 6.13 | AQ7: 6.43 | AR7: 5.66 | AS7: 3.16 | AT7: 3.1 | AU7: 3.82 | AV7: 4.94 | AW7: 4.5 | AX7: 3.904 | AY7: 2.56 | AZ7: 2.77 | BA7: 3.59 | BB7: 4.61 | BC7: 4 | BD7: 3.506 | BE7: 4.7 | BF7: 4.89 | BG7: 5.25 | BH7: 5.9 | BI7: 6.16 | BJ7: 5.38 | BK7: 3.85 | BL7: 4.02 | BM7: 4.4 | BN7: 5.42 | BO7: 5.45 | BP7: 4.628 | BQ7: 2.69 | BR7: 2.62 | BS7: 2.82 | BT7: 3.38 | BU7: 3.39 | BV7: 2.98
A8: J | B8: 4 | C8: 4.07 | D8: 3.84 | E8: 4.69 | F8: 5.53 | G8: 5.5 | H8: 4.726 | I8: 3.89 | J8: 3.67 | K8: 4.51 | L8: 5.39 | M8: 5.35 | N8: 4.562 | O8: 3.52 | P8: 3.41 | Q8: 3.87 | R8: 5.1 | S8: 4.95 | T8: 4.17 | U8: 3.23 | V8: 3.17 | W8: 3.89 | X8: 5.02 | Y8: 4.7 | Z8: 4.002 | AA8: 4.36 | AB8: 4.59 | AC8: 4.92 | AD8: 5.7 | AE8: 5.89 | AF8: 5.092 | AG8: 3.71 | AH8: 4.03 | AI8: 4.46 | AJ8: 5.42 | AK8: 5.47 | AL8: 4.618 | AM8: 5.05 | AN8: 5.17 | AO8: 5.6 | AP8: 6.11 | AQ8: 6.42 | AR8: 5.67 | AS8: 3.15 | AT8: 3.09 | AU8: 3.86 | AV8: 4.93 | AW8: 4.53 | AX8: 3.912 | AY8: 2.55 | AZ8: 2.78 | BA8: 3.65 | BB8: 4.59 | BC8: 4.05 | BD8: 3.524 | BE8: 4.7 | BF8: 4.77 | BG8: 5.21 | BH8: 5.87 | BI8: 6.17 | BJ8: 5.344 | BK8: 3.81 | BL8: 4.02 | BM8: 4.44 | BN8: 5.42 | BO8: 5.46 | BP8: 4.63 | BQ8: 2.69 | BR8: 2.59 | BS8: 2.85 | BT8: 3.4 | BU8: 3.4 | BV8: 2.986
B9: 5 | C9: 4.06 | D9: 3.85 | E9: 4.73 | F9: 5.52 | G9: 5.53 | H9: 4.738 | I9: 3.88 | J9: 3.67 | K9: 4.57 | L9: 5.4 | M9: 5.38 | N9: 4.58 | O9: 3.52 | P9: 3.43 | Q9: 3.94 | R9: 5.07 | S9: 4.96 | T9: 4.184 | U9: 3.22 | V9: 3.17 | W9: 3.93 | X9: 4.88 | Y9: 4.64 | Z9: 3.968 | AA9: 4.44 | AB9: 4.52 | AC9: 4.98 | AD9: 5.76 | AF9: 4.925 | AG9: 3.72 | AH9: 4.05 | AI9: 4.52 | AJ9: 5.42 | AK9: 5.49 | AL9: 4.64 | AM9: 5.02 | AN9: 5.21 | AO9: 5.54 | AP9: 6.19 | AQ9: 6.46 | AR9: 5.684 | AS9: 3.14 | AT9: 3.11 | AU9: 3.91 | AV9: 4.91 | AW9: 4.58 | AX9: 3.93 | AY9: 2.54 | AZ9: 2.78 | BA9: 3.75 | BB9: 4.56 | BC9: 4.09 | BD9: 3.544 | BE9: 4.64 | BF9: 4.84 | BG9: 5.24 | BH9: 5.9 | BI9: 6.17 | BJ9: 5.358 | BK9: 3.82 | BL9: 4 | BM9: 4.45 | BN9: 5.41 | BO9: 5.45 | BP9: 4.626 | BQ9: 2.69 | BR9: 2.59 | BS9: 2.85 | BT9: 3.43 | BU9: 3.42 | BV9: 2.996
B10: 6 | C10: 4.05 | D10: 3.86 | E10: 4.8 | F10: 5.52 | G10: 5.56 | H10: 4.758 | I10: 3.88 | J10: 3.69 | K10: 4.63 | L10: 5.41 | M10: 5.4 | N10: 4.602 | O10: 3.51 | P10: 3.41 | Q10: 4.01 | T10: 3.643333333 | U10: 3.25 | V10: 3.19 | W10: 4.05 | X10: 4.99 | Y10: 4.73 | Z10: 4.042 | AA10: 4.46 | AB10: 4.58 | AC10: 5.02 | AD10: 5.75 | AF10: 4.9525 | AG10: 3.73 | AH10: 4.03 | AI10: 4.59 | AJ10: 5.42 | AK10: 5.51 | AL10: 4.656 | AM10: 5.06 | AN10: 5.21 | AO10: 5.62 | AP10: 6.13 | AQ10: 6.5 | AR10: 5.704 | AS10: 3.13 | AT10: 3.11 | AU10: 4.01 | AV10: 4.91 | AW10: 4.61 | AX10: 3.954 | AY10: 2.53 | AZ10: 2.79 | BA10: 3.84 | BB10: 4.56 | BC10: 4.13 | BD10: 3.57 | BE10: 4.62 | BF10: 4.92 | BG10: 5.3 | BH10: 5.92 | BI10: 6.23 | BJ10: 5.398 | BK10: 3.81 | BL10: 3.99 | BM10: 4.51 | BN10: 5.41 | BO10: 5.49 | BP10: 4.642 | BQ10: 2.69 | BR10: 2.59 | BS10: 2.85 | BT10: 3.44 | BU10: 3.45 | BV10: 3.004
B11: 7 | C11: 4.04 | D11: 3.88 | E11: 4.86 | F11: 5.53 | G11: 5.57 | H11: 4.776 | I11: 3.85 | J11: 3.71 | K11: 4.71 | L11: 5.41 | M11: 5.42 | N11: 4.62 | O11: 3.49 | P11: 3.43 | Q11: 4.12 | T11: 3.68 | U11: 3.22 | V11: 3.18 | W11: 4.14 | X11: 5.02 | Y11: 4.7 | Z11: 4.052 | AA11: 4.46 | AB11: 4.52 | AC11: 5.05 | AD11: 5.73 | AF11: 4.94 | AG11: 3.7 | AH11: 4.05 | AI11: 4.65 | AJ11: 5.42 | AK11: 5.5 | AL11: 4.664 | AM11: 5.02 | AN11: 5.2 | AO11: 5.63 | AP11: 6.19 | AQ11: 6.47 | AR11: 5.702 | AS11: 3.14 | AT11: 3.13 | AU11: 4.12 | AV11: 4.93 | AW11: 4.62 | AX11: 3.988 | AY11: 2.55 | AZ11: 2.81 | BA11: 3.96 | BB11: 4.6 | BC11: 4.16 | BD11: 3.616 | BE11: 4.61 | BF11: 4.79 | BG11: 5.24 | BH11: 5.84 | BI11: 6.2 | BJ11: 5.336 | BK11: 3.81 | BL11: 4 | BM11: 4.61 | BN11: 5.39 | BO11: 5.48 | BP11: 4.658 | BQ11: 2.69 | BR11: 2.59 | BS11: 2.88 | BT11: 3.43 | BU11: 3.49 | BV11: 3.016
B12: 8 | C12: 4.01 | D12: 3.9 | E12: 4.94 | F12: 5.54 | G12: 5.58 | H12: 4.794 | I12: 3.84 | J12: 3.73 | K12: 4.76 | L12: 5.42 | M12: 5.44 | N12: 4.638 | O12: 3.49 | P12: 3.45 | Q12: 4.27 | S12: 4.99 | T12: 4.05 | U12: 3.25 | V12: 3.2 | W12: 4.28 | X12: 5.07 | Y12: 4.74 | Z12: 4.108 | AA12: 4.4 | AB12: 4.53 | AC12: 5.14 | AD12: 5.76 | AE12: 5.91 | AF12: 5.148 | AG12: 3.72 | AH12: 4.07 | AI12: 4.76 | AJ12: 5.44 | AK12: 5.49 | AL12: 4.696 | AM12: 5 | AN12: 5.27 | AO12: 5.65 | AP12: 6.19 | AQ12: 6.46 | AR12: 5.714 | AS12: 3.16 | AT12: 3.15 | AU12: 4.25 | AV12: 4.97 | AW12: 4.62 | AX12: 4.03 | AY12: 2.58 | AZ12: 2.83 | BA12: 4.14 | BB12: 4.64 | BC12: 4.16 | BD12: 3.67 | BE12: 4.6 | BF12: 4.8 | BG12: 5.34 | BH12: 5.93 | BI12: 6.16 | BJ12: 5.366 | BK12: 3.83 | BL12: 3.99 | BM12: 4.71 | BN12: 5.43 | BO12: 5.48 | BP12: 4.688 | BQ12: 2.72 | BR12: 2.59 | BS12: 2.93 | BT12: 3.46 | BU12: 3.53 | BV12: 3.046
A13: F | B13: 9 | C13: 4 | D13: 3.91 | E13: 4.98 | F13: 5.56 | G13: 5.58 | H13: 4.806 | I13: 3.84 | J13: 3.75 | K13: 4.82 | L13: 5.43 | M13: 5.43 | N13: 4.654 | O13: 3.51 | P13: 3.47 | Q13: 4.34 | R13: 5.11 | T13: 4.1075 | U13: 3.26 | V13: 3.23 | W13: 4.33 | X13: 5.08 | Y13: 4.74 | Z13: 4.128 | AA13: 4.42 | AB13: 4.7 | AC13: 5.1 | AD13: 5.88 | AF13: 5.025 | AG13: 3.75 | AH13: 4.09 | AI13: 4.8 | AJ13: 5.46 | AK13: 5.46 | AL13: 4.712 | AM13: 5.14 | AN13: 5.29 | AO13: 5.65 | AP13: 6.2 | AQ13: 6.51 | AR13: 5.758 | AS13: 3.16 | AT13: 3.17 | AU13: 4.33 | AV13: 5 | AW13: 4.66 | AX13: 4.064 | AY13: 2.62 | AZ13: 2.86 | BA13: 4.21 | BB13: 4.69 | BC13: 4.16 | BD13: 3.708 | BE13: 4.69 | BF13: 4.95 | BG13: 5.41 | BH13: 5.91 | BI13: 6.19 | BJ13: 5.43 | BK13: 3.82 | BL13: 4.03 | BM13: 4.74 | BN13: 5.46 | BO13: 5.48 | BP13: 4.706 | BQ13: 2.75 | BR13: 2.62 | BS13: 2.98 | BT13: 3.47 | BU13: 3.57 | BV13: 3.078
B14: 10 | C14: 4 | D14: 3.96 | E14: 5.02 | F14: 5.57 | G14: 5.58 | H14: 4.826 | I14: 3.82 | J14: 3.78 | K14: 4.85 | L14: 5.46 | M14: 5.43 | N14: 4.668 | O14: 3.53 | P14: 3.46 | Q14: 4.42 | R14: 5.13 | T14: 4.135 | U14: 3.27 | V14: 3.24 | W14: 4.4 | X14: 5.11 | Y14: 4.73 | Z14: 4.15 | AA14: 4.44 | AB14: 4.7 | AC14: 5.19 | AD14: 5.8 | AE14: 5.94 | AF14: 5.214 | AG14: 3.77 | AH14: 4.1 | AI14: 4.85 | AJ14: 5.48 | AK14: 5.49 | AL14: 4.738 | AM14: 5.03 | AN14: 5.42 | AO14: 5.68 | AP14: 6.21 | AQ14: 6.47 | AR14: 5.762 | AS14: 3.18 | AT14: 3.19 | AU14: 4.39 | AV14: 5.04 | AW14: 4.64 | AX14: 4.088 | AY14: 2.66 | AZ14: 2.9 | BA14: 4.25 | BB14: 4.75 | BC14: 4.16 | BD14: 3.744 | BE14: 4.67 | BF14: 5.06 | BG14: 5.36 | BH14: 5.93 | BI14: 6.22 | BJ14: 5.448 | BK14: 3.84 | BL14: 4.02 | BM14: 4.78 | BN14: 5.47 | BO14: 5.48 | BP14: 4.718 | BQ14: 2.75 | BR14: 2.65 | BS14: 3.05 | BT14: 3.52 | BU14: 3.59 | BV14: 3.112
B15: 11 | C15: 3.98 | D15: 3.99 | E15: 5.06 | F15: 5.6 | G15: 5.57 | H15: 4.84 | I15: 3.81 | J15: 3.81 | K15: 4.88 | L15: 5.47 | M15: 5.4 | N15: 4.674 | O15: 3.5 | P15: 3.48 | Q15: 4.47 | S15: 5.01 | T15: 4.115 | U15: 3.28 | V15: 3.25 | W15: 4.5 | X15: 5.12 | Y15: 4.75 | Z15: 4.18 | AA15: 4.43 | AB15: 4.73 | AC15: 5.28 | AD15: 5.8 | AE15: 5.97 | AF15: 5.242 | AG15: 3.78 | AH15: 4.09 | AI15: 4.91 | AJ15: 5.52 | AK15: 5.48 | AL15: 4.756 | AM15: 5.14 | AN15: 5.35 | AO15: 5.71 | AP15: 6.21 | AQ15: 6.48 | AR15: 5.778 | AS15: 3.18 | AT15: 3.21 | AU15: 4.45 | AV15: 5.07 | AW15: 4.63 | AX15: 4.108 | AY15: 2.66 | AZ15: 2.94 | BA15: 4.29 | BB15: 4.8 | BC15: 4.18 | BD15: 3.774 | BE15: 4.64 | BF15: 5.02 | BG15: 5.46 | BH15: 6 | BI15: 6.27 | BJ15: 5.478 | BK15: 3.84 | BL15: 4.01 | BM15: 4.85 | BN15: 5.49 | BO15: 5.48 | BP15: 4.734 | BQ15: 2.78 | BR15: 2.65 | BS15: 3.15 | BT15: 3.53 | BU15: 3.61 | BV15: 3.144
B16: 12 | C16: 3.96 | D16: 4 | E16: 5.09 | F16: 5.62 | G16: 5.55 | H16: 4.844 | I16: 3.78 | J16: 3.83 | K16: 4.91 | L16: 5.47 | M16: 5.39 | N16: 4.676 | O16: 3.55 | P16: 3.46 | Q16: 4.51 | R16: 5.16 | T16: 4.17 | U16: 3.27 | V16: 3.28 | W16: 4.56 | X16: 5.15 | Y16: 4.76 | Z16: 4.204 | AA16: 4.49 | AB16: 4.97 | AC16: 5.27 | AF16: 4.91 | AG16: 3.78 | AH16: 4.12 | AI16: 4.94 | AJ16: 5.53 | AK16: 5.48 | AL16: 4.77 | AM16: 5.12 | AN16: 5.4 | AO16: 5.7 | AP16: 6.22 | AQ16: 6.54 | AR16: 5.796 | AS16: 3.18 | AT16: 3.23 | AU16: 4.5 | AV16: 5.08 | AW16: 4.64 | AX16: 4.126 | AY16: 2.67 | AZ16: 2.95 | BA16: 4.34 | BB16: 4.82 | BC16: 4.17 | BD16: 3.79 | BE16: 4.65 | BF16: 5.15 | BG16: 5.47 | BH16: 6.05 | BI16: 6.46 | BJ16: 5.556 | BK16: 3.85 | BL16: 4.07 | BM16: 4.88 | BN16: 5.49 | BO16: 5.46 | BP16: 4.75 | BQ16: 2.8 | BR16: 2.68 | BS16: 3.2 | BT16: 3.54 | BU16: 3.65 | BV16: 3.174
A17: M | B17: 13 | C17: 3.94 | D17: 4.02 | E17: 5.11 | F17: 5.62 | G17: 5.54 | H17: 4.846 | I17: 3.77 | J17: 3.85 | K17: 4.94 | L17: 5.48 | M17: 5.36 | N17: 4.68 | O17: 3.47 | P17: 3.48 | Q17: 4.56 | R17: 5.17 | T17: 4.17 | U17: 3.25 | V17: 3.31 | W17: 4.61 | X17: 5.16 | Y17: 4.78 | Z17: 4.222 | AA17: 4.44 | AB17: 4.62 | AC17: 5.3 | AD17: 6.16 | AF17: 5.13 | AG17: 3.74 | AH17: 4.1 | AI17: 4.99 | AJ17: 5.5 | AK17: 5.48 | AL17: 4.762 | AM17: 5.17 | AN17: 5.3 | AO17: 5.81 | AP17: 6.37 | AQ17: 6.5 | AR17: 5.83 | AS17: 3.17 | AT17: 3.25 | AU17: 4.55 | AV17: 5.09 | AW17: 4.66 | AX17: 4.144 | AY17: 2.68 | AZ17: 2.96 | BA17: 4.39 | BB17: 4.81 | BC17: 4.18 | BD17: 3.804 | BE17: 4.73 | BF17: 4.89 | BG17: 5.58 | BH17: 6.12 | BI17: 6.25 | BJ17: 5.514 | BK17: 3.85 | BL17: 4.06 | BM17: 4.93 | BN17: 5.49 | BO17: 5.46 | BP17: 4.758 | BQ17: 2.8 | BR17: 2.7 | BS17: 3.25 | BT17: 3.55 | BU17: 3.65 | BV17: 3.19
B18: 14 | C18: 3.9 | D18: 4.03 | E18: 5.13 | F18: 5.6 | G18: 5.5 | H18: 4.832 | I18: 3.73 | J18: 3.84 | K18: 4.98 | L18: 5.45 | M18: 5.33 | N18: 4.666 | O18: 3.43 | P18: 3.48 | Q18: 4.61 | R18: 5.14 | S18: 4.9 | T18: 4.312 | U18: 3.19 | V18: 3.31 | W18: 4.64 | X18: 5.15 | Y18: 4.79 | Z18: 4.216 | AA18: 4.5 | AB18: 4.63 | AC18: 5.59 | AD18: 5.87 | AF18: 5.1475 | AG18: 3.74 | AH18: 4.09 | AI18: 5.01 | AJ18: 5.51 | AK18: 5.49 | AL18: 4.768 | AM18: 5.17 | AN18: 5.33 | AO18: 5.86 | AP18: 6.25 | AQ18: 6.47 | AR18: 5.816 | AS18: 3.09 | AT18: 3.26 | AU18: 4.6 | AV18: 5.07 | AW18: 4.66 | AX18: 4.136 | AY18: 2.66 | AZ18: 2.97 | BA18: 4.44 | BB18: 4.78 | BC18: 4.18 | BD18: 3.806 | BE18: 4.78 | BF18: 5.05 | BG18: 5.67 | BH18: 6.02 | BI18: 6.23 | BJ18: 5.55 | BK18: 3.84 | BL18: 4.09 | BM18: 4.99 | BN18: 5.48 | BO18: 5.43 | BP18: 4.766 | BQ18: 2.82 | BR18: 2.7 | BS18: 3.3 | BT18: 3.57 | BU18: 3.67 | BV18: 3.212
B19: 15 | C19: 3.88 | D19: 4.02 | E19: 5.17 | F19: 5.58 | G19: 5.47 | H19: 4.824 | I19: 3.69 | J19: 3.85 | K19: 4.99 | L19: 5.44 | M19: 5.28 | N19: 4.65 | O19: 3.35 | P19: 3.49 | Q19: 4.67 | R19: 5.11 | T19: 4.155 | U19: 3.08 | V19: 3.32 | W19: 4.69 | X19: 5.11 | Y19: 4.77 | Z19: 4.194 | AA19: 4.45 | AB19: 4.62 | AC19: 5.38 | AF19: 4.816666667 | AG19: 3.72 | AH19: 4.1 | AI19: 5.06 | AJ19: 5.43 | AK19: 5.48 | AL19: 4.758 | AM19: 5.1 | AN19: 5.39 | AO19: 5.77 | AP19: 6.27 | AQ19: 6.5 | AR19: 5.806 | AS19: 3.04 | AT19: 3.26 | AU19: 4.64 | AV19: 5.03 | AW19: 4.66 | AX19: 4.126 | AY19: 2.64 | AZ19: 2.97 | BA19: 4.49 | BB19: 4.73 | BC19: 4.19 | BD19: 3.804 | BE19: 4.7 | BF19: 5.07 | BG19: 5.59 | BH19: 6.02 | BI19: 6.18 | BJ19: 5.512 | BK19: 3.82 | BL19: 4.04 | BM19: 5.03 | BN19: 5.47 | BO19: 5.48 | BP19: 4.768 | BQ19: 2.82 | BR19: 2.72 | BS19: 3.35 | BT19: 3.57 | BU19: 3.69 | BV19: 3.23
B20: 16 | C20: 3.86 | D20: 4.02 | E20: 5.21 | F20: 5.57 | G20: 5.43 | H20: 4.818 | I20: 3.71 | J20: 3.85 | K20: 5.02 | L20: 5.46 | M20: 5.25 | N20: 4.658 | O20: 3.36 | P20: 3.49 | Q20: 4.74 | R20: 5.11 | T20: 4.175 | U20: 3.07 | V20: 3.32 | W20: 4.74 | X20: 5.1 | Y20: 4.74 | Z20: 4.194 | AA20: 4.51 | AB20: 4.68 | AC20: 5.4 | AE20: 5.93 | AF20: 5.13 | AG20: 3.72 | AH20: 4.09 | AI20: 5.1 | AJ20: 5.45 | AK20: 5.5 | AL20: 4.772 | AM20: 5.05 | AN20: 5.4 | AO20: 5.79 | AP20: 6.24 | AQ20: 6.58 | AR20: 5.812 | AS20: 3.01 | AT20: 3.27 | AU20: 4.7 | AV20: 5.01 | AW20: 4.67 | AX20: 4.132 | AY20: 2.64 | AZ20: 2.98 | BA20: 4.55 | BB20: 4.7 | BC20: 4.2 | BD20: 3.814 | BE20: 4.77 | BF20: 4.96 | BG20: 5.57 | BH20: 5.99 | BI20: 6.17 | BJ20: 5.492 | BK20: 3.86 | BL20: 4.07 | BM20: 5.09 | BN20: 5.47 | BO20: 5.44 | BP20: 4.786 | BQ20: 2.82 | BR20: 2.72 | BS20: 3.35 | BT20: 3.57 | BU20: 3.74 | BV20: 3.24
A21: A | B21: 17 | C21: 3.85 | D21: 4.01 | E21: 5.24 | F21: 5.55 | G21: 5.4 | H21: 4.81 | I21: 3.69 | J21: 3.82 | K21: 5.07 | L21: 5.42 | M21: 5.22 | N21: 4.644 | O21: 3.34 | P21: 3.47 | Q21: 4.78 | R21: 5.09 | T21: 4.17 | U21: 3.07 | V21: 3.33 | W21: 4.79 | X21: 5.06 | Y21: 4.81 | Z21: 4.212 | AA21: 4.42 | AB21: 4.75 | AC21: 5.44 | AD21: 5.85 | AF21: 5.115 | AG21: 3.71 | AH21: 4.1 | AI21: 5.14 | AJ21: 5.44 | AK21: 5.49 | AL21: 4.776 | AM21: 5.12 | AN21: 5.36 | AO21: 5.8 | AP21: 6.22 | AQ21: 6.51 | AR21: 5.802 | AS21: 3.01 | AT21: 3.28 | AU21: 4.77 | AV21: 4.99 | AW21: 4.69 | AX21: 4.148 | AY21: 2.67 | AZ21: 2.98 | BA21: 4.64 | BB21: 4.67 | BC21: 4.22 | BD21: 3.836 | BE21: 4.75 | BF21: 5.04 | BG21: 5.58 | BH21: 6.05 | BI21: 6.25 | BJ21: 5.534 | BK21: 3.82 | BL21: 4.07 | BM21: 5.12 | BN21: 5.44 | BO21: 5.45 | BP21: 4.78 | BQ21: 2.84 | BR21: 2.75 | BS21: 3.4 | BT21: 3.57 | BU21: 3.76 | BV21: 3.264
B22: 18 | C22: 3.85 | D22: 4.01 | E22: 5.28 | F22: 5.53 | G22: 5.37 | H22: 4.808 | I22: 3.68 | J22: 3.81 | K22: 5.12 | L22: 5.39 | M22: 5.21 | N22: 4.642 | O22: 3.37 | P22: 3.48 | Q22: 4.89 | S22: 4.82 | T22: 4.14 | U22: 3.11 | V22: 3.38 | W22: 4.9 | X22: 5.05 | Y22: 4.81 | Z22: 4.25 | AA22: 4.39 | AB22: 4.7 | AC22: 5.46 | AD22: 5.85 | AF22: 5.1 | AG22: 3.75 | AH22: 4.1 | AI22: 5.18 | AJ22: 5.44 | AK22: 5.5 | AL22: 4.794 | AM22: 5.06 | AN22: 5.44 | AO22: 5.83 | AP22: 6.27 | AQ22: 6.58 | AR22: 5.836 | AS22: 3.03 | AT22: 3.29 | AU22: 4.88 | AV22: 4.97 | AW22: 4.72 | AX22: 4.178 | AY22: 2.71 | AZ22: 2.99 | BA22: 4.74 | BB22: 4.64 | BC22: 4.25 | BD22: 3.866 | BE22: 4.81 | BF22: 4.98 | BG22: 5.65 | BH22: 6.02 | BI22: 6.26 | BJ22: 5.544 | BK22: 3.82 | BL22: 4.03 | BM22: 5.17 | BN22: 5.45 | BO22: 5.5 | BP22: 4.794 | BQ22: 2.84 | BR22: 2.75 | BS22: 3.4 | BT22: 3.57 | BU22: 3.78 | BV22: 3.268
B23: 19 | C23: 3.85 | D23: 3.99 | E23: 5.3 | F23: 5.5 | G23: 5.35 | H23: 4.798 | I23: 3.7 | J23: 3.81 | K23: 5.15 | L23: 5.37 | M23: 5.2 | N23: 4.646 | O23: 3.34 | P23: 3.47 | Q23: 4.97 | R23: 5.05 | T23: 4.2075 | U23: 3.11 | V23: 3.43 | W23: 4.98 | X23: 5.05 | Y23: 4.84 | Z23: 4.282 | AA23: 4.47 | AB23: 4.69 | AC23: 5.45 | AD23: 5.9 | AF23: 5.1275 | AG23: 3.76 | AH23: 4.08 | AI23: 5.21 | AJ23: 5.44 | AK23: 5.52 | AL23: 4.802 | AM23: 5.11 | AN23: 5.48 | AO23: 5.88 | AP23: 6.32 | AQ23: 6.56 | AR23: 5.87 | AS23: 3.05 | AT23: 3.3 | AU23: 4.94 | AV23: 4.96 | AW23: 4.77 | AX23: 4.204 | AY23: 2.74 | AZ23: 2.99 | BA23: 4.79 | BB23: 4.61 | BC23: 4.29 | BD23: 3.884 | BE23: 4.68 | BF23: 5 | BG23: 5.68 | BH23: 6.07 | BI23: 6.28 | BJ23: 5.542 | BK23: 3.84 | BL23: 4.04 | BM23: 5.22 | BN23: 5.43 | BO23: 5.5 | BP23: 4.806 | BQ23: 2.84 | BR23: 2.75 | BS23: 3.4 | BT23: 3.57 | BU23: 3.78 | BV23: 3.268
B24: 20 | C24: 3.84 | D24: 3.99 | E24: 5.31 | F24: 5.48 | G24: 5.36 | H24: 4.796 | I24: 3.69 | J24: 3.81 | K24: 5.18 | L24: 5.35 | M24: 5.2 | N24: 4.646 | O24: 3.37 | P24: 3.44 | Q24: 4.98 | R24: 5.02 | T24: 4.2025 | U24: 3.14 | V24: 3.4 | W24: 5.01 | X24: 5.06 | Y24: 4.8 | Z24: 4.282 | AA24: 4.57 | AB24: 4.74 | AC24: 5.53 | AF24: 4.946666667 | AG24: 3.8 | AH24: 4.09 | AI24: 5.24 | AJ24: 5.45 | AK24: 5.5 | AL24: 4.816 | AM24: 5.12 | AN24: 5.43 | AO24: 5.88 | AP24: 6.29 | AQ24: 6.57 | AR24: 5.858 | AS24: 3.08 | AT24: 3.34 | AU24: 4.98 | AV24: 4.97 | AW24: 4.76 | AX24: 4.226 | AY24: 2.79 | AZ24: 3.01 | BA24: 4.83 | BB24: 4.62 | BC24: 4.33 | BD24: 3.916 | BE24: 4.71 | BF24: 4.99 | BG24: 5.76 | BH24: 6.09 | BI24: 6.3 | BJ24: 5.57 | BK24: 3.87 | BL24: 4.07 | BM24: 5.23 | BN24: 5.43 | BO24: 5.49 | BP24: 4.818 | BQ24: 2.84 | BR24: 2.75 | BS24: 3.4 | BT24: 3.59 | BU24: 3.78 | BV24: 3.272
B25: 21 | C25: 3.84 | D25: 3.99 | E25: 5.32 | F25: 5.48 | G25: 5.36 | H25: 4.798 | I25: 3.68 | J25: 3.81 | K25: 5.17 | L25: 5.37 | M25: 5.21 | N25: 4.648 | O25: 3.38 | P25: 3.49 | Q25: 5 | T25: 3.956666667 | U25: 3.16 | V25: 3.44 | W25: 5.03 | X25: 5.05 | Y25: 4.84 | Z25: 4.304 | AA25: 4.49 | AB25: 4.68 | AC25: 5.56 | AD25: 5.81 | AE25: 5.88 | AF25: 5.284 | AG25: 3.82 | AH25: 4.09 | AI25: 5.27 | AJ25: 5.45 | AK25: 5.51 | AL25: 4.828 | AM25: 5.08 | AN25: 5.45 | AO25: 5.9 | AP25: 6.3 | AQ25: 6.52 | AR25: 5.85 | AS25: 3.12 | AT25: 3.35 | AU25: 5 | AV25: 4.97 | AW25: 4.76 | AX25: 4.24 | AY25: 2.83 | AZ25: 3.03 | BA25: 4.84 | BB25: 4.63 | BC25: 4.33 | BD25: 3.932 | BE25: 4.76 | BF25: 5.03 | BG25: 5.74 | BH25: 6.09 | BI25: 6.26 | BJ25: 5.576 | BK25: 3.87 | BL25: 4.07 | BM25: 5.22 | BN25: 5.45 | BO25: 5.5 | BP25: 4.822 | BQ25: 2.84 | BR25: 2.75 | BS25: 3.4 | BT25: 3.6 | BU25: 3.84 | BV25: 3.286
A26: M | B26: 22 | C26: 3.85 | D26: 3.99 | E26: 5.33 | F26: 5.46 | G26: 5.37 | H26: 4.8 | I26: 3.69 | J26: 3.83 | K26: 5.18 | L26: 5.33 | M26: 5.2 | N26: 4.646 | O26: 3.41 | P26: 3.47 | Q26: 5.02 | R26: 5.03 | T26: 4.2325 | U26: 3.2 | V26: 3.46 | W26: 5.04 | X26: 5.08 | Y26: 4.86 | Z26: 4.328 | AA26: 4.6 | AB26: 4.7 | AC26: 5.65 | AF26: 4.983333333 | AG26: 3.88 | AH26: 4.1 | AI26: 5.27 | AJ26: 5.47 | AK26: 5.51 | AL26: 4.846 | AM26: 5.1 | AN26: 5.42 | AO26: 5.9 | AP26: 6.27 | AQ26: 6.55 | AR26: 5.848 | AS26: 3.15 | AT26: 3.38 | AU26: 5.02 | AV26: 4.98 | AW26: 4.78 | AX26: 4.262 | AY26: 2.86 | AZ26: 3.06 | BA26: 4.86 | BB26: 4.67 | BC26: 4.35 | BD26: 3.96 | BE26: 4.79 | BF26: 5.04 | BG26: 5.8 | BH26: 6.05 | BI26: 6.18 | BJ26: 5.572 | BK26: 3.97 | BL26: 4.09 | BM26: 5.28 | BN26: 5.45 | BO26: 5.5 | BP26: 4.858 | BQ26: 2.84 | BR26: 2.75 | BS26: 3.45 | BT26: 3.61 | BU26: 3.87 | BV26: 3.304
B27: 23 | C27: 3.84 | D27: 3.99 | E27: 5.33 | F27: 5.46 | G27: 5.37 | H27: 4.798 | I27: 3.72 | J27: 3.81 | K27: 5.2 | L27: 5.33 | M27: 5.22 | N27: 4.656 | O27: 3.37 | P27: 3.49 | Q27: 5.02 | R27: 5.01 | T27: 4.2225 | U27: 3.22 | V27: 3.47 | W27: 5.08 | X27: 5.09 | Y27: 4.86 | Z27: 4.344 | AA27: 4.59 | AB27: 4.72 | AC27: 5.57 | AF27: 4.96 | AG27: 3.95 | AH27: 4.11 | AI27: 5.29 | AJ27: 5.49 | AK27: 5.52 | AL27: 4.872 | AM27: 5.16 | AN27: 5.42 | AO27: 5.96 | AP27: 6.29 | AQ27: 6.49 | AR27: 5.864 | AS27: 3.18 | AT27: 3.4 | AU27: 5.04 | AV27: 5.02 | AW27: 4.8 | AX27: 4.288 | AY27: 2.87 | AZ27: 3.08 | BA27: 4.87 | BB27: 4.71 | BC27: 4.36 | BD27: 3.978 | BE27: 4.83 | BF27: 5.1 | BG27: 5.7 | BH27: 6.1 | BI27: 6.28 | BJ27: 5.602 | BK27: 3.98 | BL27: 4.05 | BM27: 5.29 | BN27: 5.48 | BO27: 5.51 | BP27: 4.862 | BQ27: 2.84 | BR27: 2.73 | BS27: 3.45 | BT27: 3.62 | BU27: 3.88 | BV27: 3.304
B28: 24 | C28: 3.85 | D28: 4 | E28: 5.33 | F28: 5.45 | G28: 5.38 | H28: 4.802 | I28: 3.72 | J28: 3.84 | K28: 5.2 | L28: 5.31 | M28: 5.24 | N28: 4.662 | O28: 3.39 | P28: 3.5 | Q28: 5.03 | R28: 5.05 | T28: 4.2425 | U28: 3.23 | V28: 3.48 | W28: 5.1 | X28: 5.09 | Y28: 4.86 | Z28: 4.352 | AA28: 4.53 | AB28: 4.73 | AC28: 5.56 | AE28: 5.89 | AF28: 5.1775 | AG28: 4.01 | AH28: 4.14 | AI28: 5.29 | AJ28: 5.5 | AK28: 5.51 | AL28: 4.89 | AM28: 5.17 | AN28: 5.36 | AO28: 5.95 | AP28: 6.29 | AQ28: 6.56 | AR28: 5.866 | AS28: 3.18 | AT28: 3.43 | AU28: 5.05 | AV28: 5.03 | AW28: 4.8 | AX28: 4.298 | AY28: 2.88 | AZ28: 3.11 | BA28: 4.87 | BB28: 4.71 | BC28: 4.38 | BD28: 3.99 | BE28: 4.73 | BF28: 5.02 | BG28: 5.74 | BH28: 6.06 | BI28: 6.26 | BJ28: 5.562 | BK28: 4.05 | BL28: 4.11 | BM28: 5.31 | BN28: 5.47 | BO28: 5.51 | BP28: 4.89 | BQ28: 2.84 | BR28: 2.73 | BS28: 3.45 | BT28: 3.62 | BU28: 3.9 | BV28: 3.308
B29: 25 | C29: 3.85 | D29: 4.01 | E29: 5.33 | F29: 5.43 | G29: 5.38 | H29: 4.8 | I29: 3.71 | J29: 3.84 | K29: 5.19 | L29: 5.27 | M29: 5.24 | N29: 4.65 | O29: 3.4 | P29: 3.47 | Q29: 5.03 | R29: 5.04 | T29: 4.235 | U29: 3.23 | V29: 3.52 | W29: 5.12 | X29: 5.09 | Y29: 4.91 | Z29: 4.374 | AA29: 4.62 | AB29: 4.78 | AC29: 5.52 | AF29: 4.973333333 | AG29: 4.03 | AH29: 4.1 | AI29: 5.29 | AJ29: 5.48 | AK29: 5.5 | AL29: 4.88 | AM29: 5.16 | AN29: 5.45 | AO29: 5.95 | AP29: 6.29 | AQ29: 6.51 | AR29: 5.872 | AS29: 3.18 | AT29: 3.44 | AU29: 5.05 | AV29: 5.02 | AW29: 4.8 | AX29: 4.298 | AY29: 2.88 | AZ29: 3.12 | BA29: 4.87 | BB29: 4.7 | BC29: 4.39 | BD29: 3.992 | BE29: 4.86 | BF29: 5.09 | BG29: 5.75 | BH29: 6.13 | BI29: 6.29 | BJ29: 5.624 | BK29: 4.07 | BL29: 4.06 | BM29: 5.3 | BN29: 5.46 | BO29: 5.47 | BP29: 4.872 | BQ29: 2.82 | BR29: 2.73 | BS29: 3.45 | BT29: 3.62 | BU29: 3.92 | BV29: 3.308
A30: J | B30: 26 | C30: 3.85 | D30: 4.01 | E30: 5.33 | F30: 5.39 | G30: 5.38 | H30: 4.792 | I30: 3.72 | J30: 3.82 | K30: 5.2 | L30: 5.24 | M30: 5.23 | N30: 4.642 | O30: 3.39 | P30: 3.53 | Q30: 5.01 | R30: 5.02 | T30: 4.2375 | U30: 3.23 | V30: 3.53 | W30: 5.11 | X30: 5.05 | Y30: 4.89 | Z30: 4.362 | AA30: 4.6 | AB30: 4.68 | AC30: 5.49 | AF30: 4.923333333 | AG30: 4.07 | AH30: 4.12 | AI30: 5.3 | AJ30: 5.48 | AK30: 5.52 | AL30: 4.898 | AM30: 5.13 | AN30: 5.45 | AO30: 5.98 | AP30: 6.3 | AQ30: 6.5 | AR30: 5.872 | AS30: 3.19 | AT30: 3.46 | AU30: 5.05 | AV30: 4.99 | AW30: 4.81 | AX30: 4.3 | AY30: 2.87 | AZ30: 3.14 | BA30: 4.88 | BB30: 4.66 | BC30: 4.39 | BD30: 3.988 | BE30: 4.97 | BF30: 5.06 | BG30: 5.68 | BH30: 6.05 | BI30: 6.22 | BJ30: 5.596 | BK30: 4.05 | BL30: 4.11 | BM30: 5.29 | BN30: 5.47 | BO30: 5.49 | BP30: 4.882 | BQ30: 2.82 | BR30: 2.73 | BS30: 3.43 | BT30: 3.62 | BU30: 3.89 | BV30: 3.298
B31: 27 | C31: 3.85 | D31: 4.01 | E31: 5.33 | F31: 5.37 | G31: 5.36 | H31: 4.784 | I31: 3.71 | J31: 3.85 | K31: 5.19 | L31: 5.21 | M31: 5.25 | N31: 4.642 | O31: 3.4 | P31: 3.5 | Q31: 5.05 | R31: 4.97 | T31: 4.23 | U31: 3.23 | V31: 3.55 | W31: 5.13 | X31: 5.01 | Y31: 4.9 | Z31: 4.364 | AA31: 4.59 | AB31: 4.76 | AC31: 5.61 | AF31: 4.986666667 | AG31: 4.05 | AH31: 4.14 | AI31: 5.29 | AJ31: 5.46 | AK31: 5.51 | AL31: 4.89 | AM31: 5.13 | AN31: 5.37 | AO31: 5.94 | AP31: 6.24 | AQ31: 6.58 | AR31: 5.852 | AS31: 3.19 | AT31: 3.46 | AU31: 5.05 | AV31: 4.96 | AW31: 4.81 | AX31: 4.294 | AY31: 2.87 | AZ31: 3.15 | BA31: 4.87 | BB31: 4.62 | BC31: 4.39 | BD31: 3.98 | BE31: 4.79 | BF31: 4.99 | BG31: 5.8 | BH31: 6.09 | BI31: 6.2 | BJ31: 5.574 | BK31: 4.08 | BL31: 4.08 | BM31: 5.31 | BN31: 5.46 | BO31: 5.49 | BP31: 4.884 | BQ31: 2.8 | BR31: 2.73 | BS31: 3.43 | BT31: 3.61 | BU31: 3.85 | BV31: 3.284
B32: 28 | C32: 3.85 | D32: 4.02 | E32: 5.31 | F32: 5.33 | G32: 5.34 | H32: 4.77 | I32: 3.7 | J32: 3.85 | K32: 5.17 | L32: 5.17 | M32: 5.2 | N32: 4.618 | O32: 3.37 | P32: 3.51 | Q32: 5.06 | R32: 4.92 | S32: 4.88 | T32: 4.348 | U32: 3.22 | V32: 3.53 | W32: 5.13 | X32: 5 | Y32: 4.88 | Z32: 4.352 | AA32: 4.56 | AB32: 4.77 | AC32: 5.57 | AE32: 5.88 | AF32: 5.195 | AG32: 4.06 | AH32: 4.14 | AI32: 5.28 | AJ32: 5.44 | AK32: 5.51 | AL32: 4.886 | AM32: 5.16 | AN32: 5.39 | AO32: 5.95 | AP32: 6.29 | AQ32: 6.59 | AR32: 5.876 | AS32: 3.19 | AT32: 3.48 | AU32: 5.06 | AV32: 4.93 | AW32: 4.82 | AX32: 4.296 | AY32: 2.88 | AZ32: 3.16 | BA32: 4.87 | BB32: 4.57 | BC32: 4.4 | BD32: 3.976 | BE32: 4.84 | BF32: 5.13 | BG32: 5.75 | BH32: 6.1 | BI32: 6.23 | BJ32: 5.61 | BK32: 4.09 | BL32: 4.13 | BM32: 5.3 | BN32: 5.42 | BO32: 5.46 | BP32: 4.88 | BQ32: 2.8 | BR32: 2.73 | BS32: 3.43 | BT32: 3.52 | BU32: 3.82 | BV32: 3.26
B33: 29 | C33: 3.86 | D33: 4.03 | E33: 5.31 | F33: 5.31 | G33: 5.32 | H33: 4.766 | I33: 3.69 | J33: 3.87 | K33: 5.16 | L33: 5.16 | M33: 5.18 | N33: 4.612 | O33: 3.37 | P33: 3.5 | Q33: 5.04 | R33: 4.9 | T33: 4.2025 | U33: 3.24 | V33: 3.57 | W33: 5.14 | X33: 5.01 | Y33: 4.9 | Z33: 4.372 | AA33: 4.53 | AB33: 4.75 | AC33: 5.6 | AF33: 4.96 | AG33: 4.09 | AH33: 4.13 | AI33: 5.3 | AJ33: 5.44 | AK33: 5.5 | AL33: 4.892 | AM33: 5.2 | AN33: 5.38 | AO33: 5.97 | AP33: 6.33 | AQ33: 6.55 | AR33: 5.886 | AS33: 3.2 | AT33: 3.48 | AU33: 5.08 | AV33: 4.89 | AW33: 4.82 | AX33: 4.294 | AY33: 2.88 | AZ33: 3.18 | BA33: 4.9 | BB33: 4.53 | BC33: 4.4 | BD33: 3.978 | BE33: 4.79 | BF33: 4.98 | BG33: 5.78 | BH33: 6.01 | BI33: 6.27 | BJ33: 5.566 | BK33: 4.1 | BL33: 4.11 | BM33: 5.3 | BN33: 5.43 | BO33: 5.49 | BP33: 4.886 | BQ33: 2.8 | BR33: 2.73 | BS33: 3.43 | BT33: 3.5 | BU33: 3.83 | BV33: 3.258
A34: J | B34: 30 | C34: 3.85 | D34: 4.05 | E34: 5.3 | F34: 5.29 | G34: 5.31 | H34: 4.76 | I34: 3.69 | J34: 3.9 | K34: 5.16 | L34: 5.11 | M34: 5.18 | N34: 4.608 | O34: 3.38 | P34: 3.54 | Q34: 5.04 | R34: 4.86 | S34: 4.88 | T34: 4.34 | U34: 3.24 | V34: 3.59 | W34: 5.13 | X34: 4.98 | Y34: 4.93 | Z34: 4.374 | AA34: 4.52 | AB34: 4.73 | AC34: 5.56 | AF34: 4.936666667 | AG34: 4.08 | AH34: 4.13 | AI34: 5.28 | AJ34: 5.42 | AK34: 5.52 | AL34: 4.886 | AM34: 5.19 | AN34: 5.49 | AO34: 5.86 | AP34: 6.3 | AQ34: 6.61 | AR34: 5.89 | AS34: 3.21 | AT34: 3.5 | AU34: 5.08 | AV34: 4.88 | AW34: 4.83 | AX34: 4.3 | AY34: 2.88 | AZ34: 3.2 | BA34: 4.87 | BB34: 4.5 | BC34: 4.42 | BD34: 3.974 | BE34: 4.87 | BF34: 4.95 | BG34: 5.69 | BH34: 6.05 | BI34: 6.34 | BJ34: 5.58 | BK34: 4.06 | BL34: 4.1 | BM34: 5.29 | BN34: 5.43 | BO34: 5.48 | BP34: 4.872 | BQ34: 2.8 | BR34: 2.73 | BS34: 3.43 | BT34: 3.45 | BU34: 3.83 | BV34: 3.248
B35: 31 | C35: 3.85 | D35: 4.07 | E35: 5.29 | F35: 5.24 | G35: 5.31 | H35: 4.752 | I35: 3.68 | J35: 3.9 | K35: 5.16 | L35: 5.09 | M35: 5.19 | N35: 4.604 | O35: 3.37 | P35: 3.54 | Q35: 5.04 | R35: 4.84 | S35: 4.88 | T35: 4.334 | U35: 3.24 | V35: 3.6 | W35: 5.14 | X35: 4.96 | Y35: 4.92 | Z35: 4.372 | AA35: 4.52 | AB35: 4.67 | AC35: 5.5 | AF35: 4.896666667 | AG35: 4.07 | AH35: 4.16 | AI35: 5.19 | AJ35: 5.44 | AK35: 5.53 | AL35: 4.878 | AM35: 5.24 | AN35: 5.44 | AO35: 5.9 | AP35: 6.32 | AQ35: 6.5 | AR35: 5.88 | AS35: 3.21 | AT35: 3.52 | AU35: 5.07 | AV35: 4.86 | AW35: 4.84 | AX35: 4.3 | AY35: 2.88 | AZ35: 3.22 | BA35: 4.86 | BB35: 4.48 | BC35: 4.43 | BD35: 3.974 | BE35: 4.81 | BF35: 4.97 | BG35: 5.65 | BH35: 6 | BJ35: 5.3575 | BK35: 4.09 | BL35: 4.09 | BM35: 5.21 | BN35: 5.41 | BO35: 5.51 | BP35: 4.862 | BQ35: 2.77 | BR35: 2.73 | BS35: 3.4 | BT35: 3.45 | BU35: 3.83 | BV35: 3.236
B36: 32 | C36: 3.83 | D36: 4.11 | E36: 5.28 | F36: 5.24 | G36: 5.33 | H36: 4.758 | I36: 3.66 | J36: 3.91 | K36: 5.15 | L36: 5.06 | M36: 5.23 | N36: 4.602 | O36: 3.35 | P36: 3.56 | Q36: 5.03 | R36: 4.83 | S36: 4.91 | T36: 4.336 | U36: 3.24 | V36: 3.61 | W36: 5.14 | X36: 4.96 | Y36: 4.94 | Z36: 4.378 | AA36: 4.59 | AB36: 4.78 | AC36: 5.53 | AD36: 5.85 | AF36: 5.1875 | AG36: 4.08 | AH36: 4.15 | AI36: 5.28 | AJ36: 5.45 | AK36: 5.56 | AL36: 4.904 | AM36: 5.13 | AN36: 5.41 | AO36: 5.92 | AP36: 6.38 | AQ36: 6.55 | AR36: 5.878 | AS36: 3.2 | AT36: 3.53 | AU36: 5.08 | AV36: 4.87 | AW36: 4.86 | AX36: 4.308 | AY36: 2.87 | AZ36: 3.25 | BA36: 4.86 | BB36: 4.49 | BC36: 4.46 | BD36: 3.986 | BE36: 4.93 | BF36: 5.05 | BG36: 5.79 | BH36: 6.02 | BI36: 6.29 | BJ36: 5.616 | BK36: 4.06 | BL36: 4.14 | BM36: 5.29 | BN36: 5.41 | BO36: 5.52 | BP36: 4.884 | BQ36: 2.77 | BR36: 2.73 | BS36: 3.35 | BT36: 3.45 | BU36: 3.83 | BV36: 3.226
B37: 33 | C37: 3.82 | D37: 4.11 | E37: 5.29 | F37: 5.25 | G37: 5.37 | H37: =AVERAGE(C37:G37) -> 4.768 | I37: 3.66 | J37: 3.92 | K37: 5.14 | L37: 5.07 | M37: 5.26 | N37: =AVERAGE(I37:M37) -> 4.61 | O37: 3.35 | P37: 3.56 | Q37: 5.02 | R37: 4.86 | T37: =AVERAGE(O37:S37) -> 4.1975 | U37: 3.24 | V37: 3.63 | W37: 5.14 | X37: 5.02 | Y37: 4.97 | Z37: =AVERAGE(U37:Y37) -> 4.4 | AA37: 4.46 | AB37: 4.79 | AC37: 5.61 | AF37: =AVERAGE(AA37:AE37) -> 4.953333333 | AG37: 4.09 | AH37: 4.16 | AI37: 5.29 | AJ37: 5.46 | AK37: 5.6 | AL37: =AVERAGE(AG37:AK37) -> 4.92 | AM37: 5.16 | AN37: 5.48 | AO37: 5.95 | AP37: 6.33 | AQ37: 6.53 | AR37: =AVERAGE(AM37:AQ37) -> 5.89 | AS37: 3.21 | AT37: 3.56 | AU37: 5.08 | AV37: 4.93 | AW37: 4.9 | AX37: =AVERAGE(AS37:AW37) -> 4.336 | AY37: 2.88 | AZ37: 3.26 | BA37: 4.87 | BB37: 4.54 | BC37: 4.5 | BD37: =AVERAGE(AY37:BC37) -> 4.01 | BE37: 4.83 | BF37: 5.07 | BG37: 5.75 | BI37: 6.33 | BJ37: =AVERAGE(BE37:BI37) -> 5.495 | BK37: 4.03 | BL37: 4.1 | BM37: 5.31 | BN37: 5.46 | BO37: 5.54 | BP37: =AVERAGE(BK37:BO37) -> 4.888 | BQ37: 2.77 | BR37: 2.73 | BS37: 3.35 | BT37: 3.45 | BU37: 3.83 | BV37: =AVERAGE(BQ37:BU37) -> 3.226
B38: 34 | C38: 3.81 | D38: 4.14 | E38: 5.3 | F38: 5.27 | G38: 5.41 | H38: 4.786 | I38: 3.66 | J38: 3.96 | K38: 5.15 | L38: 5.12 | M38: 5.27 | N38: 4.632 | O38: 3.34 | P38: 3.6 | Q38: 5.04 | R38: 4.9 | S38: 4.94 | T38: 4.364 | U38: 3.25 | V38: 3.64 | W38: 5.13 | X38: 5.04 | Y38: 4.99 | Z38: 4.41 | AA38: 4.57 | AB38: 4.78 | AC38: 5.58 | AF38: 4.976666667 | AG38: 4.08 | AH38: 4.19 | AI38: 5.29 | AJ38: 5.52 | AK38: 5.6 | AL38: 4.936 | AM38: 5.24 | AN38: 5.43 | AO38: 5.95 | AP38: 6.37 | AQ38: 6.56 | AR38: 5.91 | AS38: 3.21 | AT38: 3.58 | AU38: 5.08 | AV38: 4.96 | AW38: 4.92 | AX38: 4.35 | AY38: 2.88 | AZ38: 3.29 | BA38: 4.86 | BB38: 4.6 | BC38: 4.55 | BD38: 4.036 | BE38: 4.83 | BF38: 5.13 | BG38: 5.75 | BH38: 6.19 | BI38: 6.29 | BJ38: 5.638 | BK38: 4.03 | BL38: 4.14 | BM38: 5.3 | BN38: 5.46 | BO38: 5.58 | BP38: 4.902 | BQ38: 2.72 | BR38: 2.73 | BS38: 3.35 | BT38: 3.46 | BU38: 3.82 | BV38: 3.216
A39: A | B39: 35 | C39: 3.81 | D39: 4.15 | E39: 5.29 | F39: 5.3 | G39: 5.42 | H39: 4.794 | I39: 3.65 | J39: 3.98 | K39: 5.16 | L39: 5.15 | M39: 5.29 | N39: 4.646 | O39: 3.34 | P39: 3.6 | Q39: 5.04 | R39: 4.96 | S39: 4.96 | T39: 4.38 | U39: 3.23 | V39: 3.65 | W39: 5.14 | X39: 5.07 | Y39: 5 | Z39: 4.418 | AA39: 4.52 | AB39: 4.89 | AC39: 5.59 | AF39: 5 | AG39: 4.1 | AH39: 4.21 | AI39: 5.31 | AJ39: 5.56 | AK39: 5.61 | AL39: 4.958 | AM39: 5.23 | AN39: 5.49 | AO39: 5.97 | AP39: 6.38 | AQ39: 6.62 | AR39: 5.938 | AS39: 3.21 | AT39: 3.58 | AU39: 5.08 | AV39: 4.99 | AW39: 4.94 | AX39: 4.36 | AY39: 2.88 | AZ39: 3.3 | BA39: 4.86 | BB39: 4.66 | BC39: 4.55 | BD39: 4.05 | BE39: 4.88 | BF39: 5.11 | BG39: 5.76 | BH39: 6.2 | BI39: 6.29 | BJ39: 5.648 | BK39: 4.04 | BL39: 4.19 | BM39: 5.31 | BN39: 5.52 | BO39: 5.57 | BP39: 4.926 | BQ39: 2.69 | BR39: 2.76 | BS39: 3.38 | BT39: 3.47 | BU39: 3.83 | BV39: 3.226
B40: 36 | C40: 3.8 | D40: 4.17 | E40: 5.29 | F40: 5.33 | G40: 5.44 | H40: 4.806 | I40: 3.65 | J40: 4.02 | K40: 5.17 | L40: 5.2 | M40: 5.31 | N40: 4.67 | O40: 3.35 | P40: 3.6 | Q40: 5.06 | R40: 5.01 | S40: 4.96 | T40: 4.396 | U40: 3.24 | V40: 3.66 | W40: 5.13 | X40: 5.1 | Y40: 5 | Z40: 4.426 | AA40: 4.6 | AB40: 4.87 | AC40: 5.6 | AF40: 5.023333333 | AG40: 4.08 | AH40: 4.21 | AI40: 5.32 | AJ40: 5.58 | AK40: 5.61 | AL40: 4.96 | AM40: 5.16 | AN40: 5.44 | AO40: 5.97 | AP40: 6.35 | AQ40: 6.66 | AR40: 5.916 | AS40: 3.21 | AT40: 3.59 | AU40: 5.1 | AV40: 5.03 | AW40: 4.94 | AX40: 4.374 | AY40: 2.89 | AZ40: 3.31 | BA40: 4.86 | BB40: 4.7 | BC40: 4.52 | BD40: 4.056 | BE40: 4.85 | BF40: 5.13 | BG40: 5.73 | BH40: 6.15 | BI40: 6.29 | BJ40: 5.63 | BK40: 4.03 | BL40: 4.17 | BM40: 5.32 | BN40: 5.53 | BO40: 5.56 | BP40: 4.922 | BQ40: 2.69 | BR40: 2.76 | BS40: 3.4 | BT40: 3.5 | BU40: 3.83 | BV40: 3.236
B41: 37 | C41: 3.82 | D41: 4.19 | E41: 5.3 | F41: 5.38 | G41: 5.45 | H41: 4.828 | I41: 3.63 | J41: 4.01 | K41: 5.18 | L41: 5.22 | M41: 5.3 | N41: 4.668 | O41: 3.36 | P41: 3.61 | Q41: 5.05 | R41: 5.01 | S41: 4.96 | T41: 4.398 | U41: 3.26 | V41: 3.68 | W41: 5.16 | X41: 5.09 | Y41: 4.95 | Z41: 4.428 | AA41: 4.75 | AB41: 4.78 | AC41: 5.61 | AF41: 5.046666667 | AG41: 4.07 | AH41: 4.23 | AI41: 5.34 | AJ41: 5.56 | AK41: 5.57 | AL41: 4.954 | AM41: 5.22 | AN41: 5.43 | AO41: 6.01 | AP41: 6.36 | AQ41: 6.6 | AR41: 5.924 | AS41: 3.22 | AT41: 3.6 | AU41: 5.11 | AV41: 5.05 | AW41: 4.87 | AX41: 4.37 | AY41: 2.88 | AZ41: 3.31 | BA41: 4.87 | BB41: 4.71 | BC41: 4.48 | BD41: 4.05 | BE41: 4.87 | BF41: 5.04 | BG41: 5.76 | BH41: 6.11 | BI41: 6.29 | BJ41: 5.614 | BK41: 4.04 | BL41: 4.19 | BM41: 5.34 | BN41: 5.53 | BO41: 5.53 | BP41: 4.926 | BQ41: 2.69 | BR41: 2.76 | BS41: 3.4 | BT41: 3.58 | BU41: 3.87 | BV41: 3.26
B42: 38 | C42: 3.79 | D42: 4.2 | E42: 5.3 | F42: 5.41 | G42: 5.46 | H42: 4.832 | I42: 3.63 | J42: 4.03 | K42: 5.17 | L42: 5.23 | M42: 5.32 | N42: 4.676 | O42: 3.33 | P42: 3.6 | Q42: 5.06 | T42: 3.996666667 | U42: 3.25 | V42: 3.66 | W42: 5.15 | X42: 5.07 | Y42: 4.93 | Z42: 4.412 | AA42: 4.71 | AB42: 4.84 | AC42: 5.69 | AF42: 5.08 | AG42: 4.08 | AH42: 4.21 | AI42: 5.35 | AJ42: 5.55 | AK42: 5.56 | AL42: 4.95 | AM42: 5.26 | AN42: 5.5 | AO42: 6.01 | AP42: 6.4 | AQ42: 6.61 | AR42: 5.956 | AS42: 3.22 | AT42: 3.6 | AU42: 5.11 | AV42: 5.04 | AW42: 4.83 | AX42: 4.36 | AY42: 2.88 | AZ42: 3.31 | BA42: 4.9 | BB42: 4.67 | BC42: 4.42 | BD42: 4.036 | BE42: 4.84 | BF42: 5.1 | BG42: 5.75 | BH42: 6.21 | BI42: 6.3 | BJ42: 5.64 | BK42: 4.02 | BL42: 4.16 | BM42: 5.34 | BN42: 5.51 | BO42: 5.54 | BP42: 4.914 | BQ42: 2.69 | BR42: 2.8 | BS42: 3.45 | BT42: 3.59 | BU42: 3.89 | BV42: 3.284
A43: S | B43: 39 | C43: 3.79 | D43: 4.22 | E43: 5.31 | F43: 5.42 | G43: 5.47 | H43: 4.842 | I43: 3.65 | J43: 4.05 | K43: 5.19 | L43: 5.26 | M43: 5.32 | N43: 4.694 | O43: 3.3 | P43: 3.66 | Q43: 5.07 | S43: 4.94 | T43: 4.2425 | U43: 3.24 | V43: 3.68 | W43: 5.19 | X43: 5.06 | Y43: 4.86 | Z43: 4.406 | AA43: 4.62 | AB43: 4.89 | AC43: 5.81 | AF43: 5.106666667 | AG43: 4.09 | AH43: 4.21 | AI43: 5.35 | AJ43: 5.54 | AK43: 5.57 | AL43: 4.952 | AM43: 5.14 | AN43: 5.51 | AO43: 6.02 | AP43: 6.34 | AQ43: 6.6 | AR43: 5.922 | AS43: 3.22 | AT43: 3.6 | AU43: 5.13 | AV43: 4.99 | AW43: 4.78 | AX43: 4.344 | AY43: 2.88 | AZ43: 3.31 | BA43: 4.91 | BB43: 4.65 | BC43: 4.36 | BD43: 4.022 | BE43: 4.84 | BF43: 5.11 | BG43: 5.74 | BH43: 6.19 | BI43: 6.26 | BJ43: 5.628 | BK43: 4.07 | BL43: 4.17 | BM43: 5.36 | BN43: 5.53 | BO43: 5.52 | BP43: 4.93 | BQ43: 2.67 | BR43: 2.8 | BS43: 3.45 | BT43: 3.59 | BU43: 3.91 | BV43: 3.284
B44: 40 | C44: 3.8 | D44: 4.26 | E44: 5.32 | F44: 5.42 | G44: 5.51 | H44: 4.862 | I44: 3.65 | J44: 4.07 | K44: 5.2 | L44: 5.27 | M44: 5.32 | N44: 4.702 | O44: 3.3 | P44: 3.62 | Q44: 5.07 | R44: 4.98 | S44: 4.91 | T44: 4.376 | U44: 3.25 | V44: 3.67 | W44: 5.19 | X44: 5.05 | Y44: 4.81 | Z44: 4.394 | AA44: 4.58 | AB44: 4.84 | AF44: 4.71 | AG44: 4.07 | AH44: 4.23 | AI44: 5.39 | AJ44: 5.56 | AK44: 5.57 | AL44: 4.964 | AM44: 5.19 | AN44: 5.43 | AO44: 6 | AP44: 6.41 | AQ44: 6.56 | AR44: 5.918 | AS44: 3.21 | AT44: 3.6 | AU44: 5.13 | AV44: 4.95 | AW44: 4.74 | AX44: 4.326 | AY44: 2.88 | AZ44: 3.3 | BA44: 4.91 | BB44: 4.6 | BC44: 4.32 | BD44: 4.002 | BE44: 4.9 | BF44: 5.11 | BG44: 5.76 | BH44: 6.18 | BI44: 6.29 | BJ44: 5.648 | BK44: 4.04 | BL44: 4.16 | BM44: 5.37 | BN44: 5.53 | BO44: 5.53 | BP44: 4.926 | BQ44: 2.67 | BR44: 2.82 | BS44: 3.45 | BT44: 3.56 | BU44: 3.96 | BV44: 3.292
B45: 41 | C45: 3.79 | D45: 4.28 | E45: 5.34 | F45: 5.43 | G45: 5.52 | H45: 4.872 | I45: 3.62 | J45: 4.1 | K45: 5.21 | L45: 5.27 | M45: 5.36 | N45: 4.712 | O45: 3.32 | P45: 3.65 | Q45: 5.08 | R45: 4.97 | S45: 4.92 | T45: 4.388 | U45: 3.25 | V45: 3.66 | W45: 5.19 | X45: 5.01 | Y45: 4.76 | Z45: 4.374 | AA45: 4.57 | AB45: 4.79 | AC45: 5.72 | AF45: 5.026666667 | AG45: 4.07 | AH45: 4.21 | AI45: 5.42 | AJ45: 5.53 | AK45: 5.58 | AL45: 4.962 | AM45: 5.17 | AN45: 5.49 | AO45: 6.02 | AP45: 6.36 | AQ45: 6.58 | AR45: 5.924 | AS45: 3.21 | AT45: 3.61 | AU45: 5.14 | AV45: 4.92 | AW45: 4.69 | AX45: 4.314 | AY45: 2.87 | AZ45: 3.31 | BA45: 4.92 | BB45: 4.55 | BC45: 4.27 | BD45: 3.984 | BE45: 4.85 | BF45: 5.06 | BG45: 5.86 | BH45: 6.17 | BI45: 6.25 | BJ45: 5.638 | BK45: 4.03 | BL45: 4.15 | BM45: 5.38 | BN45: 5.49 | BO45: 5.51 | BP45: 4.912 | BQ45: 2.67 | BR45: 2.82 | BS45: 3.45 | BT45: 3.49 | BU45: 3.96 | BV45: 3.278
B46: 42 | C46: 3.78 | D46: 4.32 | E46: 5.35 | F46: 5.42 | G46: 5.56 | H46: 4.886 | I46: 3.62 | J46: 4.14 | K46: 5.23 | L46: 5.26 | M46: 5.39 | N46: 4.728 | O46: 3.33 | P46: 3.67 | Q46: 5.1 | R46: 4.93 | S46: 4.89 | T46: 4.384 | U46: 3.22 | V46: 3.7 | W46: 5.2 | X46: 4.94 | Y46: 4.71 | Z46: 4.354 | AA46: 4.68 | AB46: 4.92 | AF46: 4.8 | AG46: 4.1 | AH46: 4.23 | AI46: 5.42 | AJ46: 5.53 | AK46: 5.57 | AL46: 4.97 | AM46: 5.14 | AN46: 5.5 | AO46: 6.04 | AP46: 6.39 | AQ46: 6.65 | AR46: 5.944 | AS46: 3.21 | AT46: 3.63 | AU46: 5.14 | AV46: 4.88 | AW46: 4.66 | AX46: 4.304 | AY46: 2.86 | AZ46: 3.34 | BA46: 4.92 | BB46: 4.51 | BC46: 4.22 | BD46: 3.97 | BE46: 4.86 | BF46: 5.06 | BG46: 5.83 | BH46: 6.19 | BI46: 6.3 | BJ46: 5.648 | BK46: 4.02 | BL46: 4.19 | BM46: 5.37 | BN46: 5.51 | BO46: 5.52 | BP46: 4.922 | BQ46: 2.64 | BR46: 2.82 | BS46: 3.48 | BT46: 3.49 | BU46: 3.97 | BV46: 3.28
B47: 43 | C47: 3.79 | D47: 4.36 | E47: 5.36 | F47: 5.4 | G47: 5.59 | H47: 4.9 | I47: 3.6 | J47: 4.2 | K47: 5.25 | L47: 5.26 | M47: 5.42 | N47: 4.746 | O47: 3.35 | P47: 3.69 | Q47: 5.09 | R47: 4.93 | S47: 4.9 | T47: 4.392 | U47: 3.25 | V47: 3.7 | W47: 5.19 | X47: 4.93 | Y47: 4.75 | Z47: 4.364 | AA47: 4.53 | AB47: 4.87 | AC47: 5.66 | AF47: 5.02 | AG47: 4.09 | AH47: 4.26 | AI47: 5.41 | AJ47: 5.51 | AK47: 5.53 | AL47: 4.96 | AM47: 5.19 | AN47: 5.48 | AO47: 6.06 | AP47: 6.46 | AQ47: 6.62 | AR47: 5.962 | AS47: 3.21 | AT47: 3.65 | AU47: 5.13 | AV47: 4.85 | AW47: 4.65 | AX47: 4.298 | AY47: 2.87 | AZ47: 3.35 | BA47: 4.89 | BB47: 4.44 | BC47: 4.18 | BD47: 3.946 | BE47: 4.83 | BF47: 5.14 | BG47: 5.84 | BH47: 6.13 | BI47: 6.38 | BJ47: 5.664 | BK47: 4.02 | BL47: 4.19 | BM47: 5.38 | BN47: 5.49 | BO47: 5.49 | BP47: 4.914 | BQ47: 2.62 | BR47: 2.82 | BS47: 3.48 | BT47: 3.45 | BU47: 3.97 | BV47: 3.268
A48: O | B48: 44 | C48: 3.8 | D48: 4.41 | E48: 5.38 | F48: 5.4 | G48: 5.63 | H48: 4.924 | I48: 3.6 | J48: 4.25 | K48: 5.25 | L48: 5.25 | M48: 5.46 | N48: 4.762 | O48: 3.34 | P48: 3.7 | R48: 4.89 | S48: 4.98 | T48: 4.2275 | U48: 3.24 | V48: 3.73 | W48: 5.16 | X48: 4.91 | Y48: 4.71 | Z48: 4.35 | AA48: 4.58 | AB48: 4.95 | AF48: 4.765 | AG48: 4.07 | AH48: 4.27 | AI48: 5.43 | AJ48: 5.51 | AK48: 5.53 | AL48: 4.962 | AM48: 5.22 | AN48: 5.52 | AO48: 6.04 | AP48: 6.42 | AQ48: 6.61 | AR48: 5.962 | AS48: 3.19 | AT48: 3.66 | AU48: 5.09 | AV48: 4.78 | AW48: 4.62 | AX48: 4.268 | AY48: 2.85 | AZ48: 3.38 | BA48: 4.86 | BB48: 4.35 | BC48: 4.14 | BD48: 3.916 | BE48: 4.81 | BF48: 5.13 | BG48: 5.83 | BI48: 6.37 | BJ48: 5.535 | BK48: 4.01 | BL48: 4.23 | BM48: 5.38 | BN48: 5.51 | BO48: 5.51 | BP48: 4.928 | BQ48: 2.62 | BR48: 2.82 | BS48: 3.48 | BT48: 3.45 | BU48: 3.97 | BV48: 3.268
B49: 45 | C49: 3.78 | D49: 4.46 | E49: 5.39 | F49: 5.39 | G49: 5.67 | H49: 4.938 | I49: 3.61 | J49: 4.29 | K49: 5.27 | L49: 5.24 | M49: 5.51 | N49: 4.784 | O49: 3.35 | P49: 3.7 | Q49: 5.07 | R49: 4.85 | S49: 4.98 | T49: 4.39 | U49: 3.23 | V49: 3.75 | W49: 5.14 | X49: 4.85 | Y49: 4.69 | Z49: 4.332 | AA49: 4.53 | AB49: 4.85 | AF49: 4.69 | AG49: 4.06 | AH49: 4.31 | AI49: 5.42 | AJ49: 5.48 | AK49: 5.5 | AL49: 4.954 | AM49: 5.1 | AN49: 5.56 | AO49: 6.11 | AP49: 6.4 | AQ49: 6.63 | AR49: 5.96 | AS49: 3.18 | AT49: 3.69 | AU49: 5.07 | AV49: 4.71 | AW49: 4.64 | AX49: 4.258 | AY49: 2.82 | AZ49: 3.4 | BA49: 4.82 | BB49: 4.26 | BC49: 4.15 | BD49: 3.89 | BE49: 4.91 | BF49: 5.18 | BG49: 5.88 | BH49: 6.23 | BI49: 6.23 | BJ49: 5.686 | BK49: 3.95 | BL49: 4.23 | BM49: 5.4 | BN49: 5.44 | BO49: 5.5 | BP49: 4.904 | BQ49: 2.62 | BR49: 2.82 | BS49: 3.5 | BT49: 3.4 | BU49: 3.98 | BV49: 3.264
B50: 46 | C50: 3.77 | D50: 4.49 | E50: 5.42 | F50: 5.41 | G50: 5.73 | H50: 4.964 | I50: 3.61 | J50: 4.34 | K50: 5.3 | L50: 5.24 | M50: 5.58 | N50: 4.814 | O50: 3.37 | P50: 3.74 | Q50: 5.07 | R50: 4.81 | T50: 4.2475 | U50: 3.19 | V50: 3.74 | W50: 5.09 | X50: 4.69 | Y50: 4.71 | Z50: 4.284 | AA50: 4.59 | AB50: 4.89 | AF50: 4.74 | AG50: 4.07 | AH50: 4.32 | AI50: 5.4 | AJ50: 5.46 | AK50: 5.57 | AL50: 4.964 | AM50: 5.2 | AN50: 5.53 | AO50: 6.06 | AP50: 6.43 | AQ50: 6.58 | AR50: 5.96 | AS50: 3.13 | AT50: 3.71 | AU50: 5.05 | AV50: 4.62 | AW50: 4.64 | AX50: 4.23 | AY50: 2.77 | AZ50: 3.43 | BA50: 4.76 | BB50: 4.16 | BC50: 4.16 | BD50: 3.856 | BE50: 4.85 | BF50: 5.17 | BG50: 5.84 | BH50: 6.14 | BI50: 6.43 | BJ50: 5.686 | BK50: 4 | BL50: 4.26 | BM50: 5.39 | BN50: 5.43 | BO50: 5.51 | BP50: 4.918 | BQ50: 2.62 | BR50: 2.82 | BS50: 3.5 | BT50: 3.35 | BU50: 4 | BV50: 3.258
B51: 47 | C51: 3.78 | D51: 4.53 | E51: 5.46 | F51: 5.42 | G51: 5.77 | H51: 4.992 | I51: 3.61 | J51: 4.39 | K51: 5.32 | L51: 5.27 | M51: 5.62 | N51: 4.842 | O51: 3.33 | P51: 3.74 | Q51: 5.1 | R51: 4.76 | S51: 5.07 | T51: 4.4 | U51: 3.15 | V51: 3.77 | W51: 5.07 | X51: 4.69 | Y51: 4.75 | Z51: 4.286 | AA51: 4.45 | AB51: 4.84 | AC51: 5.8 | AD51: 5.95 | AF51: 5.26 | AG51: 4.04 | AH51: 4.32 | AI51: 5.41 | AJ51: 5.41 | AK51: 5.56 | AL51: 4.948 | AM51: 5.24 | AN51: 5.54 | AO51: 6.06 | AP51: 6.4 | AQ51: 6.61 | AR51: 5.97 | AS51: 3.08 | AT51: 3.73 | AU51: 5 | AV51: 4.54 | AW51: 4.67 | AX51: 4.204 | AY51: 2.74 | AZ51: 3.45 | BA51: 4.72 | BB51: 4.06 | BC51: 4.19 | BD51: 3.832 | BE51: 4.86 | BF51: 5.14 | BG51: 5.88 | BH51: 6.14 | BI51: 6.27 | BJ51: 5.658 | BK51: 4.01 | BL51: 4.28 | BM51: 5.41 | BN51: 5.41 | BO51: 5.55 | BP51: 4.932 | BQ51: 2.62 | BR51: 2.82 | BS51: 3.5 | BT51: 3.34 | BU51: 4.03 | BV51: 3.262
A52: N | B52: 48 | C52: 3.79 | D52: 4.57 | E52: 5.49 | F52: 5.44 | G52: 5.83 | H52: 5.024 | I52: 3.62 | J52: 4.41 | K52: 5.36 | L52: 5.25 | M52: 5.65 | N52: 4.858 | O52: 3.36 | P52: 3.74 | Q52: 5.1 | R52: 4.72 | T52: 4.23 | U52: 3.14 | V52: 3.78 | W52: 5.07 | X52: 4.62 | Y52: 4.74 | Z52: 4.27 | AA52: 4.56 | AB52: 4.84 | AF52: 4.7 | AG52: 4.05 | AH52: 4.35 | AI52: 5.42 | AJ52: 5.38 | AK52: 5.6 | AL52: 4.96 | AM52: 5.22 | AN52: 5.47 | AO52: 6.02 | AP52: 6.37 | AQ52: 6.6 | AR52: 5.936 | AS52: 3.06 | AT52: 3.74 | AU52: 4.99 | AV52: 4.48 | AW52: 4.67 | AX52: 4.188 | AY52: 2.73 | AZ52: 3.45 | BA52: 4.67 | BB52: 3.95 | BC52: 4.2 | BD52: 3.8 | BE52: 4.87 | BF52: 5.22 | BG52: 5.82 | BH52: 6.2 | BI52: 6.36 | BJ52: 5.694 | BK52: 4.02 | BL52: 4.28 | BM52: 5.4 | BN52: 5.41 | BO52: 5.56 | BP52: 4.934 | BQ52: 2.62 | BR52: 2.82 | BS52: 3.47 | BT52: 3.32 | BU52: 4.03 | BV52: 3.252
B53: 49 | C53: 3.8 | D53: 4.59 | E53: 5.51 | F53: 5.44 | G53: 5.86 | H53: 5.04 | I53: 3.61 | J53: 4.4 | K53: 5.37 | L53: 5.26 | M53: 5.69 | N53: 4.866 | O53: 3.38 | P53: 3.76 | Q53: 5.11 | R53: 4.76 | S53: 5.03 | T53: 4.408 | U53: 3.13 | V53: 3.78 | W53: 5.05 | X53: 4.46 | Y53: 4.77 | Z53: 4.238 | AA53: 4.57 | AB53: 5.25 | AC53: 6.07 | AD53: 6.27 | AE53: 6.25 | AF53: 5.682 | AG53: 4.05 | AH53: 4.35 | AI53: 5.42 | AJ53: 5.38 | AK53: 5.57 | AL53: 4.954 | AM53: 5.22 | AN53: 5.62 | AO53: 6.13 | AP53: 6.53 | AQ53: 6.63 | AR53: 6.026 | AS53: 3.04 | AT53: 3.73 | AU53: 4.96 | AV53: 4.38 | AW53: 4.69 | AX53: 4.16 | AY53: 2.73 | AZ53: 3.46 | BA53: 4.63 | BB53: 3.88 | BC53: 4.21 | BD53: 3.782 | BE53: 4.84 | BF53: 5.24 | BG53: 5.96 | BH53: 6.31 | BI53: 6.32 | BJ53: 5.734 | BK53: 4.02 | BL53: 4.32 | BM53: 5.42 | BN53: 5.4 | BO53: 5.54 | BP53: 4.94 | BQ53: 2.62 | BR53: 2.79 | BS53: 3.45 | BT53: 3.27 | BU53: 4.03 | BV53: 3.232
B54: 50 | C54: 3.79 | D54: 4.59 | E54: 5.52 | G54: 5.87 | H54: 4.9425 | I54: 3.62 | J54: 4.41 | K54: 5.38 | M54: 5.69 | N54: 4.775 | O54: 3.41 | P54: 3.78 | Q54: 5.11 | S54: 5.14 | T54: 4.36 | U54: 3.15 | V54: 3.79 | W54: 5.01 | Y54: 4.8 | Z54: 4.1875 | AA54: 4.79 | AB54: 4.96 | AC54: 5.92 | AE54: 6.65 | AF54: 5.58 | AG54: 4.04 | AH54: 4.35 | AI54: 5.41 | AK54: 5.57 | AL54: 4.8425 | AM54: 5.33 | AN54: 5.58 | AO54: 6.15 | AQ54: 6.74 | AR54: 5.95 | AS54: 3.04 | AT54: 3.73 | AU54: 4.92 | AW54: 4.69 | AX54: 4.095 | AY54: 2.73 | AZ54: 3.42 | BA54: 4.6 | BC54: 4.21 | BD54: 3.74 | BE54: 5 | BF54: 5.28 | BG54: 6.01 | BI54: 6.74 | BJ54: 5.7575 | BK54: 4.01 | BL54: 4.3 | BM54: 5.4 | BO54: 5.55 | BP54: 4.815 | BQ54: 2.62 | BR54: 2.79 | BS54: 3.27 | BU54: 4.05 | BV54: 3.1825
B55: 51 | C55: 3.8 | D55: 4.59 | E55: 5.52 | G55: 5.88 | H55: 4.9475 | I55: 3.63 | J55: 4.41 | K55: 5.39 | M55: 5.66 | N55: 4.7725 | O55: 3.37 | P55: 3.78 | Q55: 5.1 | S55: 5.1 | T55: 4.3375 | U55: 3.13 | V55: 3.79 | W55: 5.02 | Y55: 4.79 | Z55: 4.1825 | AA55: 4.75 | AB55: 4.87 | AF55: 4.81 | AG55: 4.04 | AH55: 4.36 | AI55: 5.42 | AK55: 5.57 | AL55: 4.8475 | AM55: 5.24 | AN55: 5.56 | AO55: 6.18 | AQ55: 6.65 | AR55: 5.9075 | AS55: 3.06 | AT55: 3.73 | AU55: 4.91 | AW55: 4.68 | AX55: 4.095 | AY55: 2.73 | AZ55: 3.41 | BA55: 4.57 | BC55: 4.22 | BD55: 3.7325 | BE55: 4.9 | BF55: 5.13 | BG55: 5.92 | BI55: 6.41 | BJ55: 5.59 | BK55: 4.03 | BL55: 4.29 | BM55: 5.43 | BO55: 5.58 | BP55: 4.8325 | BQ55: 2.62 | BR55: 2.79 | BS55: 3.27 | BU55: 4.05 | BV55: 3.1825
A56: D | B56: 52 | C56: 3.82 | D56: 4.59 | E56: 5.53 | H56: 4.646666667 | I56: 3.65 | J56: 4.42 | K56: 5.4 | N56: 4.49 | O56: 3.35 | P56: 3.75 | Q56: 5.07 | T56: 4.056666667 | U56: 3.13 | V56: 3.8 | W56: 4.99 | Z56: 3.973333333 | AA56: 4.5 | AB56: 4.88 | AF56: 4.69 | AG56: 4.05 | AH56: 4.38 | AI56: 5.42 | AL56: 4.616666667 | AM56: 5.21 | AN56: 5.49 | AO56: 6.08 | AR56: 5.593333333 | AS56: 3.07 | AT56: 3.74 | AU56: 4.91 | AX56: 3.906666667 | AY56: 2.74 | AZ56: 3.43 | BA56: 4.59 | BD56: 3.586666667 | BE56: 4.94 | BF56: 5.22 | BG56: 5.86 | BJ56: 5.34 | BK56: 3.97 | BL56: 4.34 | BM56: 5.43 | BP56: 4.58 | BQ56: 2.62 | BS56: 3.27 | BV56: 2.945
B57: 53 | C57: 3.82 | H57: 3.82 | I57: 3.66 | N57: 3.66 | O57: 3.37 | T57: 3.37 | U57: 3.13 | Z57: 3.13 | AA57: 4.56 | AF57: 4.56 | AG57: 4.04 | AL57: 4.04 | AM57: 5.19 | AR57: 5.19 | AS57: 3.07 | AX57: 3.07 | AY57: 2.75 | BD57: 2.75 | BE57: 4.81 | BJ57: 4.81 | BK57: 4.03 | BP57: 4.03 | BQ57: 2.62 | BV57: 2.62

Sheet MoyQuinqHebdoVeaux (hidden)
C5: 2020 | D5: 2021 | E5: 2022 | F5: 2023 | G5: 2024 | H5: MOYENNE 5 ANS | I5: 2020 | J5: 2021 | K5: 2022 | L5: 2023 | M5: 2024 | N5: MOYENNE 5 ANS | O5: 2020 | P5: 2021 | Q5: 2022 | R5: 2023 | S5: 2024 | T5: MOYENNE 5 ANS | U5: 2020 | V5: 2021 | W5: 2022 | X5: 2023 | Y5: 2024 | Z5: MOYENNE 5 ANS | AA5: 2020 | AB5: 2021 | AC5: 2022 | AD5: 2023 | AE5: 2024 | AF5: MOYENNE 5 ANS
A6: Mois | B6: Sem. | C6: Rose très clair | I6: R.clair | O6: Rosé | U6: NORMAND 45 à 50 Kg (Euros/tête) | AA6: LAITIER 45 à 50 Kg (Euros/tête)
B8: 1 | C8: 6.77 | D8: 6.91 | E8: 6.960000038 | F8: 7.949999809 | H8: =AVERAGE(C8:G8) -> 7.147499962 | I8: 6.37 | J8: 6.39 | K8: 6.949999809 | L8: 7.75 | M8: 7.48 | N8: =AVERAGE(I8:M8) -> 6.987999962 | O8: 4.93 | P8: 4.96 | Q8: 4.960000038 | R8: 5.510000229 | S8: 5.6 | T8: =AVERAGE(O8:S8) -> 5.192000053 | U8: 55 | V8: 40 | W8: 35 | X8: 40 | Y8: 40 | Z8: =AVERAGE(U8:Y8) -> 42 | AA8: 55 | AB8: 55 | AC8: 55 | AD8: 60 | AE8: 55 | AF8: =AVERAGE(AA8:AE8) -> 56
B9: 2 | C9: 6.95 | D9: 6.86 | E9: 7.150000095 | F9: 7.989999771 | G9: 7.59 | H9: 7.307999973 | I9: 6.41 | J9: 6.36 | K9: 6.960000038 | L9: 7.760000229 | M9: 7.49 | N9: 6.996000053 | O9: 5.26 | P9: 5.03 | Q9: 4.929999828 | R9: 5.389999866 | S9: 5.6 | T9: 5.241999939 | U9: 55 | V9: 40 | W9: 35 | X9: 60 | Y9: 40 | Z9: 46 | AA9: 55 | AB9: 55 | AC9: 55 | AD9: 70 | AE9: 55 | AF9: 58
B10: 3 | C10: 6.91 | D10: 6.86 | E10: 7.150000095 | F10: 7.989999771 | H10: 7.227499967 | I10: 6.41 | J10: 6.37 | K10: 6.949999809 | L10: 7.75 | M10: 7.51 | N10: 6.997999962 | O10: 5.17 | P10: 4.95 | Q10: 4.599999905 | R10: 5.380000114 | S10: 5.6 | T10: 5.140000004 | U10: 55 | V10: 40 | W10: 35 | X10: 60 | Y10: 40 | Z10: 46 | AA10: 55 | AB10: 55 | AC10: 55 | AD10: 70 | AE10: 55 | AF10: 58
A11: J | B11: 4 | C11: 6.86 | D11: 6.85 | E11: 7.150000095 | F11: 7.880000114 | G11: 7.53 | H11: 7.254000042 | I11: 6.41 | J11: 6.37 | K11: 6.949999809 | L11: 7.769999981 | M11: 7.51 | N11: 7.001999958 | O11: 5.04 | P11: 4.95 | Q11: 4.849999905 | R11: 5.210000038 | S11: 5.6 | T11: 5.129999989 | U11: 55 | V11: 45 | W11: 35 | X11: 60 | Y11: 40 | Z11: 47 | AA11: 55 | AB11: 60 | AC11: 55 | AD11: 70 | AE11: 55 | AF11: 59
B12: 5 | C12: 6.77 | D12: 6.85 | E12: 7.110000134 | F12: nc | G12: 7.53 | H12: 7.065000033 | I12: 6.37 | J12: 6.39 | K12: 6.920000076 | L12: 7.77 | M12: 7.52 | N12: 6.994000015 | O12: 5.18 | P12: 5.02 | Q12: 4.940000057 | R12: 5.81 | S12: 5.54 | T12: 5.298000011 | U12: 55 | V12: 45 | W12: 35 | X12: 70 | Y12: 45 | Z12: 50 | AA12: 55 | AB12: 60 | AC12: 55 | AD12: 80 | AE12: 60 | AF12: 62
B13: 6 | C13: 6.78 | D13: 6.85 | E13: 7.099999905 | F13: 7.84 | G13: 7.69 | H13: 7.251999981 | I13: 6.34 | J13: 6.37 | K13: 6.900000095 | L13: 7.77 | M13: 7.51 | N13: 6.978000019 | O13: 5.32 | P13: 4.64 | Q13: 5.090000153 | R13: 5.81 | S13: 5.68 | T13: 5.308000031 | U13: 55 | V13: 45 | W13: 45 | X13: 70 | Y13: 45 | Z13: 52 | AA13: 55 | AB13: 60 | AC13: 65 | AD13: 80 | AE13: 60 | AF13: 64
B14: 7 | C14: 6.8 | D14: 6.85 | E14: 7.099999905 | F14: 7.84 | G14: 7.66 | H14: 7.249999981 | I14: 6.31 | J14: 6.39 | K14: 6.889999866 | L14: 7.76 | M14: 7.55 | N14: 6.979999973 | O14: 4.94 | P14: 4.85 | Q14: 5.079999924 | R14: 5.81 | S14: 5.68 | T14: 5.271999985 | U14: 55 | V14: 45 | W14: 45 | X14: 70 | Y14: 45 | Z14: 52 | AA14: 55 | AB14: 60 | AC14: 65 | AD14: 80 | AE14: 60 | AF14: 64
A15: F | B15: 8 | C15: 6.65 | D15: 6.85 | E15: 7.159999847 | F15: 7.84 | G15: 7.66 | H15: 7.231999969 | I15: 6.3 | J15: 6.37 | K15: 6.900000095 | L15: 7.76 | M15: 7.55 | N15: 6.976000019 | O15: 4.56 | P15: 4.83 | Q15: 5.159999847 | R15: 5.81 | S15: 5.59 | T15: 5.189999969 | U15: 55 | V15: 45 | W15: 45 | X15: 70 | Y15: 55 | Z15: 54 | AA15: 55 | AB15: 60 | AC15: 65 | AD15: 80 | AE15: 70 | AF15: 66
B16: 9 | C16: 6.74 | D16: 6.72 | E16: 7.159999847 | F16: 7.74 | H16: 7.089999962 | I16: 6.3 | J16: 6.39 | K16: 6.889999866 | L16: 7.74 | M16: 7.48 | N16: 6.959999973 | O16: 4.75 | P16: 4.87 | Q16: 5.230000019 | R16: 5.43 | S16: 5.67 | T16: 5.190000004 | U16: 55 | V16: 45 | W16: 55 | X16: 70 | Y16: 55 | Z16: 56 | AA16: 55 | AB16: 60 | AC16: 75 | AD16: 80 | AE16: 70 | AF16: 68
B17: 10 | C17: 6.74 | D17: 6.72 | F17: 7.74 | G17: 7.6 | H17: 7.2 | I17: 6.27 | J17: 6.35 | K17: 6.860000134 | L17: 7.74 | M17: 7.45 | N17: 6.934000027 | O17: 4.98 | P17: 4.51 | Q17: 5.230000019 | R17: 5.93 | S17: 5.88 | T17: 5.306000004 | U17: 55 | V17: 45 | W17: 65 | X17: 70 | Y17: 65 | Z17: 60 | AA17: 55 | AB17: 60 | AC17: 85 | AD17: 80 | AE17: 80 | AF17: 72
B18: 11 | C18: 6.69 | D18: 6.66 | F18: 7.84 | G18: 7.6 | H18: 7.1975 | I18: 6.25 | J18: 6.37 | K18: 6.909999847 | L18: 7.74 | M18: 7.5 | N18: 6.953999969 | O18: 4.58 | P18: 4.11 | Q18: 5.230000019 | R18: 5.77 | S18: 5.88 | T18: 5.114000004 | V18: 45 | W18: 65 | X18: 70 | Y18: 65 | Z18: 61.25 | AB18: 60 | AC18: 85 | AD18: 80 | AE18: 80 | AF18: 76.25
B19: 12 | C19: 6.59 | D19: 6.53 | E19: 6.989999771 | F19: 7.75 | G19: 7.58 | H19: 7.087999954 | I19: 6.23 | J19: 6.29 | K19: 6.980000019 | L19: 7.73 | M19: 7.5 | N19: 6.946000004 | O19: 4.96 | P19: 4.23 | Q19: 4.900000095 | R19: 5.7 | S19: 5.82 | T19: 5.122000019 | V19: 45 | W19: 65 | X19: 70 | Y19: 75 | Z19: 63.75 | AB19: 60 | AC19: 85 | AD19: 80 | AE19: 90 | AF19: 78.75
A20: M | B20: 13 | C20: 6.67 | D20: 6.48 | E20: 6.989999771 | F20: nc | G20: 7.6 | H20: 6.934999943 | I20: 6.21 | J20: 6.32 | K20: 6.980000019 | L20: 7.74 | M20: 7.5 | N20: 6.950000004 | O20: 4.72 | P20: 4.1 | Q20: 4.900000095 | R20: 5.92 | S20: 5.82 | T20: 5.092000019 | U20: 75 | V20: 55 | W20: 65 | X20: 70 | Y20: 85 | Z20: 70 | AA20: 75 | AB20: 70 | AC20: 85 | AD20: 80 | AE20: 100 | AF20: 82
B21: 14 | C21: 6.59 | D21: 6.52 | E21: 6.989999771 | F21: 7.8 | G21: 7.6 | H21: 7.099999954 | I21: 6.13 | J21: 6.29 | K21: 6.989999771 | L21: 7.73 | M21: 7.45 | N21: 6.917999954 | O21: 4.35 | P21: 4.22 | Q21: 4.900000095 | R21: 6.06 | S21: 5.82 | T21: 5.070000019 | U21: 75 | V21: 55 | W21: 65 | X21: 80 | Y21: 85 | Z21: 72 | AA21: 75 | AB21: 70 | AC21: 85 | AD21: 90 | AE21: 100 | AF21: 84
B22: 15 | C22: 6.58 | D22: 6.42 | E22: 7.179999828 | F22: 7.72 | H22: 6.974999957 | I22: 5.99 | J22: 6.23 | K22: 7.050000191 | L22: 7.67 | M22: 7.43 | N22: 6.874000038 | O22: 4.5 | P22: 3.94 | Q22: 4.510000229 | R22: 5.7 | S22: 5.84 | T22: 4.898000046 | V22: 50 | W22: 65 | X22: 80 | Y22: 95 | Z22: 72.5 | AB22: 65 | AC22: 85 | AD22: 90 | AE22: 110 | AF22: 87.5
B23: 16 | C23: 6.63 | D23: 6.42 | E23: 7.179999828 | F23: 7.72 | G23: 7.37 | H23: 7.063999966 | I23: 5.87 | J23: 6.18 | K23: 7.070000172 | L23: 7.64 | M23: 7.43 | N23: 6.838000034 | O23: 4.45 | P23: 4.22 | Q23: 4.75 | R23: 5.84 | S23: 5.98 | T23: 5.048 | V23: 45 | W23: 65 | X23: 80 | Y23: 105 | Z23: 73.75 | AB23: 60 | AC23: 85 | AD23: 90 | AE23: 120 | AF23: 88.75
A24: A | B24: 17 | C24: 6.1 | D24: 6.41 | E24: 7.099999905 | F24: nc | G24: 7.37 | H24: 6.744999976 | I24: 5.63 | J24: 6.12 | K24: 7.059999943 | L24: 7.59 | M24: 7.43 | N24: 6.765999989 | O24: 4.02 | P24: 3.7 | Q24: 4.75 | R24: 5.5 | S24: 5.98 | T24: 4.79 | U24: 70 | V24: 45 | W24: 65 | X24: 95 | Y24: 105 | Z24: 76 | AA24: 70 | AB24: 60 | AC24: 85 | AD24: 110 | AE24: 120 | AF24: 89
B25: 18 | C25: 6.41 | D25: 6.41 | E25: 7.159999847 | F25: 7.64 | G25: 7.49 | H25: 7.021999969 | I25: 5.47 | J25: 6.11 | K25: 7.079999924 | L25: 7.57 | M25: 7.4 | N25: 6.725999985 | O25: 3.76 | P25: 3.97 | Q25: 4.75 | R25: 5.27 | S25: 6.13 | T25: 4.776 | U25: 70 | V25: 45 | W25: 65 | X25: 95 | Y25: 105 | Z25: 76 | AA25: 70 | AB25: 60 | AC25: 85 | AD25: 110 | AE25: 120 | AF25: 89
B26: 19 | C26: 6.26 | D26: 6.22 | E26: 7.159999847 | F26: 7.64 | H26: 6.819999962 | I26: 5.26 | J26: 6.13 | K26: 7.070000172 | L26: 7.56 | M26: 7.36 | N26: 6.676000034 | O26: 3.64 | P26: 3.92 | Q26: 4.53000021 | R26: 5.67 | S26: 5.88 | T26: 4.728000042 | U26: 70 | V26: 45 | W26: 65 | X26: 95 | Y26: 105 | Z26: 76 | AA26: 70 | AB26: 60 | AC26: 85 | AD26: 110 | AE26: 120 | AF26: 89
B27: 20 | C27: 5.93 | D27: 6.35 | F27: 7.68 | G27: 7.42 | H27: 6.845 | I27: 5.25 | J27: 6.08 | K27: 7.079999924 | L27: 7.52 | M27: 7.36 | N27: 6.657999985 | O27: 3.65 | P27: 3.61 | Q27: 4.699999809 | R27: 5.48 | S27: 5.88 | T27: 4.663999962 | U27: 70 | V27: 75 | W27: 65 | X27: 95 | Y27: 105 | Z27: 82 | AA27: 70 | AB27: 75 | AC27: 85 | AD27: 110 | AE27: 120 | AF27: 92
A28: M | B28: 21 | C28: 6.1 | D28: 6.49 | E28: 7.119999886 | F28: 7.56 | G28: 7.43 | H28: 6.939999977 | I28: 5.23 | J28: 6.1 | K28: 7.059999943 | L28: 7.51 | M28: 7.36 | N28: 6.651999989 | O28: 3.9 | P28: 3.83 | Q28: 4.699999809 | R28: 5.48 | S28: 5.88 | T28: 4.757999962 | U28: 70 | V28: 75 | W28: 65 | X28: 95 | Y28: 105 | Z28: 82 | AA28: 70 | AB28: 75 | AC28: 85 | AD28: 110 | AE28: 120 | AF28: 92
B29: 22 | C29: 6.1 | E29: 7.119999886 | F29: 7.45 | G29: 7.43 | H29: 7.024999971 | I29: 5.15 | J29: 6.03 | K29: 7.03000021 | L29: 7.44 | M29: 7.33 | N29: 6.596000042 | O29: 3.94 | P29: 3.52 | Q29: 4.699999809 | R29: 5.48 | S29: 5.82 | T29: 4.691999962 | U29: 70 | V29: 90 | W29: 65 | X29: 95 | Y29: 105 | Z29: 85 | AA29: 70 | AB29: 90 | AC29: 85 | AD29: 110 | AE29: 120 | AF29: 95
B30: 23 | C30: 6.23 | D30: 6.38 | E30: 6.949999809 | F30: nc | H30: 6.519999936 | I30: 5.18 | J30: 6.04 | K30: 6.96999979 | L30: 7.33 | M30: 7.29 | N30: 6.561999958 | O30: 3.87 | P30: 4.09 | Q30: 4.340000153 | R30: 5.22 | S30: 5.8 | T30: 4.664000031 | U30: 75 | V30: 100 | W30: 65 | X30: 115 | Y30: 105 | Z30: 92 | AA30: 75 | AB30: 100 | AC30: 85 | AD30: 130 | AE30: 120 | AF30: 102
B31: 24 | C31: 6.34 | D31: 6.25 | E31: 7.010000229 | F31: 7.41 | G31: 7.33 | H31: 6.868000046 | I31: 5.2 | J31: 5.99 | K31: 6.980000019 | L31: 7.24 | M31: 7.21 | N31: 6.524000004 | O31: 4.09 | P31: 3.66 | Q31: 4.480000019 | R31: 4.95 | S31: 5.62 | T31: 4.560000004 | U31: 85 | V31: 100 | W31: 65 | X31: 115 | Y31: 105 | Z31: 94 | AA31: 85 | AB31: 100 | AC31: 85 | AD31: 130 | AE31: 120 | AF31: 104
B32: 25 | C32: 6.34 | D32: 6.08 | E32: 7.059999943 | F32: 7.26 | G32: 7.33 | H32: 6.813999989 | I32: 5.21 | J32: 6 | K32: 6.929999828 | L32: 7.16 | M32: 7.2 | N32: 6.499999966 | O32: 3.6 | P32: 3.69 | Q32: 4.71999979 | R32: 5.03 | S32: 5.4 | T32: 4.487999958 | U32: 85 | V32: 100 | W32: 65 | X32: 115 | Y32: 105 | Z32: 94 | AA32: 85 | AB32: 100 | AC32: 85 | AD32: 130 | AE32: 120 | AF32: 104
A33: J | B33: 26 | C33: 6.34 | D33: 6.07 | E33: 6.849999905 | F33: 7.1 | G33: 7.32 | H33: 6.735999981 | I33: 5.21 | J33: 5.99 | K33: 6.840000153 | L33: 7.06 | M33: 7.17 | N33: 6.454000031 | O33: 3.77 | P33: 3.32 | Q33: 4.71999979 | R33: 5.05 | S33: 5.83 | T33: 4.537999958 | U33: 85 | V33: 100 | W33: 65 | X33: 115 | Y33: 105 | Z33: 94 | AA33: 85 | AB33: 100 | AC33: 85 | AD33: 130 | AE33: 120 | AF33: 104
B34: 27 | C34: 5.91 | D34: 6.24 | E34: 6.900000095 | F34: nc | H34: 6.350000032 | I34: 5.21 | J34: 5.96 | K34: 6.860000134 | L34: 7.04 | M34: 7.14 | N34: 6.442000027 | O34: 3.84 | P34: 3.59 | Q34: 4.71999979 | R34: 5.05 | S34: 5.78 | T34: 4.595999958 | U34: 85 | V34: 100 | W34: 65 | X34: 115 | Y34: 115 | Z34: 96 | AA34: 85 | AB34: 100 | AC34: 85 | AD34: 130 | AE34: 130 | AF34: 106
B35: 28 | C35: 6.13 | D35: 6.06 | E35: 6.929999828 | F35: nc | G35: 7.3 | H35: 6.604999957 | I35: 5.23 | J35: 5.98 | K35: 6.829999924 | L35: 7.04 | M35: 7.14 | N35: 6.443999985 | O35: 4.11 | P35: 3.72 | Q35: 4.71999979 | R35: 4.71 | S35: 5.78 | T35: 4.607999958 | U35: 80 | W35: 65 | X35: 110 | Y35: 115 | Z35: 92.5 | AA35: 80 | AC35: 85 | AD35: 125 | AE35: 130 | AF35: 105
B36: 29 | C36: 6.26 | D36: 6 | E36: 6.880000114 | F36: 7.35 | G36: 7.33 | H36: 6.764000023 | I36: 5.2 | J36: 6 | K36: 6.829999924 | L36: 7.03 | M36: 7.15 | N36: 6.441999985 | O36: 4.08 | P36: 3.29 | Q36: 4.71999979 | R36: 4.61 | S36: 5.78 | T36: 4.495999958 | U36: 80 | V36: 100 | W36: 65 | X36: 100 | Y36: 115 | Z36: 92 | AA36: 80 | AB36: 100 | AC36: 85 | AD36: 115 | AE36: 130 | AF36: 102
A37: J | B37: 30 | C37: 6.11 | D37: 6.17 | E37: 7.050000191 | F37: 7.26 | G37: 7.34 | H37: 6.786000038 | I37: 5.19 | J37: 5.96 | K37: 6.829999924 | L37: 7.05 | M37: 7.15 | N37: 6.435999985 | O37: 4.3 | P37: 3.82 | Q37: 4.71999979 | R37: 4.79 | S37: 5.78 | T37: 4.681999958 | U37: 70 | V37: 90 | W37: 65 | X37: 90 | Y37: 115 | Z37: 86 | AA37: 70 | AB37: 90 | AC37: 85 | AD37: 105 | AE37: 130 | AF37: 96
B38: 31 | C38: 6.11 | D38: 6.02 | E38: 7.050000191 | F38: 7.26 | H38: 6.610000048 | I38: 5.17 | J38: 5.97 | K38: 6.829999924 | L38: 6.95 | M38: 7.15 | N38: 6.413999985 | O38: 4.35 | P38: 3.79 | Q38: 4.71999979 | R38: 4.43 | S38: 5.78 | T38: 4.613999958 | U38: 70 | V38: 85 | W38: 65 | X38: 80 | Y38: 115 | Z38: 83 | AA38: 70 | AB38: 85 | AC38: 85 | AD38: 95 | AE38: 130 | AF38: 93
B39: 32 | C39: 6.11 | D39: 6.02 | E39: 7.050000191 | F39: nc | G39: 7.33 | H39: 6.627500048 | I39: 5.2 | J39: 5.98 | K39: 6.840000153 | L39: 6.96 | M39: 7.11 | N39: 6.418000031 | O39: 4.03 | P39: 3.78 | Q39: 4.71999979 | R39: 4.43 | S39: 5.87 | T39: 4.565999958 | U39: 65 | V39: 75 | W39: 65 | X39: 80 | Y39: 115 | Z39: 80 | AA39: 65 | AB39: 75 | AC39: 85 | AD39: 95 | AE39: 130 | AF39: 90
B40: 33 | C40: 6.02 | D40: 6.22 | F40: nc | G40: 7.33 | H40: =AVERAGE(C40:G40) -> 6.523333333 | I40: 5.25 | J40: 6.02 | K40: 6.789999962 | L40: 6.96 | M40: 7.11 | N40: =AVERAGE(I40:M40) -> 6.425999992 | O40: 4.33 | P40: 3.78 | Q40: 4.71999979 | R40: 4.69 | S40: 5.61 | T40: =AVERAGE(O40:S40) -> 4.625999958 | U40: 60 | V40: 75 | W40: 65 | Y40: 115 | Z40: =AVERAGE(U40:Y40) -> 78.75 | AA40: 60 | AB40: 75 | AC40: 85 | AE40: 130 | AF40: =AVERAGE(AA40:AE40) -> 87.5
B41: 34 | C41: 6.02 | D41: 6.27 | E41: 6.880000114 | F41: 6.97 | G41: 7.28 | H41: 6.684000023 | I41: 5.25 | J41: 6.09 | K41: 6.860000134 | L41: 6.94 | M41: 7.12 | N41: 6.452000027 | O41: 3.78 | P41: 3.78 | Q41: 4.71999979 | R41: 4.69 | S41: 5.61 | T41: 4.515999958 | U41: 60 | V41: 75 | W41: 60 | X41: 80 | Y41: 105 | Z41: 76 | AA41: 60 | AB41: 75 | AC41: 80 | AD41: 95 | AE41: 120 | AF41: 86
A42: A | B42: 35 | C42: 6.07 | D42: 6.31 | E42: 7.03000021 | F42: nc | G42: 7.28 | H42: 6.672500052 | I42: 5.35 | J42: 6.17 | K42: 6.880000114 | L42: 6.96 | M42: 7.14 | N42: 6.500000023 | O42: 4.06 | P42: 3.93 | Q42: 4.71999979 | R42: 4.69 | S42: 5.61 | T42: 4.601999958 | U42: 55 | V42: 70 | W42: 60 | X42: 60 | Y42: 95 | Z42: 68 | AA42: 55 | AB42: 70 | AC42: 80 | AD42: 75 | AE42: 110 | AF42: 78
B43: 36 | C43: 6.07 | D43: 6.38 | E43: 7.03000021 | F43: 7.1 | G43: 7.28 | H43: 6.772000042 | I43: 5.45 | J43: 6.23 | K43: 6.949999809 | L43: 6.96 | M43: 7.2 | N43: 6.557999962 | O43: 4.16 | P43: 4.28 | Q43: 4.820000172 | R43: 4.69 | S43: 5.45 | T43: 4.680000034 | U43: 45 | V43: 65 | W43: 60 | X43: 60 | Y43: 75 | Z43: 61 | AA43: 45 | AB43: 65 | AC43: 80 | AD43: 75 | AE43: 90 | AF43: 71
B44: 37 | C44: 6.24 | D44: 6.42 | E44: 7.119999886 | F44: nc | G44: 7.39 | H44: 6.792499971 | I44: 5.5 | J44: 6.32 | K44: 7.039999962 | L44: 7 | M44: 7.26 | N44: 6.623999992 | O44: 4.04 | P44: 4.52 | Q44: 4.860000134 | R44: 4.73 | S44: 5.45 | T44: 4.720000027 | U44: 45 | V44: 65 | W44: 50 | X44: 60 | Y44: 65 | Z44: 57 | AA44: 45 | AB44: 65 | AC44: 70 | AD44: 75 | AE44: 80 | AF44: 67
B45: 38 | C45: 6.34 | D45: 6.47 | F45: nc | G45: 7.42 | H45: 6.743333333 | I45: 6.64 | J45: 6.36 | K45: 7.110000134 | L45: 7 | M45: 7.29 | N45: 6.880000027 | O45: 4.3 | P45: 4.56 | Q45: 4.860000134 | R45: 4.73 | S45: 5.45 | T45: 4.780000027 | U45: 45 | V45: 65 | W45: 45 | X45: 60 | Y45: 65 | Z45: 56 | AA45: 45 | AB45: 65 | AC45: 65 | AD45: 75 | AE45: 80 | AF45: 66
A46: S | B46: 39 | C46: 6.28 | D46: 6.55 | E46: 7.230000019 | F46: nc | H46: 6.686666673 | I46: 5.7 | J46: 6.49 | K46: 7.199999809 | L46: 7.03 | M46: 7.33 | N46: 6.749999962 | O46: 4.38 | P46: 4.56 | Q46: 4.860000134 | R46: 4.73 | S46: 5.51 | T46: 4.808000027 | U46: 45 | V46: 55 | W46: 45 | X46: 55 | Y46: 55 | Z46: 51 | AA46: 45 | AB46: 55 | AC46: 65 | AD46: 70 | AE46: 70 | AF46: 61
B47: 40 | C47: 6.31 | D47: 6.64 | E47: 7.320000172 | F47: 7.18 | G47: 7.52 | H47: 6.994000034 | I47: 5.83 | J47: 6.57 | K47: 7.300000191 | L47: 7.05 | M47: 7.42 | N47: 6.834000038 | O47: 4.61 | P47: 4.62 | Q47: 4.860000134 | R47: 4.73 | S47: 5.6 | T47: 4.884000027 | U47: 45 | V47: 55 | W47: 40 | X47: 45 | Y47: 55 | Z47: 48 | AA47: 45 | AB47: 55 | AC47: 60 | AD47: 60 | AE47: 70 | AF47: 58
B48: 41 | C48: 6.55 | E48: 7.320000172 | F48: nc | G48: 7.56 | H48: 7.143333391 | I48: 6 | J48: 6.66 | K48: 7.380000114 | L48: 7.05 | M48: 7.5 | N48: 6.918000023 | O48: 4.71 | P48: 4.62 | Q48: 4.920000076 | R48: 4.77 | S48: 5.6 | T48: 4.924000015 | U48: 45 | V48: 55 | W48: 40 | X48: 40 | Y48: 55 | Z48: 47 | AA48: 45 | AB48: 55 | AC48: 60 | AD48: 55 | AE48: 70 | AF48: 57
B49: 42 | C49: 6.63 | E49: 7.550000191 | F49: 7.13 | G49: 7.57 | H49: 7.220000048 | I49: 6.12 | J49: 6.66 | K49: 7.440000057 | L49: 7.07 | M49: 7.53 | N49: 6.964000011 | O49: 4.76 | P49: 4.62 | Q49: 5.349999905 | R49: 5.13 | S49: 5.62 | T49: 5.095999981 | U49: 45 | V49: 55 | W49: 40 | X49: 40 | Y49: 55 | Z49: 47 | AA49: 45 | AB49: 55 | AC49: 60 | AD49: 55 | AE49: 70 | AF49: 57
A50: O | B50: 43 | C50: 6.63 | D50: 6.78 | F50: 7.18 | H50: 6.863333333 | I50: 6.18 | J50: 6.69 | K50: 7.480000019 | L50: 7.14 | M50: 7.63 | N50: 7.024000004 | O50: 4.85 | P50: 4.61 | Q50: 5.489999771 | R50: 5.28 | S50: 5.65 | T50: 5.175999954 | U50: 45 | V50: 55 | W50: 40 | X50: 40 | Y50: 55 | Z50: 47 | AA50: 45 | AB50: 55 | AC50: 60 | AD50: 55 | AE50: 70 | AF50: 57
B51: 44 | C51: 6.71 | E51: 7.559999943 | F51: 7.25 | G51: 7.64 | H51: 7.289999986 | I51: 6.27 | J51: 6.74 | K51: 7.53000021 | L51: 7.21 | M51: 7.63 | N51: 7.076000042 | O51: 4.86 | P51: 4.61 | Q51: 5.489999771 | R51: 5.28 | S51: 6.04 | T51: 5.255999954 | U51: 45 | V51: 55 | W51: 40 | X51: 40 | Y51: 55 | Z51: 47 | AA51: 45 | AB51: 55 | AC51: 60 | AD51: 55 | AE51: 70 | AF51: 57
B52: 45 | C52: 6.71 | D52: 6.92 | E52: 7.659999847 | F52: nc | G52: 7.81 | H52: 7.274999962 | I52: 6.3 | J52: 6.78 | K52: 7.559999943 | L52: 7.24 | M52: 7.68 | N52: 7.111999989 | O52: 5.11 | P52: 4.7 | Q52: 5.489999771 | R52: 5.38 | S52: 6.04 | T52: 5.343999954 | U52: 45 | W52: 40 | X52: 40 | Y52: 80 | Z52: 51.25 | AA52: 45 | AC52: 60 | AD52: 55 | AE52: 100 | AF52: 65
B53: 46 | C53: 6.88 | D53: 6.92 | E53: 7.690000057 | F53: 7.4 | G53: 7.81 | H53: 7.340000011 | I53: 6.37 | J53: 6.84 | K53: 7.610000134 | L53: 7.29 | M53: 7.69 | N53: 7.160000027 | O53: 5.09 | P53: 4.7 | Q53: 5.489999771 | R53: 5.38 | S53: 6.04 | T53: 5.339999954 | V53: 55 | W53: 40 | X53: 40 | Y53: 90 | Z53: 56.25 | AB53: 55 | AC53: 60 | AD53: 55 | AE53: 110 | AF53: 70
B54: 47 | C54: 6.88 | D54: 6.93 | F54: 7.48 | H54: 7.096666667 | I54: 6.38 | J54: 6.89 | K54: 7.619999886 | L54: 7.37 | M54: 7.78 | N54: 7.207999977 | O54: 4.9 | P54: 4.36 | Q54: 5.269999981 | R54: 5.65 | S54: 6.11 | T54: 5.257999996 | V54: 55 | X54: 40 | Y54: 90 | Z54: 61.66666667 | AB54: 55 | AD54: 55 | AE54: 110 | AF54: 73.33333333
A55: N | B55: 48 | C55: 6.87 | D55: 6.97 | E55: 7.789999962 | F55: 7.51 | G55: 7.91 | H55: 7.409999992 | I55: 6.37 | J55: 6.92 | K55: 7.650000095 | L55: 7.43 | M55: 7.78 | N55: 7.230000019 | O55: 5.02 | P55: 4.42 | Q55: 5.489999771 | R55: 5.68 | S55: 6.11 | T55: 5.343999954 | V55: 55 | W55: 40 | X55: 40 | Y55: 90 | Z55: 56.25 | AB55: 55 | AC55: 60 | AD55: 55 | AE55: 110 | AF55: 70
B56: 49 | C56: 6.87 | D56: 6.97 | F56: 7.65 | G56: 7.88 | H56: 7.3425 | I56: 6.39 | J56: 6.95 | K56: 7.730000019 | L56: 7.46 | M56: 7.79 | N56: 7.264000004 | O56: 5.2 | P56: 4.81 | Q56: 5.550000191 | R56: 5.68 | S56: 5.97 | T56: 5.442000038 | U56: 45 | V56: 55 | W56: 40 | X56: 40 | Y56: 90 | Z56: 54 | AA56: 45 | AB56: 55 | AC56: 60 | AD56: 55 | AE56: 110 | AF56: 65
B57: 50 | C57: 6.77 | D57: 7.03 | E57: 7.840000153 | G57: 7.88 | H57: 7.380000038 | I57: 6.39 | J57: 6.98 | K57: 7.75 | M57: 7.83 | N57: 7.2375 | O57: 5.07 | P57: 5.04 | Q57: 5.550000191 | S57: 6.06 | T57: 5.430000048 | U57: 40 | V57: 55 | W57: 40 | Y57: 90 | Z57: 56.25 | AA57: 55 | AB57: 55 | AC57: 60 | AE57: 110 | AF57: 70
B58: 51 | C58: 6.85 | D58: 7.03 | E58: 7.880000114 | H58: 7.253333371 | I58: 6.4 | J58: 6.94 | K58: 7.75 | M58: 7.83 | N58: 7.23 | O58: 5.18 | P58: 4.68 | Q58: 5.550000191 | S58: 6.33 | T58: 5.435000048 | U58: 40 | V58: 55 | W58: 40 | Y58: 90 | Z58: 56.25 | AA58: 55 | AB58: 55 | AC58: 60 | AE58: 110 | AF58: 70
A59: D | B59: 52 | C59: 6.91 | D59: 7.07 | E59: 7.929999828 | H59: 7.303333276 | I59: 6.38 | J59: 6.98 | K59: 7.78000021 | N59: 7.046666737 | O59: 4.96 | P59: 4.89 | Q59: 5.550000191 | T59: 5.133333397 | U59: 40 | V59: 55 | Z59: 47.5 | AA59: 55 | AB59: 55 | AF59: 55
B60: 53 | C60: 6.91 | H60: 6.91 | I60: 6.4 | N60: 6.4 | O60: 4.81 | T60: 4.81

Sheet Données-VeauxCharolais-Limousin (hidden)
A2: POUR MÉMOIRE ONGLET SANS USAGE
A5: 2017 | B5: 2018 | C5: 2019 | D5: 2020 | E5: 2021 | F5: MOYENNE 5 ANS | G5: 2017 | H5: 2018 | I5: 2019 | J5: 2020 | K5: 2021 | L5: MOYENNE 5 ANS | N5: Année | O5: Mois | P5: VEAUX GRAND NORD R3 | S5: VEAUX CHÂTEAU GONTIER
A6: CHAROLAIS 60-70KG (Euros/tête) | G6: LIMOUSIN 60-70KG (Euros/tête) | P6: (Euros/Kg net
P7: Rose très clair | Q7: R.clair | R7: Rosé | S7: N.45-50 | T7: CH 60-70 | U7: LIM 60-70 | V7: LAIT 45-50
A8: 375 | B8: 375 | C8: 325 | D8: 300 | F8: =AVERAGE(A8:E8) -> 343.75 | G8: 375 | H8: 375 | I8: 325 | J8: 300 | L8: =AVERAGE(G8:K8) -> 343.75 | N8: 2021 | O8: J | P8: 6.87 | Q8: 6.3725 | R8: 4.9725 | S8: 41.25 | V8: 56.25
A9: 375 | B9: 375 | C9: 325 | D9: 300 | F9: 343.75 | G9: 375 | H9: 375 | I9: 325 | J9: 300 | L9: 343.75 | O9: F | P9: 6.85 | Q9: 6.38 | R9: 4.835 | S9: 45 | V9: 60
A10: 375 | B10: 375 | C10: 325 | D10: 300 | F10: 343.75 | G10: 375 | H10: 375 | I10: 325 | J10: 300 | L10: 343.75 | O10: M | P10: 6.622 | Q10: 6.344 | R10: 4.364 | S10: 47 | V10: 62
A11: 375 | B11: 375 | C11: 325 | D11: 300 | F11: 343.75 | G11: 375 | H11: 375 | I11: 325 | J11: 300 | L11: 343.75 | O11: A | P11: 6.4425 | Q11: 6.205 | R11: 4.02 | S11: 48.75 | V11: 63.75
A12: 375 | B12: 375 | C12: 325 | D12: 300 | F12: 343.75 | G12: 375 | H12: 375 | I12: 325 | J12: 300 | L12: 343.75 | O12: M | P12: 6.3675 | Q12: 6.105 | R12: 3.8325 | S12: 60 | V12: 67.5
A13: 375 | B13: 375 | C13: 325 | D13: 300 | F13: 343.75 | G13: 375 | H13: 375 | I13: 325 | J13: 300 | L13: 343.75 | O13: J | P13: 6.195 | Q13: 6.01 | R13: 3.656 | S13: 98 | V13: 98
A14: 375 | B14: 375 | C14: 325 | D14: 300 | F14: =AVERAGE(A14:E14) -> 343.75 | G14: 375 | H14: 375 | I14: 325 | J14: 300 | L14: 343.75 | O14: J | P14: 6.1175 | Q14: 5.975 | R14: 3.605 | S14: 96.66666667 | V14: 96.66666667
A15: 365 | B15: 375 | C15: 325 | D15: 300 | F15: 341.25 | G15: 365 | H15: 375 | I15: 325 | J15: 300 | L15: 341.25 | O15: A | P15: 6.1325 | Q15: 6.015 | R15: 3.7825 | S15: 77.5 | V15: 77.5
A16: 365 | B16: 375 | C16: 325 | D16: 300 | F16: 341.25 | G16: 365 | H16: 375 | I16: 325 | J16: 300 | L16: 341.25 | O16: S | P16: 6.426 | Q16: 6.314 | R16: 4.37 | S16: 64 | V16: 64
A17: 365 | B17: 375 | C17: 325 | D17: 300 | F17: 341.25 | G17: 365 | H17: 375 | I17: 325 | J17: 300 | L17: 341.25 | O17: O | P17: 6.71 | Q17: 6.645 | R17: 4.6175 | S17: 55 | V17: 55
A18: 365 | B18: 375 | C18: 325 | F18: 355 | G18: 365 | H18: 375 | I18: 325 | L18: 355 | O18: N | P18: 6.923333333 | Q18: 6.8125 | R18: 4.5925 | S18: 55 | V18: 55
A19: 365 | B19: 375 | C19: 325 | F19: 355 | G19: 365 | H19: 375 | I19: 325 | L19: 355 | O19: D | P19: 7.014 | Q19: 6.954 | R19: 4.768 | S19: 55 | V19: 55
A20: 350 | B20: 365 | C20: 325 | D20: 300 | F20: 335 | G20: 350 | H20: 365 | I20: 325 | J20: 300 | L20: 335 | O20: moyenne an | P20: 6.555861111 | Q20: 6.344333333 | R20: 4.284625 | S20: 61.93055556 | T20: =#DIV/0! ->  | U20: =#DIV/0! ->  | V20: 67.55555556
A21: 330 | B21: 365 | C21: 325 | D21: 300 | F21: 330 | G21: 330 | H21: 365 | I21: 325 | J21: 300 | L21: 330 | N21: 2020 | O21: J | P21: 6.852 | Q21: 6.394 | R21: 5.116 | S21: 55 | T21: 300 | U21: 300 | V21: 55
A22: 330 | B22: 365 | C22: 325 | F22: 340 | G22: 330 | H22: 365 | I22: 325 | L22: 340 | O22: F | P22: 6.7425 | Q22: 6.3125 | R22: 4.8925 | S22: 55 | T22: 300 | U22: 300 | V22: 55
A23: 330 | B23: 375 | C23: 320 | F23: 341.6666667 | G23: 330 | H23: 375 | I23: 320 | L23: 341.6666667 | O23: M | P23: 6.6725 | Q23: 6.24 | R23: 4.81 | S23: 65 | T23: 300 | U23: 300 | V23: 65
A24: 320 | B24: 375 | C24: 320 | D24: 290 | F24: 326.25 | G24: 320 | H24: 375 | I24: 320 | J24: 290 | L24: 326.25 | O24: A | P24: 6.462 | Q24: 5.818 | R24: 4.216 | S24: 71.66666667 | T24: 293.3333333 | U24: 293.3333333 | V24: 71.66666667
A25: 320 | B25: 375 | C25: 320 | D25: 290 | F25: 326.25 | G25: 320 | H25: 375 | I25: 320 | J25: 290 | L25: 326.25 | O25: M | P25: 6.0975 | Q25: 5.2225 | R25: 3.7825 | S25: 70 | T25: 290 | U25: 290 | V25: 70
A26: 320 | B26: 375 | C26: 320 | D26: 290 | F26: 326.25 | G26: 320 | H26: 375 | I26: 320 | J26: 290 | L26: 326.25 | O26: J | P26: 6.3125 | Q26: 5.2 | R26: 3.8325 | S26: 82.5 | T26: 290 | U26: 290 | V26: 82.5
A27: 320 | B27: 365 | C27: 320 | D27: 290 | F27: 323.75 | G27: 320 | H27: 365 | I27: 320 | J27: 290 | L27: 323.75 | O27: J | P27: 6.104 | Q27: 5.2 | R27: 4.136 | S27: 77 | T27: 290 | U27: 290 | V27: 77
A28: 320 | B28: 365 | C28: 320 | D28: 290 | F28: 323.75 | G28: 320 | H28: 365 | I28: 320 | J28: 290 | L28: 323.75 | O28: A | P28: 6.055 | Q28: 5.2625 | R28: 4.05 | S28: 60 | T28: 290 | U28: 290 | V28: 60
A29: 320 | B29: 365 | D29: 290 | F29: 325 | G29: 320 | H29: 365 | J29: 290 | L29: 325 | O29: S | P29: 6.248 | Q29: 5.824 | R29: 4.298 | S29: 45 | T29: 290 | U29: 290 | V29: 45
A30: 320 | B30: 365 | C30: 360 | D30: 290 | F30: 333.75 | G30: 320 | H30: 365 | I30: 360 | J30: 290 | L30: 333.75 | O30: O | P30: 6.63 | Q30: 6.1425 | R30: 4.795 | S30: 45 | T30: 290 | U30: 290 | V30: 45
A31: 320 | B31: 365 | C31: 360 | D31: 290 | F31: 333.75 | G31: 320 | H31: 365 | I31: 360 | J31: 290 | L31: 333.75 | O31: N | P31: 6.835 | Q31: 6.355 | R31: 5.03
A32: 320 | B32: 365 | C32: 360 | D32: 290 | F32: 333.75 | G32: 320 | H32: 365 | I32: 360 | J32: 290 | L32: =AVERAGE(G32:K32) -> 333.75 | O32: D | P32: 6.862 | Q32: 6.392 | R32: 5.044 | S32: 41.25 | T32: 290 | U32: 290 | V32: 52.5
A33: 320 | B33: 365 | C33: 360 | D33: 290 | F33: 333.75 | G33: 320 | H33: 365 | I33: 360 | J33: 290 | L33: 333.75 | O33: moyenne an | P33: 6.489416667 | Q33: 5.863583333 | R33: 4.500208333 | S33: 60.67424242 | T33: 293.030303 | U33: 293.030303 | V33: 61.6969697
A34: 320 | B34: 365 | C34: 350 | D34: 290 | F34: 331.25 | G34: 320 | H34: 365 | I34: 350 | J34: 290 | L34: 331.25 | N34: 2019 | O34: J | P34: 6.72 | Q34: 6.34 | R34: 4.468 | S34: 75 | T34: 325 | U34: 325 | V34: 75
A35: 310 | B35: 365 | C35: 330 | D35: 290 | F35: 323.75 | G35: 310 | H35: 365 | I35: 330 | J35: 290 | L35: 323.75 | O35: F | P35: 6.63 | Q35: 6.32 | R35: 4.42 | S35: 75 | T35: 325 | U35: 325 | V35: 75
A36: 310 | B36: 365 | C36: 330 | D36: 290 | F36: 323.75 | G36: 310 | H36: 365 | I36: 330 | J36: 290 | L36: 323.75 | O36: M | P36: 6.55 | Q36: 6.08 | R36: 4.3275 | S36: 75 | T36: 325 | U36: 325 | V36: 75
A37: 290 | B37: 365 | C37: 330 | D37: 290 | F37: 318.75 | G37: 290 | H37: 365 | I37: 330 | J37: 290 | L37: 318.75 | O37: A | P37: 6.135 | Q37: 5.77 | R37: 4.1725 | S37: 75 | T37: 322.5 | U37: 322.5 | V37: 75
A38: 280 | B38: 365 | C38: 320 | D38: 290 | F38: 313.75 | G38: 280 | H38: 365 | I38: 320 | J38: 290 | L38: 313.75 | O38: M | P38: 6.038 | Q38: 5.59 | R38: 4.014 | S38: 87.5 | T38: 320 | U38: 320 | V38: 87.5
A39: 280 | B39: 365 | C39: 300 | D39: 290 | F39: 308.75 | G39: 280 | H39: 365 | I39: 300 | J39: 290 | L39: 308.75 | O39: J | P39: 6.0675 | Q39: 5.485 | R39: 3.91 | S39: 112.5 | T39: 360 | U39: 360 | V39: 112.5
C40: 300 | D40: 290 | F40: 295 | I40: 300 | J40: 290 | L40: 295 | O40: J | P40: 5.894 | Q40: 5.394 | R40: 3.846 | S40: 81 | T40: 332 | U40: 332 | V40: 81
A41: 270 | B41: 365 | C41: 280 | D41: 290 | F41: 301.25 | G41: 270 | H41: 365 | I41: 280 | J41: 290 | L41: 301.25 | O41: A | P41: 5.855 | Q41: 5.4075 | R41: 3.91 | S41: 52.5 | T41: 290 | U41: 290 | V41: 52.5
A42: 270 | B42: 365 | C42: 280 | D42: 290 | F42: 301.25 | G42: 270 | H42: 365 | I42: 280 | J42: 290 | L42: 301.25 | O42: S | P42: 6.1175 | Q42: 5.6 | R42: 3.9575 | S42: 58.33333333 | T42: 290 | U42: 290 | V42: 58.33333333
A43: 270 | B43: 365 | C43: 270 | D43: 290 | F43: 298.75 | G43: 270 | H43: 365 | I43: 270 | J43: 290 | L43: 298.75 | O43: O | P43: 6.302 | Q43: 5.912 | R43: 4.42 | S43: 57 | T43: 300 | U43: 300 | V43: 57
A44: 270 | B44: 355 | D44: 290 | F44: 305 | G44: 270 | H44: 355 | J44: 290 | L44: 305 | O44: N | P44: 6.6575 | Q44: 6.2225 | R44: 4.525 | S44: 55 | T44: 300 | U44: 300 | V44: 55
A45: 260 | B45: 345 | C45: 300 | D45: 290 | F45: 298.75 | G45: 260 | H45: 345 | I45: 300 | J45: 290 | L45: 298.75 | O45: D | P45: 6.81 | Q45: 6.3425 | R45: 4.7 | S45: 55 | T45: 300 | U45: 300 | V45: 55
A46: 250 | B46: 335 | C46: 300 | D46: 290 | F46: 293.75 | G46: 250 | H46: 335 | I46: 300 | J46: 290 | L46: 293.75 | O46: moyenne an | P46: 6.314708333 | Q46: 5.871958333 | R46: 4.222541667 | S46: 71.56944444 | T46: 315.7916667 | U46: 315.7916667 | V46: 71.56944444
A47: 250 | B47: 325 | C47: 300 | D47: 290 | F47: 291.25 | G47: 250 | H47: 325 | I47: 300 | J47: 290 | L47: 291.25 | N47: 2018 | O47: J | P47: 6.924 | Q47: 6.496 | R47: 5.002 | S47: 77 | T47: 375 | U47: 375 | V47: 62
A48: 250 | B48: 325 | C48: 300 | D48: 290 | F48: 291.25 | G48: 250 | H48: 325 | I48: 300 | J48: 290 | L48: 291.25 | O48: F | P48: 6.855 | Q48: 6.5275 | R48: 5.1175 | S48: 102.5 | T48: 375 | U48: 375 | V48: 87.5
A49: 250 | B49: 325 | C49: 300 | D49: 290 | F49: 291.25 | G49: 250 | H49: 325 | I49: 300 | J49: 290 | L49: 291.25 | O49: M | P49: 6.7575 | Q49: 6.5 | R49: 5.12 | S49: 115 | T49: 372.5 | U49: 372.5 | V49: 100
A50: 250 | B50: 325 | C50: 300 | D50: 290 | F50: 291.25 | G50: 250 | H50: 325 | I50: 300 | J50: 290 | L50: 291.25 | O50: A | P50: 6.7275 | Q50: 6.3625 | R50: 4.9225 | S50: 143.75 | T50: 370 | U50: 370 | V50: 123.75
A51: 250 | B51: 325 | C51: 300 | D51: 290 | F51: 291.25 | G51: 250 | H51: 325 | I51: 300 | J51: 290 | L51: 291.25 | O51: M | P51: 6.558 | Q51: 6.204 | R51: 4.466 | S51: 155 | T51: 369 | U51: 369 | V51: 130
A52: 250 | C52: 300 | D52: 290 | F52: 280 | G52: 250 | I52: 300 | J52: 290 | L52: 280 | O52: J | P52: 6.5525 | Q52: 6.0525 | R52: 4.0825 | S52: 155 | T52: 365 | U52: 365 | V52: 137.5
A53: 250 | B53: 325 | C53: 300 | F53: 291.6666667 | G53: 250 | H53: 325 | I53: 300 | L53: 291.6666667 | O53: J | P53: 6.4475 | Q53: 6.135 | R53: 3.9475 | S53: 137.5 | T53: 365 | U53: 365 | V53: 127.5
A54: 375 | B54: 325 | C54: 300 | F54: 333.3333333 | G54: 375 | H54: 325 | I54: 300 | L54: 333.3333333 | O54: A | P54: 6.426 | Q54: 6.106 | R54: 4.334 | S54: 81.25 | T54: 365 | U54: 365 | V54: 76.25
A55: 375 | B55: 325 | C55: 300 | F55: 333.3333333 | G55: 375 | H55: 325 | I55: 300 | L55: 333.3333333 | O55: S | P55: 6.495 | Q55: 6.1225 | R55: 4.3425 | S55: 55 | T55: 350 | U55: 350 | V55: 50
A56: 375 | B56: 325 | C56: 300 | D56: 290 | F56: 322.5 | G56: 375 | H56: 325 | I56: 300 | J56: 290 | L56: 322.5 | O56: O | P56: 6.422 | Q56: 6.176 | R56: 4.508 | S56: 40 | T56: 325 | U56: 325 | V56: 35
A57: 375 | B57: 325 | C57: 300 | D57: 290 | F57: 322.5 | G57: 375 | H57: 325 | I57: 300 | J57: 290 | L57: 322.5 | O57: N | P57: 6.4475 | Q57: 6.2075 | R57: 4.3825 | S57: 40 | T57: 325 | U57: 325 | V57: 35
A58: 375 | B58: 325 | C58: 300 | D58: 290 | F58: 322.5 | G58: 375 | H58: 325 | I58: 300 | J58: 290 | L58: 322.5 | O58: D | P58: 6.7575 | Q58: 6.275 | R58: 4.5025 | S58: 40 | T58: 325 | U58: 325 | V58: 35
B59: 325 | D59: 290 | F59: 307.5 | H59: 325 | J59: 290 | L59: 307.5 | O59: moyenne an | P59: 6.614166667 | Q59: 6.263708333 | R59: 4.560625 | S59: 95.16666667 | T59: 356.7916667 | U59: 356.7916667 | V59: 83.29166667
N60: 2017 | O60: J | P60: 7.17 | Q60: 6.7525 | R60: 4.99 | S60: 55 | T60: 375 | U60: 375 | V60: 55
O61: F | P61: 7.065 | Q61: 6.735 | R61: 5.165 | S61: 66.25 | T61: 372.5 | U61: 372.5 | V61: 66.25
O62: M | P62: 6.894 | Q62: 6.596 | R62: 4.966 | S62: 96 | T62: 362 | U62: 362 | V62: 96
O63: A | P63: 6.775 | Q63: 6.4575 | R63: 4.7575 | S63: 115 | T63: 327.5 | U63: 327.5 | V63: 115
O64: M | P64: 6.5925 | Q64: 6.295 | R64: 4.55 | S64: 115 | T64: 320 | U64: 320 | V64: 115
O65: J | P65: 6.438 | Q65: 6.026 | R65: 4.376 | S65: 118 | T65: 320 | U65: 320 | V65: 118
O66: J | P66: 6.1 | Q66: 5.7975 | R66: 3.7725 | S66: 98.75 | T66: 307.5 | U66: 307.5 | V66: 98.75
O67: A | P67: 6.0725 | Q67: 5.8425 | R67: 3.7575 | S67: 53.33333333 | T67: 276.6666667 | U67: 276.6666667 | V67: 53.33333333
O68: S | P68: 6.448 | Q68: 5.922 | R68: 3.886 | S68: 73 | T68: 264 | U68: 264 | V68: 73
O69: O | P69: 6.49 | Q69: 6.075 | R69: 4.34 | S69: 75 | T69: 250 | U69: 250 | V69: 75
O70: N | P70: 6.58 | Q70: 6.2475 | R70: 4.55 | S70: 70 | T70: 281.25 | U70: 281.25 | V70: 67.5
O71: D | P71: 6.754 | Q71: 6.432 | R71: 4.798 | S71: 75 | T71: 375 | U71: 375 | V71: 60
O72: moyenne an | P72: 6.614916667 | Q72: 6.264875 | R72: 4.492375 | S72: 84.19444444 | T72: 319.2847222 | U72: 319.2847222 | V72: 82.73611111
N73: Moyenne 5 ans | O73: J | P73: =AVERAGE(P8,P21,P34,P47,P60) -> 6.9072 | Q73: 6.471 | R73: 4.9097 | S73: 60.65 | T73: 343.75 | U73: 343.75 | V73: 60.65
O74: F | P74: 6.8285 | Q74: 6.455 | R74: 4.886 | S74: 68.75 | T74: 343.125 | U74: 343.125 | V74: 68.75
O75: M | P75: 6.6992 | Q75: 6.352 | R75: 4.7175 | S75: 79.6 | T75: 339.875 | U75: 339.875 | V75: 79.6
O76: A | P76: 6.5084 | Q76: 6.1226 | R76: 4.4177 | S76: 90.83333333 | T76: 328.3333333 | U76: 328.3333333 | V76: 89.83333333
O77: M | P77: 6.3307 | Q77: 5.8833 | R77: 4.129 | S77: 97.5 | T77: 324.75 | U77: 324.75 | V77: 94
O78: J | P78: 6.3131 | Q78: 5.7547 | R78: 3.9714 | S78: 113.2 | T78: 333.75 | U78: 333.75 | V78: 109.7
O79: J | P79: 6.1326 | Q79: 5.7003 | R79: 3.8614 | S79: 98.18333333 | T79: 323.625 | U79: 323.625 | V79: 96.18333333
O80: A | P80: 6.1082 | Q80: 5.7267 | R80: 3.9668 | S80: 64.91666667 | T80: 305.4166667 | U80: 305.4166667 | V80: 63.91666667
O81: S | P81: 6.3469 | Q81: 5.9565 | R81: 4.1708 | S81: 59.06666667 | T81: 298.5 | U81: 298.5 | V81: 58.06666667
O82: O | P82: 6.5108 | Q82: 6.1901 | R82: 4.5361 | S82: 54.4 | T82: 291.25 | U82: 291.25 | V82: 53.4
O83: N | P83: 6.688666667 | Q83: 6.369 | R83: 4.616 | S83: 55 | T83: 302.0833333 | U83: 302.0833333 | V83: 53.125
O84: D | P84: 6.8395 | Q84: 6.4791 | R84: 4.7625 | S84: 53.25 | T84: 322.5 | U84: 322.5 | V84: 51.5
O85: moyenne an | P85: =AVERAGE(P73:P84) -> 6.517813889 | Q85: 6.121691667 | R85: 4.412075 | S85: 74.6125 | T85: 321.4131944 | U85: 321.4131944 | V85: 73.22708333

Sheet MoyQuindHebdoOvins (hidden)
C1: 2020 | D1: 2021 | E1: 2022 | F1: 2023 | G1: 2024 | H1: MOYENNE 5 ANS
A2: Année | B2: Sem.
B4: 1 | C4: 6.78 | D4: 7.23 | E4: 7.940000057 | F4: 8.430000305 | G4: 7.328000072 | H4: =AVERAGE(C4:G4) -> 7.541600087
B5: 2 | C5: 6.64 | D5: 7.27 | E5: 7.800000191 | F5: 8.279999733 | G5: 7.227999985 | H5: 7.443599982
B6: 3 | C6: 6.65 | D6: 7.2 | E6: 7.71999979 | F6: 8.220000267 | G6: 7.164000011 | H6: 7.390800014
A7: J | B7: 4 | C7: 6.53 | D7: 7.18 | E7: 7.710000038 | F7: 8.119999886 | G7: 7.089999985 | H7: 7.325999982
B8: 5 | C8: 6.48 | D8: 7.08 | E8: 7.690000057 | F8: 8.03 | G8: 7.008000011 | H8: 7.257600014
B9: 6 | C9: 6.45 | D9: 6.97 | E9: 7.519999981 | F9: 7.97 | G9: 6.919999996 | H9: 7.165999995
B10: 7 | C10: 6.42 | D10: 6.93 | E10: 7.510000229 | F10: 7.86 | G10: 6.884000046 | H10: 7.120800055
A11: F | B11: 8 | C11: 6.39 | D11: 6.95 | E11: 7.420000076 | F11: 7.83 | G11: 6.870000015 | H11: 7.092000018
B12: 9 | C12: 6.48 | D12: 6.99 | E12: 7.440000057 | F12: 7.84 | G12: 6.926000011 | H12: 7.135200014
B13: 10 | C13: 6.51 | D13: 7.07 | E13: 7.539999962 | F13: 7.93 | G13: 7.011999992 | H13: 7.212399991
B14: 11 | C14: 6.6 | D14: 7.28 | E14: 7.630000114 | F14: 8.06 | G14: 7.140000023 | H14: 7.342000027
B15: 12 | C15: 6.65 | D15: 7.5 | E15: 7.570000172 | F15: 8.19 | G15: 7.234000034 | H15: 7.428800041
A16: M | B16: 13 | C16: 6.53 | D16: 7.65 | E16: 7.670000076 | F16: 8.42 | G16: 7.302000015 | H16: 7.514400018
B17: 14 | C17: 6.18 | D17: 7.53 | E17: 7.929999828 | F17: 8.55 | G17: 7.315999966 | H17: 7.501199959
B18: 15 | C18: 6.2 | D18: 7.56 | E18: 8.069999695 | F18: 8.44 | G18: 7.371999939 | H18: 7.528399927
B19: 16 | C19: 6.3 | D19: 7.54 | E19: 8.069999695 | F19: 8.44 | G19: 7.403999939 | H19: 7.550799927
A20: A | B20: 17 | C20: 6.37 | D20: 7.48 | E20: 8.069999695 | F20: 8.47 | G20: 7.389999939 | H20: 7.555999927
B21: 18 | C21: 6.5 | D21: 7.42 | E21: 8.079999924 | F21: 8.36 | G21: 7.375999985 | H21: 7.547199982
B22: 19 | C22: 6.47 | D22: 7.47 | E22: 8.06000042 | F22: 8.29 | G22: 7.344000084 | H22: 7.526800101
B23: 20 | C23: 6.46 | D23: 7.38 | E23: 8.06000042 | F23: 8.29 | G23: 7.312000084 | H23: 7.500400101
A24: M | B24: 21 | C24: 6.47 | D24: 7.31 | E24: 7.929999828 | F24: 8.24 | G24: 7.229999966 | H24: 7.435999959
B25: 22 | C25: 6.49 | D25: 7.26 | E25: 7.96999979 | F25: 8.19 | G25: 7.207999958 | H25: 7.42359995
B26: 23 | C26: 6.56 | D26: 7.19 | E26: 7.920000076 | F26: 8.18 | G26: 7.176000015 | H26: 7.405200018
B27: 24 | C27: 6.58 | D27: 7.09 | E27: 7.949999809 | F27: 8.19 | G27: 7.161999962 | H27: 7.394399954
B28: 25 | C28: 6.61 | D28: 7.06 | E28: 8 | F28: 8.15 | G28: 7.152 | H28: 7.3944
A29: J | B29: 26 | C29: 6.6 | D29: 6.98 | E29: 7.980000019 | F29: 8.27 | G29: 7.152000004 | H29: 7.396400005
B30: 27 | C30: 6.55 | D30: 7.02 | E30: 8.119999886 | F30: 8.21 | G30: 7.161999977 | H30: 7.412399973
B31: 28 | C31: 6.58 | D31: 6.99 | E31: 8.069999695 | F31: 8.17 | G31: 7.133999939 | H31: 7.388799927
B32: 29 | C32: 6.64 | D32: 7.06 | E32: 8.06000042 | F32: 8.18 | G32: 7.166000084 | H32: 7.421200101
A33: J | B33: 30 | C33: 6.71 | D33: 7.02 | E33: 8.050000191 | F33: 8.12 | G33: 7.160000038 | H33: 7.412000046
B34: 31 | C34: 6.77 | D34: 7.04 | E34: 8.010000229 | F34: 8.06 | G34: 7.156000046 | H34: 7.407200055
B35: 32 | C35: 6.8 | D35: 7.07 | E35: 8.020000458 | F35: 8 | G35: 7.156000092 | H35: 7.40920011
B36: 33 | C36: 6.83 | D36: 7.04 | E36: 8 | F36: 8.02 | G36: 7.16 | H36: =AVERAGE(C36:G36) -> 7.41
B37: 34 | C37: 6.83 | D37: 7.18 | E37: 8.029999733 | F37: 8 | G37: 7.205999947 | H37: 7.449199936
A38: A | B38: 35 | C38: 6.91 | D38: 7.25 | E38: 7.96999979 | F38: 7.96 | G38: 7.235999958 | H38: 7.46519995
B39: 36 | C39: 6.99 | D39: 7.29 | E39: 8.010000229 | F39: 8 | G39: 7.284000046 | H39: 7.514800055
B40: 37 | C40: 6.98 | D40: 7.36 | E40: 8 | F40: 7.98 | G40: 7.294 | H40: 7.5228
B41: 38 | C41: 6.92 | D41: 7.37 | E41: 7.960000038 | F41: 8.04 | G41: 7.304000008 | H41: 7.518800009
A42: S | B42: 39 | C42: 7 | D42: 7.44 | E42: 7.96999979 | F42: 8.04 | G42: 7.323999958 | H42: 7.55479995
B43: 40 | C43: 7 | D43: 7.46 | E43: 7.960000038 | F43: 8.09 | G43: 7.338000008 | H43: 7.569600009
B44: 41 | C44: 7.02 | D44: 7.53 | E44: 7.949999809 | F44: 8.2 | G44: 7.369999962 | H44: 7.613999954
B45: 42 | C45: 7.03 | D45: 7.57 | E45: 7.960000038 | F45: 8.34 | G45: 7.414000008 | H45: 7.662800009
A46: O | B46: 43 | C46: 7.02 | D46: 7.6 | E46: 8 | F46: 8.35 | G46: 7.432 | H46: 7.6804
B47: 44 | C47: 7.01 | D47: 7.75 | E47: 8.039999962 | F47: 8.44 | G47: 7.485999992 | H47: 7.745199991
B48: 45 | C48: 7 | D48: 7.77 | E48: 8.149999619 | F48: 8.53 | G48: 7.539999924 | H48: 7.797999908
B49: 46 | C49: 7.07 | D49: 7.84 | E49: 8.289999962 | F49: 8.57 | G49: 7.627999992 | H49: 7.879599991
B50: 47 | C50: 7.11 | D50: 7.85 | F50: 8.59 | G50: 7.5075 | H50: 7.764375
A51: N | B51: 48 | C51: 7.2 | D51: 7.97 | E51: 8.520000458 | F51: 8.72 | G51: 7.806000092 | H51: 8.04320011
B52: 49 | C52: 7.21 | D52: 7.96 | E52: 8.510000229 | F52: 8.73 | G52: 7.816000046 | H52: 8.045200055
B53: 50 | C53: 7.23 | D53: 8.04 | E53: 8.569999695 | G53: 7.879999939 | H53: 7.929999908
B54: 51 | C54: 7.25 | D54: 8.06 | E54: 8.569999695 | G54: 7.911999939 | H54: 7.947999908
A55: D | B55: 52 | C55: 7.3 | D55: 8.07 | E55: 8.56000042 | G55: 7.928000084 | H55: 7.964500126
B56: 53 | C56: 7.26 | G56: 7.26 | H56: 7.26

Sheet GrosBovinsAnneeEnCours
A1: COTATIONS DES GROS BOVINS
A2: Source : DRAAF Pays de la Loire - SRISE - FranceAgriMer
A5: 1 – COTATION REGIONALE GRAND OUEST ENTREE ABATTOIR en €/Kg net
A7: 2 – MOYENNE NATIONALE DES BOVINS MAIGRES DESTINES A L'ENGRAISSEMENT CHAROLAIS MALE de 6-12 mois catégorie U (350kg) en €/kg vif
A9: 3 – COTATION DES GROS BOVINS VIFS SUR LE MARCHE DE CHOLET (en Euro/Kg Net) – à partir de la ligne 72
B11: Date de mise à jour : | D11: 2025-11-20 | R11: Date de mie à jour : | S11: =D11 -> 2025-11-20
A12: 1 – COTATION REGIONALE ENTREE ABATTOIR GRAND OUEST FRANCEAGRIMER-HEBDOMADAIRE (€/Kg net) | P12: 2 – COT. HEBDO
P13: MAIGRE €/kg vif
C14: JEUNES BOVINS | F14: BOEUFS | G14: VACHES | L14: GENISSES | P14: Ref. nationale | Q14: Sem. | R14: Nantes | S14: Vache Viande R | V14: Vache lait P
C15: VIANDE | E15: MIXTE | F15: MIXTE | G15: VIANDE | I15: Blonde | J15: MIXTE | K15: LAIT | L15: VIANDES + 350kg | P15: Charolais Mâles | R15: Charolais Mâles | S15: Evolution/ semaine -1 | T15: ="Evolution/ semaine id " & A17-1 -> Evolution/ semaine id 2024 | U15: Evolution/semaine id moy. 5 ans | V15: Evolution/semaine -1 | W15: ="Evolution/ semaine id " & A17-1 -> Evolution/ semaine id 2024 | X15: Evolution/semaine id moy. 5 ans
A16: Mois | B16: Semaine | C16: U | D16: R | E16: O | F16: O | G16: U | H16: R | I16: U | J16: O | K16: P | L16: U | M16: R | P16: 6/12 mois ( U ) 350 kg | R16: 6/12 mois ( U ) 350 kg
A17: 2025 | B17: 1 | C17: 5.89 | D17: 5.72 | F17: 4.79 | H17: 5.59 | I17: 6.59 | J17: 4.72 | K17: 4.25 | L17: 6.35 | M17: 5.56 | P17: 4.05 | Q17: 1 | R17: 3.9 | S17: =(H17-GrosBovins2024!H68)/GrosBovins2024!H68 -> 0 | T17: =(H17-GrosBovins2024!H18)/GrosBovins2024!H18 -> 0.02380952381 | U17: =(H17-MoyQuinqHebdoGB!AL5)/MoyQuinqHebdoGB!AL5 -> 0.2162750218 | V17: =(K17-GrosBovins2024!K68)/GrosBovins2024!K68 -> 0.002358490566 | W17: =(K17-GrosBovins2024!K17)/GrosBovins2024!K17 -> 0.08142493639 | X17: =(K17-MoyQuinqHebdoGB!BD5)/MoyQuinqHebdoGB!BD5 -> 0.2283236994
B18: 2 | C18: 5.91 | D18: 5.73 | F18: 4.81 | H18: 5.59 | I18: 6.67 | J18: 4.74 | K18: 4.29 | M18: 5.57 | P18: 4.15 | Q18: 2 | R18: 4 | S18: =(H18-H17)/H17 -> 0 | T18: =(H18-GrosBovins2024!H19)/GrosBovins2024!H19 -> 0.02380952381 | U18: =(H18-MoyQuinqHebdoGB!AL6)/MoyQuinqHebdoGB!AL6 -> 0.2120555074 | V18: =(K18-K17)/K17 -> 0.009411764706 | W18: =(K18-GrosBovins2024!K18)/GrosBovins2024!K18 -> 0.08060453401 | X18: =(K18-MoyQuinqHebdoGB!BD6)/MoyQuinqHebdoGB!BD6 -> 0.230636833
B19: 3 | C19: 5.96 | D19: 5.78 | F19: 4.84 | G19: 6.08 | H19: 5.61 | I19: 6.66 | J19: 4.77 | K19: 4.33 | L19: 6.33 | M19: 5.56 | P19: 4.28 | Q19: 3 | R19: 4.05 | S19: =(H19-H18)/H18 -> 0.003577817531 | T19: =(H19-GrosBovins2024!H20)/GrosBovins2024!H20 -> 0.02559414991 | U19: =(H19-MoyQuinqHebdoGB!AL7)/MoyQuinqHebdoGB!AL7 -> 0.2158647594 | V19: =(K19-K18)/K18 -> 0.009324009324 | W19: =(K19-GrosBovins2024!K19)/GrosBovins2024!K19 -> 0.0825 | X19: =(K19-MoyQuinqHebdoGB!BD7)/MoyQuinqHebdoGB!BD7 -> 0.2350256703
B20: 4 | C20: 6.02 | D20: 5.83 | F20: 4.88 | H20: 5.64 | I20: 6.66 | J20: 4.81 | K20: 4.39 | L20: 6.32 | M20: 5.58 | P20: 4.36 | Q20: 4 | R20: 4.15 | S20: =(H20-H19)/H19 -> 0.005347593583 | T20: =(H20-GrosBovins2024!H21)/GrosBovins2024!H21 -> 0.02732240437 | U20: =(H20-MoyQuinqHebdoGB!AL8)/MoyQuinqHebdoGB!AL8 -> 0.2213079255 | V20: 0.01385681293 | W20: =(K20-GrosBovins2024!K20)/GrosBovins2024!K20 -> 0.08395061728 | X20: =(K20-MoyQuinqHebdoGB!BD8)/MoyQuinqHebdoGB!BD8 -> 0.2457434733
A21: J | B21: 5 | C21: 6.09 | D21: 5.89 | F21: 4.95 | H21: 5.66 | I21: 6.69 | J21: 4.87 | K21: 4.47 | L21: 6.39 | M21: 5.61 | P21: 4.41 | Q21: 5 | R21: 4.2 | S21: 0.003546099291 | T21: =(H21-GrosBovins2024!H22)/GrosBovins2024!H22 -> 0.02722323049 | U21: =(H21-MoyQuinqHebdoGB!AL9)/MoyQuinqHebdoGB!AL9 -> 0.2198275862 | V21: 0.01822323462 | W21: =(K21-GrosBovins2024!K21)/GrosBovins2024!K21 -> 0.09290953545 | X21: =(K21-MoyQuinqHebdoGB!BD9)/MoyQuinqHebdoGB!BD9 -> 0.2612866817
B22: 6 | C22: 6.15 | D22: 5.97 | F22: 4.99 | H22: 5.71 | I22: 6.72 | J22: 4.92 | K22: 4.53 | M22: 5.69 | P22: 4.49 | Q22: 6 | R22: 4.3 | S22: 0.008833922261 | T22: =(H22-GrosBovins2024!H23)/GrosBovins2024!H23 -> 0.03818181818 | U22: =(H22-MoyQuinqHebdoGB!AL10)/MoyQuinqHebdoGB!AL10 -> 0.2263745704 | V22: 0.01342281879 | W22: =(K22-GrosBovins2024!K22)/GrosBovins2024!K22 -> 0.09685230024 | X22: =(K22-MoyQuinqHebdoGB!BD10)/MoyQuinqHebdoGB!BD10 -> 0.268907563
B23: 7 | C23: 6.22 | D23: 6.03 | F23: 5.04 | H23: 5.72 | I23: 6.71 | J23: 4.99 | K23: 4.61 | L23: 6.47 | M23: 5.67 | P23: 4.61 | Q23: 7 | R23: 4.4 | S23: 0.001751313485 | T23: =(H23-GrosBovins2024!H24)/GrosBovins2024!H24 -> 0.04189435337 | U23: =(H23-MoyQuinqHebdoGB!AL11)/MoyQuinqHebdoGB!AL11 -> 0.2264150943 | V23: 0.01766004415 | W23: =(K23-GrosBovins2024!K23)/GrosBovins2024!K23 -> 0.1081730769 | X23: =(K23-MoyQuinqHebdoGB!BD11)/MoyQuinqHebdoGB!BD11 -> 0.2748893805
B24: 8 | C24: 6.28 | D24: 6.09 | F24: 5.05 | H24: 5.79 | I24: 6.78 | J24: 5.04 | K24: 4.69 | L24: 6.47 | M24: 5.75 | P24: 4.69 | Q24: 8 | R24: 4.5 | S24: 0.01223776224 | T24: =(H24-GrosBovins2024!H25)/GrosBovins2024!H25 -> 0.06043956044 | U24: =(H24-MoyQuinqHebdoGB!AL12)/MoyQuinqHebdoGB!AL12 -> 0.2329642249 | V24: 0.01735357918 | W24: =(K24-GrosBovins2024!K24)/GrosBovins2024!K24 -> 0.1274038462 | X24: =(K24-MoyQuinqHebdoGB!BD12)/MoyQuinqHebdoGB!BD12 -> 0.2779291553
A25: F | B25: 9 | C25: 6.32 | D25: 6.12 | F25: 5.15 | H25: 5.83 | I25: 6.84 | J25: 5.1 | K25: 4.77 | L25: 6.5 | M25: 5.77 | P25: 4.79 | Q25: 9 | R25: 4.6 | S25: 0.006908462867 | T25: =(H25-GrosBovins2024!H26)/GrosBovins2024!H26 -> 0.06193078324 | U25: =(H25-MoyQuinqHebdoGB!AL13)/MoyQuinqHebdoGB!AL13 -> 0.2372665535 | V25: 0.0170575693 | W25: =(K25-GrosBovins2024!K25)/GrosBovins2024!K25 -> 0.1466346154 | X25: =(K25-MoyQuinqHebdoGB!BD13)/MoyQuinqHebdoGB!BD13 -> 0.286407767
B26: 10 | C26: 6.34 | D26: 6.15 | F26: 5.19 | G26: 6.26 | H26: 5.86 | I26: 6.83 | J26: 5.16 | K26: 4.84 | L26: 6.49 | M26: 5.76 | P26: 4.93 | Q26: 10 | R26: 4.7 | S26: 0.005145797599 | T26: =(H26-GrosBovins2024!H27)/GrosBovins2024!H27 -> 0.06934306569 | U26: =(H26-MoyQuinqHebdoGB!AL14)/MoyQuinqHebdoGB!AL14 -> 0.2368087801 | V26: 0.01467505241 | W26: =(K26-GrosBovins2024!K26)/GrosBovins2024!K26 -> 0.1634615385 | X26: =(K26-MoyQuinqHebdoGB!BD14)/MoyQuinqHebdoGB!BD14 -> 0.2927350427
B27: 11 | C27: 6.35 | D27: 6.12 | F27: 5.25 | G27: 6.33 | H27: 5.9 | I27: 6.79 | J27: 5.23 | K27: 4.92 | L27: 6.63 | M27: 5.83 | P27: 5 | Q27: 11 | R27: 4.8 | S27: 0.006825938567 | T27: =(H27-GrosBovins2024!H28)/GrosBovins2024!H28 -> 0.07664233577 | U27: =(H27-MoyQuinqHebdoGB!AL15)/MoyQuinqHebdoGB!AL15 -> 0.2405382675 | V27: 0.01652892562 | W27: =(K27-GrosBovins2024!K27)/GrosBovins2024!K27 -> 0.1770334928 | X27: =(K27-MoyQuinqHebdoGB!BD15)/MoyQuinqHebdoGB!BD15 -> 0.3036565978
B28: 12 | C28: 6.34 | D28: 6.11 | F28: 5.36 | H28: 5.95 | I28: 6.84 | J28: 5.31 | K28: 5.02 | L28: 6.58 | M28: 5.93 | P28: 5.1 | Q28: 12 | R28: 4.9 | S28: 0.008474576271 | T28: =(H28-GrosBovins2024!H29)/GrosBovins2024!H29 -> 0.08576642336 | U28: =(H28-MoyQuinqHebdoGB!AL16)/MoyQuinqHebdoGB!AL16 -> 0.2473794549 | V28: 0.02032520325 | W28: =(K28-GrosBovins2024!K28)/GrosBovins2024!K28 -> 0.2038369305 | X28: =(K28-MoyQuinqHebdoGB!BD16)/MoyQuinqHebdoGB!BD16 -> 0.3245382586
A29: M | B29: 13 | C29: 6.34 | D29: 6.12 | F29: 5.44 | H29: 5.99 | I29: 6.85 | J29: 5.38 | K29: 5.12 | L29: 6.62 | M29: 5.95 | P29: 5.07 | Q29: 13 | R29: 4.9 | S29: 0.006722689076 | T29: =(H29-GrosBovins2024!H30)/GrosBovins2024!H30 -> 0.09107468124 | U29: =(H29-MoyQuinqHebdoGB!AL17)/MoyQuinqHebdoGB!AL17 -> 0.2578748425 | V29: 0.01992031873 | W29: =(K29-GrosBovins2024!K29)/GrosBovins2024!K29 -> 0.2248803828 | X29: =(K29-MoyQuinqHebdoGB!BD17)/MoyQuinqHebdoGB!BD17 -> 0.3459516299
B30: 14 | C30: 6.35 | D30: 6.15 | F30: 5.54 | H30: 6.05 | I30: 6.88 | J30: 5.46 | K30: 5.21 | L30: 6.71 | M30: 5.99 | P30: 5.12 | Q30: 14 | R30: 5 | S30: 0.01001669449 | T30: =(H30-GrosBovins2024!H31)/GrosBovins2024!H31 -> 0.1040145985 | U30: =(H30-MoyQuinqHebdoGB!AL18)/MoyQuinqHebdoGB!AL18 -> 0.2688758389 | V30: 0.017578125 | W30: =(K30-GrosBovins2024!K30)/GrosBovins2024!K30 -> 0.2464114833 | X30: =(K30-MoyQuinqHebdoGB!BD18)/MoyQuinqHebdoGB!BD18 -> 0.3688912244
B31: 15 | C31: 6.37 | D31: 6.17 | F31: 5.6 | G31: 6.74 | H31: 6.08 | I31: 7.01 | J31: 5.53 | K31: 5.3 | L31: 6.79 | M31: 6.04 | P31: 5.16 | Q31: 15 | R31: 5.1 | S31: 0.004958677686 | T31: =(H31-GrosBovins2024!H32)/GrosBovins2024!H32 -> 0.1054545455 | U31: =(H31-MoyQuinqHebdoGB!AL19)/MoyQuinqHebdoGB!AL19 -> 0.2778478352 | V31: =(K31-K30)/K30 -> 0.01727447217 | W31: =(K31-GrosBovins2024!K31)/GrosBovins2024!K31 -> 0.2649164678 | X31: =(K31-MoyQuinqHebdoGB!BD19)/MoyQuinqHebdoGB!BD19 -> 0.3932702419
B32: 16 | C32: 6.4 | D32: 6.21 | F32: 5.63 | G32: 6.55 | H32: 6.14 | I32: 6.88 | J32: 5.62 | K32: 5.4 | L32: 6.72 | M32: 6.09 | P32: 5.18 | Q32: 16 | R32: 5.1 | S32: 0.009868421053 | T32: =(H32-GrosBovins2024!H33)/GrosBovins2024!H33 -> 0.1183970856 | U32: =(H32-MoyQuinqHebdoGB!AL20)/MoyQuinqHebdoGB!AL20 -> 0.2866722548 | V32: =(K32-K31)/K31 -> 0.01886792453 | W32: =(K32-GrosBovins2024!K32)/GrosBovins2024!K32 -> 0.2857142857 | X32: =(K32-MoyQuinqHebdoGB!BD20)/MoyQuinqHebdoGB!BD20 -> 0.4158363922
A33: A | B33: 17 | C33: 6.44 | D33: 6.27 | F33: 5.73 | H33: 6.2 | I33: 6.91 | J33: 5.69 | K33: 5.5 | L33: 6.75 | M33: 6.15 | P33: 5.25 | Q33: 17 | R33: 5.15 | S33: 0.009771986971 | T33: =(H33-GrosBovins2024!H34)/GrosBovins2024!H34 -> 0.1272727273 | U33: =(H33-MoyQuinqHebdoGB!AL21)/MoyQuinqHebdoGB!AL21 -> 0.2981574539 | V33: 0.01851851852 | W33: =(K33-GrosBovins2024!K33)/GrosBovins2024!K33 -> 0.3033175355 | X33: =(K33-MoyQuinqHebdoGB!BD21)/MoyQuinqHebdoGB!BD21 -> 0.4337851929
B34: 18 | C34: 6.47 | D34: 6.28 | F34: 5.83 | H34: 6.25 | I34: 7.01 | J34: 5.78 | K34: 5.61 | L34: 6.71 | M34: 6.19 | P34: 5.23 | Q34: 18 | R34: 5.15 | S34: 0.008064516129 | T34: =(H34-GrosBovins2024!H35)/GrosBovins2024!H35 -> 0.1322463768 | U34: =(H34-MoyQuinqHebdoGB!AL22)/MoyQuinqHebdoGB!AL22 -> 0.3037129746 | V34: 0.02 | W34: =(K34-GrosBovins2024!K34)/GrosBovins2024!K34 -> 0.32 | X34: =(K34-MoyQuinqHebdoGB!BD22)/MoyQuinqHebdoGB!BD22 -> 0.4511122607
B35: 19 | C35: 6.48 | D35: 6.3 | F35: 5.94 | H35: 6.32 | I35: 7.03 | J35: 5.9 | K35: 5.7 | L35: 6.87 | M35: 6.26 | P35: 5.28 | Q35: 19 | R35: 5.2 | S35: 0.0112 | T35: =(H35-GrosBovins2024!H36)/GrosBovins2024!H36 -> 0.1490909091 | U35: =(H35-MoyQuinqHebdoGB!AL23)/MoyQuinqHebdoGB!AL23 -> 0.316118284 | V35: 0.01604278075 | W35: =(K35-GrosBovins2024!K35)/GrosBovins2024!K35 -> 0.3286713287 | X35: =(K35-MoyQuinqHebdoGB!BD23)/MoyQuinqHebdoGB!BD23 -> 0.4675592173
B36: 20 | C36: 6.51 | D36: 6.32 | E36: 6 | F36: 6.03 | H36: 6.38 | I36: 7.11 | J36: 6 | K36: 5.81 | L36: 6.91 | M36: 6.32 | P36: 5.46 | Q36: 20 | R36: 5.3 | S36: 0.009493670886 | T36: =(H36-GrosBovins2024!H37)/GrosBovins2024!H37 -> 0.1578947368 | U36: =(H36-MoyQuinqHebdoGB!AL24)/MoyQuinqHebdoGB!AL24 -> 0.3247508306 | V36: 0.01929824561 | W36: =(K36-GrosBovins2024!K36)/GrosBovins2024!K36 -> 0.3418013857 | X36: =(K36-MoyQuinqHebdoGB!BD24)/MoyQuinqHebdoGB!BD24 -> 0.4836567926
B37: 21 | C37: 6.52 | D37: 6.35 | E37: 6.06 | F37: 6.06 | H37: 6.43 | I37: 7.13 | J37: 6.04 | K37: 5.85 | L37: 6.93 | M37: 6.37 | P37: 5.41 | Q37: 21 | R37: 5.3 | S37: 0.007836990596 | T37: =(H37-GrosBovins2024!H38)/GrosBovins2024!H38 -> 0.166969147 | U37: =(H37-MoyQuinqHebdoGB!AL25)/MoyQuinqHebdoGB!AL25 -> 0.3318144159 | V37: 0.006884681583 | W37: =(K37-GrosBovins2024!K37)/GrosBovins2024!K37 -> 0.351039261 | X37: =(K37-MoyQuinqHebdoGB!BD25)/MoyQuinqHebdoGB!BD25 -> 0.487792472
A38: M | B38: 22 | C38: 6.55 | D38: 6.37 | F38: 6.08 | H38: 6.49 | I38: 7.14 | J38: 6.06 | K38: 5.87 | L38: 6.9 | M38: 6.43 | P38: 5.52 | Q38: 22 | R38: 5.35 | S38: 0.00933125972 | T38: =(H38-GrosBovins2024!H39)/GrosBovins2024!H39 -> 0.1757246377 | U38: =(H38-MoyQuinqHebdoGB!AL26)/MoyQuinqHebdoGB!AL26 -> 0.339248865 | V38: 0.003418803419 | W38: =(K38-GrosBovins2024!K38)/GrosBovins2024!K38 -> 0.3494252874 | X38: =(K38-MoyQuinqHebdoGB!BD26)/MoyQuinqHebdoGB!BD26 -> 0.4823232323
B39: 23 | C39: 6.56 | D39: 6.4 | F39: 6.12 | H39: 6.51 | I39: 7.14 | J39: 6.1 | K39: 5.92 | L39: 6.94 | M39: 6.48 | P39: 5.58 | Q39: 23 | R39: 5.5 | S39: 0.003081664099 | T39: =(H39-GrosBovins2024!H40)/GrosBovins2024!H40 -> 0.1814882033 | U39: =(H39-MoyQuinqHebdoGB!AL27)/MoyQuinqHebdoGB!AL27 -> 0.3362068966 | V39: 0.008517887564 | W39: =(K39-GrosBovins2024!K39)/GrosBovins2024!K39 -> 0.3577981651 | X39: =(K39-MoyQuinqHebdoGB!BD27)/MoyQuinqHebdoGB!BD27 -> 0.4881850176
B40: 24 | C40: 6.58 | D40: 6.42 | F40: 6.19 | H40: 6.56 | I40: 7.23 | J40: 6.15 | K40: 5.92 | L40: 7.03 | M40: 6.52 | P40: 5.73 | Q40: 24 | R40: 5.6 | S40: 0.007680491551 | T40: =(H40-GrosBovins2024!H41)/GrosBovins2024!H41 -> 0.1927272727 | U40: =(H40-MoyQuinqHebdoGB!AL28)/MoyQuinqHebdoGB!AL28 -> 0.3415132924 | V40: 0 | W40: =(K40-GrosBovins2024!K40)/GrosBovins2024!K40 -> 0.3515981735 | X40: =(K40-MoyQuinqHebdoGB!BD28)/MoyQuinqHebdoGB!BD28 -> 0.4837092732
B41: 25 | C41: 6.59 | D41: 6.43 | F41: 6.24 | H41: 6.57 | I41: 7.18 | J41: 6.16 | K41: 5.94 | L41: 7.08 | M41: 6.56 | P41: 5.88 | Q41: 25 | R41: 5.65 | S41: 0.001524390244 | T41: =(H41-GrosBovins2024!H42)/GrosBovins2024!H42 -> 0.1902173913 | U41: =(H41-MoyQuinqHebdoGB!AL29)/MoyQuinqHebdoGB!AL29 -> 0.3463114754 | V41: 0.003378378378 | W41: =(K41-GrosBovins2024!K41)/GrosBovins2024!K41 -> 0.3530751708 | X41: =(K41-MoyQuinqHebdoGB!BD29)/MoyQuinqHebdoGB!BD29 -> 0.4879759519
A42: J | B42: 26 | C42: 6.6 | D42: 6.45 | E42: 6.2 | F42: 6.25 | H42: 6.63 | I42: 7.23 | J42: 6.2 | K42: 5.97 | L42: 7.1 | M42: 6.56 | P42: 5.85 | Q42: 26 | R42: 5.7 | S42: 0.009132420091 | T42: =(H42-GrosBovins2024!H43)/GrosBovins2024!H43 -> 0.2032667877 | U42: =(H42-MoyQuinqHebdoGB!AL30)/MoyQuinqHebdoGB!AL30 -> 0.3536137199 | V42: 0.005050505051 | W42: =(K42-GrosBovins2024!K42)/GrosBovins2024!K42 -> 0.3599088838 | X42: =(K42-MoyQuinqHebdoGB!BD30)/MoyQuinqHebdoGB!BD30 -> 0.4969909729
B43: 27 | C43: 6.61 | D43: 6.46 | E43: 6.2 | F43: 6.26 | H43: 6.65 | I43: 7.24 | J43: 6.22 | K43: 5.98 | L43: 7.09 | M43: 6.6 | P43: 5.78 | Q43: 27 | R43: 5.7 | S43: 0.003016591252 | T43: =(H43-GrosBovins2024!H44)/GrosBovins2024!H44 -> 0.2068965517 | U43: =(H43-MoyQuinqHebdoGB!AL31)/MoyQuinqHebdoGB!AL31 -> 0.3599182004 | V43: 0.001675041876 | W43: =(K43-GrosBovins2024!K43)/GrosBovins2024!K43 -> 0.3621867882 | X43: =(K43-MoyQuinqHebdoGB!BD31)/MoyQuinqHebdoGB!BD31 -> 0.5025125628
B44: 28 | C44: 6.61 | D44: 6.46 | E44: 6.2 | F44: 6.26 | H44: 6.65 | I44: 7.3 | J44: 6.22 | K44: 5.99 | L44: 7.11 | M44: 6.6 | P44: 5.75 | Q44: 28 | R44: 5.7 | S44: 0 | T44: =(H44-GrosBovins2024!H45)/GrosBovins2024!H45 -> 0.2090909091 | U44: =(H44-MoyQuinqHebdoGB!AL32)/MoyQuinqHebdoGB!AL32 -> 0.3610315186 | V44: 0.001672240803 | W44: =(K44-GrosBovins2024!K44)/GrosBovins2024!K44 -> 0.3613636364 | X44: =(K44-MoyQuinqHebdoGB!BD32)/MoyQuinqHebdoGB!BD32 -> 0.5065392354
B45: 29 | C45: 6.6 | D45: 6.44 | F45: 6.3 | H45: 6.66 | I45: 7.3 | J45: 6.22 | K45: 5.95 | L45: 7.14 | M45: 6.61 | P45: 5.71 | Q45: 29 | R45: 5.6 | S45: 0.001503759398 | T45: =(H45-GrosBovins2024!H46)/GrosBovins2024!H46 -> 0.2065217391 | U45: =(H45-MoyQuinqHebdoGB!AL33)/MoyQuinqHebdoGB!AL33 -> 0.3614063778 | V45: -0.006677796327 | W45: =(K45-GrosBovins2024!K45)/GrosBovins2024!K45 -> 0.3522727273 | X45: =(K45-MoyQuinqHebdoGB!BD33)/MoyQuinqHebdoGB!BD33 -> 0.4957264957
B46: 30 | C46: 6.59 | D46: 6.44 | F46: 6.29 | H46: 6.66 | I46: 7.3 | J46: 6.22 | K46: 5.94 | L46: 7.18 | M46: 6.6 | P46: 5.71 | Q46: 30 | R46: 5.6 | S46: 0 | T46: =(H46-GrosBovins2024!H47)/GrosBovins2024!H47 -> 0.2043399638 | U46: =(H46-MoyQuinqHebdoGB!AL34)/MoyQuinqHebdoGB!AL34 -> 0.3630781826 | V46: -0.001680672269 | W46: =(K46-GrosBovins2024!K46)/GrosBovins2024!K46 -> 0.3438914027 | X46: =(K46-MoyQuinqHebdoGB!BD34)/MoyQuinqHebdoGB!BD34 -> 0.4947156517
A47: J | B47: 31 | C47: 6.61 | D47: 6.44 | F47: 6.29 | H47: 6.69 | I47: 7.35 | J47: 6.23 | K47: 5.95 | L47: 7.22 | M47: 6.65 | P47: 5.68 | Q47: 31 | R47: 5.65 | S47: 0.004504504505 | T47: =(H47-GrosBovins2024!H48)/GrosBovins2024!H48 -> 0.2032374101 | U47: =(H47-MoyQuinqHebdoGB!AL35)/MoyQuinqHebdoGB!AL35 -> 0.3714637146 | V47: 0.001683501684 | W47: =(K47-GrosBovins2024!K47)/GrosBovins2024!K47 -> 0.3431151242 | X47: =(K47-MoyQuinqHebdoGB!BD35)/MoyQuinqHebdoGB!BD35 -> 0.4972320081
B48: 32 | C48: 6.64 | D48: 6.49 | E48: 6.25 | F48: 6.31 | H48: 6.73 | I48: 7.39 | J48: 6.29 | K48: 6 | L48: 7.21 | M48: 6.66 | P48: 5.65 | Q48: 32 | R48: 5.65 | S48: 0.005979073244 | T48: =(H48-GrosBovins2024!H49)/GrosBovins2024!H49 -> 0.2017857143 | U48: =(H48-MoyQuinqHebdoGB!AL36)/MoyQuinqHebdoGB!AL36 -> 0.3723491028 | V48: 0.008403361345 | W48: =(K48-GrosBovins2024!K48)/GrosBovins2024!K48 -> 0.3452914798 | X48: =(K48-MoyQuinqHebdoGB!BD36)/MoyQuinqHebdoGB!BD36 -> 0.5052684395
B49: 33 | C49: 6.72 | D49: 6.58 | E49: 6.33 | F49: 6.37 | H49: 6.8 | I49: 7.44 | J49: 6.36 | K49: 6.11 | M49: 6.75 | P49: 5.73 | Q49: 33 | R49: 5.65 | S49: 0.01040118871 | T49: =(H49-GrosBovins2024!H50)/GrosBovins2024!H50 -> 0.2142857143 | U49: =(H49-MoyQuinqHebdoGB!AL37)/MoyQuinqHebdoGB!AL37 -> 0.3821138211 | V49: 0.01833333333 | W49: =(K49-GrosBovins2024!K49)/GrosBovins2024!K49 -> 0.3577777778 | X49: =(K49-MoyQuinqHebdoGB!BD37)/MoyQuinqHebdoGB!BD37 -> 0.5236907731
B50: 34 | C50: 6.79 | D50: 6.64 | E50: 6.39 | F50: 6.46 | H50: 6.9 | I50: 7.52 | J50: 6.43 | K50: 6.19 | L50: 7.33 | M50: 6.82 | P50: 5.91 | Q50: 34 | R50: 5.65 | S50: 0.01470588235 | T50: =(H50-GrosBovins2024!H51)/GrosBovins2024!H51 -> 0.2299465241 | U50: =(H50-MoyQuinqHebdoGB!AL38)/MoyQuinqHebdoGB!AL38 -> 0.3978930308 | V50: 0.01309328969 | W50: =(K50-GrosBovins2024!K50)/GrosBovins2024!K50 -> 0.3604395604 | X50: =(K50-MoyQuinqHebdoGB!BD38)/MoyQuinqHebdoGB!BD38 -> 0.5336967294
A51: A | B51: 35 | C51: 6.87 | D51: 6.71 | E51: 6.45 | F51: 6.52 | H51: 6.97 | I51: 7.58 | J51: 6.49 | K51: 6.25 | L51: 7.4 | M51: 6.91 | P51: 6 | Q51: 35 | R51: 5.8 | S51: 0.01014492754 | T51: =(H51-GrosBovins2024!H52)/GrosBovins2024!H52 -> 0.2424242424 | U51: =(H51-MoyQuinqHebdoGB!AL39)/MoyQuinqHebdoGB!AL39 -> 0.4058087939 | V51: 0.009693053312 | W51: =(K51-GrosBovins2024!K51)/GrosBovins2024!K51 -> 0.3736263736 | X51: =(K51-MoyQuinqHebdoGB!BD39)/MoyQuinqHebdoGB!BD39 -> 0.5432098765
B52: 36 | C52: 6.94 | D52: 6.76 | F52: 6.58 | G52: 7.24 | H52: 7.03 | I52: 7.63 | J52: 6.53 | K52: 6.28 | L52: 7.42 | M52: 6.95 | P52: 6.09 | Q52: 36 | R52: 6 | S52: 0.008608321377 | T52: =(H52-GrosBovins2024!H53)/GrosBovins2024!H53 -> 0.2621184919 | U52: =(H52-MoyQuinqHebdoGB!AL40)/MoyQuinqHebdoGB!AL40 -> 0.4173387097 | V52: 0.0048 | W52: =(K52-GrosBovins2024!K52)/GrosBovins2024!K52 -> 0.389380531 | X52: =(K52-MoyQuinqHebdoGB!BD40)/MoyQuinqHebdoGB!BD40 -> 0.5483234714
B53: 37 | C53: 7.02 | D53: 6.86 | E53: 6.57 | F53: =F54-0.05 -> 6.59 | H53: 7.08 | I53: 7.68 | J53: 6.57 | K53: 6.3 | L53: 7.6 | M53: 7.05 | P53: 6.17 | Q53: 37 | R53: 6.2 | S53: 0.007112375533 | T53: =(H53-GrosBovins2024!H54)/GrosBovins2024!H54 -> 0.273381295 | U53: =(H53-MoyQuinqHebdoGB!AL41)/MoyQuinqHebdoGB!AL41 -> 0.4291481631 | V53: 0.003184713376 | W53: =(K53-GrosBovins2024!K53)/GrosBovins2024!K53 -> 0.40625 | X53: =(K53-MoyQuinqHebdoGB!BD41)/MoyQuinqHebdoGB!BD41 -> 0.5555555556
B54: 38 | C54: 7.1 | D54: 6.94 | E54: 6.63 | F54: 6.64 | H54: 7.17 | I54: 7.71 | J54: 6.61 | K54: 6.32 | L54: 7.61 | M54: 7.08 | P54: 6.25 | Q54: 38 | R54: 6.4 | S54: 0.01271186441 | T54: =(H54-GrosBovins2024!H55)/GrosBovins2024!H55 -> 0.2872531418 | U54: =(H54-MoyQuinqHebdoGB!AL42)/MoyQuinqHebdoGB!AL42 -> 0.4484848485 | V54: 0.003174603175 | W54: =(K54-GrosBovins2024!K54)/GrosBovins2024!K54 -> 0.4298642534 | X54: =(K54-MoyQuinqHebdoGB!BD42)/MoyQuinqHebdoGB!BD42 -> 0.5659068385
A55: S | B55: 39 | C55: 7.19 | D55: 7 | E55: 6.66 | F55: 6.69 | H55: 7.27 | I55: 7.68 | J55: 6.66 | K55: 6.37 | L55: =L56-0.06 -> 7.65 | M55: 7.21 | P55: 6.21 | Q55: 39 | R55: 6.4 | S55: 0.01394700139 | T55: =(H55-GrosBovins2024!H56)/GrosBovins2024!H56 -> 0.3052064632 | U55: =(H55-MoyQuinqHebdoGB!AL43)/MoyQuinqHebdoGB!AL43 -> 0.4680936995 | V55: 0.007911392405 | W55: =(K55-GrosBovins2024!K55)/GrosBovins2024!K55 -> 0.4610091743 | X55: =(K55-MoyQuinqHebdoGB!BD43)/MoyQuinqHebdoGB!BD43 -> 0.5837891596
B56: 40 | C56: 7.28 | D56: 7.12 | F56: 6.73 | H56: 7.34 | I56: 7.78 | J56: 6.7 | K56: 6.42 | L56: 7.71 | M56: 7.25 | P56: 6.2 | Q56: 40 | R56: 6.35 | S56: 0.009628610729 | T56: =(H56-GrosBovins2024!H57)/GrosBovins2024!H57 -> 0.3154121864 | U56: =(H56-MoyQuinqHebdoGB!AL44)/MoyQuinqHebdoGB!AL44 -> 0.478646253 | V56: 0.007849293564 | W56: =(K56-GrosBovins2024!K56)/GrosBovins2024!K56 -> 0.4861111111 | X56: =(K56-MoyQuinqHebdoGB!BD44)/MoyQuinqHebdoGB!BD44 -> 0.604197901
B57: 41 | C57: 7.32 | D57: 7.18 | E57: 6.77 | F57: 6.79 | H57: 7.4 | I57: 7.8 | J57: 6.74 | K57: 6.47 | L57: 7.79 | M57: 7.32 | P57: 6.2 | Q57: 41 | R57: 6.35 | S57: 0.008174386921 | T57: =(H57-GrosBovins2024!H58)/GrosBovins2024!H58 -> 0.328545781 | U57: =(H57-MoyQuinqHebdoGB!AL45)/MoyQuinqHebdoGB!AL45 -> 0.4913341395 | V57: 0.007788161994 | W57: =(K57-GrosBovins2024!K57)/GrosBovins2024!K57 -> 0.5152224824 | X57: =(K57-MoyQuinqHebdoGB!BD45)/MoyQuinqHebdoGB!BD45 -> 0.6239959839
B58: 42 | C58: 7.35 | D58: 7.21 | F58: 6.85 | G58: 7.72 | H58: 7.46 | I58: 7.92 | J58: 6.79 | K58: 6.51 | L58: 7.8 | M58: 7.38 | P58: 6.18 | Q58: 42 | R58: 6.35 | S58: 0.008108108108 | T58: =(H58-GrosBovins2024!H59)/GrosBovins2024!H59 -> 0.349005425 | U58: =(H58-MoyQuinqHebdoGB!AL46)/MoyQuinqHebdoGB!AL46 -> 0.5010060362 | V58: 0.006182380216 | W58: =(K58-GrosBovins2024!K58)/GrosBovins2024!K58 -> 0.5426540284 | X58: =(K58-MoyQuinqHebdoGB!BD46)/MoyQuinqHebdoGB!BD46 -> 0.6397984887
B59: 43 | C59: 7.39 | D59: 7.26 | F59: 6.85 | G59: 7.82 | H59: 7.5 | I59: 7.95 | J59: 6.81 | K59: 6.52 | L59: 7.86 | M59: 7.45 | Q59: 43 | R59: 6.35 | S59: 0.005361930295 | T59: =(H59-GrosBovins2024!H60)/GrosBovins2024!H60 -> 0.356238698 | U59: =(H59-MoyQuinqHebdoGB!AL47)/MoyQuinqHebdoGB!AL47 -> 0.5120967742 | V59: 0.00153609831 | W59: =(K59-GrosBovins2024!K59)/GrosBovins2024!K59 -> 0.5598086124 | X59: =(K59-MoyQuinqHebdoGB!BD47)/MoyQuinqHebdoGB!BD47 -> 0.6523061328
A60: O | B60: 44 | C60: 7.42 | D60: 7.27 | F60: 6.79 | G60: 7.79 | H60: 7.49 | I60: 8.01 | J60: 6.76 | K60: 6.44 | L60: 7.91 | M60: 7.41 | Q60: 44 | R60: 6.3 | S60: -0.001333333333 | T60: =(H60-GrosBovins2024!H61)/GrosBovins2024!H61 -> 0.3618181818 | U60: =(H60-MoyQuinqHebdoGB!AL48)/MoyQuinqHebdoGB!AL48 -> 0.5094719871 | V60: -0.01226993865 | W60: =(K60-GrosBovins2024!K60)/GrosBovins2024!K60 -> 0.5555555556 | X60: =(K60-MoyQuinqHebdoGB!BD48)/MoyQuinqHebdoGB!BD48 -> 0.64453524
B61: 45 | C61: 7.43 | D61: 7.3 | E61: 6.83 | F61: 6.78 | H61: 7.5 | I61: 8.01 | J61: 6.69 | K61: 6.37 | L61: 7.93 | M61: 7.47 | Q61: 45 | R61: 6.3 | S61: 0.001335113485 | T61: =(H61-GrosBovins2024!H62)/GrosBovins2024!H62 -> 0.3464991023 | U61: =(H61-MoyQuinqHebdoGB!AL49)/MoyQuinqHebdoGB!AL49 -> 0.5139281389 | V61: -0.01086956522 | W61: =(K61-GrosBovins2024!K61)/GrosBovins2024!K61 -> 0.534939759 | X61: =(K61-MoyQuinqHebdoGB!BD49)/MoyQuinqHebdoGB!BD49 -> 0.6375321337
B62: 46 | C62: 7.45 | D62: 7.31 | F62: 6.72 | H62: 7.51 | I62: 8.09 | J62: 6.65 | K62: 6.28 | L62: 7.98 | M62: 7.43 | Q62: 46 | S62: 0.001333333333 | T62: =(H62-GrosBovins2024!H63)/GrosBovins2024!H63 -> 0.3507194245 | U62: =(H62-MoyQuinqHebdoGB!AL50)/MoyQuinqHebdoGB!AL50 -> 0.5128928284 | V62: -0.01412872841 | W62: =(K62-GrosBovins2024!K62)/GrosBovins2024!K62 -> 0.5096153846 | X62: =(K62-MoyQuinqHebdoGB!BD50)/MoyQuinqHebdoGB!BD50 -> 0.6286307054
B63: 47 | Q63: 47 | S63: -1 | T63: =(H63-GrosBovins2024!H64)/GrosBovins2024!H64 -> -1 | U63: =(H63-MoyQuinqHebdoGB!AL51)/MoyQuinqHebdoGB!AL51 -> -1 | V63: -1 | W63: =(K63-GrosBovins2024!K63)/GrosBovins2024!K63 -> -1 | X63: =(K63-MoyQuinqHebdoGB!BD51)/MoyQuinqHebdoGB!BD51 -> -1
A64: N | B64: 48 | Q64: 48 | T64: =(H64-GrosBovins2024!H65)/GrosBovins2024!H65 -> -1 | U64: =(H64-MoyQuinqHebdoGB!AL52)/MoyQuinqHebdoGB!AL52 -> -1 | W64: =(K64-GrosBovins2024!K64)/GrosBovins2024!K64 -> -1 | X64: =(K64-MoyQuinqHebdoGB!BD52)/MoyQuinqHebdoGB!BD52 -> -1
B65: 49 | Q65: 49 | T65: =(H65-GrosBovins2024!H66)/GrosBovins2024!H66 -> -1 | U65: =(H65-MoyQuinqHebdoGB!AL53)/MoyQuinqHebdoGB!AL53 -> -1 | W65: =(K65-GrosBovins2024!K65)/GrosBovins2024!K65 -> -1 | X65: =(K65-MoyQuinqHebdoGB!BD53)/MoyQuinqHebdoGB!BD53 -> -1
B66: 50 | Q66: 50 | T66: =(H66-GrosBovins2024!H67)/GrosBovins2024!H67 -> -1 | U66: =(H66-MoyQuinqHebdoGB!AL54)/MoyQuinqHebdoGB!AL54 -> -1 | W66: =(K66-GrosBovins2024!K66)/GrosBovins2024!K66 -> -1 | X66: =(K66-MoyQuinqHebdoGB!BD54)/MoyQuinqHebdoGB!BD54 -> -1
B67: 51 | Q67: 51 | T67: =(H67-GrosBovins2024!H68)/GrosBovins2024!H68 -> -1 | U67: =(H67-MoyQuinqHebdoGB!AL55)/MoyQuinqHebdoGB!AL55 -> -1 | W67: =(K67-GrosBovins2024!K67)/GrosBovins2024!K67 -> -1 | X67: =(K67-MoyQuinqHebdoGB!BD55)/MoyQuinqHebdoGB!BD55 -> -1
A68: D | B68: 52 | Q68: 52 | T68: =(H68-GrosBovins2024!H69)/GrosBovins2024!H69 ->  | U68: =(H68-MoyQuinqHebdoGB!AL56)/MoyQuinqHebdoGB!AL56 -> -1 | W68: =(K68-GrosBovins2024!K68)/GrosBovins2024!K68 -> -1 | X68: =(K68-MoyQuinqHebdoGB!BD56)/MoyQuinqHebdoGB!BD56 -> -1
A71: 3 – COTATION DES GROS BOVINS VIFS SUR LE MARCHE DE CHOLET (en Euro/Kg Net)
C73: GENISSES | E73: VACHES | I73: JEUNES BOVINS | J73: TAUREAUX
A74: semaines | B74: année+mois | C74: Viande, mixte, lait | D74: Viande, mixte, lait | E74: Blonde | F74: Blonde | G74: Mixte | H74: Lait | I74: Viande | J74: Viande, mixte, lait
A75: 2025 | C75: U | D75: R | E75: U | F75: R | G75: O | H75: P | I75: U | J75: URO
A76: 1 | B76: 202501 | H76: 4 | I76: 5.65
A77: 2 | B77: 202501 | E77: 6.3 | F77: 5.7 | G77: 4.5 | H77: 4.05 | I77: 5.8
A78: 3 | B78: 202501 | E78: 6.35 | F78: 5.7 | G78: 4.55 | H78: 4.1 | I78: 5.85
A79: 4 | B79: 202501 | E79: 6.35 | F79: 5.7 | G79: 4.57 | H79: 4.15 | I79: 5.88
A80: 5 | B80: 202501 | E80: 6.4 | F80: 5.75 | G80: 4.62 | H80: 4.2 | I80: 5.93
A81: 6 | B81: 202502 | E81: 6.45 | F81: 5.8 | G81: 4.69 | H81: 4.27 | I81: 5.98
A82: 7 | B82: 202502 | E82: 6.45 | F82: 5.8 | G82: 4.75 | H82: 4.35 | I82: 6.03
A83: 8 | B83: 202502 | E83: 6.45 | F83: 5.85 | G83: 4.8 | H83: 4.45 | I83: 6.08
A84: 9 | B84: 202502 | E84: 6.5 | F84: 5.9 | G84: 4.9 | H84: 4.55 | I84: 6.15
A85: 10 | B85: 202503 | E85: 6.5 | F85: 5.9 | G85: 4.97 | H85: 4.6 | I85: 6.15
A86: 11 | B86: 202503 | E86: 6.55 | F86: 5.95 | G86: 5.05 | H86: 4.7 | I86: 6.12
A87: 12 | B87: 202503 | E87: 6.55 | F87: 5.95 | G87: 5.1 | H87: 4.8 | I87: 6.11
A88: 13 | B88: 202503 | E88: 6.55 | F88: 5.95 | G88: 5.15 | H88: 4.85 | I88: 6.11
A89: 14 | B89: 202504 | E89: 6.55 | F89: 6 | G89: 5.25 | H89: 4.95 | I89: 6.11
A90: 15 | B90: 202504 | E90: 6.6 | F90: 6.05 | G90: 5.3 | H90: 5 | I90: 6.2
A91: 16 | B91: 202504 | E91: 6.6 | F91: 6.05 | G91: 5.4 | H91: 5.15 | I91: 6.2
A92: 17 | B92: 202504 | E92: 6.6 | F92: 6.1 | G92: 5.45 | H92: 5.25 | I92: 6.25
A93: 18 | B93: 202505 | E93: 6.65 | F93: 6.1 | G93: 5.55 | H93: 5.35 | I93: 6.28
A94: 19 | B94: 202505 | E94: 6.7 | F94: 6.15 | G94: 5.65 | H94: 5.45 | I94: 6.3
A95: 20 | B95: 202505 | E95: 6.7 | F95: 6.2 | G95: 5.7 | H95: 5.55 | I95: 6.35
A96: 21 | B96: 202505 | E96: 6.7 | F96: 6.25 | G96: 5.7 | H96: 5.55 | I96: 6.35
A97: 22 | B97: 202505 | E97: 6.7 | F97: 6.3 | G97: 5.7 | H97: 5.55 | I97: 6.35
A98: 23 | B98: 202506 | E98: 6.75 | F98: 6.4 | G98: 5.8 | H98: 5.65 | I98: 6.4
A99: 24 | B99: 202506 | E99: 6.75 | F99: 6.4 | G99: 5.8 | H99: 5.65 | I99: 6.4
A100: 25 | B100: 202506 | E100: 6.9 | F100: 6.5 | G100: 5.85 | H100: 5.65 | I100: 6.4
A101: 26 | B101: 202506 | E101: 6.9 | F101: 6.5 | G101: 5.85 | H101: 5.65 | I101: 6.4
A102: 27 | B102: 202507 | E102: 6.9 | F102: 6.5 | G102: 5.85 | H102: 5.65 | I102: 6.4
A103: 28 | B103: 202507 | E103: 6.9 | F103: 6.5 | G103: 5.85 | H103: 5.65 | I103: 6.4
A104: 29 | B104: 202507 | E104: 6.9 | F104: 6.5 | G104: 5.85 | H104: 5.65 | I104: 6.4
A105: 30 | B105: 202507 | E105: 6.9 | F105: 6.5 | G105: 5.85 | H105: 5.63 | I105: 6.4
A106: 31 | B106: 202507 | E106: 6.9 | F106: 6.5 | G106: 5.85 | H106: 5.63 | I106: 6.4
A107: 32 | B107: 202508 | E107: 6.9 | F107: 6.55 | G107: 5.9 | H107: 5.68 | I107: 6.4
A108: 33 | B108: 202508 | E108: 6.9 | F108: 6.55 | G108: 5.93 | H108: 5.7 | I108: 6.45
A109: 34 | B109: 202508 | E109: 7.1 | F109: 6.75 | G109: 6.15 | H109: 5.9 | I109: 6.55
A110: 35 | B110: 202508 | E110: 7.2 | F110: 6.85 | G110: 6.25 | H110: 6 | I110: 6.62
A111: 36 | B111: 202509 | E111: 7.25 | F111: 6.85 | G111: 6.25 | H111: 6 | I111: 6.65
A112: 37 | B112: 202509 | E112: 7.3 | F112: 6.9 | G112: 6.3 | H112: 6 | I112: 6.73
A113: 38 | B113: 202509 | E113: 7.35 | F113: 6.95 | G113: 6.3 | H113: 6.03 | I113: 6.83
A114: 39 | B114: 202509 | E114: 7.4 | F114: 7 | G114: 6.35 | H114: 6.1 | I114: 6.93
A115: 40 | B115: 202510 | E115: 7.5 | F115: 7.05 | G115: 6.4 | H115: 6.15 | I115: 7.03
A116: 41 | B116: 202510 | E116: 7.5 | F116: 7.1 | G116: 6.45 | H116: 6.2 | I116: 7.05
A117: 42 | B117: 202510 | E117: 7.6 | F117: 7.15 | G117: 6.5 | H117: 6.25 | I117: 7.05
A118: 43 | B118: 202510 | E118: 7.65 | F118: 7.25 | G118: 6.55 | H118: 6.35 | I118: 7.2
A119: 44 | B119: 202510 | K119: pas d'infos
A120: 45 | B120: 202511 | K120: pas d'infos
A121: 46 | B121: 202511 | K121: pas d'infos
A122: 47 | B122: 202511 | K122: pas d'infos
A123: 48 | B123: 202511
A124: 49 | B124: 202512
A125: 50 | B125: 202512
A126: 51 | B126: 202512
A127: 52 | B127: 202512

Sheet GrosBovins2024
A1: COTATIONS DES GROS BOVINS
A2: Source : DRAAF Pays de la Loire - SRISE - FranceAgriMer
A5: 1 – COTATION REGIONALE GRAND OUEST ENTREE ABATTOIR en €/Kg net
A7: 2 – MOYENNE NATIONALE DES BOVINS MAIGRES DESTINES A L'ENGRAISSEMENT CHAROLAIS MALE de 6-12 mois catégorie U (350kg) en €/kg vif
A9: 3 – COTATION DES GROS BOVINS VIFS SUR LE MARCHE DE CHOLET (en Euro/Kg Net) – à partir de la ligne 72
C11: =P11 -> Mis à jour : 30/12/2024 | P11: Mis à jour : 30/12/2024
C12: 1 – COTATION REGIONALE ENTREE ABATTOIR GRAND OUEST FRANCEAGRIMER-HEBDOMADAIRE (€/Kg net) | P12: 2 – COT. HEBDO
P13: MAIGRE €/kg vif
A14: Année | B14: Sem. | C14: JEUNES BOVINS | F14: BOEUFS | G14: VACHES | L14: GENISSES | P14: Ref. nationale | Q14: Sem. | R14: Nantes | S14: Vache Viande R | V14: Vache lait P
C15: VIANDE | E15: MIXTE | F15: MIXTE | G15: VIANDE | I15: Blonde | J15: MIXTE | K15: LAIT | L15: VIANDES + 350kg | P15: Charolais Mâles | R15: Charolais Mâles | S15: Evolution/semaine -1 | T15: ="Evolution/ semaine id " & A17-1 -> Evolution/ semaine id 2023 | U15: Evolution/semaine id moy. 5 ans | V15: Evolution/semaine -1 | W15: ="Evolution/ semaine id " & A17-1 -> Evolution/ semaine id 2023 | X15: Evolution/semaine id moy. 5 ans
C16: U | D16: R | E16: O | F16: O | G16: U | H16: R | I16: U | J16: O | K16: P | L16: U | M16: R | P16: 6/12 mois ( U ) 350 kg | R16: 6/12 mois ( U ) 350 kg
A17: 2024 | B17: 1 | C17: 5.45 | D17: 5.28 | F17: 4.6 | H17: 5.44 | I17: 6.39 | J17: 4.44 | K17: 3.93 | L17: 6.13 | M17: 5.43 | P17: 3.32 | Q17: 1 | R17: 3.25 | T17: =(H17-GrosBovins2023!H18)/GrosBovins2023!H18 -> 0.001841620626 | U17: =(H17-MoyQuinqHebdoGB!AL5)/MoyQuinqHebdoGB!AL5 -> 0.183637946 | W17: =(K17-GrosBovins2023!K17)/GrosBovins2023!K17 -> -0.1437908497 | X17: =(K17-MoyQuinqHebdoGB!BD5)/MoyQuinqHebdoGB!BD5 -> 0.1358381503
B18: 2 | C18: 5.47 | D18: 5.31 | E18: 4.85 | F18: 4.59 | H18: 5.46 | I18: 6.36 | J18: 4.49 | K18: 3.97 | L18: 6.21 | M18: 5.43 | P18: 3.32 | Q18: 2 | R18: 3.25 | S18: =(H18-H17)/H17 -> 0.003676470588 | T18: =(H18-GrosBovins2023!H19)/GrosBovins2023!H19 -> 0.005524861878 | U18: =(H18-MoyQuinqHebdoGB!AL6)/MoyQuinqHebdoGB!AL6 -> 0.18386817 | V18: =(K18-K17)/K17 -> 0.01017811705 | W18: =(K18-GrosBovins2023!K18)/GrosBovins2023!K18 -> -0.1369565217 | X18: =(K18-MoyQuinqHebdoGB!BD6)/MoyQuinqHebdoGB!BD6 -> 0.1388410786
B19: 3 | C19: 5.49 | D19: 5.32 | E19: 4.88 | F19: 4.66 | G19: 5.88 | H19: 5.46 | I19: 6.43 | J19: 4.5 | K19: 4 | L19: 6.16 | M19: 5.45 | P19: 3.39 | Q19: 3 | R19: 3.3 | S19: =(H19-H18)/H18 -> 0 | T19: =(H19-GrosBovins2023!H20)/GrosBovins2023!H20 -> 0.007380073801 | U19: =(H19-MoyQuinqHebdoGB!AL7)/MoyQuinqHebdoGB!AL7 -> 0.1833550065 | V19: =(K19-K18)/K18 -> 0.007556675063 | W19: =(K19-GrosBovins2023!K19)/GrosBovins2023!K19 -> -0.1323210412 | X19: =(K19-MoyQuinqHebdoGB!BD7)/MoyQuinqHebdoGB!BD7 -> 0.140901312
A20: J | B20: 4 | C20: 5.5 | D20: 5.35 | E20: 4.95 | F20: 4.7 | G20: 5.89 | H20: 5.47 | I20: 6.42 | J20: 4.53 | K20: 4.05 | L20: 6.17 | M20: 5.46 | P20: 3.4 | Q20: 4 | R20: 3.3 | S20: =(H20-H19)/H19 -> 0.001831501832 | T20: =(H20-GrosBovins2023!H21)/GrosBovins2023!H21 -> 0.009225092251 | U20: =(H20-MoyQuinqHebdoGB!AL8)/MoyQuinqHebdoGB!AL8 -> 0.1844954526 | V20: 0.0125 | W20: =(K20-GrosBovins2023!K20)/GrosBovins2023!K20 -> -0.1176470588 | X20: =(K20-MoyQuinqHebdoGB!BD8)/MoyQuinqHebdoGB!BD8 -> 0.149262202
B21: 5 | C21: 5.53 | D21: 5.38 | E21: 4.96 | F21: 4.64 | H21: 5.49 | I21: 6.46 | J21: 4.58 | K21: 4.09 | L21: 6.17 | M21: 5.45 | P21: 3.42 | Q21: 5 | R21: 3.35 | S21: 0.00365630713 | T21: =(H21-GrosBovins2023!H22)/GrosBovins2023!H22 -> 0.01291512915 | U21: =(H21-MoyQuinqHebdoGB!AL9)/MoyQuinqHebdoGB!AL9 -> 0.1831896552 | V21: 0.00987654321 | W21: =(K21-GrosBovins2023!K21)/GrosBovins2023!K21 -> -0.1030701754 | X21: =(K21-MoyQuinqHebdoGB!BD9)/MoyQuinqHebdoGB!BD9 -> 0.1540632054
B22: 6 | C22: 5.56 | D22: 5.4 | F22: 4.73 | H22: 5.51 | I22: 6.5 | J22: 4.61 | K22: 4.13 | L22: 6.23 | M22: 5.49 | P22: 3.45 | Q22: 6 | R22: 3.4 | S22: 0.00364298725 | T22: =(H22-GrosBovins2023!H23)/GrosBovins2023!H23 -> 0.01660516605 | U22: =(H22-MoyQuinqHebdoGB!AL10)/MoyQuinqHebdoGB!AL10 -> 0.183419244 | V22: 0.0097799511 | W22: =(K22-GrosBovins2023!K22)/GrosBovins2023!K22 -> -0.09429824561 | X22: =(K22-MoyQuinqHebdoGB!BD10)/MoyQuinqHebdoGB!BD10 -> 0.1568627451
B23: 7 | C23: 5.57 | D23: 5.42 | F23: 4.7 | H23: 5.5 | I23: 6.47 | J23: 4.62 | K23: 4.16 | L23: 6.2 | M23: 5.48 | P23: 3.49 | Q23: 7 | R23: 3.45 | S23: -0.001814882033 | T23: =(H23-GrosBovins2023!H24)/GrosBovins2023!H24 -> 0.01102941176 | U23: =(H23-MoyQuinqHebdoGB!AL11)/MoyQuinqHebdoGB!AL11 -> 0.179245283 | V23: 0.007263922518 | W23: =(K23-GrosBovins2023!K23)/GrosBovins2023!K23 -> -0.09565217391 | X23: =(K23-MoyQuinqHebdoGB!BD11)/MoyQuinqHebdoGB!BD11 -> 0.1504424779
B24: 8 | C24: 5.58 | D24: 5.44 | E24: 4.99 | F24: 4.74 | G24: 5.91 | H24: 5.49 | I24: 6.46 | J24: 4.62 | K24: 4.16 | L24: 6.16 | M24: 5.48 | P24: 3.53 | Q24: 8 | R24: 3.5 | S24: -0.001818181818 | T24: =(H24-GrosBovins2023!H25)/GrosBovins2023!H25 -> 0.005494505495 | U24: =(H24-MoyQuinqHebdoGB!AL12)/MoyQuinqHebdoGB!AL12 -> 0.1690800681 | V24: 0 | W24: =(K24-GrosBovins2023!K24)/GrosBovins2023!K24 -> -0.1034482759 | X24: =(K24-MoyQuinqHebdoGB!BD12)/MoyQuinqHebdoGB!BD12 -> 0.1335149864
A25: F | B25: 9 | C25: 5.58 | D25: 5.43 | F25: 4.74 | H25: 5.46 | I25: 6.51 | J25: 4.66 | K25: 4.16 | L25: 6.19 | M25: 5.48 | P25: 3.57 | Q25: 9 | R25: 3.55 | S25: -0.005464480874 | T25: =(H25-GrosBovins2023!H26)/GrosBovins2023!H26 -> -0.003649635036 | U25: =(H25-MoyQuinqHebdoGB!AL13)/MoyQuinqHebdoGB!AL13 -> 0.1587436333 | V25: 0 | W25: =(K25-GrosBovins2023!K25)/GrosBovins2023!K25 -> -0.1130063966 | X25: =(K25-MoyQuinqHebdoGB!BD13)/MoyQuinqHebdoGB!BD13 -> 0.1218985976
B26: 10 | C26: 5.58 | D26: 5.43 | F26: 4.73 | G26: 5.94 | H26: 5.49 | I26: 6.47 | J26: 4.64 | K26: 4.16 | L26: 6.22 | M26: 5.48 | P26: 3.59 | Q26: 10 | R26: 3.6 | S26: 0.005494505495 | T26: =(H26-GrosBovins2023!H27)/GrosBovins2023!H27 -> -0.005434782609 | U26: =(H26-MoyQuinqHebdoGB!AL14)/MoyQuinqHebdoGB!AL14 -> 0.1587167581 | V26: 0 | W26: =(K26-GrosBovins2023!K26)/GrosBovins2023!K26 -> -0.1242105263 | X26: =(K26-MoyQuinqHebdoGB!BD14)/MoyQuinqHebdoGB!BD14 -> 0.1111111111
B27: 11 | C27: 5.57 | D27: 5.4 | E27: 5.01 | F27: 4.75 | G27: 5.97 | H27: 5.48 | I27: 6.48 | J27: 4.63 | K27: 4.18 | L27: 6.27 | M27: 5.48 | P27: 3.61 | Q27: 11 | R27: 3.6 | S27: -0.001821493625 | T27: =(H27-GrosBovins2023!H28)/GrosBovins2023!H28 -> -0.00904159132 | U27: =(H27-MoyQuinqHebdoGB!AL15)/MoyQuinqHebdoGB!AL15 -> 0.1522287637 | V27: 0.004807692308 | W27: =(K27-GrosBovins2023!K27)/GrosBovins2023!K27 -> -0.1291666667 | X27: =(K27-MoyQuinqHebdoGB!BD15)/MoyQuinqHebdoGB!BD15 -> 0.1075781664
B28: 12 | C28: 5.55 | D28: 5.39 | F28: 4.76 | H28: 5.48 | I28: 6.54 | J28: 4.64 | K28: 4.17 | L28: 6.46 | M28: 5.46 | P28: 3.65 | Q28: 12 | R28: 3.65 | S28: 0 | T28: =(H28-GrosBovins2023!H29)/GrosBovins2023!H29 -> -0.003636363636 | U28: =(H28-MoyQuinqHebdoGB!AL16)/MoyQuinqHebdoGB!AL16 -> 0.1488469602 | V28: -0.002392344498 | W28: =(K28-GrosBovins2023!K28)/GrosBovins2023!K28 -> -0.1348547718 | X28: =(K28-MoyQuinqHebdoGB!BD16)/MoyQuinqHebdoGB!BD16 -> 0.1002638522
A29: M | B29: 13 | C29: 5.54 | D29: 5.36 | F29: 4.78 | H29: 5.48 | I29: 6.5 | J29: 4.66 | K29: 4.18 | L29: 6.25 | M29: 5.46 | P29: 3.65 | Q29: 13 | R29: 3.65 | S29: 0 | T29: =(H29-GrosBovins2023!H30)/GrosBovins2023!H30 -> -0.005444646098 | U29: =(H29-MoyQuinqHebdoGB!AL17)/MoyQuinqHebdoGB!AL17 -> 0.1507769845 | V29: 0.002398081535 | W29: =(K29-GrosBovins2023!K29)/GrosBovins2023!K29 -> -0.130977131 | X29: =(K29-MoyQuinqHebdoGB!BD17)/MoyQuinqHebdoGB!BD17 -> 0.09884332282
B30: 14 | C30: 5.5 | D30: 5.33 | E30: 4.9 | F30: 4.79 | H30: 5.49 | I30: 6.47 | J30: 4.66 | K30: 4.18 | L30: 6.23 | M30: 5.43 | P30: 3.67 | Q30: 14 | R30: 3.7 | S30: 0.001824817518 | T30: =(H30-GrosBovins2023!H31)/GrosBovins2023!H31 -> 0.01104972376 | U30: =(H30-MoyQuinqHebdoGB!AL18)/MoyQuinqHebdoGB!AL18 -> 0.1514261745 | V30: 0 | W30: =(K30-GrosBovins2023!K30)/GrosBovins2023!K30 -> -0.1255230126 | X30: =(K30-MoyQuinqHebdoGB!BD18)/MoyQuinqHebdoGB!BD18 -> 0.09826589595
B31: 15 | C31: 5.47 | D31: 5.28 | F31: 4.77 | H31: 5.48 | I31: 6.5 | J31: 4.66 | K31: 4.19 | L31: 6.18 | M31: 5.48 | P31: 3.69 | Q31: 15 | R31: 3.7 | S31: -0.001821493625 | T31: =(H31-GrosBovins2023!H32)/GrosBovins2023!H32 -> 0.005504587156 | U31: =(H31-MoyQuinqHebdoGB!AL19)/MoyQuinqHebdoGB!AL19 -> 0.1517444304 | V31: =(K31-K30)/K30 -> 0.002392344498 | W31: =(K31-GrosBovins2023!K31)/GrosBovins2023!K31 -> -0.1141649049 | X31: =(K31-MoyQuinqHebdoGB!BD19)/MoyQuinqHebdoGB!BD19 -> 0.1014721346
B32: 16 | C32: 5.43 | D32: 5.25 | F32: 4.74 | G32: 5.93 | H32: 5.5 | I32: 6.58 | J32: 4.67 | K32: 4.2 | L32: 6.17 | M32: 5.44 | P32: 3.74 | Q32: 16 | R32: 3.75 | S32: 0.003649635036 | T32: =(H32-GrosBovins2023!H33)/GrosBovins2023!H33 -> 0.01102941176 | U32: =(H32-MoyQuinqHebdoGB!AL20)/MoyQuinqHebdoGB!AL20 -> 0.1525565801 | V32: =(K32-K31)/K31 -> 0.002386634845 | W32: =(K32-GrosBovins2023!K32)/GrosBovins2023!K32 -> -0.1063829787 | X32: =(K32-MoyQuinqHebdoGB!BD20)/MoyQuinqHebdoGB!BD20 -> 0.1012060829
A33: A | B33: 17 | C33: 5.4 | D33: 5.22 | F33: 4.81 | H33: 5.49 | I33: 6.51 | J33: 4.69 | K33: 4.22 | L33: 6.25 | M33: 5.45 | P33: 3.76 | Q33: 17 | R33: 3.75 | S33: -0.001818181818 | T33: =(H33-GrosBovins2023!H34)/GrosBovins2023!H34 -> 0.009191176471 | U33: =(H33-MoyQuinqHebdoGB!AL21)/MoyQuinqHebdoGB!AL21 -> 0.1494974874 | V33: 0.004761904762 | W33: =(K33-GrosBovins2023!K33)/GrosBovins2023!K33 -> -0.09635974304 | X33: =(K33-MoyQuinqHebdoGB!BD21)/MoyQuinqHebdoGB!BD21 -> 0.1001042753
B34: 18 | C34: 5.37 | D34: 5.21 | E34: 4.82 | F34: 4.81 | H34: 5.5 | I34: 6.58 | J34: 4.72 | K34: 4.25 | L34: 6.26 | M34: 5.5 | P34: 3.78 | Q34: 18 | R34: 3.75 | S34: 0.001821493625 | T34: =(H34-GrosBovins2023!H35)/GrosBovins2023!H35 -> 0.01102941176 | U34: =(H34-MoyQuinqHebdoGB!AL22)/MoyQuinqHebdoGB!AL22 -> 0.1472674176 | V34: 0.007109004739 | W34: =(K34-GrosBovins2023!K34)/GrosBovins2023!K34 -> -0.08405172414 | X34: =(K34-MoyQuinqHebdoGB!BD22)/MoyQuinqHebdoGB!BD22 -> 0.09932747025
B35: 19 | C35: 5.35 | D35: 5.2 | F35: 4.84 | H35: 5.52 | I35: 6.56 | J35: 4.77 | K35: 4.29 | L35: 6.28 | M35: 5.5 | P35: 3.78 | Q35: 19 | R35: 3.75 | S35: 0.003636363636 | T35: =(H35-GrosBovins2023!H36)/GrosBovins2023!H36 -> 0.0128440367 | U35: =(H35-MoyQuinqHebdoGB!AL23)/MoyQuinqHebdoGB!AL23 -> 0.1495210329 | V35: 0.009411764706 | W35: =(K35-GrosBovins2023!K35)/GrosBovins2023!K35 -> -0.0694143167 | X35: =(K35-MoyQuinqHebdoGB!BD23)/MoyQuinqHebdoGB!BD23 -> 0.1045314109
B36: 20 | C36: 5.36 | D36: 5.2 | F36: 4.8 | H36: 5.5 | I36: 6.57 | J36: 4.76 | K36: 4.33 | L36: 6.3 | M36: 5.49 | P36: 3.78 | Q36: 20 | R36: 3.75 | S36: -0.003623188406 | T36: =(H36-GrosBovins2023!H37)/GrosBovins2023!H37 -> 0.009174311927 | U36: =(H36-MoyQuinqHebdoGB!AL24)/MoyQuinqHebdoGB!AL24 -> 0.1420265781 | V36: 0.009324009324 | W36: =(K36-GrosBovins2023!K36)/GrosBovins2023!K36 -> -0.06277056277 | X36: =(K36-MoyQuinqHebdoGB!BD24)/MoyQuinqHebdoGB!BD24 -> 0.1057201226
B37: 21 | C37: 5.36 | D37: 5.21 | F37: 4.84 | G37: 5.88 | H37: 5.51 | I37: 6.52 | J37: 4.76 | K37: 4.33 | L37: 6.26 | M37: 5.5 | P37: 3.84 | Q37: 21 | R37: 3.75 | S37: 0.001818181818 | T37: =(H37-GrosBovins2023!H38)/GrosBovins2023!H38 -> 0.00731261426 | U37: =(H37-MoyQuinqHebdoGB!AL25)/MoyQuinqHebdoGB!AL25 -> 0.1412593206 | V37: 0 | W37: =(K37-GrosBovins2023!K37)/GrosBovins2023!K37 -> -0.06479481641 | X37: =(K37-MoyQuinqHebdoGB!BD25)/MoyQuinqHebdoGB!BD25 -> 0.1012207528
A38: M | B38: 22 | C38: 5.37 | D38: 5.2 | F38: 4.86 | H38: 5.51 | I38: 6.55 | J38: 4.78 | K38: 4.35 | L38: 6.18 | M38: 5.5 | P38: 3.87 | Q38: 22 | R38: 3.75 | S38: 0 | T38: =(H38-GrosBovins2023!H39)/GrosBovins2023!H39 -> 0.00364298725 | U38: =(H38-MoyQuinqHebdoGB!AL26)/MoyQuinqHebdoGB!AL26 -> 0.1370202229 | V38: 0.004618937644 | W38: =(K38-GrosBovins2023!K38)/GrosBovins2023!K38 -> -0.06852248394 | X38: =(K38-MoyQuinqHebdoGB!BD26)/MoyQuinqHebdoGB!BD26 -> 0.09848484848
B39: 23 | C39: 5.37 | D39: 5.22 | F39: 4.86 | H39: 5.52 | I39: 6.49 | J39: 4.8 | K39: 4.36 | L39: 6.28 | M39: 5.51 | P39: 3.88 | Q39: 23 | R39: 3.75 | S39: 0.001814882033 | T39: =(H39-GrosBovins2023!H40)/GrosBovins2023!H40 -> 0.003636363636 | U39: =(H39-MoyQuinqHebdoGB!AL27)/MoyQuinqHebdoGB!AL27 -> 0.1330049261 | V39: 0.002298850575 | W39: =(K39-GrosBovins2023!K39)/GrosBovins2023!K39 -> -0.07430997877 | X39: =(K39-MoyQuinqHebdoGB!BD27)/MoyQuinqHebdoGB!BD27 -> 0.09602815485
B40: 24 | C40: 5.38 | D40: 5.24 | F40: 4.86 | G40: 5.89 | H40: 5.51 | I40: 6.56 | J40: 4.8 | K40: 4.38 | L40: 6.26 | M40: 5.51 | P40: 3.9 | Q40: 24 | R40: 3.75 | S40: -0.001811594203 | T40: =(H40-GrosBovins2023!H41)/GrosBovins2023!H41 -> 0.005474452555 | U40: =(H40-MoyQuinqHebdoGB!AL28)/MoyQuinqHebdoGB!AL28 -> 0.1267893661 | V40: 0.004587155963 | W40: =(K40-GrosBovins2023!K40)/GrosBovins2023!K40 -> -0.07006369427 | X40: =(K40-MoyQuinqHebdoGB!BD28)/MoyQuinqHebdoGB!BD28 -> 0.0977443609
B41: 25 | C41: 5.38 | D41: 5.24 | F41: 4.91 | H41: 5.5 | I41: 6.51 | J41: 4.8 | K41: 4.39 | L41: 6.29 | M41: 5.47 | P41: 3.92 | Q41: 25 | R41: 3.75 | S41: -0.001814882033 | T41: =(H41-GrosBovins2023!H42)/GrosBovins2023!H42 -> 0.003649635036 | U41: =(H41-MoyQuinqHebdoGB!AL29)/MoyQuinqHebdoGB!AL29 -> 0.1270491803 | V41: 0.002283105023 | W41: =(K41-GrosBovins2023!K41)/GrosBovins2023!K41 -> -0.06595744681 | X41: =(K41-MoyQuinqHebdoGB!BD29)/MoyQuinqHebdoGB!BD29 -> 0.0996993988
A42: J | B42: 26 | C42: 5.38 | D42: 5.23 | F42: 4.89 | H42: 5.52 | I42: 6.5 | J42: 4.81 | K42: 4.39 | L42: 6.22 | M42: 5.49 | P42: 3.89 | Q42: 26 | R42: 3.72 | S42: 0.003636363636 | T42: =(H42-GrosBovins2023!H43)/GrosBovins2023!H43 -> 0.01098901099 | U42: =(H42-MoyQuinqHebdoGB!AL30)/MoyQuinqHebdoGB!AL30 -> 0.1269906084 | V42: 0 | W42: =(K42-GrosBovins2023!K42)/GrosBovins2023!K42 -> -0.05793991416 | X42: =(K42-MoyQuinqHebdoGB!BD30)/MoyQuinqHebdoGB!BD30 -> 0.1008024072
B43: 27 | C43: 5.36 | D43: 5.25 | F43: 4.9 | H43: 5.51 | I43: 6.58 | J43: 4.81 | K43: 4.39 | L43: 6.2 | M43: 5.49 | P43: 3.85 | Q43: 27 | R43: 3.72 | S43: -0.001811594203 | T43: =(H43-GrosBovins2023!H44)/GrosBovins2023!H44 -> 0.01286764706 | U43: =(H43-MoyQuinqHebdoGB!AL31)/MoyQuinqHebdoGB!AL31 -> 0.1267893661 | V43: 0 | W43: =(K43-GrosBovins2023!K43)/GrosBovins2023!K43 -> -0.04978354978 | X43: =(K43-MoyQuinqHebdoGB!BD31)/MoyQuinqHebdoGB!BD31 -> 0.1030150754
B44: 28 | C44: 5.34 | D44: 5.2 | E44: 4.88 | F44: 4.88 | G44: 5.88 | H44: 5.51 | I44: 6.59 | J44: 4.82 | K44: 4.4 | L44: 6.23 | M44: 5.46 | P44: 3.82 | Q44: 28 | R44: 3.72 | S44: 0 | T44: =(H44-GrosBovins2023!H45)/GrosBovins2023!H45 -> 0.01286764706 | U44: =(H44-MoyQuinqHebdoGB!AL32)/MoyQuinqHebdoGB!AL32 -> 0.1277118297 | V44: 0.002277904328 | W44: =(K44-GrosBovins2023!K44)/GrosBovins2023!K44 -> -0.03719912473 | X44: =(K44-MoyQuinqHebdoGB!BD32)/MoyQuinqHebdoGB!BD32 -> 0.106639839
B45: 29 | C45: 5.32 | D45: 5.18 | F45: 4.9 | H45: 5.5 | I45: 6.55 | J45: 4.82 | K45: 4.4 | L45: 6.27 | M45: 5.49 | P45: 3.83 | Q45: 29 | R45: 3.75 | S45: -0.001814882033 | T45: =(H45-GrosBovins2023!H46)/GrosBovins2023!H46 -> 0.0147601476 | U45: =(H45-MoyQuinqHebdoGB!AL33)/MoyQuinqHebdoGB!AL33 -> 0.1242845462 | V45: 0 | W45: =(K45-GrosBovins2023!K45)/GrosBovins2023!K45 -> -0.02869757174 | X45: =(K45-MoyQuinqHebdoGB!BD33)/MoyQuinqHebdoGB!BD33 -> 0.106083459
A46: J | B46: 30 | C46: 5.31 | D46: 5.18 | E46: 4.88 | F46: 4.93 | H46: 5.52 | I46: 6.61 | J46: 4.83 | K46: 4.42 | L46: 6.34 | M46: 5.48 | P46: 3.83 | Q46: 30 | R46: 3.75 | S46: 0.003636363636 | T46: =(H46-GrosBovins2023!H47)/GrosBovins2023!H47 -> 0.01470588235 | U46: =(H46-MoyQuinqHebdoGB!AL34)/MoyQuinqHebdoGB!AL34 -> 0.1297584937 | V46: 0.004545454545 | W46: =(K46-GrosBovins2023!K46)/GrosBovins2023!K46 -> -0.01777777778 | X46: =(K46-MoyQuinqHebdoGB!BD34)/MoyQuinqHebdoGB!BD34 -> 0.1122294917
B47: 31 | C47: 5.31 | D47: 5.19 | E47: 4.88 | F47: 4.92 | H47: 5.53 | I47: 6.5 | J47: 4.84 | K47: 4.43 | M47: 5.51 | P47: 3.83 | Q47: 31 | R47: 3.75 | S47: 0.001811594203 | T47: =(H47-GrosBovins2023!H48)/GrosBovins2023!H48 -> 0.01467889908 | U47: =(H47-MoyQuinqHebdoGB!AL35)/MoyQuinqHebdoGB!AL35 -> 0.1336613366 | V47: 0.002262443439 | W47: =(K47-GrosBovins2023!K47)/GrosBovins2023!K47 -> -0.01116071429 | X47: =(K47-MoyQuinqHebdoGB!BD35)/MoyQuinqHebdoGB!BD35 -> 0.114745848
B48: 32 | C48: 5.33 | D48: 5.23 | E48: 4.91 | F48: 4.94 | H48: 5.56 | I48: 6.55 | J48: 4.86 | K48: 4.46 | L48: 6.29 | M48: 5.52 | P48: 3.83 | Q48: 32 | R48: 3.75 | S48: 0.005424954792 | T48: =(H48-GrosBovins2023!H49)/GrosBovins2023!H49 -> 0.01831501832 | U48: =(H48-MoyQuinqHebdoGB!AL36)/MoyQuinqHebdoGB!AL36 -> 0.1337683524 | V48: 0.006772009029 | W48: =(K48-GrosBovins2023!K48)/GrosBovins2023!K48 -> -0.006681514477 | X48: =(K48-MoyQuinqHebdoGB!BD36)/MoyQuinqHebdoGB!BD36 -> 0.1189162067
B49: 33 | C49: 5.37 | D49: 5.26 | F49: 4.97 | H49: 5.6 | I49: 6.53 | J49: 4.9 | K49: 4.5 | L49: 6.33 | M49: 5.54 | P49: 3.83 | Q49: 33 | R49: 3.75 | S49: 0.007194244604 | T49: =(H49-GrosBovins2023!H50)/GrosBovins2023!H50 -> 0.01449275362 | U49: =(H49-MoyQuinqHebdoGB!AL37)/MoyQuinqHebdoGB!AL37 -> 0.1382113821 | V49: 0.008968609865 | W49: =(K49-GrosBovins2023!K49)/GrosBovins2023!K49 -> -0.008810572687 | X49: =(K49-MoyQuinqHebdoGB!BD37)/MoyQuinqHebdoGB!BD37 -> 0.1221945137
B50: 34 | C50: 5.41 | D50: 5.27 | E50: 4.94 | F50: 4.99 | H50: 5.6 | I50: 6.56 | J50: 4.92 | K50: 4.55 | L50: 6.29 | M50: 5.58 | P50: 3.82 | Q50: 34 | R50: 3.75 | S50: 0 | T50: =(H50-GrosBovins2023!H51)/GrosBovins2023!H51 -> 0.007194244604 | U50: =(H50-MoyQuinqHebdoGB!AL38)/MoyQuinqHebdoGB!AL38 -> 0.1345218801 | V50: 0.01111111111 | W50: =(K50-GrosBovins2023!K50)/GrosBovins2023!K50 -> -0.01086956522 | X50: =(K50-MoyQuinqHebdoGB!BD38)/MoyQuinqHebdoGB!BD38 -> 0.1273538157
A51: A | B51: 35 | C51: 5.42 | D51: 5.29 | E51: 4.96 | F51: 5 | H51: 5.61 | I51: 6.62 | J51: 4.94 | K51: 4.55 | L51: 6.29 | M51: 5.57 | P51: 3.83 | Q51: 35 | R51: 3.8 | S51: 0.001785714286 | T51: =(H51-GrosBovins2023!H52)/GrosBovins2023!H52 -> 0.005376344086 | U51: =(H51-MoyQuinqHebdoGB!AL39)/MoyQuinqHebdoGB!AL39 -> 0.131504639 | V51: 0 | W51: =(K51-GrosBovins2023!K51)/GrosBovins2023!K51 -> -0.02360515021 | X51: =(K51-MoyQuinqHebdoGB!BD39)/MoyQuinqHebdoGB!BD39 -> 0.1234567901
B52: 36 | C52: 5.44 | D52: 5.31 | E52: 4.96 | F52: 5 | H52: 5.61 | I52: 6.66 | J52: 4.94 | K52: 4.52 | L52: 6.29 | M52: 5.56 | P52: 3.83 | Q52: 36 | R52: 3.8 | S52: 0 | T52: =(H52-GrosBovins2023!H53)/GrosBovins2023!H53 -> 0.008992805755 | U52: =(H52-MoyQuinqHebdoGB!AL40)/MoyQuinqHebdoGB!AL40 -> 0.1310483871 | V52: -0.006593406593 | W52: =(K52-GrosBovins2023!K52)/GrosBovins2023!K52 -> -0.03829787234 | X52: =(K52-MoyQuinqHebdoGB!BD40)/MoyQuinqHebdoGB!BD40 -> 0.1143984221
B53: 37 | C53: 5.45 | D53: 5.3 | E53: 4.96 | F53: 4.95 | H53: 5.57 | I53: 6.6 | J53: 4.87 | K53: 4.48 | L53: 6.29 | M53: 5.53 | P53: 3.87 | Q53: 37 | R53: 3.85 | S53: -0.007130124777 | T53: =(H53-GrosBovins2023!H54)/GrosBovins2023!H54 -> 0.003603603604 | U53: =(H53-MoyQuinqHebdoGB!AL41)/MoyQuinqHebdoGB!AL41 -> 0.1243439645 | V53: -0.008849557522 | W53: =(K53-GrosBovins2023!K53)/GrosBovins2023!K53 -> -0.04883227176 | X53: =(K53-MoyQuinqHebdoGB!BD41)/MoyQuinqHebdoGB!BD41 -> 0.1061728395
B54: 38 | C54: 5.46 | D54: 5.32 | F54: 4.93 | H54: 5.56 | I54: 6.61 | J54: 4.83 | K54: 4.42 | L54: 6.3 | M54: 5.54 | P54: 3.89 | Q54: 38 | R54: 3.85 | S54: -0.001795332136 | T54: =(H54-GrosBovins2023!H55)/GrosBovins2023!H55 -> 0.003610108303 | U54: =(H54-MoyQuinqHebdoGB!AL42)/MoyQuinqHebdoGB!AL42 -> 0.1232323232 | V54: -0.01339285714 | W54: =(K54-GrosBovins2023!K54)/GrosBovins2023!K54 -> -0.05353319058 | X54: =(K54-MoyQuinqHebdoGB!BD42)/MoyQuinqHebdoGB!BD42 -> 0.09514370664
A55: S | B55: 39 | C55: 5.47 | D55: 5.32 | E55: 4.94 | F55: 4.86 | H55: 5.57 | I55: 6.6 | J55: 4.78 | K55: 4.36 | L55: 6.26 | M55: 5.52 | P55: 3.91 | Q55: 39 | R55: 3.9 | S55: 0.001798561151 | T55: =(H55-GrosBovins2023!H56)/GrosBovins2023!H56 -> 0.001798561151 | U55: =(H55-MoyQuinqHebdoGB!AL43)/MoyQuinqHebdoGB!AL43 -> 0.1247980614 | V55: -0.01357466063 | W55: =(K55-GrosBovins2023!K55)/GrosBovins2023!K55 -> -0.0623655914 | X55: =(K55-MoyQuinqHebdoGB!BD43)/MoyQuinqHebdoGB!BD43 -> 0.08403779214
B56: 40 | C56: 5.51 | D56: 5.32 | E56: 4.91 | F56: 4.81 | H56: 5.57 | I56: 6.56 | J56: 4.74 | K56: 4.32 | L56: 6.29 | M56: 5.53 | P56: 3.96 | Q56: 40 | R56: 3.9 | S56: 0 | T56: =(H56-GrosBovins2023!H57)/GrosBovins2023!H57 -> 0.007233273056 | U56: =(H56-MoyQuinqHebdoGB!AL44)/MoyQuinqHebdoGB!AL44 -> 0.1220789686 | V56: -0.009174311927 | W56: =(K56-GrosBovins2023!K56)/GrosBovins2023!K56 -> -0.06086956522 | X56: =(K56-MoyQuinqHebdoGB!BD44)/MoyQuinqHebdoGB!BD44 -> 0.07946026987
B57: 41 | C57: 5.52 | D57: 5.36 | E57: 4.92 | F57: 4.76 | H57: 5.58 | I57: 6.58 | J57: 4.69 | K57: 4.27 | L57: 6.25 | M57: 5.51 | P57: 3.96 | Q57: 41 | R57: 3.9 | S57: 0.001795332136 | T57: =(H57-GrosBovins2023!H58)/GrosBovins2023!H58 -> 0.00904159132 | U57: =(H57-MoyQuinqHebdoGB!AL45)/MoyQuinqHebdoGB!AL45 -> 0.1245465538 | V57: -0.01157407407 | W57: =(K57-GrosBovins2023!K57)/GrosBovins2023!K57 -> -0.06153846154 | X57: =(K57-MoyQuinqHebdoGB!BD45)/MoyQuinqHebdoGB!BD45 -> 0.07178714859
B58: 42 | C58: 5.56 | D58: 5.39 | E58: 4.89 | F58: 4.71 | H58: 5.57 | I58: 6.65 | J58: 4.66 | K58: 4.22 | L58: 6.3 | M58: 5.52 | P58: 3.97 | Q58: 42 | R58: 3.9 | S58: -0.001792114695 | T58: =(H58-GrosBovins2023!H59)/GrosBovins2023!H59 -> 0.0108892922 | U58: =(H58-MoyQuinqHebdoGB!AL46)/MoyQuinqHebdoGB!AL46 -> 0.1207243461 | V58: -0.01170960187 | W58: =(K58-GrosBovins2023!K58)/GrosBovins2023!K58 -> -0.06430155211 | X58: =(K58-MoyQuinqHebdoGB!BD46)/MoyQuinqHebdoGB!BD46 -> 0.06297229219
B59: 43 | C59: 5.59 | D59: 5.42 | E59: 4.9 | F59: 4.75 | H59: 5.53 | I59: 6.62 | J59: 4.65 | K59: 4.18 | L59: 6.38 | M59: 5.49 | P59: 3.97 | Q59: 43 | R59: 3.9 | S59: -0.007181328546 | T59: =(H59-GrosBovins2023!H60)/GrosBovins2023!H60 -> 0.003629764065 | U59: =(H59-MoyQuinqHebdoGB!AL47)/MoyQuinqHebdoGB!AL47 -> 0.1149193548 | V59: -0.009478672986 | W59: =(K59-GrosBovins2023!K59)/GrosBovins2023!K59 -> -0.05855855856 | X59: =(K59-MoyQuinqHebdoGB!BD47)/MoyQuinqHebdoGB!BD47 -> 0.05930055753
A60: O | B60: 44 | C60: 5.63 | D60: 5.46 | E60: 4.98 | F60: 4.71 | H60: 5.53 | I60: 6.61 | J60: 4.62 | K60: 4.14 | L60: 6.37 | M60: 5.51 | P60: 3.97 | Q60: 44 | R60: 3.9 | S60: 0 | T60: =(H60-GrosBovins2023!H61)/GrosBovins2023!H61 -> 0.009124087591 | U60: =(H60-MoyQuinqHebdoGB!AL48)/MoyQuinqHebdoGB!AL48 -> 0.1144699718 | V60: -0.00956937799 | W60: =(K60-GrosBovins2023!K60)/GrosBovins2023!K60 -> -0.04827586207 | X60: =(K60-MoyQuinqHebdoGB!BD48)/MoyQuinqHebdoGB!BD48 -> 0.05720122574
B61: 45 | C61: 5.67 | D61: 5.51 | E61: 4.98 | F61: 4.69 | H61: 5.5 | I61: 6.63 | J61: 4.64 | K61: 4.15 | L61: 6.23 | M61: 5.5 | P61: 3.98 | Q61: 45 | R61: 3.9 | S61: -0.005424954792 | T61: =(H61-GrosBovins2023!H62)/GrosBovins2023!H62 -> 0.007326007326 | U61: =(H61-MoyQuinqHebdoGB!AL49)/MoyQuinqHebdoGB!AL49 -> 0.1102139685 | V61: 0.002415458937 | W61: =(K61-GrosBovins2023!K61)/GrosBovins2023!K61 -> -0.02582159624 | X61: =(K61-MoyQuinqHebdoGB!BD49)/MoyQuinqHebdoGB!BD49 -> 0.06683804627
B62: 46 | C62: 5.73 | D62: 5.58 | F62: 4.71 | H62: 5.57 | I62: 6.58 | J62: 4.64 | K62: 4.16 | L62: 6.43 | M62: 5.51 | P62: 4 | Q62: 46 | R62: 3.9 | S62: 0.01272727273 | T62: =(H62-GrosBovins2023!H63)/GrosBovins2023!H63 -> 0.02957486137 | U62: =(H62-MoyQuinqHebdoGB!AL50)/MoyQuinqHebdoGB!AL50 -> 0.1220789686 | V62: 0.002409638554 | W62: =(K62-GrosBovins2023!K62)/GrosBovins2023!K62 -> 0 | X62: =(K62-MoyQuinqHebdoGB!BD50)/MoyQuinqHebdoGB!BD50 -> 0.07883817427
B63: 47 | C63: 5.77 | D63: 5.62 | E63: 5.07 | F63: 4.75 | H63: 5.56 | I63: 6.61 | J63: 4.67 | K63: 4.19 | L63: 6.27 | M63: 5.55 | P63: 4.03 | Q63: 47 | R63: 3.9 | S63: -0.001795332136 | T63: =(H63-GrosBovins2023!H64)/GrosBovins2023!H64 -> 0.03345724907 | U63: =(H63-MoyQuinqHebdoGB!AL51)/MoyQuinqHebdoGB!AL51 -> 0.1236863379 | V63: 0.007211538462 | W63: =(K63-GrosBovins2023!K63)/GrosBovins2023!K63 -> 0.03201970443 | X63: =(K63-MoyQuinqHebdoGB!BD51)/MoyQuinqHebdoGB!BD51 -> 0.09342379958
A64: N | B64: 48 | C64: 5.83 | D64: 5.65 | F64: 4.74 | H64: 5.6 | I64: 6.6 | J64: 4.67 | K64: 4.2 | L64: 6.36 | M64: 5.56 | P64: 4.03 | Q64: 48 | R64: 3.9 | S64: 0.007194244604 | T64: =(H64-GrosBovins2023!H65)/GrosBovins2023!H65 -> 0.04089219331 | U64: =(H64-MoyQuinqHebdoGB!AL52)/MoyQuinqHebdoGB!AL52 -> 0.1290322581 | V64: 0.002386634845 | W64: =(K64-GrosBovins2023!K64)/GrosBovins2023!K64 -> 0.06329113924 | X64: =(K64-MoyQuinqHebdoGB!BD52)/MoyQuinqHebdoGB!BD52 -> 0.1052631579
B65: 49 | C65: 5.86 | D65: 5.69 | E65: 5.03 | F65: 4.77 | G65: 6.25 | H65: 5.57 | I65: 6.63 | J65: 4.69 | K65: 4.21 | L65: 6.32 | M65: 5.54 | P65: 4.03 | Q65: 49 | R65: 3.9 | S65: -0.005357142857 | T65: =(H65-GrosBovins2023!H66)/GrosBovins2023!H66 -> 0.03531598513 | U65: =(H65-MoyQuinqHebdoGB!AL53)/MoyQuinqHebdoGB!AL53 -> 0.1243439645 | V65: 0.002380952381 | W65: =(K65-GrosBovins2023!K65)/GrosBovins2023!K65 -> 0.08505154639 | X65: =(K65-MoyQuinqHebdoGB!BD53)/MoyQuinqHebdoGB!BD53 -> 0.1131676362
B66: 50 | C66: 5.87 | D66: 5.69 | E66: 5.14 | F66: 4.8 | G66: 6.65 | H66: 5.57 | I66: 6.74 | J66: 4.69 | K66: 4.21 | L66: 6.74 | M66: 5.55 | P66: 4.05 | Q66: 50 | R66: 3.9 | S66: 0 | T66: =(H66-GrosBovins2023!H67)/GrosBovins2023!H67 -> 0.03148148148 | U66: =(H66-MoyQuinqHebdoGB!AL54)/MoyQuinqHebdoGB!AL54 -> 0.150232318 | V66: 0 | W66: =(K66-GrosBovins2023!K66)/GrosBovins2023!K66 -> 0.09635416667 | X66: =(K66-MoyQuinqHebdoGB!BD54)/MoyQuinqHebdoGB!BD54 -> 0.1256684492
B67: 51 | C67: 5.88 | D67: 5.66 | E67: 5.1 | F67: 4.79 | H67: 5.57 | I67: 6.65 | J67: 4.68 | K67: 4.22 | L67: 6.41 | M67: 5.58 | P67: 4.05 | Q67: 51 | R67: 3.9 | S67: 0 | T67: =(H67-GrosBovins2023!H68)/GrosBovins2023!H68 -> 0.02578268877 | U67: =(H67-MoyQuinqHebdoGB!AL55)/MoyQuinqHebdoGB!AL55 -> 0.1490458999 | V67: 0.002375296912 | W67: =(K67-GrosBovins2023!K67)/GrosBovins2023!K67 -> 0.0961038961 | X67: =(K67-MoyQuinqHebdoGB!BD55)/MoyQuinqHebdoGB!BD55 -> 0.1306095111
A68: D | B68: 52 | C68: 5.88 | D68: 5.66 | H68: 5.59 | I68: 6.65 | J68: 4.7 | K68: 4.24 | L68: 6.29 | M68: 5.53 | P68: 4.05 | Q68: 52 | R68: 3.9 | S68: 0.003590664273 | T68: =(H68-GrosBovins2023!H69)/GrosBovins2023!H69 ->  | U68: =(H68-MoyQuinqHebdoGB!AL56)/MoyQuinqHebdoGB!AL56 -> 0.2108303249 | V68: 0.004739336493 | W68: =(K68-GrosBovins2023!K68)/GrosBovins2023!K68 -> 0.09560723514 | X68: =(K68-MoyQuinqHebdoGB!BD56)/MoyQuinqHebdoGB!BD56 -> 0.1821561338
A71: 3 – COTATION DES GROS BOVINS VIFS SUR LE MARCHE DE CHOLET (en Euro/Kg Net)
C73: GENISSES | E73: VACHES | I73: JEUNES BOVINS | J73: TAUREAUX
A74: semaines | B74: année+mois | C74: Viande, mixte, lait | D74: Viande, mixte, lait | E74: Blonde | F74: Blonde | G74: Mixte | H74: Lait | I74: Viande | J74: Viande, mixte, lait
A75: 2024 | C75: U | D75: R | E75: U | F75: R | G75: O | H75: P | I75: U | J75: URO
A76: 1 | B76: 202401 | E76: 6.1 | F76: 5.55 | G76: 4.05
A77: 2 | B77: 202401 | E77: 6.1 | F77: 5.55 | G77: 4.2 | H77: 3.75 | I77: 5.3
A78: 3 | B78: 202401 | E78: 6.1 | F78: 5.55 | G78: 4.25 | H78: 3.75 | I78: 5.34
A79: 4 | B79: 202401 | E79: 6.1 | F79: 5.55 | G79: 4.3 | H79: 3.8 | I79: 5.35
A80: 5 | B80: 202402 | E80: 6.1 | F80: 5.55 | G80: 4.3 | H80: 3.8 | I80: 5.35
A81: 6 | B81: 202402 | E81: 6.1 | F81: 5.55 | G81: 4.33 | H81: 3.85 | I81: 5.38
A82: 7 | B82: 202402 | E82: 6.1 | F82: 5.55 | G82: 4.33 | H82: 3.85 | I82: 5.38
A83: 8 | B83: 202402 | E83: 6.1 | F83: 5.55 | G83: 4.35 | H83: 3.9 | I83: 5.38
A84: 9 | B84: 202402 | E84: 6.1 | F84: 5.55 | G84: 4.35 | H84: 3.9 | I84: 5.38
A85: 10 | B85: 202403 | E85: 6.1 | F85: 5.55 | G85: 4.35 | H85: 3.9 | I85: 5.38
A86: 11 | B86: 202403 | E86: 6.1 | F86: 5.55 | G86: 4.35 | H86: 3.9 | I86: 5.38
A87: 12 | B87: 202403 | E87: 6.1 | F87: 5.55 | G87: 4.35 | H87: 3.9 | I87: 5.35
A88: 13 | B88: 202403 | E88: 6.1 | F88: 5.55 | G88: 4.35 | H88: 3.9 | I88: 5.32
A89: 14 | B89: 202404 | E89: 6.1 | F89: 5.55 | G89: 4.35 | H89: 3.9 | I89: 5.29
A90: 15 | B90: 202404 | E90: 6.1 | F90: 5.55 | G90: 4.35 | H90: 3.9 | I90: 5.26
A91: 16 | B91: 202404 | E91: 6.1 | F91: 5.55 | G91: 4.35 | H91: 3.9 | I91: 5.25
A92: 17 | B92: 202404 | E92: 6.1 | F92: 5.55 | G92: 4.35 | H92: 3.93 | I92: 5.22
A93: 18 | B93: 202405 | E93: 6.1 | F93: 5.55 | H93: 3.95 | I93: 5.2
A94: 19 | B94: 202405 | E94: 6.1 | F94: 5.6 | G94: 4.4 | H94: 4 | I94: 5.2
A95: 20 | B95: 202405 | E95: 6.15 | F95: 5.6 | G95: 4.45 | H95: 4.05 | I95: 5.2
A96: 21 | B96: 202405 | E96: 6.15 | F96: 5.6 | G96: 4.45 | H96: 4.05 | I96: 5.2
A97: 22 | B97: 202405 | E97: 6.15 | F97: 5.6 | G97: 4.45 | H97: 4.05 | I97: 5.2
A98: 23 | B98: 202406 | E98: 6.2 | F98: 5.6 | G98: 4.47 | H98: 4.1 | I98: 5.2
A99: 24 | B99: 202406 | E99: 6.2 | F99: 5.6 | G99: 4.5 | H99: 4.13 | I99: 5.2
A100: 25 | B100: 202406 | E100: 6.2 | F100: 5.6 | G100: 4.5 | H100: 4.15 | I100: 5.2
A101: 26 | B101: 202406 | E101: 6.2 | F101: 5.6 | G101: 4.5 | H101: 4.15 | I101: 5.2
A102: 27 | B102: 202407 | E102: 6.2 | F102: 5.6 | G102: 4.5 | H102: 4.15 | I102: 5.2
A103: 28 | B103: 202407 | E103: 6.2 | F103: 5.6 | G103: 4.5 | H103: 4.15 | I103: 5.17
A104: 29 | B104: 202407 | E104: 6.2 | F104: 5.6 | G104: 4.5 | H104: 4.15 | I104: 5.14
A105: 30 | B105: 202407 | E105: 6.2 | F105: 5.6 | G105: 4.5 | H105: 4.15 | I105: 5.14
A106: 31 | B106: 202408 | E106: 6.2 | F106: 5.6 | G106: 4.5 | H106: 4.15 | I106: 5.14
A107: 32 | B107: 202408 | E107: 6.2 | F107: 5.6 | G107: 4.55 | H107: 4.2 | I107: 5.17
A108: 33 | B108: 202408 | E108: 6.2 | F108: 5.6 | G108: 4.6 | H108: 4.25 | I108: 5.2
A109: 34 | B109: 202408 | E109: 6.2 | F109: 5.6 | G109: 4.65 | H109: 4.3 | I109: 5.25
A110: 35 | B110: 202408 | E110: 6.2 | F110: 5.6 | G110: 4.65 | H110: 4.3 | I110: 5.25
A111: 36 | B111: 202409 | E111: 6.25 | F111: 5.65 | G111: 4.63 | H111: 4.3 | I111: 5.28
A112: 37 | B112: 202409 | E112: 6.25 | F112: 5.65 | G112: 4.6 | H112: 4.25 | I112: 5.3
A113: 38 | B113: 202409 | E113: 6.25 | F113: 5.65 | G113: 4.55 | H113: 4.2 | I113: 5.3
A114: 39 | B114: 202409 | E114: 6.25 | F114: 5.65 | G114: 4.5 | H114: 4.15 | I114: 5.3
A115: 40 | B115: 202410 | E115: 6.25 | F115: 5.65 | G115: 4.49 | H115: 4.14 | I115: 5.3
A116: 41 | B116: 202410 | E116: 6.25 | F116: 5.65 | G116: 4.45 | H116: 4.1 | I116: 5.33
A117: 42 | B117: 202410 | E117: 6.25 | F117: 5.65 | G117: 4.43 | H117: 4.05 | I117: 5.37
A118: 43 | B118: 202410 | E118: 6.25 | F118: 5.65 | G118: 4.4 | H118: 4 | I118: 5.41
A119: 44 | B119: 202410 | E119: 6.25 | F119: 5.65 | G119: 4.38 | H119: 4 | I119: 5.46
A120: 45 | B120: 202411 | E120: 6.25 | F120: 5.65 | G120: 4.38 | H120: 3.97 | I120: 5.51
A121: 46 | B121: 202411 | E121: 6.25 | F121: 5.65 | G121: 4.38 | H121: 3.97 | I121: 5.56
A122: 47 | B122: 202411 | E122: 6.25 | F122: 5.65 | G122: 4.4 | H122: 4 | I122: 5.61
A123: 48 | B123: 202411 | E123: 6.25 | F123: 5.65 | G123: 4.4 | H123: 4 | I123: 5.66
A124: 49 | B124: 202412 | E124: 6.25 | F124: 5.65 | G124: 4.4 | H124: 4 | I124: 5.66
A125: 50 | B125: 202412 | E125: 6.25 | F125: 5.65 | G125: 4.4 | H125: 4 | I125: 5.66
A126: 51 | B126: 202412 | E126: 6.25 | F126: 5.65 | G126: 4.4 | H126: 4 | I126: 5.65
A127: 52 | B127: 202412 | E127: 6.25 | F127: 5.65 | G127: 4.4 | H127: 4 | I127: 5.65

Sheet GrosBovins2023
A1: COTATIONS DES GROS BOVINS
A2: Source : DRAAF Pays de la Loire - SRISE - FranceAgriMer
A5: 1 – COTATION REGIONALE GRAND OUEST ENTREE ABATTOIR en €/Kg net
A7: 2 – MOYENNE NATIONALE DES BOVINS MAIGRES DESTINES A L'ENGRAISSEMENT CHAROLAIS MALE de 6-12 mois catégorie U (350kg) en €/kg vif
A9: 3 – COTATION DES GROS BOVINS VIFS SUR LE MARCHE DE CHOLET (en Euro/Kg Net) – à partir de la ligne 72
C11: Mis à jour : 18/12/2023 | P11: Mis à jour :18/12/2023
C12: 1 – COTATION REGIONALE ENTREE ABATTOIR GRAND OUEST FRANCEAGRIMER-HEBDOMADAIRE (€/Kg net) | P12: 2 – COT. HEBDO
P13: MAIGRE €/kg vif
A14: Année | B14: Sem. | C14: JEUNES BOVINS | F14: BOEUFS | G14: VACHES | L14: GENISSES | P14: Ref. nationale | Q14: Sem. | S14: Vache Viande R | V14: Vache lait P
C15: VIANDE | E15: MIXTE | F15: MIXTE | G15: VIANDE | I15: Blonde | J15: MIXTE | K15: LAIT | L15: VIANDES + 350kg | P15: Charolais Mâles | R15: nantes | S15: Evolution/semaine -1 | T15: ="Evolution/ semaine id " & A17-1 -> Evolution/ semaine id 2022 | U15: Evolution/semaine id moy. 5 ans | V15: Evolution/semaine -1 | W15: ="Evolution/ semaine id " & A17-1 -> Evolution/ semaine id 2022 | X15: Evolution/semaine id moy. 5 ans
C16: U | D16: R | E16: O | F16: O | G16: U | H16: R | I16: U | J16: O | K16: P | L16: U | M16: R | P16: 6/12 mois ( U ) 350 kg
A17: 2023 | B17: 1 | C17: 5.54 | D17: 5.4 | E17: 5.1 | F17: 5.05 | G17: 5.71 | H17: 5.41 | I17: 6.05 | J17: 4.93 | K17: 4.59 | L17: 5.84 | M17: 5.41 | P17: 3.39 | Q17: 1 | R17: 3.27 | S17: =(H17-GrosBovins2022!H68)/GrosBovins2022!H68 -> -0.00184501845 | T17: =(H17-GrosBovins2022!H18)/GrosBovins2022!H18 -> 0.2267573696 | U17: =(H17-MoyQuinqHebdoGB!AL5)/MoyQuinqHebdoGB!AL5 -> 0.1771105309 | V17: =(K17-GrosBovins2022!K68)/GrosBovins2022!K68 -> 0 | W17: =(K17-GrosBovins2022!K17)/GrosBovins2022!K17 -> 0.3189655172 | X17: =(K17-MoyQuinqHebdoGB!BD5)/MoyQuinqHebdoGB!BD5 -> 0.3265895954
B18: 2 | C18: 5.54 | D18: 5.4 | E18: 5.09 | F18: 5.03 | G18: 5.71 | H18: 5.43 | I18: 6.13 | J18: 4.94 | K18: 4.6 | L18: 5.83 | M18: 5.41 | P18: 3.39 | Q18: 2 | R18: 3.27 | S18: =(H18-H17)/H17 -> 0.003696857671 | T18: =(H18-GrosBovins2022!H19)/GrosBovins2022!H19 -> 0.222972973 | U18: =(H18-MoyQuinqHebdoGB!AL6)/MoyQuinqHebdoGB!AL6 -> 0.1773633998 | V18: =(K18-K17)/K17 -> 0.002178649237 | W18: =(K18-GrosBovins2022!K18)/GrosBovins2022!K18 -> 0.3068181818 | X18: =(K18-MoyQuinqHebdoGB!BD6)/MoyQuinqHebdoGB!BD6 -> 0.3195639702
B19: 3 | C19: 5.55 | D19: 5.41 | E19: 5.11 | F19: 5.02 | G19: 5.76 | H19: 5.43 | I19: 6.13 | J19: 4.94 | K19: 4.61 | L19: 5.9 | M19: 5.42 | P19: 3.38 | Q19: 3 | R19: 3.25 | S19: 0 | T19: =(H19-GrosBovins2022!H20)/GrosBovins2022!H20 -> 0.2174887892 | U19: =(H19-MoyQuinqHebdoGB!AL7)/MoyQuinqHebdoGB!AL7 -> 0.1768530559 | V19: =(K19-K18)/K18 -> 0.002173913043 | W19: =(K19-GrosBovins2022!K19)/GrosBovins2022!K19 -> 0.2841225627 | X19: =(K19-MoyQuinqHebdoGB!BD7)/MoyQuinqHebdoGB!BD7 -> 0.3148887621
A20: J | B20: 4 | C20: 5.53 | D20: 5.39 | E20: 5.1 | F20: 5.02 | G20: 5.7 | H20: 5.42 | I20: 6.11 | J20: 4.93 | K20: 4.59 | L20: 5.87 | M20: 5.42 | P20: 3.4 | Q20: 4 | R20: 3.25 | S20: -0.001841620626 | T20: =(H20-GrosBovins2022!H21)/GrosBovins2022!H21 -> 0.1991150442 | U20: =(H20-MoyQuinqHebdoGB!AL8)/MoyQuinqHebdoGB!AL8 -> 0.1736682547 | V20: -0.004338394794 | W20: =(K20-GrosBovins2022!K20)/GrosBovins2022!K20 -> 0.2575342466 | X20: =(K20-MoyQuinqHebdoGB!BD8)/MoyQuinqHebdoGB!BD8 -> 0.3024971623
B21: 5 | C21: 5.52 | D21: 5.4 | E21: 5.07 | F21: 4.88 | G21: 5.76 | H21: 5.42 | I21: 6.19 | J21: 4.91 | K21: 4.56 | L21: 5.9 | M21: 5.41 | P21: 3.43 | Q21: 5 | R21: 3.3 | S21: 0 | T21: =(H21-GrosBovins2022!H22)/GrosBovins2022!H22 -> 0.1808278867 | U21: =(H21-MoyQuinqHebdoGB!AL9)/MoyQuinqHebdoGB!AL9 -> 0.1681034483 | V21: -0.006535947712 | W21: =(K21-GrosBovins2022!K21)/GrosBovins2022!K21 -> 0.216 | X21: =(K21-MoyQuinqHebdoGB!BD9)/MoyQuinqHebdoGB!BD9 -> 0.2866817156
B22: 6 | C22: 5.52 | D22: 5.41 | F22: 4.99 | G22: 5.75 | H22: 5.42 | I22: 6.13 | J22: 4.91 | K22: 4.56 | L22: 5.92 | M22: 5.41 | P22: 3.44 | Q22: 6 | R22: 3.33 | S22: 0 | T22: =(H22-GrosBovins2022!H23)/GrosBovins2022!H23 -> 0.1655913978 | U22: =(H22-MoyQuinqHebdoGB!AL10)/MoyQuinqHebdoGB!AL10 -> 0.1640893471 | V22: 0 | W22: =(K22-GrosBovins2022!K22)/GrosBovins2022!K22 -> 0.1875 | X22: =(K22-MoyQuinqHebdoGB!BD10)/MoyQuinqHebdoGB!BD10 -> 0.2773109244
B23: 7 | C23: 5.53 | D23: 5.41 | F23: 5.02 | G23: 5.73 | H23: 5.42 | I23: 6.19 | J23: 4.93 | K23: 4.6 | L23: 5.84 | M23: 5.39 | P23: 3.43 | Q23: 7 | R23: 3.3 | S23: 0 | T23: =(H23-GrosBovins2022!H24)/GrosBovins2022!H24 -> 0.1386554622 | U23: =(H23-MoyQuinqHebdoGB!AL11)/MoyQuinqHebdoGB!AL11 -> 0.1620926244 | V23: 0.008771929825 | W23: =(K23-GrosBovins2022!K23)/GrosBovins2022!K23 -> 0.1616161616 | X23: =(K23-MoyQuinqHebdoGB!BD11)/MoyQuinqHebdoGB!BD11 -> 0.2721238938
A24: F | B24: 8 | C24: 5.54 | D24: 5.42 | F24: 5.07 | G24: 5.76 | H24: 5.44 | I24: 6.19 | J24: 4.97 | K24: 4.64 | L24: 5.93 | M24: 5.43 | P24: 3.46 | Q24: 8 | R24: 3.4 | S24: 0.0036900369 | T24: =(H24-GrosBovins2022!H25)/GrosBovins2022!H25 -> 0.1333333333 | U24: =(H24-MoyQuinqHebdoGB!AL12)/MoyQuinqHebdoGB!AL12 -> 0.1584327087 | V24: 0.008695652174 | W24: =(K24-GrosBovins2022!K24)/GrosBovins2022!K24 -> 0.1207729469 | X24: =(K24-MoyQuinqHebdoGB!BD12)/MoyQuinqHebdoGB!BD12 -> 0.2643051771
B25: 9 | C25: 5.56 | D25: 5.43 | E25: 5.11 | F25: 5.08 | G25: 5.88 | H25: 5.46 | I25: 6.2 | J25: 5 | K25: 4.69 | L25: 5.91 | M25: 5.46 | P25: 3.47 | Q25: 9 | R25: 3.42 | S25: 0.003676470588 | T25: =(H25-GrosBovins2022!H26)/GrosBovins2022!H26 -> 0.1257731959 | U25: =(H25-MoyQuinqHebdoGB!AL13)/MoyQuinqHebdoGB!AL13 -> 0.1587436333 | V25: 0.01077586207 | W25: =(K25-GrosBovins2022!K25)/GrosBovins2022!K25 -> 0.1140142518 | X25: =(K25-MoyQuinqHebdoGB!BD13)/MoyQuinqHebdoGB!BD13 -> 0.264832794
B26: 10 | C26: 5.57 | D26: 5.46 | E26: 5.13 | F26: 5.11 | G26: 5.8 | H26: 5.48 | I26: 6.21 | J26: 5.04 | K26: 4.75 | L26: 5.93 | M26: 5.47 | P26: 3.52 | Q26: 10 | R26: 3.45 | S26: 0.003663003663 | T26: =(H26-GrosBovins2022!H27)/GrosBovins2022!H27 -> 0.116089613 | U26: =(H26-MoyQuinqHebdoGB!AL14)/MoyQuinqHebdoGB!AL14 -> 0.1566061629 | V26: 0.01279317697 | W26: =(K26-GrosBovins2022!K26)/GrosBovins2022!K26 -> 0.1176470588 | X26: =(K26-MoyQuinqHebdoGB!BD14)/MoyQuinqHebdoGB!BD14 -> 0.2686965812
B27: 11 | C27: 5.6 | D27: 5.47 | F27: 5.12 | G27: 5.8 | H27: 5.52 | I27: 6.21 | J27: 5.07 | K27: 4.8 | L27: 6 | M27: 5.49 | P27: 3.53 | Q27: 11 | R27: 3.48 | S27: 0.007299270073 | T27: =(H27-GrosBovins2022!H28)/GrosBovins2022!H28 -> 0.1174089069 | U27: =(H27-MoyQuinqHebdoGB!AL15)/MoyQuinqHebdoGB!AL15 -> 0.1606391926 | V27: 0.01052631579 | W27: =(K27-GrosBovins2022!K27)/GrosBovins2022!K27 -> 0.1188811189 | X27: =(K27-MoyQuinqHebdoGB!BD15)/MoyQuinqHebdoGB!BD15 -> 0.2718600954
B28: 12 | C28: 5.62 | D28: 5.47 | E28: 5.16 | F28: 5.15 | H28: 5.53 | I28: 6.22 | J28: 5.08 | K28: 4.82 | L28: 6.05 | M28: 5.49 | P28: 3.54 | Q28: 12 | R28: 3.48 | S28: 0.001811594203 | T28: =(H28-GrosBovins2022!H29)/GrosBovins2022!H29 -> 0.1082164329 | U28: =(H28-MoyQuinqHebdoGB!AL16)/MoyQuinqHebdoGB!AL16 -> 0.1593291405 | V28: 0.004166666667 | W28: =(K28-GrosBovins2022!K28)/GrosBovins2022!K28 -> 0.1105990783 | X28: =(K28-MoyQuinqHebdoGB!BD16)/MoyQuinqHebdoGB!BD16 -> 0.27176781
A29: M | B29: 13 | C29: 5.62 | D29: 5.48 | E29: 5.17 | F29: 5.16 | G29: 6.16 | H29: 5.5 | I29: 6.37 | J29: 5.09 | K29: 4.81 | L29: 6.12 | M29: 5.49 | P29: 3.55 | Q29: 13 | R29: 3.48 | S29: -0.005424954792 | T29: =(H29-GrosBovins2022!H30)/GrosBovins2022!H30 -> 0.09780439122 | U29: =(H29-MoyQuinqHebdoGB!AL17)/MoyQuinqHebdoGB!AL17 -> 0.1549769005 | V29: -0.002074688797 | W29: =(K29-GrosBovins2022!K29)/GrosBovins2022!K29 -> 0.09567198178 | X29: =(K29-MoyQuinqHebdoGB!BD17)/MoyQuinqHebdoGB!BD17 -> 0.2644584648
B30: 14 | C30: 5.6 | D30: 5.45 | E30: 5.14 | F30: 5.15 | G30: 5.87 | H30: 5.51 | I30: 6.25 | J30: 5.07 | K30: 4.78 | L30: 6.02 | M30: 5.48 | P30: 3.57 | Q30: 14 | R30: 3.5 | S30: 0.001818181818 | T30: =(H30-GrosBovins2022!H31)/GrosBovins2022!H31 -> 0.08893280632 | U30: =(H30-MoyQuinqHebdoGB!AL18)/MoyQuinqHebdoGB!AL18 -> 0.1556208054 | V30: -0.006237006237 | W30: =(K30-GrosBovins2022!K30)/GrosBovins2022!K30 -> 0.07657657658 | X30: =(K30-MoyQuinqHebdoGB!BD18)/MoyQuinqHebdoGB!BD18 -> 0.2559117183
B31: 15 | C31: 5.58 | D31: 5.44 | E31: 5.11 | F31: 5.11 | H31: 5.43 | I31: 6.27 | J31: 5.03 | K31: 4.73 | L31: 6.02 | M31: 5.47 | P31: 3.57 | Q31: 15 | R31: 3.5 | S31: =(H31-H30)/H30 -> -0.01451905626 | T31: =(H31-GrosBovins2022!H32)/GrosBovins2022!H32 -> 0.06470588235 | U31: =(H31-MoyQuinqHebdoGB!AL19)/MoyQuinqHebdoGB!AL19 -> 0.1412358134 | V31: -0.01046025105 | W31: =(K31-GrosBovins2022!K31)/GrosBovins2022!K31 -> 0.05345211581 | X31: =(K31-MoyQuinqHebdoGB!BD19)/MoyQuinqHebdoGB!BD19 -> 0.2434279706
B32: 16 | C32: 5.57 | D32: 5.46 | E32: 5.11 | F32: 5.1 | H32: 5.45 | I32: 6.24 | J32: 5.01 | K32: 4.7 | L32: 5.99 | M32: 5.47 | P32: 3.57 | Q32: 16 | R32: 3.5 | S32: =(H32-H31)/H31 -> 0.003683241252 | T32: =(H32-GrosBovins2022!H33)/GrosBovins2022!H33 -> 0.06031128405 | U32: =(H32-MoyQuinqHebdoGB!AL20)/MoyQuinqHebdoGB!AL20 -> 0.142078793 | V32: -0.006342494715 | W32: =(K32-GrosBovins2022!K32)/GrosBovins2022!K32 -> 0.03296703297 | X32: =(K32-MoyQuinqHebdoGB!BD20)/MoyQuinqHebdoGB!BD20 -> 0.2323020451
A33: A | B33: 17 | C33: 5.55 | D33: 5.42 | E33: 5.09 | F33: 5.06 | G33: 5.85 | H33: 5.44 | I33: 6.22 | J33: 4.99 | K33: 4.67 | L33: 6.05 | M33: 5.44 | P33: 3.57 | Q33: 17 | R33: 3.5 | S33: -0.001834862385 | T33: =(H33-GrosBovins2022!H34)/GrosBovins2022!H34 -> 0.05019305019 | U33: =(H33-MoyQuinqHebdoGB!AL21)/MoyQuinqHebdoGB!AL21 -> 0.1390284757 | V33: -0.006382978723 | W33: =(K33-GrosBovins2022!K33)/GrosBovins2022!K33 -> 0.006465517241 | X33: =(K33-MoyQuinqHebdoGB!BD21)/MoyQuinqHebdoGB!BD21 -> 0.2174139729
B34: 18 | C34: 5.53 | D34: 5.39 | F34: 5.05 | G34: 5.85 | H34: 5.44 | I34: 6.27 | J34: 4.97 | K34: 4.64 | L34: 6.02 | M34: 5.45 | P34: 3.57 | Q34: 18 | R34: 3.5 | S34: 0 | T34: =(H34-GrosBovins2022!H35)/GrosBovins2022!H35 -> 0.04414587332 | U34: =(H34-MoyQuinqHebdoGB!AL22)/MoyQuinqHebdoGB!AL22 -> 0.134751773 | V34: -0.006423982869 | W34: =(K34-GrosBovins2022!K34)/GrosBovins2022!K34 -> -0.02109704641 | X34: =(K34-MoyQuinqHebdoGB!BD22)/MoyQuinqHebdoGB!BD22 -> 0.2002069322
B35: 19 | C35: 5.5 | D35: 5.37 | E35: 5.05 | F35: 5.05 | G35: 5.9 | H35: 5.44 | I35: 6.32 | J35: 4.96 | K35: 4.61 | L35: 6.07 | M35: 5.43 | P35: 3.57 | Q35: 19 | R35: 3.5 | S35: 0 | T35: =(H35-GrosBovins2022!H36)/GrosBovins2022!H36 -> 0.03816793893 | U35: =(H35-MoyQuinqHebdoGB!AL23)/MoyQuinqHebdoGB!AL23 -> 0.1328613078 | V35: -0.006465517241 | W35: =(K35-GrosBovins2022!K35)/GrosBovins2022!K35 -> -0.0375782881 | X35: =(K35-MoyQuinqHebdoGB!BD23)/MoyQuinqHebdoGB!BD23 -> 0.1869207003
B36: 20 | C36: 5.48 | D36: 5.35 | E36: 5.02 | F36: 5.06 | H36: 5.45 | I36: 6.29 | J36: 4.97 | K36: 4.62 | L36: 6.09 | M36: 5.43 | P36: 3.59 | Q36: 20 | R36: 3.5 | S36: 0.001838235294 | T36: =(H36-GrosBovins2022!H37)/GrosBovins2022!H37 -> 0.03415559772 | U36: =(H36-MoyQuinqHebdoGB!AL24)/MoyQuinqHebdoGB!AL24 -> 0.1316445183 | V36: 0.002169197397 | W36: =(K36-GrosBovins2022!K36)/GrosBovins2022!K36 -> -0.04347826087 | X36: =(K36-MoyQuinqHebdoGB!BD24)/MoyQuinqHebdoGB!BD24 -> 0.1797752809
A37: M | B37: 21 | C37: 5.48 | D37: 5.37 | F37: 5.05 | G37: 5.81 | H37: 5.45 | I37: 6.3 | J37: 4.97 | K37: 4.63 | L37: 6.09 | M37: 5.45 | P37: 3.6 | Q37: 21 | R37: 3.5 | S37: 0 | T37: =(H37-GrosBovins2022!H38)/GrosBovins2022!H38 -> 0.03415559772 | U37: =(H37-MoyQuinqHebdoGB!AL25)/MoyQuinqHebdoGB!AL25 -> 0.1288318144 | V37: 0.002164502165 | W37: =(K37-GrosBovins2022!K37)/GrosBovins2022!K37 -> -0.04338842975 | X37: =(K37-MoyQuinqHebdoGB!BD25)/MoyQuinqHebdoGB!BD25 -> 0.1775178026
B38: 22 | C38: 5.46 | D38: 5.33 | E38: 5.03 | F38: 5.08 | H38: 5.47 | I38: 6.27 | J38: 4.98 | K38: 4.67 | L38: 6.05 | M38: 5.45 | P38: 3.61 | Q38: 22 | R38: 3.5 | S38: 0.003669724771 | T38: =(H38-GrosBovins2022!H39)/GrosBovins2022!H39 -> 0.03402646503 | U38: =(H38-MoyQuinqHebdoGB!AL26)/MoyQuinqHebdoGB!AL26 -> 0.1287659926 | V38: 0.008639308855 | W38: =(K38-GrosBovins2022!K38)/GrosBovins2022!K38 -> -0.03909465021 | X38: =(K38-MoyQuinqHebdoGB!BD26)/MoyQuinqHebdoGB!BD26 -> 0.1792929293
B39: 23 | C39: 5.46 | D39: 5.33 | E39: 5.01 | F39: 5.09 | H39: 5.49 | I39: 6.29 | J39: 5.02 | K39: 4.71 | L39: 6.1 | M39: 5.48 | P39: 3.62 | Q39: 23 | R39: 3.55 | S39: 0.00365630713 | T39: =(H39-GrosBovins2022!H40)/GrosBovins2022!H40 -> 0.03780718336 | U39: =(H39-MoyQuinqHebdoGB!AL27)/MoyQuinqHebdoGB!AL27 -> 0.1268472906 | V39: 0.008565310493 | W39: =(K39-GrosBovins2022!K39)/GrosBovins2022!K39 -> -0.03285420945 | X39: =(K39-MoyQuinqHebdoGB!BD27)/MoyQuinqHebdoGB!BD27 -> 0.1840120664
B40: 24 | C40: 5.45 | D40: 5.31 | E40: 5.05 | F40: 5.09 | H40: 5.5 | I40: 6.29 | J40: 5.03 | K40: 4.71 | L40: 6.06 | M40: 5.47 | P40: 3.62 | Q40: 24 | R40: 3.55 | S40: 0.001821493625 | T40: =(H40-GrosBovins2022!H41)/GrosBovins2022!H41 -> 0.03969754253 | U40: =(H40-MoyQuinqHebdoGB!AL28)/MoyQuinqHebdoGB!AL28 -> 0.1247443763 | V40: 0 | W40: =(K40-GrosBovins2022!K40)/GrosBovins2022!K40 -> -0.03285420945 | X40: =(K40-MoyQuinqHebdoGB!BD28)/MoyQuinqHebdoGB!BD28 -> 0.1804511278
B41: 25 | C41: 5.43 | D41: 5.27 | E41: 5.04 | F41: 5.09 | H41: 5.48 | I41: 6.29 | J41: 5.02 | K41: 4.7 | L41: 6.13 | M41: 5.46 | P41: 3.62 | Q41: 25 | R41: 3.55 | S41: -0.003636363636 | T41: =(H41-GrosBovins2022!H42)/GrosBovins2022!H42 -> 0.03396226415 | U41: =(H41-MoyQuinqHebdoGB!AL29)/MoyQuinqHebdoGB!AL29 -> 0.1229508197 | V41: -0.002123142251 | W41: =(K41-GrosBovins2022!K41)/GrosBovins2022!K41 -> -0.03490759754 | X41: =(K41-MoyQuinqHebdoGB!BD29)/MoyQuinqHebdoGB!BD29 -> 0.1773547094
A42: J | B42: 26 | C42: 5.39 | D42: 5.24 | E42: 5.02 | F42: 5.05 | H42: 5.48 | I42: 6.3 | J42: 4.99 | K42: 4.66 | L42: 6.05 | M42: 5.47 | P42: 3.62 | Q42: 26 | R42: 3.53 | S42: 0 | T42: =(H42-GrosBovins2022!H43)/GrosBovins2022!H43 -> 0.0359168242 | U42: =(H42-MoyQuinqHebdoGB!AL30)/MoyQuinqHebdoGB!AL30 -> 0.1188240098 | V42: -0.008510638298 | W42: =(K42-GrosBovins2022!K42)/GrosBovins2022!K42 -> -0.04508196721 | X42: =(K42-MoyQuinqHebdoGB!BD30)/MoyQuinqHebdoGB!BD30 -> 0.1685055165
B43: 27 | C43: 5.37 | D43: 5.21 | E43: 4.97 | F43: 5.01 | H43: 5.46 | I43: 6.24 | J43: 4.96 | K43: 4.62 | L43: 6.09 | M43: 5.46 | P43: 3.61 | Q43: 27 | R43: 3.5 | S43: -0.003649635036 | T43: =(H43-GrosBovins2022!H44)/GrosBovins2022!H44 -> 0.03409090909 | U43: =(H43-MoyQuinqHebdoGB!AL31)/MoyQuinqHebdoGB!AL31 -> 0.1165644172 | V43: -0.008583690987 | W43: =(K43-GrosBovins2022!K43)/GrosBovins2022!K43 -> -0.05133470226 | X43: =(K43-MoyQuinqHebdoGB!BD31)/MoyQuinqHebdoGB!BD31 -> 0.1608040201
B44: 28 | C44: 5.33 | D44: 5.17 | E44: 4.92 | F44: 5 | H44: 5.44 | I44: 6.29 | J44: 4.93 | K44: 4.57 | L44: 6.1 | M44: 5.42 | P44: 3.52 | Q44: 28 | R44: 3.45 | S44: -0.003663003663 | T44: =(H44-GrosBovins2022!H45)/GrosBovins2022!H45 -> 0.02641509434 | U44: =(H44-MoyQuinqHebdoGB!AL32)/MoyQuinqHebdoGB!AL32 -> 0.1133851822 | V44: -0.01082251082 | W44: =(K44-GrosBovins2022!K44)/GrosBovins2022!K44 -> -0.06160164271 | X44: =(K44-MoyQuinqHebdoGB!BD32)/MoyQuinqHebdoGB!BD32 -> 0.1493963783
B45: 29 | C45: 5.31 | D45: 5.16 | E45: 4.9 | F45: 5.01 | H45: 5.44 | I45: 6.33 | J45: 4.89 | K45: 4.53 | L45: 6.01 | M45: 5.43 | P45: 3.5 | Q45: 29 | R45: 3.45 | S45: 0 | T45: =(H45-GrosBovins2022!H46)/GrosBovins2022!H46 -> 0.0303030303 | U45: =(H45-MoyQuinqHebdoGB!AL33)/MoyQuinqHebdoGB!AL33 -> 0.1120196239 | V45: -0.00875273523 | W45: =(K45-GrosBovins2022!K45)/GrosBovins2022!K45 -> -0.07551020408 | X45: =(K45-MoyQuinqHebdoGB!BD33)/MoyQuinqHebdoGB!BD33 -> 0.1387631976
A46: J | B46: 30 | C46: 5.29 | D46: 5.11 | E46: 4.86 | F46: 4.98 | H46: 5.42 | I46: 6.3 | J46: 4.88 | K46: 4.5 | L46: 6.05 | M46: 5.43 | P46: 3.45 | Q46: 30 | R46: 3.45 | S46: -0.003676470588 | T46: =(H46-GrosBovins2022!H47)/GrosBovins2022!H47 -> 0.04431599229 | U46: =(H46-MoyQuinqHebdoGB!AL34)/MoyQuinqHebdoGB!AL34 -> 0.1092918543 | V46: -0.006622516556 | W46: =(K46-GrosBovins2022!K46)/GrosBovins2022!K46 -> -0.07597535934 | X46: =(K46-MoyQuinqHebdoGB!BD34)/MoyQuinqHebdoGB!BD34 -> 0.1323603422
B47: 31 | C47: 5.24 | D47: 5.09 | E47: 4.84 | F47: 4.96 | H47: 5.44 | I47: 6.32 | J47: 4.86 | K47: 4.48 | L47: 6 | M47: 5.41 | P47: 3.45 | Q47: 31 | R47: 3.45 | S47: 0.0036900369 | T47: =(H47-GrosBovins2022!H48)/GrosBovins2022!H48 -> 0.0303030303 | U47: =(H47-MoyQuinqHebdoGB!AL35)/MoyQuinqHebdoGB!AL35 -> 0.1152111521 | V47: -0.004444444444 | W47: =(K47-GrosBovins2022!K47)/GrosBovins2022!K47 -> -0.07818930041 | X47: =(K47-MoyQuinqHebdoGB!BD35)/MoyQuinqHebdoGB!BD35 -> 0.1273276296
B48: 32 | C48: 5.24 | D48: 5.06 | E48: 4.83 | F48: 4.96 | G48: 5.85 | H48: 5.45 | I48: 6.38 | J48: 4.87 | K48: 4.49 | L48: 6.02 | M48: 5.41 | P48: 3.45 | Q48: 32 | R48: 3.45 | S48: 0.001838235294 | T48: =(H48-GrosBovins2022!H49)/GrosBovins2022!H49 -> 0.03024574669 | U48: =(H48-MoyQuinqHebdoGB!AL36)/MoyQuinqHebdoGB!AL36 -> 0.1113376835 | V48: 0.002232142857 | W48: =(K48-GrosBovins2022!K48)/GrosBovins2022!K48 -> -0.07613168724 | X48: =(K48-MoyQuinqHebdoGB!BD36)/MoyQuinqHebdoGB!BD36 -> 0.1264425489
B49: 33 | C49: 5.25 | D49: 5.07 | E49: 4.86 | F49: 5.02 | H49: 5.46 | I49: 6.33 | J49: 4.93 | K49: 4.54 | M49: 5.46 | P49: 3.45 | Q49: 33 | R49: 3.45 | S49: 0.001834862385 | T49: =(H49-GrosBovins2022!H50)/GrosBovins2022!H50 -> 0.03213610586 | U49: =(H49-MoyQuinqHebdoGB!AL37)/MoyQuinqHebdoGB!AL37 -> 0.1097560976 | V49: 0.01113585746 | W49: =(K49-GrosBovins2022!K49)/GrosBovins2022!K49 -> -0.06776180698 | X49: =(K49-MoyQuinqHebdoGB!BD37)/MoyQuinqHebdoGB!BD37 -> 0.1321695761
B50: 34 | C50: 5.27 | D50: 5.12 | E50: 4.9 | F50: 5.04 | H50: 5.52 | I50: 6.37 | J50: 4.96 | K50: 4.6 | L50: 6.19 | M50: 5.46 | P50: 3.46 | Q50: 34 | R50: 3.45 | S50: 0.01098901099 | T50: =(H50-GrosBovins2022!H51)/GrosBovins2022!H51 -> 0.0395480226 | U50: =(H50-MoyQuinqHebdoGB!AL38)/MoyQuinqHebdoGB!AL38 -> 0.1183144246 | V50: 0.01321585903 | W50: =(K50-GrosBovins2022!K50)/GrosBovins2022!K50 -> -0.05349794239 | X50: =(K50-MoyQuinqHebdoGB!BD38)/MoyQuinqHebdoGB!BD38 -> 0.1397423191
A51: A | B51: 35 | C51: 5.3 | D51: 5.15 | E51: 4.96 | F51: 5.07 | H51: 5.56 | I51: 6.38 | J51: 4.99 | K51: 4.66 | L51: 6.2 | M51: 5.52 | P51: 3.47 | Q51: 35 | R51: 3.45 | S51: 0.007246376812 | T51: =(H51-GrosBovins2022!H52)/GrosBovins2022!H52 -> 0.04511278195 | U51: =(H51-MoyQuinqHebdoGB!AL39)/MoyQuinqHebdoGB!AL39 -> 0.1214199274 | V51: 0.01304347826 | W51: =(K51-GrosBovins2022!K51)/GrosBovins2022!K51 -> -0.04115226337 | X51: =(K51-MoyQuinqHebdoGB!BD39)/MoyQuinqHebdoGB!BD39 -> 0.150617284
B52: 36 | C52: 5.33 | D52: 5.2 | E52: 5.01 | F52: 5.1 | H52: 5.58 | I52: 6.35 | J52: 5.03 | K52: 4.7 | L52: 6.15 | M52: 5.53 | P52: 3.5 | Q52: 36 | R52: 3.5 | S52: 0.003597122302 | T52: =(H52-GrosBovins2022!H53)/GrosBovins2022!H53 -> 0.04494382022 | U52: =(H52-MoyQuinqHebdoGB!AL40)/MoyQuinqHebdoGB!AL40 -> 0.125 | V52: 0.008583690987 | W52: =(K52-GrosBovins2022!K52)/GrosBovins2022!K52 -> -0.0329218107 | X52: =(K52-MoyQuinqHebdoGB!BD40)/MoyQuinqHebdoGB!BD40 -> 0.1587771203
B53: 37 | C53: 5.38 | D53: 5.22 | E53: 5.01 | F53: 5.09 | H53: 5.56 | I53: 6.36 | J53: 5.05 | K53: 4.71 | L53: 6.11 | M53: 5.53 | P53: 3.58 | Q53: 37 | R53: 3.53 | S53: -0.003584229391 | T53: =(H53-GrosBovins2022!H54)/GrosBovins2022!H54 -> 0.03925233645 | U53: =(H53-MoyQuinqHebdoGB!AL41)/MoyQuinqHebdoGB!AL41 -> 0.1223253936 | V53: 0.002127659574 | W53: =(K53-GrosBovins2022!K53)/GrosBovins2022!K53 -> -0.03285420945 | X53: =(K53-MoyQuinqHebdoGB!BD41)/MoyQuinqHebdoGB!BD41 -> 0.162962963
B54: 38 | C54: 5.41 | D54: 5.23 | F54: 5.07 | H54: 5.55 | I54: 6.4 | J54: 5.04 | K54: 4.67 | L54: 6.21 | M54: 5.51 | P54: 3.59 | Q54: 38 | R54: 3.53 | S54: -0.001798561151 | T54: =(H54-GrosBovins2022!H55)/GrosBovins2022!H55 -> 0.03738317757 | U54: =(H54-MoyQuinqHebdoGB!AL42)/MoyQuinqHebdoGB!AL42 -> 0.1212121212 | V54: -0.008492569002 | W54: =(K54-GrosBovins2022!K54)/GrosBovins2022!K54 -> -0.04693877551 | X54: =(K54-MoyQuinqHebdoGB!BD42)/MoyQuinqHebdoGB!BD42 -> 0.157086224
A55: S | B55: 39 | C55: 5.42 | D55: 5.26 | F55: 5.06 | H55: 5.54 | I55: 6.34 | J55: 4.99 | K55: 4.65 | L55: 6.19 | M55: 5.53 | P55: 3.59 | Q55: 39 | R55: 3.53 | S55: -0.001801801802 | T55: =(H55-GrosBovins2022!H56)/GrosBovins2022!H56 -> 0.02782931354 | U55: =(H55-MoyQuinqHebdoGB!AL43)/MoyQuinqHebdoGB!AL43 -> 0.1187399031 | V55: -0.004282655246 | W55: =(K55-GrosBovins2022!K55)/GrosBovins2022!K55 -> -0.05295315682 | X55: =(K55-MoyQuinqHebdoGB!BD43)/MoyQuinqHebdoGB!BD43 -> 0.1561412233
B56: 40 | C56: 5.42 | D56: 5.27 | E56: 4.98 | F56: 5.05 | H56: 5.56 | I56: 6.41 | J56: 4.95 | K56: 4.6 | L56: 6.18 | M56: 5.53 | P56: 3.56 | Q56: 40 | R56: 3.45 | S56: 0.003610108303 | T56: =(H56-GrosBovins2022!H57)/GrosBovins2022!H57 -> 0.0258302583 | U56: =(H56-MoyQuinqHebdoGB!AL44)/MoyQuinqHebdoGB!AL44 -> 0.1200644641 | V56: -0.01075268817 | W56: =(K56-GrosBovins2022!K56)/GrosBovins2022!K56 -> -0.06313645621 | X56: =(K56-MoyQuinqHebdoGB!BD44)/MoyQuinqHebdoGB!BD44 -> 0.1494252874
B57: 41 | C57: 5.43 | D57: 5.27 | E57: 4.97 | F57: 5.01 | H57: 5.53 | I57: 6.36 | J57: 4.92 | K57: 4.55 | L57: 6.17 | M57: 5.49 | P57: 3.49 | Q57: 41 | R57: 3.38 | S57: -0.005395683453 | T57: =(H57-GrosBovins2022!H58)/GrosBovins2022!H58 -> 0.02029520295 | U57: =(H57-MoyQuinqHebdoGB!AL45)/MoyQuinqHebdoGB!AL45 -> 0.1144699718 | V57: -0.01086956522 | W57: =(K57-GrosBovins2022!K57)/GrosBovins2022!K57 -> -0.07520325203 | X57: =(K57-MoyQuinqHebdoGB!BD45)/MoyQuinqHebdoGB!BD45 -> 0.1420682731
B58: 42 | C58: 5.42 | D58: 5.26 | E58: 4.93 | F58: 4.94 | H58: 5.53 | I58: 6.39 | J58: 4.88 | K58: 4.51 | L58: 6.19 | M58: 5.51 | P58: 3.49 | Q58: 42 | R58: 3.38 | S58: 0 | T58: =(H58-GrosBovins2022!H59)/GrosBovins2022!H59 -> 0.02218114603 | U58: =(H58-MoyQuinqHebdoGB!AL46)/MoyQuinqHebdoGB!AL46 -> 0.1126760563 | V58: -0.008791208791 | W58: =(K58-GrosBovins2022!K58)/GrosBovins2022!K58 -> -0.08333333333 | X58: =(K58-MoyQuinqHebdoGB!BD46)/MoyQuinqHebdoGB!BD46 -> 0.1360201511
A59: O | B59: 43 | C59: 5.4 | D59: 5.26 | E59: 4.93 | F59: 4.93 | H59: 5.51 | I59: 6.46 | J59: 4.85 | K59: 4.44 | L59: 6.13 | M59: 5.49 | P59: 3.45 | Q59: 43 | R59: 3.4 | S59: -0.003616636528 | T59: =(H59-GrosBovins2022!H60)/GrosBovins2022!H60 -> 0.01473296501 | U59: =(H59-MoyQuinqHebdoGB!AL47)/MoyQuinqHebdoGB!AL47 -> 0.1108870968 | V59: -0.0155210643 | W59: =(K59-GrosBovins2022!K59)/GrosBovins2022!K59 -> -0.09202453988 | X59: =(K59-MoyQuinqHebdoGB!BD47)/MoyQuinqHebdoGB!BD47 -> 0.1251900659
B60: 44 | C60: 5.4 | D60: 5.25 | E60: 4.89 | F60: 4.91 | H60: 5.51 | I60: 6.42 | J60: 4.78 | K60: 4.35 | M60: 5.51 | P60: 3.45 | Q60: 44 | R60: 3.4 | S60: 0 | T60: =(H60-GrosBovins2022!H61)/GrosBovins2022!H61 -> 0.01660516605 | U60: =(H60-MoyQuinqHebdoGB!AL48)/MoyQuinqHebdoGB!AL48 -> 0.110439339 | V60: -0.02027027027 | W60: =(K60-GrosBovins2022!K60)/GrosBovins2022!K60 -> -0.1049382716 | X60: =(K60-MoyQuinqHebdoGB!BD48)/MoyQuinqHebdoGB!BD48 -> 0.1108273749
B61: 45 | C61: 5.39 | D61: 5.24 | E61: 4.85 | F61: 4.85 | H61: 5.48 | I61: 6.4 | J61: 4.71 | K61: 4.26 | L61: 6.23 | M61: 5.44 | P61: 3.4 | Q61: 45 | R61: 3.4 | S61: -0.005444646098 | T61: =(H61-GrosBovins2022!H62)/GrosBovins2022!H62 -> 0.01481481481 | U61: =(H61-MoyQuinqHebdoGB!AL49)/MoyQuinqHebdoGB!AL49 -> 0.1061768268 | V61: -0.02068965517 | W61: =(K61-GrosBovins2022!K61)/GrosBovins2022!K61 -> -0.1161825726 | X61: =(K61-MoyQuinqHebdoGB!BD49)/MoyQuinqHebdoGB!BD49 -> 0.09511568123
B62: 46 | C62: 5.41 | D62: 5.24 | E62: 4.81 | F62: 4.69 | H62: 5.46 | I62: 6.43 | J62: 4.62 | K62: 4.16 | L62: 6.14 | M62: 5.43 | P62: 3.35 | Q62: 46 | R62: 3.35 | S62: -0.003649635036 | T62: =(H62-GrosBovins2022!H63)/GrosBovins2022!H63 -> 0.009242144177 | U62: =(H62-MoyQuinqHebdoGB!AL50)/MoyQuinqHebdoGB!AL50 -> 0.09991941982 | V62: -0.0234741784 | W62: =(K62-GrosBovins2022!K62)/GrosBovins2022!K62 -> -0.1260504202 | X62: =(K62-MoyQuinqHebdoGB!BD50)/MoyQuinqHebdoGB!BD50 -> 0.07883817427
B63: 47 | C63: 5.42 | D63: 5.27 | E63: 4.76 | F63: 4.69 | G63: 5.95 | H63: 5.41 | I63: 6.4 | J63: 4.54 | K63: 4.06 | L63: 6.14 | M63: 5.41 | P63: 3.34 | Q63: 47 | R63: 3.32 | S63: -0.009157509158 | T63: =(H63-GrosBovins2022!H64)/GrosBovins2022!H64 -> -0.00184501845 | U63: =(H63-MoyQuinqHebdoGB!AL51)/MoyQuinqHebdoGB!AL51 -> 0.09337105901 | V63: -0.02403846154 | W63: =(K63-GrosBovins2022!K63)/GrosBovins2022!K63 -> -0.1398305085 | X63: =(K63-MoyQuinqHebdoGB!BD51)/MoyQuinqHebdoGB!BD51 -> 0.05949895616
A64: N | B64: 48 | C64: 5.44 | D64: 5.25 | E64: 4.72 | F64: 4.62 | H64: 5.38 | I64: 6.37 | J64: 4.48 | K64: 3.95 | L64: 6.2 | M64: 5.41 | P64: 3.32 | Q64: 48 | R64: 3.27 | S64: -0.005545286506 | T64: =(H64-GrosBovins2022!H65)/GrosBovins2022!H65 -> -0.007380073801 | U64: =(H64-MoyQuinqHebdoGB!AL52)/MoyQuinqHebdoGB!AL52 -> 0.08467741935 | V64: -0.02709359606 | W64: =(K64-GrosBovins2022!K64)/GrosBovins2022!K64 -> -0.1541755889 | X64: =(K64-MoyQuinqHebdoGB!BD52)/MoyQuinqHebdoGB!BD52 -> 0.03947368421
B65: 49 | C65: 5.44 | D65: 5.26 | E65: 4.76 | F65: 4.46 | G65: 6.27 | H65: 5.38 | I65: 6.53 | J65: 4.38 | K65: 3.88 | L65: 6.31 | M65: 5.4 | P65: 3.27 | Q65: 49 | R65: 3.27 | S65: 0 | T65: =(H65-GrosBovins2022!H66)/GrosBovins2022!H66 -> -0.005545286506 | U65: =(H65-MoyQuinqHebdoGB!AL53)/MoyQuinqHebdoGB!AL53 -> 0.08599111829 | V65: -0.01772151899 | W65: =(K65-GrosBovins2022!K65)/GrosBovins2022!K65 -> -0.161987041 | X65: =(K65-MoyQuinqHebdoGB!BD53)/MoyQuinqHebdoGB!BD53 -> 0.02591221576
B66: 50 | C66: 5.44 | D66: 5.26 | E66: 4.77 | F66: 4.54 | G66: 6.16 | H66: 5.38 | I66: 6.53 | J66: 4.38 | K66: 3.84 | L66: 6.32 | M66: 5.41 | P66: 3.32 | Q66: 50 | R66: 3.25 | S66: 0 | T66: =(H66-GrosBovins2022!H67)/GrosBovins2022!H67 -> -0.007380073801 | U66: =(H66-MoyQuinqHebdoGB!AL54)/MoyQuinqHebdoGB!AL54 -> 0.1109963862 | V66: -0.01030927835 | W66: =(K66-GrosBovins2022!K66)/GrosBovins2022!K66 -> -0.1652173913 | X66: =(K66-MoyQuinqHebdoGB!BD54)/MoyQuinqHebdoGB!BD54 -> 0.02673796791
B67: 51 | C67: 5.44 | D67: 5.26 | E67: 4.72 | F67: 4.52 | H67: 5.4 | I67: 6.36 | J67: 4.38 | K67: 3.85 | L67: 6.11 | M67: 5.42 | P67: 3.32 | Q67: 51 | R67: 3.25 | S67: 0.003717472119 | T67: =(H67-GrosBovins2022!H68)/GrosBovins2022!H68 -> -0.0036900369 | U67: =(H67-MoyQuinqHebdoGB!AL55)/MoyQuinqHebdoGB!AL55 -> 0.1139762764 | V67: 0.002604166667 | W67: =(K67-GrosBovins2022!K67)/GrosBovins2022!K67 -> -0.1575492341 | X67: =(K67-MoyQuinqHebdoGB!BD55)/MoyQuinqHebdoGB!BD55 -> 0.03148024113
A68: D | B68: 52 | C68: 5.44 | D68: 5.28 | F68: 4.6 | H68: 5.43 | J68: 4.42 | K68: 3.87 | M68: 5.41 | P68: 3.32 | Q68: 52 | R68: 3.25 | S68: 0.005555555556 | T68: =(H68-GrosBovins2022!H69)/GrosBovins2022!H69 ->  | U68: =(H68-MoyQuinqHebdoGB!AL56)/MoyQuinqHebdoGB!AL56 -> 0.1761732852 | V68: 0.005194805195 | W68: =(K68-GrosBovins2022!K68)/GrosBovins2022!K68 -> -0.1568627451 | X68: =(K68-MoyQuinqHebdoGB!BD56)/MoyQuinqHebdoGB!BD56 -> 0.07899628253
A71: 3 – COTATION DES GROS BOVINS VIFS SUR LE MARCHE DE CHOLET (en Euro/Kg Net)
C73: GENISSES | E73: VACHES | I73: JEUNES BOVINS | J73: TAUREAUX
A74: semaines | B74: année+mois | C74: Viande, mixte, lait | D74: Viande, mixte, lait | E74: Blonde | F74: Blonde | G74: Mixte | H74: Lait | I74: Viande | J74: Viande, mixte, lait
A75: 2023 | C75: U | D75: R | E75: U | F75: R | G75: O | H75: P | I75: U | J75: URO
A76: 1 | B76: 202301 | C76: 5.54 | D76: 5.26 | E76: 5.7 | F76: 5.3 | G76: 4.62 | H76: 4.4 | I76: 5.32
A77: 2 | B77: 202301 | C77: 5.54 | D77: 5.26 | E77: 5.7 | F77: 5.3 | G77: 4.62 | H77: 4.4 | I77: 5.32
A78: 3 | B78: 202301 | C78: 5.54 | D78: 5.26 | E78: 5.7 | F78: 5.3 | G78: 4.62 | H78: 4.4 | I78: 5.32 | J78: 4.55
A79: 4 | B79: 202301 | C79: 5.54 | D79: 5.26 | E79: 5.7 | F79: 5.3 | G79: 4.62 | H79: 4.4 | I79: 5.32 | J79: 4.55
A80: 5 | B80: 202302 | C80: 5.54 | D80: 5.26 | E80: 5.7 | F80: 5.3 | G80: 4.62 | H80: 4.4 | I80: 5.3
A81: 6 | B81: 202302 | C81: 5.54 | D81: 5.26 | E81: 5.7 | F81: 5.3 | G81: 4.62 | H81: 4.38 | I81: 5.3 | J81: 4.55
A82: 7 | B82: 202302 | C82: 5.54 | D82: 5.27 | E82: 5.7 | F82: 5.3 | G82: 4.62 | H82: 4.38 | I82: 5.3
A83: 8 | B83: 202302 | C83: 5.54 | D83: 5.27 | E83: 5.7 | F83: 5.3 | G83: 4.65 | H83: 4.4 | I83: 5.3
A84: 9 | B84: 202303 | C84: 5.56 | D84: 5.31 | E84: 5.75 | F84: 5.35 | G84: 4.68 | H84: 4.45 | I84: 5.3
A85: 10 | B85: 202303 | C85: 5.59 | D85: 5.32 | E85: 5.8 | F85: 5.35 | G85: 4.7 | H85: 4.5 | I85: 5.3
A86: 11 | B86: 202303 | C86: 5.62 | D86: 5.36 | E86: 5.85 | F86: 5.4 | G86: 4.77 | H86: 4.57 | I86: 5.36
A87: 12 | B87: 202303 | C87: 5.68 | D87: 5.41 | E87: 5.9 | F87: 5.45 | G87: 4.8 | H87: 4.6 | I87: 5.36
A88: 13 | B88: 202303 | C88: 5.68 | D88: 5.41 | E88: 5.9 | F88: 5.45 | G88: 4.8 | H88: 4.6 | I88: 5.36
A89: 14 | B89: 202304 | C89: 5.66 | D89: 5.4 | E89: 5.9 | F89: 5.45 | G89: 4.8 | H89: 4.57 | I89: 5.34
A90: 15 | B90: 202304 | C90: 5.65 | D90: 5.38 | E90: 5.9 | F90: 5.45 | G90: 4.77 | H90: 4.54 | I90: 5.32
A91: 16 | B91: 202304 | C91: 5.65 | D91: 5.38 | E91: 5.9 | F91: 5.45 | G91: 4.75 | H91: 4.52 | I91: 5.3
A92: 17 | B92: 202304 | C92: 5.65 | D92: 5.38 | E92: 5.9 | F92: 5.45 | G92: 4.73 | H92: 4.5 | I92: 5.28
A93: 18 | B93: 202305 | C93: 5.63 | D93: 5.38 | E93: 5.9 | F93: 5.45 | G93: 4.73 | H93: 4.48 | I93: 5.26
A94: 19 | B94: 202305 | C94: 5.63 | D94: 5.38 | E94: 5.9 | F94: 5.45 | G94: 4.71 | H94: 4.46 | I94: 5.26
A95: 20 | B95: 202305 | C95: 5.65 | D95: 5.38 | E95: 5.9 | F95: 5.45 | G95: 4.71 | H95: 4.46 | I95: 5.26
A96: 21 | B96: 202305 | C96: 5.65 | D96: 5.38 | E96: 5.9 | F96: 5.45 | G96: 4.71 | H96: 4.46 | I96: 5.26
A97: 22 | B97: 202306 | C97: 5.65 | D97: 5.38 | E97: 5.9 | F97: 5.45 | G97: 4.73 | H97: 4.46 | I97: 5.26
A98: 23 | B98: 202306 | C98: 5.65 | D98: 5.38 | E98: 5.9 | F98: 5.45 | G98: 4.75 | H98: 4.5 | I98: 5.26
A99: 24 | B99: 202306 | C99: 5.7 | D99: 5.38 | E99: 5.95 | F99: 5.45 | G99: 4.77 | H99: 4.5 | I99: 5.26
A100: 25 | B100: 202306 | C100: 5.72 | D100: 5.38 | E100: 6 | F100: 5.45 | G100: 4.77 | H100: 4.49 | I100: 5.25
A101: 26 | B101: 202306 | C101: 5.72 | D101: 5.37 | E101: 6 | F101: 5.45 | G101: 4.75 | H101: 4.44 | I101: 5.2
A102: 27 | B102: 202307 | E102: 6 | F102: 5.45 | G102: 4.7 | H102: 4.39 | I102: 5.16
A103: 28 | B103: 202307 | E103: 6 | F103: 5.45 | G103: 4.65 | H103: 4.35 | I103: 5.11
A104: 29 | B104: 202307 | E104: 6 | F104: 5.45 | G104: 4.62 | H104: 4.32 | I104: 5.09
A105: 30 | B105: 202307 | E105: 6 | F105: 5.45 | G105: 4.6 | H105: 4.3 | I105: 5.06
A106: 31 | B106: 202308 | E106: 6 | F106: 5.45 | G106: 4.58 | H106: 4.28 | I106: 5.04
A107: 32 | B107: 202308 | E107: 6 | F107: 5.45 | G107: 4.58 | H107: 4.28 | I107: 5.04
A108: 33 | B108: 202308 | E108: 6 | F108: 5.45 | G108: 4.58 | H108: =H109-0.05 -> 4.28 | I108: 5.04
A109: 34 | B109: 202308 | E109: 6.05 | F109: 5.5 | G109: 4.63 | H109: 4.33 | I109: 5.04
A110: 35 | B110: 202309 | E110: 6.1 | F110: 5.55 | G110: 4.68 | H110: 4.38 | I110: 5.07
A111: 36 | B111: 202309 | E111: 6.1 | F111: 5.55 | G111: 4.73 | H111: 4.43 | I111: 5.12
A112: 37 | B112: 202309 | E112: 6.1 | F112: 5.55 | G112: 4.78 | H112: 4.48 | I112: 5.17
A113: 38 | B113: 202309 | E113: 6.1 | F113: 5.55 | G113: 4.75 | H113: 4.48 | I113: 5.2
A114: 39 | B114: 202309 | E114: 6.1 | F114: 5.55 | G114: 4.72 | H114: 4.45 | I114: 5.22
A115: 40 | B115: 202310 | E115: 6.1 | F115: 5.55 | G115: 4.7 | H115: 4.42 | I115: 5.22
A116: 41 | B116: 202310 | E116: 6.1 | F116: 5.55 | G116: 4.65 | H116: 4.38 | I116: 5.22
A117: 42 | B117: 202310 | E117: 6.1 | F117: 5.55 | G117: 4.6 | H117: 4.25 | I117: 5.22
A118: 43 | B118: 202310 | E118: 6.1 | F118: 5.5 | G118: 4.55 | H118: 4.3 | I118: 5.22
A119: 44 | B119: 202311 | E119: 6.1 | F119: 5.55 | G119: 4.5 | H119: 4.15 | I119: 5.22
A120: 45 | B120: 202311 | E120: 6.1 | F120: 5.55 | G120: 4.47 | H120: 4.08 | I120: 5.22
A121: 46 | B121: 202311 | E121: 6.1 | F121: 5.55 | G121: 4.37 | H121: 3.98 | I121: 5.22
A122: 47 | B122: 202311 | E122: 6.1 | F122: 5.55 | G122: 4.27 | H122: 3.88 | I122: 5.22
A123: 48 | B123: 202312 | E123: 6.1 | F123: 5.55 | G123: 4.17 | H123: 3.78 | I123: 5.22
A124: 49 | B124: 202312 | E124: 6.1 | F124: 5.55 | G124: 4.07 | H124: 3.68 | I124: 5.22
A125: 50 | B125: 202312 | E125: 6.1 | F125: 5.55 | G125: 4.05 | H125: 3.63 | I125: 5.22
A126: 51 | B126: 202312 | E126: 6.1 | F126: 5.55 | G126: 4.05 | H126: 3.63 | I126: 5.35
A127: 52 | B127: 202312 | E127: 6.1 | F127: 5.55

Sheet GrosBovins2022
A1: COTATIONS DES GROS BOVINS
A2: Source : DRAAF Pays de la Loire - SRISE - FranceAgriMer
A5: 1 – COTATION REGIONALE GRAND OUEST ENTREE ABATTOIR en €/Kg net
A7: 2 – MOYENNE NATIONALE DES BOVINS MAIGRES DESTINES A L'ENGRAISSEMENT CHAROLAIS MALE de 6-12 mois catégorie U (350kg) en €/kg vif
A9: 3 – COTATION DES GROS BOVINS VIFS SUR LE MARCHE DE CHOLET (en Euro/Kg Net) – à partir de la ligne 72
C11: Mis à jour : 29/01/2023 | P11: Mis à jour : 29/01/2023
C12: 1 – COTATION REGIONALE ENTREE ABATTOIR GRAND OUEST FRANCEAGRIMER-HEBDOMADAIRE (€/Kg net) | P12: 2 – COT. HEBDO
P13: MAIGRE €/kg vif
A14: Année | B14: Sem. | C14: JEUNES BOVINS | F14: BOEUFS | G14: VACHES | L14: GENISSES | O14: NANTES | P14: Ref. nationale | Q14: Sem. | S14: Vache Viande R | V14: Vache lait P
C15: VIANDE | E15: MIXTE | F15: MIXTE | G15: VIANDE | I15: Blonde | J15: MIXTE | K15: LAIT | L15: VIANDES + 350kg | P15: Charolais Mâles | S15: Evolution/semaine -1 | T15: ="Evolution/ semaine id " & A17-1 -> Evolution/ semaine id 2021 | U15: Evolution/semaine id moy. 5 ans | V15: Evolution/semaine -1 | W15: ="Evolution/ semaine id " & A17-1 -> Evolution/ semaine id 2021 | X15: Evolution/semaine id moy. 5 ans
C16: U | D16: R | E16: O | F16: O | G16: U | H16: R | I16: U | J16: O | K16: P | L16: U | M16: R | P16: 6/12 mois ( U ) 350
A17: 2022 | B17: 1 | C17: 4.6 | D17: 4.44 | E17: 3.79 | F17: 3.8 | G17: 4.88 | H17: 4.38 | I17: 5.5 | J17: 3.76 | K17: 3.48 | L17: 5.1 | M17: 4.32 | P17: 2.72 | Q17: 1 | S17: =(H17-GrosBovins2021!H68)/GrosBovins2021!H68 -> 0 | T17: =(H17-GrosBovins2021!H17)/GrosBovins2021!H17 -> 0.08684863524 | U17: =(H17-MoyQuinqHebdoGB!AL5)/MoyQuinqHebdoGB!AL5 -> -0.04699738903 | V17: =(K17-GrosBovins2021!K68)/GrosBovins2021!K68 -> 0.01457725948 | W17: =(K17-GrosBovins2021!K17)/GrosBovins2021!K17 -> 0.2608695652 | X17: =(K17-MoyQuinqHebdoGB!BD5)/MoyQuinqHebdoGB!BD5 -> 0.005780346821
B18: 2 | C18: 4.62 | D18: 4.46 | E18: 3.82 | F18: 3.81 | G18: 4.87 | H18: 4.41 | I18: 5.52 | J18: 3.79 | K18: 3.52 | L18: 5.08 | M18: 4.38 | O18: 2.82 | P18: 2.78 | Q18: 2 | S18: =(H18-H17)/H17 -> 0.006849315068 | T18: =(H18-GrosBovins2021!H18)/GrosBovins2021!H18 -> 0.09975062344 | U18: =(H18-MoyQuinqHebdoGB!AL6)/MoyQuinqHebdoGB!AL6 -> -0.04379878578 | V18: =(K18-K17)/K17 -> 0.01149425287 | W18: =(K18-GrosBovins2021!K18)/GrosBovins2021!K18 -> 0.2707581227 | X18: =(K18-MoyQuinqHebdoGB!BD6)/MoyQuinqHebdoGB!BD6 -> 0.00975329891
B19: 3 | C19: 4.65 | D19: 4.5 | E19: 3.82 | F19: 3.85 | G19: 4.97 | H19: 4.44 | I19: 5.54 | J19: 3.82 | K19: 3.59 | L19: 5.25 | M19: 4.4 | O19: 2.82 | P19: 2.79 | Q19: 3 | S19: 0.006802721088 | T19: =(H19-GrosBovins2021!H19)/GrosBovins2021!H19 -> 0.1044776119 | U19: =(H19-MoyQuinqHebdoGB!AL7)/MoyQuinqHebdoGB!AL7 -> -0.03771131339 | V19: =(K19-K18)/K18 -> 0.01988636364 | W19: =(K19-GrosBovins2021!K19)/GrosBovins2021!K19 -> 0.2960288809 | X19: =(K19-MoyQuinqHebdoGB!BD7)/MoyQuinqHebdoGB!BD7 -> 0.02395892755
A20: J | B20: 4 | C20: 4.69 | D20: 4.51 | E20: 3.87 | F20: 3.89 | G20: 4.92 | H20: 4.46 | I20: 5.6 | J20: 3.86 | K20: 3.65 | L20: 5.21 | M20: 4.44 | O20: 2.85 | P20: 2.84 | Q20: 4 | S20: 0.004504504505 | T20: =(H20-GrosBovins2021!H20)/GrosBovins2021!H20 -> 0.1066997519 | U20: =(H20-MoyQuinqHebdoGB!AL8)/MoyQuinqHebdoGB!AL8 -> -0.03421394543 | V20: 0.01671309192 | W20: =(K20-GrosBovins2021!K20)/GrosBovins2021!K20 -> 0.3129496403 | X20: =(K20-MoyQuinqHebdoGB!BD8)/MoyQuinqHebdoGB!BD8 -> 0.03575482406
B21: 5 | C21: 4.73 | D21: 4.57 | E21: 3.94 | F21: 3.93 | G21: 4.98 | H21: 4.52 | I21: 5.54 | J21: 3.91 | K21: 3.75 | L21: 5.24 | M21: 4.45 | O21: 2.85 | P21: 2.84 | Q21: 5 | S21: 0.0134529148 | T21: =(H21-GrosBovins2021!H21)/GrosBovins2021!H21 -> 0.1160493827 | U21: =(H21-MoyQuinqHebdoGB!AL9)/MoyQuinqHebdoGB!AL9 -> -0.02586206897 | V21: 0.02739726027 | W21: =(K21-GrosBovins2021!K21)/GrosBovins2021!K21 -> 0.3489208633 | X21: =(K21-MoyQuinqHebdoGB!BD9)/MoyQuinqHebdoGB!BD9 -> 0.05812641084
B22: 6 | C22: 4.8 | D22: 4.63 | E22: 4.01 | F22: 4.05 | G22: 5.02 | H22: 4.59 | I22: 5.62 | J22: 4.01 | K22: 3.84 | L22: 5.3 | M22: 4.51 | O22: 2.85 | P22: 2.9 | Q22: 6 | S22: 0.01548672566 | T22: =(H22-GrosBovins2021!H22)/GrosBovins2021!H22 -> 0.1389578164 | U22: =(H22-MoyQuinqHebdoGB!AL10)/MoyQuinqHebdoGB!AL10 -> -0.01417525773 | V22: 0.024 | W22: =(K22-GrosBovins2021!K22)/GrosBovins2021!K22 -> 0.376344086 | X22: =(K22-MoyQuinqHebdoGB!BD10)/MoyQuinqHebdoGB!BD10 -> 0.0756302521
B23: 7 | C23: 4.86 | D23: 4.71 | E23: 4.12 | F23: 4.14 | G23: 5.05 | H23: 4.65 | I23: 5.63 | J23: 4.12 | K23: 3.96 | L23: 5.24 | M23: 4.61 | O23: 2.88 | P23: 2.96 | Q23: 7 | S23: 0.01307189542 | T23: =(H23-GrosBovins2021!H23)/GrosBovins2021!H23 -> 0.1481481481 | U23: =(H23-MoyQuinqHebdoGB!AL11)/MoyQuinqHebdoGB!AL11 -> -0.003001715266 | V23: 0.03125 | W23: =(K23-GrosBovins2021!K23)/GrosBovins2021!K23 -> 0.409252669 | X23: =(K23-MoyQuinqHebdoGB!BD11)/MoyQuinqHebdoGB!BD11 -> 0.09513274336
A24: F | B24: 8 | C24: 4.94 | D24: 4.76 | E24: 4.27 | F24: 4.28 | G24: 5.14 | H24: 4.76 | I24: 5.65 | J24: 4.25 | K24: 4.14 | L24: 5.34 | M24: 4.71 | O24: 2.93 | P24: 3.04 | Q24: 8 | S24: 0.02365591398 | T24: =(H24-GrosBovins2021!H24)/GrosBovins2021!H24 -> 0.1695331695 | U24: =(H24-MoyQuinqHebdoGB!AL12)/MoyQuinqHebdoGB!AL12 -> 0.0136286201 | V24: 0.04545454545 | W24: =(K24-GrosBovins2021!K24)/GrosBovins2021!K24 -> 0.4628975265 | X24: =(K24-MoyQuinqHebdoGB!BD12)/MoyQuinqHebdoGB!BD12 -> 0.1280653951
B25: 9 | C25: 4.98 | D25: 4.82 | E25: 4.34 | F25: 4.33 | G25: 5.1 | H25: 4.8 | I25: 5.65 | J25: 4.33 | K25: 4.21 | L25: 5.41 | M25: 4.74 | O25: 2.98 | P25: 3.13 | Q25: 9 | S25: 0.008403361345 | T25: =(H25-GrosBovins2021!H25)/GrosBovins2021!H25 -> 0.173594132 | U25: =(H25-MoyQuinqHebdoGB!AL13)/MoyQuinqHebdoGB!AL13 -> 0.01867572156 | V25: 0.01690821256 | W25: =(K25-GrosBovins2021!K25)/GrosBovins2021!K25 -> 0.472027972 | X25: =(K25-MoyQuinqHebdoGB!BD13)/MoyQuinqHebdoGB!BD13 -> 0.1353829558
B26: 10 | C26: 5.02 | D26: 4.85 | E26: 4.42 | F26: 4.4 | G26: 5.19 | H26: 4.85 | I26: 5.68 | J26: 4.39 | K26: 4.25 | L26: 5.36 | M26: 4.78 | O26: 3.05 | P26: 3.2 | Q26: 10 | S26: 0.01041666667 | T26: =(H26-GrosBovins2021!H26)/GrosBovins2021!H26 -> 0.1829268293 | U26: =(H26-MoyQuinqHebdoGB!AL14)/MoyQuinqHebdoGB!AL14 -> 0.0236386661 | V26: 0.009501187648 | W26: =(K26-GrosBovins2021!K26)/GrosBovins2021!K26 -> 0.4655172414 | X26: =(K26-MoyQuinqHebdoGB!BD14)/MoyQuinqHebdoGB!BD14 -> 0.1351495726
B27: 11 | C27: 5.06 | D27: 4.88 | E27: 4.47 | F27: 4.5 | G27: 5.28 | H27: 4.91 | I27: 5.71 | J27: 4.45 | K27: 4.29 | L27: 5.46 | M27: 4.85 | O27: 3.15 | P27: 3.24 | Q27: 11 | S27: 0.01237113402 | T27: =(H27-GrosBovins2021!H27)/GrosBovins2021!H27 -> 0.2004889976 | U27: =(H27-MoyQuinqHebdoGB!AL15)/MoyQuinqHebdoGB!AL15 -> 0.03238015139 | V27: 0.009411764706 | W27: =(K27-GrosBovins2021!K27)/GrosBovins2021!K27 -> 0.4591836735 | X27: =(K27-MoyQuinqHebdoGB!BD15)/MoyQuinqHebdoGB!BD15 -> 0.1367249603
B28: 12 | C28: 5.09 | D28: 4.91 | E28: 4.51 | F28: 4.56 | G28: 5.27 | H28: 4.94 | I28: 5.7 | J28: 4.5 | K28: 4.34 | L28: 5.47 | M28: 4.88 | O28: 3.2 | P28: 3.25 | Q28: 12 | S28: 0.006109979633 | T28: =(H28-GrosBovins2021!H28)/GrosBovins2021!H28 -> 0.1990291262 | U28: =(H28-MoyQuinqHebdoGB!AL16)/MoyQuinqHebdoGB!AL16 -> 0.035639413 | V28: 0.01165501166 | W28: =(K28-GrosBovins2021!K28)/GrosBovins2021!K28 -> 0.4711864407 | X28: =(K28-MoyQuinqHebdoGB!BD16)/MoyQuinqHebdoGB!BD16 -> 0.1451187335
A29: M | B29: 13 | C29: 5.11 | D29: 4.94 | E29: 4.56 | F29: 4.61 | G29: 5.3 | H29: 4.99 | I29: 5.81 | J29: 4.55 | K29: 4.39 | L29: 5.58 | M29: 4.93 | O29: 3.25 | P29: 3.28 | Q29: 13 | S29: 0.01012145749 | T29: =(H29-GrosBovins2021!H29)/GrosBovins2021!H29 -> 0.2170731707 | U29: =(H29-MoyQuinqHebdoGB!AL17)/MoyQuinqHebdoGB!AL17 -> 0.04787904242 | V29: 0.01152073733 | W29: =(K29-GrosBovins2021!K29)/GrosBovins2021!K29 -> 0.4831081081 | X29: =(K29-MoyQuinqHebdoGB!BD17)/MoyQuinqHebdoGB!BD17 -> 0.1540483701
B30: 14 | C30: 5.13 | D30: 4.98 | E30: 4.61 | F30: 4.64 | G30: 5.59 | H30: 5.01 | I30: 5.86 | J30: 4.6 | K30: 4.44 | L30: 5.67 | M30: 4.99 | O30: 3.3 | P30: 3.31 | Q30: 14 | S30: 0.004008016032 | T30: =(H30-GrosBovins2021!H30)/GrosBovins2021!H30 -> 0.2249388753 | U30: =(H30-MoyQuinqHebdoGB!AL18)/MoyQuinqHebdoGB!AL18 -> 0.05075503356 | V30: 0.01138952164 | W30: =(K30-GrosBovins2021!K30)/GrosBovins2021!K30 -> 0.4949494949 | X30: =(K30-MoyQuinqHebdoGB!BD18)/MoyQuinqHebdoGB!BD18 -> 0.1665790857
B31: 15 | C31: 5.17 | D31: 4.99 | E31: 4.67 | F31: 4.69 | G31: 5.38 | H31: 5.06 | I31: 5.77 | J31: 4.64 | K31: 4.49 | L31: 5.59 | M31: 5.03 | O31: 3.35 | P31: 3.33 | Q31: 15 | S31: =(H31-H30)/H30 -> 0.00998003992 | T31: =(H31-GrosBovins2021!H31)/GrosBovins2021!H31 -> 0.2341463415 | U31: =(H31-MoyQuinqHebdoGB!AL19)/MoyQuinqHebdoGB!AL19 -> 0.06347204708 | V31: 0.01126126126 | W31: =(K31-GrosBovins2021!K31)/GrosBovins2021!K31 -> 0.5117845118 | X31: =(K31-MoyQuinqHebdoGB!BD19)/MoyQuinqHebdoGB!BD19 -> 0.1803364879
B32: 16 | C32: 5.21 | D32: 5.02 | E32: 4.74 | F32: 4.74 | G32: 5.4 | H32: 5.1 | I32: 5.79 | J32: 4.7 | K32: 4.55 | L32: 5.57 | M32: 5.09 | O32: 3.35 | P32: 3.35 | Q32: 16 | S32: =(H32-H31)/H31 -> 0.00790513834 | T32: =(H32-GrosBovins2021!H32)/GrosBovins2021!H32 -> 0.2469437653 | U32: =(H32-MoyQuinqHebdoGB!AL20)/MoyQuinqHebdoGB!AL20 -> 0.06873428332 | V32: 0.01336302895 | W32: =(K32-GrosBovins2021!K32)/GrosBovins2021!K32 -> 0.5268456376 | X32: =(K32-MoyQuinqHebdoGB!BD20)/MoyQuinqHebdoGB!BD20 -> 0.1929732564
A33: A | B33: 17 | C33: 5.24 | D33: 5.07 | E33: 4.78 | F33: 4.79 | G33: 5.44 | H33: 5.14 | I33: 5.8 | J33: 4.77 | K33: 4.64 | L33: 5.58 | M33: 5.12 | O33: 3.4 | P33: 3.37 | Q33: 17 | S33: 0.007843137255 | T33: =(H33-GrosBovins2021!H33)/GrosBovins2021!H33 -> 0.2536585366 | U33: =(H33-MoyQuinqHebdoGB!AL21)/MoyQuinqHebdoGB!AL21 -> 0.07621440536 | V33: 0.01978021978 | W33: =(K33-GrosBovins2021!K33)/GrosBovins2021!K33 -> 0.5570469799 | X33: =(K33-MoyQuinqHebdoGB!BD21)/MoyQuinqHebdoGB!BD21 -> 0.2095933264
B34: 18 | C34: 5.28 | D34: 5.12 | E34: 4.89 | F34: 4.9 | G34: 5.46 | H34: 5.18 | I34: 5.83 | J34: 4.88 | K34: 4.74 | L34: 5.65 | M34: 5.17 | O34: 3.4 | P34: 3.4 | Q34: 18 | S34: 0.007782101167 | T34: =(H34-GrosBovins2021!H34)/GrosBovins2021!H34 -> 0.2634146341 | U34: =(H34-MoyQuinqHebdoGB!AL22)/MoyQuinqHebdoGB!AL22 -> 0.08051731331 | V34: 0.02155172414 | W34: =(K34-GrosBovins2021!K34)/GrosBovins2021!K34 -> 0.5852842809 | X34: =(K34-MoyQuinqHebdoGB!BD22)/MoyQuinqHebdoGB!BD22 -> 0.2260734609
B35: 19 | C35: 5.3 | D35: 5.15 | E35: 4.97 | F35: 4.98 | G35: 5.45 | H35: 5.21 | I35: 5.88 | J35: 4.94 | K35: 4.79 | L35: 5.68 | M35: 5.22 | O35: 3.4 | P35: 3.44 | Q35: 19 | S35: 0.005791505792 | T35: =(H35-GrosBovins2021!H35)/GrosBovins2021!H35 -> 0.2769607843 | U35: =(H35-MoyQuinqHebdoGB!AL23)/MoyQuinqHebdoGB!AL23 -> 0.08496459808 | V35: 0.01054852321 | W35: =(K35-GrosBovins2021!K35)/GrosBovins2021!K35 -> 0.602006689 | X35: =(K35-MoyQuinqHebdoGB!BD23)/MoyQuinqHebdoGB!BD23 -> 0.2332646756
B36: 20 | C36: 5.31 | D36: 5.18 | E36: 4.98 | F36: 5.01 | G36: 5.53 | H36: 5.24 | I36: 5.88 | J36: 4.98 | K36: 4.83 | L36: 5.76 | M36: 5.23 | O36: 3.4 | P36: 3.44 | Q36: 20 | S36: 0.00575815739 | T36: =(H36-GrosBovins2021!H36)/GrosBovins2021!H36 -> 0.2811735941 | U36: =(H36-MoyQuinqHebdoGB!AL24)/MoyQuinqHebdoGB!AL24 -> 0.08803986711 | V36: 0.008350730689 | W36: =(K36-GrosBovins2021!K36)/GrosBovins2021!K36 -> 0.6046511628 | X36: =(K36-MoyQuinqHebdoGB!BD24)/MoyQuinqHebdoGB!BD24 -> 0.23340143
A37: M | B37: 21 | C37: 5.32 | D37: 5.17 | E37: 5 | F37: 5.03 | G37: 5.56 | H37: 5.27 | I37: 5.9 | J37: 5 | K37: 4.84 | L37: 5.74 | M37: 5.22 | O37: 3.4 | P37: 3.4 | Q37: 21 | S37: 0.00572519084 | T37: =(H37-GrosBovins2021!H37)/GrosBovins2021!H37 -> 0.2885085575 | U37: =(H37-MoyQuinqHebdoGB!AL25)/MoyQuinqHebdoGB!AL25 -> 0.09154929577 | V37: 0.002070393375 | W37: =(K37-GrosBovins2021!K37)/GrosBovins2021!K37 -> 0.597359736 | X37: =(K37-MoyQuinqHebdoGB!BD25)/MoyQuinqHebdoGB!BD25 -> 0.2309257375
B38: 22 | C38: 5.33 | D38: 5.18 | E38: 5.02 | F38: 5.04 | G38: 5.65 | H38: 5.27 | I38: 5.9 | J38: 5.02 | K38: 4.86 | L38: 5.8 | M38: 5.28 | O38: 3.45 | P38: 3.45 | Q38: 22 | S38: 0 | T38: =(H38-GrosBovins2021!H38)/GrosBovins2021!H38 -> 0.2853658537 | U38: =(H38-MoyQuinqHebdoGB!AL26)/MoyQuinqHebdoGB!AL26 -> 0.08749484111 | V38: 0.004132231405 | W38: =(K38-GrosBovins2021!K38)/GrosBovins2021!K38 -> 0.5882352941 | X38: =(K38-MoyQuinqHebdoGB!BD26)/MoyQuinqHebdoGB!BD26 -> 0.2272727273
B39: 23 | C39: 5.33 | D39: 5.2 | E39: 5.02 | F39: 5.08 | G39: 5.57 | H39: 5.29 | I39: 5.96 | J39: 5.04 | K39: 4.87 | L39: 5.7 | M39: 5.29 | O39: 3.45 | P39: 3.47 | Q39: 23 | S39: 0.003795066414 | T39: =(H39-GrosBovins2021!H39)/GrosBovins2021!H39 -> 0.2871046229 | U39: =(H39-MoyQuinqHebdoGB!AL27)/MoyQuinqHebdoGB!AL27 -> 0.08579638752 | V39: 0.002057613169 | W39: =(K39-GrosBovins2021!K39)/GrosBovins2021!K39 -> 0.5811688312 | X39: =(K39-MoyQuinqHebdoGB!BD27)/MoyQuinqHebdoGB!BD27 -> 0.2242332831
B40: 24 | C40: 5.33 | D40: 5.2 | E40: 5.03 | F40: 5.1 | G40: 5.56 | H40: 5.29 | I40: 5.95 | J40: 5.05 | K40: 4.87 | L40: 5.74 | M40: 5.31 | O40: 3.45 | P40: 3.48 | Q40: 24 | S40: 0 | T40: =(H40-GrosBovins2021!H40)/GrosBovins2021!H40 -> 0.2777777778 | U40: =(H40-MoyQuinqHebdoGB!AL28)/MoyQuinqHebdoGB!AL28 -> 0.081799591 | V40: 0 | W40: =(K40-GrosBovins2021!K40)/GrosBovins2021!K40 -> 0.5659163987 | X40: =(K40-MoyQuinqHebdoGB!BD28)/MoyQuinqHebdoGB!BD28 -> 0.2205513784
B41: 25 | C41: 5.33 | D41: 5.19 | E41: 5.03 | F41: 5.12 | G41: 5.52 | H41: 5.29 | I41: 5.95 | J41: 5.05 | K41: 4.87 | L41: 5.75 | M41: 5.3 | O41: 3.45 | P41: 3.48 | Q41: 25 | S41: 0 | T41: =(H41-GrosBovins2021!H41)/GrosBovins2021!H41 -> 0.2902439024 | U41: =(H41-MoyQuinqHebdoGB!AL29)/MoyQuinqHebdoGB!AL29 -> 0.08401639344 | V41: 0 | W41: =(K41-GrosBovins2021!K41)/GrosBovins2021!K41 -> 0.5608974359 | X41: =(K41-MoyQuinqHebdoGB!BD29)/MoyQuinqHebdoGB!BD29 -> 0.2199398798
A42: J | B42: 26 | C42: 5.33 | D42: 5.2 | E42: 5.01 | F42: 5.11 | G42: 5.49 | H42: 5.3 | I42: 5.98 | J42: 5.05 | K42: 4.88 | L42: 5.68 | M42: 5.29 | O42: 3.43 | P42: 3.48 | Q42: 26 | S42: 0.001890359168 | T42: =(H42-GrosBovins2021!H42)/GrosBovins2021!H42 -> 0.286407767 | U42: =(H42-MoyQuinqHebdoGB!AL30)/MoyQuinqHebdoGB!AL30 -> 0.08207431605 | V42: 0.00205338809 | W42: =(K42-GrosBovins2021!K42)/GrosBovins2021!K42 -> 0.5541401274 | X42: =(K42-MoyQuinqHebdoGB!BD30)/MoyQuinqHebdoGB!BD30 -> 0.223671013
B43: 27 | C43: 5.33 | D43: 5.19 | E43: 5.05 | F43: 5.13 | G43: 5.61 | H43: 5.29 | I43: 5.94 | J43: 5.05 | K43: 4.87 | L43: 5.8 | M43: 5.31 | O43: 3.43 | P43: 3.46 | Q43: 27 | S43: -0.001886792453 | T43: =(H43-GrosBovins2021!H43)/GrosBovins2021!H43 -> 0.2777777778 | U43: =(H43-MoyQuinqHebdoGB!AL31)/MoyQuinqHebdoGB!AL31 -> 0.081799591 | V43: -0.002049180328 | W43: =(K43-GrosBovins2021!K43)/GrosBovins2021!K43 -> 0.546031746 | X43: =(K43-MoyQuinqHebdoGB!BD31)/MoyQuinqHebdoGB!BD31 -> 0.2236180905
B44: 28 | C44: 5.31 | D44: 5.17 | E44: 5.06 | F44: 5.13 | G44: 5.57 | H44: 5.28 | I44: 5.95 | J44: 5.06 | K44: 4.87 | L44: 5.75 | M44: 5.3 | O44: 3.43 | P44: 3.46 | Q44: 28 | S44: -0.001890359168 | T44: =(H44-GrosBovins2021!H44)/GrosBovins2021!H44 -> 0.2753623188 | U44: =(H44-MoyQuinqHebdoGB!AL32)/MoyQuinqHebdoGB!AL32 -> 0.08063855915 | V44: 0 | W44: =(K44-GrosBovins2021!K44)/GrosBovins2021!K44 -> 0.5411392405 | X44: =(K44-MoyQuinqHebdoGB!BD32)/MoyQuinqHebdoGB!BD32 -> 0.2248490946
B45: 29 | C45: 5.31 | D45: 5.16 | E45: 5.04 | F45: 5.14 | G45: 5.6 | H45: 5.3 | I45: 5.97 | J45: 5.08 | K45: 4.9 | L45: 5.78 | M45: 5.3 | O45: 3.43 | P45: 3.46 | Q45: 29 | S45: 0.003787878788 | T45: =(H45-GrosBovins2021!H45)/GrosBovins2021!H45 -> 0.2832929782 | U45: =(H45-MoyQuinqHebdoGB!AL33)/MoyQuinqHebdoGB!AL33 -> 0.08340147179 | V45: 0.006160164271 | W45: =(K45-GrosBovins2021!K45)/GrosBovins2021!K45 -> 0.5408805031 | X45: =(K45-MoyQuinqHebdoGB!BD33)/MoyQuinqHebdoGB!BD33 -> 0.2317747612
A46: J | B46: 30 | C46: 5.3 | D46: 5.16 | E46: 5.04 | F46: 5.13 | G46: 5.56 | H46: 5.28 | I46: 5.86 | J46: 5.08 | K46: 4.87 | L46: 5.69 | M46: 5.29 | O46: 3.43 | P46: 3.41 | Q46: 30 | S46: -0.003773584906 | T46: =(H46-GrosBovins2021!H46)/GrosBovins2021!H46 -> 0.2784503632 | U46: =(H46-MoyQuinqHebdoGB!AL34)/MoyQuinqHebdoGB!AL34 -> 0.08063855915 | V46: -0.00612244898 | W46: =(K46-GrosBovins2021!K46)/GrosBovins2021!K46 -> 0.521875 | X46: =(K46-MoyQuinqHebdoGB!BD34)/MoyQuinqHebdoGB!BD34 -> 0.2254655259
B47: 31 | C47: 5.29 | D47: 5.16 | E47: 5.04 | F47: 5.14 | G47: 5.5 | H47: 5.19 | I47: 5.9 | J47: 5.07 | K47: 4.86 | L47: 5.65 | M47: 5.21 | O47: 3.4 | P47: 3.39 | Q47: 31 | S47: -0.01704545455 | T47: =(H47-GrosBovins2021!H47)/GrosBovins2021!H47 -> 0.2475961538 | U47: =(H47-MoyQuinqHebdoGB!AL35)/MoyQuinqHebdoGB!AL35 -> 0.06396063961 | V47: -0.00205338809 | W47: =(K47-GrosBovins2021!K47)/GrosBovins2021!K47 -> 0.5093167702 | X47: =(K47-MoyQuinqHebdoGB!BD35)/MoyQuinqHebdoGB!BD35 -> 0.2229491696
B48: 32 | C48: 5.28 | D48: 5.15 | E48: 5.03 | F48: 5.14 | G48: 5.53 | H48: 5.28 | I48: 5.92 | J48: 5.08 | K48: 4.86 | L48: 5.79 | M48: 5.29 | O48: 3.35 | P48: 3.38 | Q48: 32 | S48: 0.01734104046 | T48: =(H48-GrosBovins2021!H48)/GrosBovins2021!H48 -> 0.2722891566 | U48: =(H48-MoyQuinqHebdoGB!AL36)/MoyQuinqHebdoGB!AL36 -> 0.0766721044 | V48: 0 | W48: =(K48-GrosBovins2021!K48)/GrosBovins2021!K48 -> 0.4953846154 | X48: =(K48-MoyQuinqHebdoGB!BD36)/MoyQuinqHebdoGB!BD36 -> 0.219267436
B49: 33 | C49: 5.29 | D49: 5.14 | E49: 5.02 | F49: 5.14 | G49: 5.61 | H49: 5.29 | I49: 5.95 | J49: 5.08 | K49: 4.87 | L49: 5.75 | M49: 5.31 | O49: 3.35 | P49: 3.35 | Q49: 33 | S49: 0.001893939394 | T49: =(H49-GrosBovins2021!H49)/GrosBovins2021!H49 -> 0.2716346154 | U49: =(H49-MoyQuinqHebdoGB!AL37)/MoyQuinqHebdoGB!AL37 -> 0.07520325203 | V49: 0.002057613169 | W49: =(K49-GrosBovins2021!K49)/GrosBovins2021!K49 -> 0.4938650307 | X49: =(K49-MoyQuinqHebdoGB!BD37)/MoyQuinqHebdoGB!BD37 -> 0.2144638404
A50: A | B50: 34 | C50: 5.3 | D50: 5.15 | E50: 5.04 | F50: 5.13 | G50: 5.58 | H50: 5.29 | I50: 5.95 | J50: 5.08 | K50: 4.86 | L50: 5.75 | M50: 5.3 | O50: 3.35 | P50: 3.36 | Q50: 34 | S50: 0 | T50: =(H50-GrosBovins2021!H50)/GrosBovins2021!H50 -> 0.2625298329 | U50: =(H50-MoyQuinqHebdoGB!AL38)/MoyQuinqHebdoGB!AL38 -> 0.07171799028 | V50: -0.00205338809 | W50: =(K50-GrosBovins2021!K50)/GrosBovins2021!K50 -> 0.4772036474 | X50: =(K50-MoyQuinqHebdoGB!BD38)/MoyQuinqHebdoGB!BD38 -> 0.2041625372
B51: 35 | C51: 5.29 | D51: 5.16 | E51: 5.04 | F51: 5.14 | G51: 5.59 | H51: 5.31 | I51: 5.97 | J51: 5.08 | K51: 4.86 | L51: 5.76 | M51: 5.31 | O51: 3.38 | P51: 3.36 | Q51: 35 | S51: 0.003780718336 | T51: =(H51-GrosBovins2021!H51)/GrosBovins2021!H51 -> 0.2612826603 | U51: =(H51-MoyQuinqHebdoGB!AL39)/MoyQuinqHebdoGB!AL39 -> 0.0709963695 | V51: 0 | W51: =(K51-GrosBovins2021!K51)/GrosBovins2021!K51 -> 0.4727272727 | X51: =(K51-MoyQuinqHebdoGB!BD39)/MoyQuinqHebdoGB!BD39 -> 0.2
B52: 36 | C52: 5.29 | D52: 5.17 | E52: 5.06 | F52: 5.13 | G52: 5.6 | H52: 5.32 | I52: 5.97 | J52: 5.1 | K52: 4.86 | L52: 5.73 | M52: 5.32 | O52: 3.4 | P52: 3.4 | Q52: 36 | S52: 0.001883239171 | T52: =(H52-GrosBovins2021!H52)/GrosBovins2021!H52 -> 0.2636579572 | U52: =(H52-MoyQuinqHebdoGB!AL40)/MoyQuinqHebdoGB!AL40 -> 0.07258064516 | V52: 0 | W52: =(K52-GrosBovins2021!K52)/GrosBovins2021!K52 -> 0.4682779456 | X52: =(K52-MoyQuinqHebdoGB!BD40)/MoyQuinqHebdoGB!BD40 -> 0.1982248521
B53: 37 | C53: 5.3 | D53: 5.18 | E53: 5.05 | F53: 5.16 | G53: 5.61 | H53: 5.34 | I53: 6.01 | J53: 5.11 | K53: 4.87 | L53: 5.76 | M53: 5.34 | O53: 3.4 | P53: 3.4 | Q53: 37 | S53: 0.003759398496 | T53: =(H53-GrosBovins2021!H53)/GrosBovins2021!H53 -> 0.2624113475 | U53: =(H53-MoyQuinqHebdoGB!AL41)/MoyQuinqHebdoGB!AL41 -> 0.07791683488 | V53: 0.002057613169 | W53: =(K53-GrosBovins2021!K53)/GrosBovins2021!K53 -> 0.4712990937 | X53: =(K53-MoyQuinqHebdoGB!BD41)/MoyQuinqHebdoGB!BD41 -> 0.2024691358
B54: 38 | C54: 5.3 | D54: 5.17 | E54: 5.06 | F54: 5.15 | G54: 5.69 | H54: 5.35 | I54: 6.01 | J54: 5.11 | K54: 4.9 | L54: 5.75 | M54: 5.34 | O54: 3.45 | P54: 3.42 | Q54: 38 | S54: 0.001872659176 | T54: =(H54-GrosBovins2021!H54)/GrosBovins2021!H54 -> 0.270783848 | U54: =(H54-MoyQuinqHebdoGB!AL42)/MoyQuinqHebdoGB!AL42 -> 0.08080808081 | V54: 0.006160164271 | W54: =(K54-GrosBovins2021!K54)/GrosBovins2021!K54 -> 0.4803625378 | X54: =(K54-MoyQuinqHebdoGB!BD42)/MoyQuinqHebdoGB!BD42 -> 0.2140733399
A55: S | B55: 39 | C55: 5.31 | D55: 5.19 | E55: 5.07 | F55: 5.19 | G55: 5.81 | H55: 5.35 | I55: 6.02 | J55: 5.13 | K55: 4.91 | L55: 5.74 | M55: 5.36 | O55: 3.45 | P55: 3.43 | Q55: 39 | S55: 0 | T55: =(H55-GrosBovins2021!H55)/GrosBovins2021!H55 -> 0.270783848 | U55: =(H55-MoyQuinqHebdoGB!AL43)/MoyQuinqHebdoGB!AL43 -> 0.08037156704 | V55: 0.002040816327 | W55: =(K55-GrosBovins2021!K55)/GrosBovins2021!K55 -> 0.4833836858 | X55: =(K55-MoyQuinqHebdoGB!BD43)/MoyQuinqHebdoGB!BD43 -> 0.2207856788
B56: 40 | C56: 5.32 | D56: 5.2 | E56: 5.07 | F56: 5.19 | H56: 5.39 | I56: 6 | J56: 5.13 | K56: 4.91 | L56: 5.76 | M56: 5.37 | O56: 3.45 | P56: 3.44 | Q56: 40 | S56: 0.007476635514 | T56: =(H56-GrosBovins2021!H56)/GrosBovins2021!H56 -> 0.2742316785 | U56: =(H56-MoyQuinqHebdoGB!AL44)/MoyQuinqHebdoGB!AL44 -> 0.0858178888 | V56: 0 | W56: =(K56-GrosBovins2021!K56)/GrosBovins2021!K56 -> 0.4878787879 | X56: =(K56-MoyQuinqHebdoGB!BD44)/MoyQuinqHebdoGB!BD44 -> 0.2268865567
B57: 41 | C57: 5.34 | D57: 5.21 | E57: 5.08 | F57: 5.19 | G57: 5.72 | H57: 5.42 | I57: 6.02 | J57: 5.14 | K57: 4.92 | L57: 5.86 | M57: 5.38 | O57: 3.45 | P57: 3.44 | Q57: 41 | S57: 0.005565862709 | T57: =(H57-GrosBovins2021!H57)/GrosBovins2021!H57 -> 0.2874109264 | U57: =(H57-MoyQuinqHebdoGB!AL45)/MoyQuinqHebdoGB!AL45 -> 0.09230149133 | V57: 0.002036659878 | W57: =(K57-GrosBovins2021!K57)/GrosBovins2021!K57 -> 0.4864048338 | X57: =(K57-MoyQuinqHebdoGB!BD45)/MoyQuinqHebdoGB!BD45 -> 0.234939759
B58: 42 | C58: 5.35 | D58: 5.23 | E58: 5.1 | F58: 5.2 | H58: 5.42 | I58: 6.04 | J58: 5.14 | K58: 4.92 | L58: 5.83 | M58: 5.37 | O58: 3.48 | P58: 3.49 | Q58: 42 | S58: 0 | T58: =(H58-GrosBovins2021!H58)/GrosBovins2021!H58 -> 0.2813238771 | U58: =(H58-MoyQuinqHebdoGB!AL46)/MoyQuinqHebdoGB!AL46 -> 0.09054325956 | V58: 0 | W58: =(K58-GrosBovins2021!K58)/GrosBovins2021!K58 -> 0.4730538922 | X58: =(K58-MoyQuinqHebdoGB!BD46)/MoyQuinqHebdoGB!BD46 -> 0.2392947103
A59: O | B59: 43 | C59: 5.36 | D59: 5.25 | E59: 5.09 | F59: 5.19 | G59: 5.66 | H59: 5.41 | I59: 6.06 | J59: 5.13 | K59: 4.89 | L59: 5.84 | M59: 5.38 | O59: 3.48 | P59: 3.49 | Q59: 43 | S59: -0.00184501845 | T59: =(H59-GrosBovins2021!H59)/GrosBovins2021!H59 -> 0.2699530516 | U59: =(H59-MoyQuinqHebdoGB!AL47)/MoyQuinqHebdoGB!AL47 -> 0.09072580645 | V59: -0.006097560976 | W59: =(K59-GrosBovins2021!K59)/GrosBovins2021!K59 -> 0.4597014925 | X59: =(K59-MoyQuinqHebdoGB!BD47)/MoyQuinqHebdoGB!BD47 -> 0.2392295996
B60: 44 | C60: 5.38 | D60: 5.25 | F60: 5.16 | H60: 5.43 | I60: 6.04 | J60: 5.09 | K60: 4.86 | L60: 5.83 | M60: 5.38 | O60: 3.48 | P60: 3.49 | Q60: 44 | S60: 0.003696857671 | T60: =(H60-GrosBovins2021!H60)/GrosBovins2021!H60 -> 0.2716627635 | U60: =(H60-MoyQuinqHebdoGB!AL48)/MoyQuinqHebdoGB!AL48 -> 0.09431680774 | V60: -0.006134969325 | W60: =(K60-GrosBovins2021!K60)/GrosBovins2021!K60 -> 0.4378698225 | X60: =(K60-MoyQuinqHebdoGB!BD48)/MoyQuinqHebdoGB!BD48 -> 0.2410623085
B61: 45 | C61: 5.39 | D61: 5.27 | E61: 5.07 | F61: 5.14 | H61: 5.42 | I61: 6.11 | J61: 5.07 | K61: 4.82 | L61: 5.88 | M61: 5.4 | O61: 3.5 | P61: 3.5 | Q61: 45 | S61: -0.001841620626 | T61: =(H61-GrosBovins2021!H61)/GrosBovins2021!H61 -> 0.2575406032 | U61: =(H61-MoyQuinqHebdoGB!AL49)/MoyQuinqHebdoGB!AL49 -> 0.0940654017 | V61: -0.008230452675 | W61: =(K61-GrosBovins2021!K61)/GrosBovins2021!K61 -> 0.4176470588 | X61: =(K61-MoyQuinqHebdoGB!BD49)/MoyQuinqHebdoGB!BD49 -> 0.2390745501
B62: 46 | C62: 5.42 | D62: 5.3 | E62: 5.07 | F62: 5.09 | H62: 5.4 | I62: 6.06 | J62: 5.05 | K62: 4.76 | L62: 5.84 | M62: 5.39 | O62: 3.5 | P62: 3.5 | Q62: 46 | S62: -0.0036900369 | T62: =(H62-GrosBovins2021!H62)/GrosBovins2021!H62 -> 0.25 | U62: =(H62-MoyQuinqHebdoGB!AL50)/MoyQuinqHebdoGB!AL50 -> 0.08783239323 | V62: -0.01244813278 | W62: =(K62-GrosBovins2021!K62)/GrosBovins2021!K62 -> 0.387755102 | X62: =(K62-MoyQuinqHebdoGB!BD50)/MoyQuinqHebdoGB!BD50 -> 0.234439834
A63: N | B63: 47 | C63: 5.46 | D63: 5.32 | E63: 5.1 | F63: 5.07 | G63: 5.8 | H63: 5.41 | I63: 6.06 | J63: 5 | K63: 4.72 | L63: 5.88 | M63: 5.41 | O63: 3.5 | P63: 3.48 | Q63: 47 | S63: 0.001851851852 | T63: =(H63-GrosBovins2021!H63)/GrosBovins2021!H63 -> 0.2523148148 | U63: =(H63-MoyQuinqHebdoGB!AL51)/MoyQuinqHebdoGB!AL51 -> 0.09337105901 | V63: -0.008403361345 | W63: =(K63-GrosBovins2021!K63)/GrosBovins2021!K63 -> 0.368115942 | X63: =(K63-MoyQuinqHebdoGB!BD51)/MoyQuinqHebdoGB!BD51 -> 0.2317327766
B64: 48 | C64: 5.49 | D64: 5.36 | E64: 5.1 | F64: 5.07 | H64: 5.42 | I64: 6.02 | J64: 4.99 | K64: 4.67 | L64: 5.82 | M64: 5.4 | O64: 3.47 | P64: 3.47 | Q64: 48 | S64: 0.001848428835 | T64: =(H64-GrosBovins2021!H64)/GrosBovins2021!H64 -> 0.2459770115 | U64: =(H64-MoyQuinqHebdoGB!AL52)/MoyQuinqHebdoGB!AL52 -> 0.09274193548 | V64: -0.01059322034 | W64: =(K64-GrosBovins2021!K64)/GrosBovins2021!K64 -> 0.3536231884 | X64: =(K64-MoyQuinqHebdoGB!BD52)/MoyQuinqHebdoGB!BD52 -> 0.2289473684
B65: 49 | C65: 5.51 | D65: 5.37 | E65: 5.11 | F65: 5.05 | G65: 6.07 | H65: 5.42 | I65: 6.13 | J65: 4.96 | K65: 4.63 | L65: 5.96 | M65: 5.42 | O65: 3.45 | P65: 3.46 | Q65: 49 | S65: 0 | T65: =(H65-GrosBovins2021!H65)/GrosBovins2021!H65 -> 0.2459770115 | U65: =(H65-MoyQuinqHebdoGB!AL53)/MoyQuinqHebdoGB!AL53 -> 0.0940654017 | V65: -0.008565310493 | W65: =(K65-GrosBovins2021!K65)/GrosBovins2021!K65 -> 0.338150289 | X65: =(K65-MoyQuinqHebdoGB!BD53)/MoyQuinqHebdoGB!BD53 -> 0.2242199894
B66: 50 | C66: 5.52 | D66: 5.38 | E66: 5.11 | F66: 5.01 | G66: 5.92 | H66: 5.41 | I66: 6.15 | J66: 4.92 | K66: 4.6 | L66: 6.01 | M66: 5.4 | O66: 3.27 | P66: 3.39 | Q66: 50 | S66: -0.00184501845 | T66: =(H66-GrosBovins2021!H66)/GrosBovins2021!H66 -> 0.2436781609 | U66: =(H66-MoyQuinqHebdoGB!AL54)/MoyQuinqHebdoGB!AL54 -> 0.1171915333 | V66: -0.006479481641 | W66: =(K66-GrosBovins2021!K66)/GrosBovins2021!K66 -> 0.3450292398 | X66: =(K66-MoyQuinqHebdoGB!BD54)/MoyQuinqHebdoGB!BD54 -> 0.2299465241
B67: 51 | C67: 5.52 | D67: 5.39 | E67: 5.1 | F67: 5.02 | H67: 5.42 | I67: 6.18 | J67: 4.91 | K67: 4.57 | L67: 5.92 | M67: 5.43 | O67: 3.27 | P67: 3.39 | Q67: 51 | S67: 0.001848428835 | T67: =(H67-GrosBovins2021!H67)/GrosBovins2021!H67 -> 0.2431192661 | U67: =(H67-MoyQuinqHebdoGB!AL55)/MoyQuinqHebdoGB!AL55 -> 0.1181021145 | V67: -0.00652173913 | W67: =(K67-GrosBovins2021!K67)/GrosBovins2021!K67 -> 0.3401759531 | X67: =(K67-MoyQuinqHebdoGB!BD55)/MoyQuinqHebdoGB!BD55 -> 0.2243804421
A68: D | B68: 52 | C68: 5.53 | D68: 5.4 | E68: 5.07 | F68: 4.99 | H68: 5.42 | I68: 6.08 | J68: 4.91 | K68: 4.59 | L68: 5.86 | M68: 5.43 | O68: 3.27 | P68: 3.39 | Q68: 52 | S68: 0 | T68: =(H68-GrosBovins2021!H68)/GrosBovins2021!H68 -> 0.2374429224 | U68: =(H68-MoyQuinqHebdoGB!AL56)/MoyQuinqHebdoGB!AL56 -> 0.1740072202 | V68: 0.004376367615 | W68: =(K68-GrosBovins2021!K68)/GrosBovins2021!K68 -> 0.3381924198 | X68: =(K68-MoyQuinqHebdoGB!BD56)/MoyQuinqHebdoGB!BD56 -> 0.279739777
A71: 3 – COTATION DES GROS BOVINS VIFS SUR LE MARCHE DE CHOLET (en Euro/Kg Net)
C73: GENISSES | E73: VACHES | I73: JEUNES BOVINS | J73: TAUREAUX
A74: semaines | B74: année+mois | C74: Viande, mixte, lait | D74: Viande, mixte, lait | E74: Blonde | F74: Blonde | G74: Mixte | H74: Lait | I74: Viande | J74: Viande, mixte, lait
A75: 2022 | C75: U | D75: R | E75: U | F75: R | G75: O | H75: P | I75: U | J75: URO
A76: 1 | B76: 202201 | C76: 4.71 | D76: 4.25 | E76: 5.15 | F76: 4.25 | G76: 3.6 | H76: 3.28 | I76: 4.45 | J76: 3.3
A77: 2 | B77: 202201 | C77: 4.74 | D77: 4.25 | E77: 5.15 | F77: 4.25 | G77: 3.65 | H77: 3.33 | I77: 4.5
A78: 3 | B78: 202201 | C78: 4.75 | D78: 4.3 | E78: 5.2 | F78: 4.3 | G78: 3.7 | H78: 3.38 | I78: 4.53 | J78: 3.4
A79: 4 | B79: 202201 | C79: 4.8 | D79: 4.35 | E79: 5.25 | F79: 4.35 | G79: 3.75 | H79: 3.43 | I79: 4.58
A80: 5 | B80: 202202 | C80: 4.85 | D80: 4.4 | E80: 5.3 | F80: 4.4 | G80: 3.8 | H80: 3.5 | I80: 4.63 | J80: 3.5
A81: 6 | B81: 202202 | E81: 5.3 | F81: 4.45 | G81: 3.85 | H81: 3.55 | I81: 4.65 | J81: 3.55
A82: 7 | B82: 202202 | C82: 4.88 | D82: 4.5 | E82: 5.3 | F82: 4.45 | G82: 3.9 | H82: 3.65 | I82: 4.68 | J82: 3.6
A83: 8 | B83: 202202 | C83: 4.92 | D83: 4.55 | E83: 5.3 | F83: 4.5 | G83: 4.05 | H83: 3.85 | I83: 4.71 | J83: 3.8
A84: 9 | B84: 202203 | C84: 4.97 | D84: 4.63 | E84: 5.35 | F84: 4.6 | G84: 4.2 | H84: 4 | I84: 4.75 | J84: 3.85
A85: 10 | B85: 202203 | C85: 5.06 | D85: 4.7 | E85: 5.4 | F85: 4.7 | G85: 4.3 | H85: 4.05 | I85: 4.8 | J85: 4
A86: 11 | B86: 202203 | C86: 5.1 | D86: 4.75 | E86: 5.4 | F86: 4.75 | G86: 4.35 | H86: 4.05 | I86: 4.85 | J86: 4.1
A87: 12 | B87: 202203 | C87: 5.14 | D87: 4.8 | E87: 5.4 | F87: 4.75 | G87: 4.4 | H87: 4.1 | I87: 4.88 | J87: 4.2
A88: 13 | B88: 202203 | C88: 5.15 | D88: 4.84 | E88: 5.4 | F88: 4.8 | G88: 4.4 | H88: 4.15 | I88: 4.9
A89: 14 | B89: 202204 | C89: 5.18 | D89: 4.85 | E89: 5.4 | F89: 4.85 | G89: 4.45 | H89: 4.2 | I89: 4.95 | J89: 4.2
A90: 15 | B90: 202204
A91: 16 | B91: 202204
A92: 17 | B92: 202204
A93: 18 | B93: 202205
A94: 19 | B94: 202205
A95: 20 | B95: 202205
A96: 21 | B96: 202205
A97: 22 | B97: 202206
A98: 23 | B98: 202206
A99: 24 | B99: 202206
A100: 25 | B100: 202206
A101: 26 | B101: 202206
A102: 27 | B102: 202207
A103: 28 | B103: 202207
A104: 29 | B104: 202207
A105: 30 | B105: 202207
A106: 31 | B106: 202208
A107: 32 | B107: 202208
A108: 33 | B108: 202208
A109: 34 | B109: 202208
A110: 35 | B110: 202209
A111: 36 | B111: 202209
A112: 37 | B112: 202209
A113: 38 | B113: 202209
A114: 39 | B114: 202209
A115: 40 | B115: 202210
A116: 41 | B116: 202210
A117: 42 | B117: 202210
A118: 43 | B118: 202210
A119: 44 | B119: 202211
A120: 45 | B120: 202211
A121: 46 | B121: 202211
A122: 47 | B122: 202211
A123: 48 | B123: 202212
A124: 49 | B124: 202212
A125: 50 | B125: 202212
A126: 51 | B126: 202212
A127: 52 | B127: 202212

Sheet GrosBovins2021
A1: COTATIONS DES GROS BOVINS
A2: Source : DRAAF Pays de la Loire - SRISE - FranceAgriMer | K2: mise à jour : 7/1/22
A5: 1 – COTATION REGIONALE GRAND OUEST ENTREE ABATTOIR en €/Kg net
A7: 2 – MOYENNE NATIONALE DES BOVINS MAIGRES DESTINES A L'ENGRAISSEMENT CHAROLAIS MALE de 6-12 mois catégorie U (300kg) en €/kg vif
A9: 3 – COTATION DES GROS BOVINS VIFS SUR LE MARCHE DE CHOLET (en Euro/Kg Net) – à partir de la ligne 72
P11: 2 – COT. HEBDO
D12: 1 – COTATION REGIONALE ENTREE ABATTOIR GRAND OUEST FRANCEAGRIMER-HEBDOMADAIRE (€/Kg net) | P12: MAIGRE €/kg vif
P13: Ref. nationale
A14: Année | B14: Sem. | C14: JEUNES BOVINS | F14: BOEUFS | G14: VACHES | L14: GENISSES | P14: Charolais Mâles | Q14: Sem. | S14: Vache Viande R | V14: Vache lait P
C15: VIANDE | E15: MIXTE | F15: MIXTE | G15: VIANDE | I15: Blonde | J15: MIXTE | K15: LAIT | L15: VIANDES + 350kg | S15: Evolution/semaine -1 | T15: Evolution/ semaine id 2020 | U15: Evolution/semaine id moy. 5 ans | V15: Evolution/semaine -1 | W15: Evolution/ semaine id 2019 | X15: Evolution/semaine id moy. 5 ans
C16: U | D16: R | E16: O | F16: O | G16: U | H16: R | I16: U | J16: O | K16: P | L16: U | M16: R | P16: 6/12 mois ( U )
A17: 2021 | B17: 1 | C17: 3.82 | D17: 3.66 | E17: 3.39 | F17: 3.14 | G17: 4.45 | H17: 4.03 | I17: 5.17 | J17: 3.07 | K17: 2.76 | L17: 4.87 | M17: 4.03 | P17: 2.62 | Q17: 1 | S17: =(H17-GrosBovins2020!H68)/GrosBovins2020!H68 -> -0.004938271605 | T17: =(H17-MoyQuinqHebdoGB!AG5)/MoyQuinqHebdoGB!AG5 -> 0.08333333333 | U17: =(H17-MoyQuinqHebdoGB!AL5)/MoyQuinqHebdoGB!AL5 -> -0.1231505657 | V17: =(K17-GrosBovins2020!K69)/GrosBovins2020!K69 -> 0.003636363636 | W17: =(K17-GrosBovins2020!K17)/GrosBovins2020!K17 -> 0.08661417323 | X17: =(K17-MoyQuinqHebdoGB!BD5)/MoyQuinqHebdoGB!BD5 -> -0.2023121387
B18: 2 | C18: 3.82 | D18: 3.66 | E18: 3.37 | F18: 3.15 | G18: 4.56 | H18: 4.01 | I18: 5.2 | J18: 3.08 | K18: 2.77 | L18: 4.88 | M18: 4.04 | P18: 2.62 | Q18: 2 | S18: =(H18-H17)/H17 -> -0.004962779156 | T18: =(H18-GrosBovins2020!H18)/GrosBovins2020!H18 -> 0.06933333333 | U18: =(H18-MoyQuinqHebdoGB!AL6)/MoyQuinqHebdoGB!AL6 -> -0.1305290546 | V18: =(K18-K17)/K17 -> 0.003623188406 | W18: =(K18-GrosBovins2020!K18)/GrosBovins2020!K18 -> 0.07782101167 | X18: =(K18-MoyQuinqHebdoGB!BD6)/MoyQuinqHebdoGB!BD6 -> -0.2053930006
B19: 3 | C19: 3.83 | D19: 3.65 | E19: 3.45 | F19: 3.15 | G19: 4.48 | H19: 4.02 | I19: 5.16 | J19: 3.1 | K19: 2.77 | L19: 4.89 | M19: 4.02 | P19: 2.62 | Q19: 3 | S19: 0.002493765586 | T19: =(H19-GrosBovins2020!H19)/GrosBovins2020!H19 -> 0.08064516129 | U19: =(H19-MoyQuinqHebdoGB!AL7)/MoyQuinqHebdoGB!AL7 -> -0.1287386216 | V19: 0 | W19: =(K19-GrosBovins2020!K19)/GrosBovins2020!K19 -> 0.08203125 | X19: =(K19-MoyQuinqHebdoGB!BD7)/MoyQuinqHebdoGB!BD7 -> -0.2099258414
A20: J | B20: 4 | C20: 3.84 | D20: 3.67 | E20: 3.41 | F20: 3.17 | G20: 4.59 | H20: 4.03 | I20: 5.17 | J20: 3.09 | K20: 2.78 | L20: 4.77 | M20: 4.02 | P20: 2.59 | Q20: 4 | S20: 0.002487562189 | T20: =(H20-GrosBovins2020!H20)/GrosBovins2020!H20 -> 0.08625336927 | U20: =(H20-MoyQuinqHebdoGB!AL8)/MoyQuinqHebdoGB!AL8 -> -0.1273278476 | V20: 0.003610108303 | W20: =(K20-GrosBovins2020!K20)/GrosBovins2020!K20 -> 0.09019607843 | X20: =(K20-MoyQuinqHebdoGB!BD8)/MoyQuinqHebdoGB!BD8 -> -0.211123723
B21: 5 | C21: 3.85 | D21: 3.67 | E21: 3.43 | F21: 3.17 | G21: 4.52 | H21: 4.05 | I21: 5.21 | J21: 3.11 | K21: 2.78 | L21: 4.84 | M21: 4 | P21: 2.59 | Q21: 5 | S21: 0.004962779156 | T21: =(H21-GrosBovins2020!H21)/GrosBovins2020!H21 -> 0.08870967742 | U21: =(H21-MoyQuinqHebdoGB!AL9)/MoyQuinqHebdoGB!AL9 -> -0.1271551724 | V21: 0 | W21: =(K21-GrosBovins2020!K21)/GrosBovins2020!K21 -> 0.09448818898 | X21: =(K21-MoyQuinqHebdoGB!BD9)/MoyQuinqHebdoGB!BD9 -> -0.2155756208
B22: 6 | C22: 3.86 | D22: 3.69 | E22: 3.41 | F22: 3.19 | G22: 4.58 | H22: 4.03 | I22: 5.21 | J22: 3.11 | K22: 2.79 | L22: 4.92 | M22: 3.99 | P22: 2.59 | Q22: 6 | S22: -0.004938271605 | T22: =(H22-GrosBovins2020!H22)/GrosBovins2020!H22 -> 0.08042895442 | U22: =(H22-MoyQuinqHebdoGB!AL10)/MoyQuinqHebdoGB!AL10 -> -0.1344501718 | V22: 0.003597122302 | W22: =(K22-GrosBovins2020!K22)/GrosBovins2020!K22 -> 0.1027667984 | X22: =(K22-MoyQuinqHebdoGB!BD10)/MoyQuinqHebdoGB!BD10 -> -0.218487395
B23: 7 | C23: 3.88 | D23: 3.71 | E23: 3.43 | F23: 3.18 | G23: 4.52 | H23: 4.05 | I23: 5.2 | J23: 3.13 | K23: 2.81 | L23: 4.79 | M23: 4 | P23: 2.59 | Q23: 7 | S23: 0.004962779156 | T23: =(H23-GrosBovins2020!H23)/GrosBovins2020!H23 -> 0.09459459459 | U23: =(H23-MoyQuinqHebdoGB!AL11)/MoyQuinqHebdoGB!AL11 -> -0.1316466552 | V23: 0.007168458781 | W23: =(K23-GrosBovins2020!K23)/GrosBovins2020!K23 -> 0.1019607843 | X23: =(K23-MoyQuinqHebdoGB!BD11)/MoyQuinqHebdoGB!BD11 -> -0.2228982301
A24: F | B24: 8 | C24: 3.9 | D24: 3.73 | E24: 3.45 | F24: 3.2 | G24: 4.53 | H24: 4.07 | I24: 5.27 | J24: 3.15 | K24: 2.83 | L24: 4.8 | M24: 3.99 | P24: 2.59 | Q24: 8 | S24: 0.004938271605 | T24: =(H24-GrosBovins2020!H24)/GrosBovins2020!H24 -> 0.09408602151 | U24: =(H24-MoyQuinqHebdoGB!AL12)/MoyQuinqHebdoGB!AL12 -> -0.1333049404 | V24: 0.007117437722 | W24: =(K24-GrosBovins2020!K24)/GrosBovins2020!K24 -> 0.09689922481 | X24: =(K24-MoyQuinqHebdoGB!BD12)/MoyQuinqHebdoGB!BD12 -> -0.2288828338
B25: 9 | C25: 3.91 | D25: 3.75 | E25: 3.47 | F25: 3.23 | G25: 4.7 | H25: 4.09 | I25: 5.29 | J25: 3.17 | K25: 2.86 | L25: 4.95 | M25: 4.03 | P25: 2.62 | Q25: 9 | S25: 0.004914004914 | T25: =(H25-GrosBovins2020!H25)/GrosBovins2020!H25 -> 0.09066666667 | U25: =(H25-MoyQuinqHebdoGB!AL13)/MoyQuinqHebdoGB!AL13 -> -0.1320033956 | V25: 0.01060070671 | W25: =(K25-GrosBovins2020!K25)/GrosBovins2020!K25 -> 0.09160305344 | X25: =(K25-MoyQuinqHebdoGB!BD13)/MoyQuinqHebdoGB!BD13 -> -0.2286947141
B26: 10 | C26: 3.96 | D26: 3.78 | E26: 3.46 | F26: 3.24 | G26: 4.7 | H26: 4.1 | I26: 5.42 | J26: 3.19 | K26: 2.9 | L26: 5.06 | M26: 4.02 | P26: 2.65 | Q26: 10 | S26: 0.002444987775 | T26: =(H26-GrosBovins2020!H26)/GrosBovins2020!H26 -> 0.0875331565 | U26: =(H26-MoyQuinqHebdoGB!AL14)/MoyQuinqHebdoGB!AL14 -> -0.134655973 | V26: 0.01398601399 | W26: =(K26-GrosBovins2020!K26)/GrosBovins2020!K26 -> 0.09022556391 | X26: =(K26-MoyQuinqHebdoGB!BD14)/MoyQuinqHebdoGB!BD14 -> -0.2254273504
B27: 11 | C27: 3.99 | D27: 3.81 | E27: 3.48 | F27: 3.25 | G27: 4.73 | H27: 4.09 | I27: 5.35 | J27: 3.21 | K27: 2.94 | L27: 5.02 | M27: 4.01 | P27: 2.65 | Q27: 11 | S27: -0.00243902439 | T27: =(H27-GrosBovins2020!H27)/GrosBovins2020!H27 -> 0.08201058201 | U27: =(H27-MoyQuinqHebdoGB!AL15)/MoyQuinqHebdoGB!AL15 -> -0.1400336417 | V27: 0.01379310345 | W27: =(K27-GrosBovins2020!K27)/GrosBovins2020!K27 -> 0.1052631579 | X27: =(K27-MoyQuinqHebdoGB!BD15)/MoyQuinqHebdoGB!BD15 -> -0.2209856916
B28: 12 | C28: 4 | D28: 3.83 | E28: 3.46 | F28: 3.28 | G28: 4.97 | H28: 4.12 | I28: 5.4 | J28: 3.23 | K28: 2.95 | L28: 5.15 | M28: 4.07 | P28: 2.68 | Q28: 12 | S28: 0.007334963325 | T28: =(H28-GrosBovins2020!H28)/GrosBovins2020!H28 -> 0.08994708995 | U28: =(H28-MoyQuinqHebdoGB!AL16)/MoyQuinqHebdoGB!AL16 -> -0.1362683438 | V28: 0.003401360544 | W28: =(K28-GrosBovins2020!K28)/GrosBovins2020!K28 -> 0.1048689139 | X28: =(K28-MoyQuinqHebdoGB!BD16)/MoyQuinqHebdoGB!BD16 -> -0.2216358839
A29: M | B29: 13 | C29: 4.02 | D29: 3.85 | E29: 3.48 | F29: 3.31 | G29: 4.62 | H29: 4.1 | I29: 5.3 | J29: 3.25 | K29: 2.96 | L29: 4.89 | M29: 4.06 | P29: 2.7 | Q29: 13 | S29: -0.004854368932 | T29: =(H29-GrosBovins2020!H29)/GrosBovins2020!H29 -> 0.09625668449 | U29: =(H29-MoyQuinqHebdoGB!AL17)/MoyQuinqHebdoGB!AL17 -> -0.1390172197 | V29: 0.003389830508 | W29: =(K29-GrosBovins2020!K29)/GrosBovins2020!K29 -> 0.1044776119 | X29: =(K29-MoyQuinqHebdoGB!BD17)/MoyQuinqHebdoGB!BD17 -> -0.221871714
B30: 14 | C30: 4.03 | D30: 3.84 | E30: 3.48 | F30: 3.31 | G30: 4.63 | H30: 4.09 | I30: 5.33 | J30: 3.26 | K30: 2.97 | L30: 5.05 | M30: 4.09 | P30: 2.7 | Q30: 14 | S30: -0.00243902439 | T30: =(H30-GrosBovins2020!H30)/GrosBovins2020!H30 -> 0.0935828877 | U30: =(H30-MoyQuinqHebdoGB!AL18)/MoyQuinqHebdoGB!AL18 -> -0.1421979866 | V30: 0.003378378378 | W30: =(K30-GrosBovins2020!K30)/GrosBovins2020!K30 -> 0.1165413534 | X30: =(K30-MoyQuinqHebdoGB!BD18)/MoyQuinqHebdoGB!BD18 -> -0.2196531792
B31: 15 | C31: 4.02 | D31: 3.85 | E31: 3.49 | F31: 3.32 | G31: 4.62 | H31: 4.1 | I31: 5.39 | J31: 3.26 | K31: 2.97 | L31: 5.07 | M31: 4.04 | P31: 2.72 | Q31: 15 | S31: 0.002444987775 | T31: =(H31-GrosBovins2020!H31)/GrosBovins2020!H31 -> 0.1021505376 | U31: =(H31-MoyQuinqHebdoGB!AL19)/MoyQuinqHebdoGB!AL19 -> -0.1382934006 | V31: 0 | W31: =(K31-GrosBovins2020!K31)/GrosBovins2020!K31 -> 0.125 | X31: =(K31-MoyQuinqHebdoGB!BD19)/MoyQuinqHebdoGB!BD19 -> -0.2192429022
B32: 16 | C32: 4.02 | D32: 3.85 | E32: 3.49 | F32: 3.32 | G32: 4.68 | H32: 4.09 | I32: 5.4 | J32: 3.27 | K32: 2.98 | L32: 4.96 | M32: 4.07 | P32: 2.72 | Q32: 16 | S32: -0.00243902439 | T32: =(H32-GrosBovins2020!H32)/GrosBovins2020!H32 -> 0.09946236559 | U32: =(H32-MoyQuinqHebdoGB!AL20)/MoyQuinqHebdoGB!AL20 -> -0.1429170159 | V32: 0.003367003367 | W32: =(K32-GrosBovins2020!K32)/GrosBovins2020!K32 -> 0.1287878788 | X32: =(K32-MoyQuinqHebdoGB!BD20)/MoyQuinqHebdoGB!BD20 -> -0.218668065
A33: A | B33: 17 | C33: 4.01 | D33: 3.82 | E33: 3.47 | F33: 3.33 | G33: 4.75 | H33: 4.1 | I33: 5.36 | J33: 3.28 | K33: 2.98 | L33: 5.04 | M33: 4.07 | P33: 2.75 | Q33: 17 | S33: 0.002444987775 | T33: =(H33-GrosBovins2020!H33)/GrosBovins2020!H33 -> 0.1051212938 | U33: =(H33-MoyQuinqHebdoGB!AL21)/MoyQuinqHebdoGB!AL21 -> -0.1415410385 | V33: 0 | W33: =(K33-GrosBovins2020!K33)/GrosBovins2020!K33 -> 0.1161048689 | X33: =(K33-MoyQuinqHebdoGB!BD21)/MoyQuinqHebdoGB!BD21 -> -0.2231491137
B34: 18 | C34: 4.01 | D34: 3.81 | E34: 3.48 | F34: 3.38 | G34: 4.7 | H34: 4.1 | I34: 5.44 | J34: 3.29 | K34: 2.99 | L34: 4.98 | M34: 4.03 | P34: 2.75 | Q34: 18 | S34: 0 | T34: =(H34-GrosBovins2020!H34)/GrosBovins2020!H34 -> 0.09333333333 | U34: =(H34-MoyQuinqHebdoGB!AL22)/MoyQuinqHebdoGB!AL22 -> -0.1447642887 | V34: 0.003355704698 | W34: =(K34-GrosBovins2020!K34)/GrosBovins2020!K34 -> 0.1033210332 | X34: =(K34-MoyQuinqHebdoGB!BD22)/MoyQuinqHebdoGB!BD22 -> -0.2265907915
B35: 19 | C35: 3.99 | D35: 3.81 | E35: 3.47 | F35: 3.43 | G35: 4.69 | H35: 4.08 | I35: 5.48 | J35: 3.3 | K35: 2.99 | L35: 5 | M35: 4.04 | P35: 2.75 | Q35: 19 | S35: -0.00487804878 | T35: =(H35-GrosBovins2020!H35)/GrosBovins2020!H35 -> 0.08510638298 | U35: =(H35-MoyQuinqHebdoGB!AL23)/MoyQuinqHebdoGB!AL23 -> -0.1503540192 | V35: 0 | W35: =(K35-GrosBovins2020!K35)/GrosBovins2020!K35 -> 0.09124087591 | X35: =(K35-MoyQuinqHebdoGB!BD23)/MoyQuinqHebdoGB!BD23 -> -0.2301750772
B36: 20 | C36: 3.99 | D36: 3.81 | E36: 3.44 | F36: 3.4 | G36: 4.74 | H36: 4.09 | I36: 5.43 | J36: 3.34 | K36: 3.01 | L36: 4.99 | M36: 4.07 | P36: 2.75 | Q36: 20 | S36: 0.002450980392 | T36: =(H36-GrosBovins2020!H36)/GrosBovins2020!H36 -> 0.07631578947 | U36: =(H36-MoyQuinqHebdoGB!AL24)/MoyQuinqHebdoGB!AL24 -> -0.1507475083 | V36: 0.006688963211 | W36: =(K36-GrosBovins2020!K36)/GrosBovins2020!K36 -> 0.07885304659 | X36: =(K36-MoyQuinqHebdoGB!BD24)/MoyQuinqHebdoGB!BD24 -> -0.2313585291
A37: M | B37: 21 | C37: 3.99 | D37: 3.81 | E37: 3.49 | F37: 3.44 | G37: 4.68 | H37: 4.09 | I37: 5.45 | J37: 3.35 | K37: 3.03 | L37: 5.03 | M37: 4.07 | P37: 2.75 | Q37: 21 | S37: 0 | T37: =(H37-GrosBovins2020!H37)/GrosBovins2020!H37 -> 0.07068062827 | U37: =(H37-MoyQuinqHebdoGB!AL25)/MoyQuinqHebdoGB!AL25 -> -0.1528583264 | V37: 0.006644518272 | W37: =(K37-GrosBovins2020!K37)/GrosBovins2020!K37 -> 0.07067137809 | X37: =(K37-MoyQuinqHebdoGB!BD25)/MoyQuinqHebdoGB!BD25 -> -0.2293997965
B38: 22 | C38: 3.99 | D38: 3.83 | E38: 3.47 | F38: 3.46 | G38: 4.7 | H38: 4.1 | I38: 5.42 | J38: 3.38 | K38: 3.06 | L38: 5.04 | M38: 4.09 | P38: 2.75 | Q38: 22 | S38: 0.002444987775 | T38: =(H38-GrosBovins2020!H38)/GrosBovins2020!H38 -> 0.05670103093 | U38: =(H38-MoyQuinqHebdoGB!AL26)/MoyQuinqHebdoGB!AL26 -> -0.153941395 | V38: 0.009900990099 | W38: =(K38-GrosBovins2020!K38)/GrosBovins2020!K38 -> 0.06993006993 | X38: =(K38-MoyQuinqHebdoGB!BD26)/MoyQuinqHebdoGB!BD26 -> -0.2272727273
B39: 23 | C39: 3.99 | D39: 3.81 | E39: 3.49 | F39: 3.47 | G39: 4.72 | H39: 4.11 | I39: 5.42 | J39: 3.4 | K39: 3.08 | L39: 5.1 | M39: 4.05 | P39: 2.73 | Q39: 23 | S39: 0.00243902439 | T39: =(H39-GrosBovins2020!H39)/GrosBovins2020!H39 -> 0.04050632911 | U39: =(H39-MoyQuinqHebdoGB!AL27)/MoyQuinqHebdoGB!AL27 -> -0.1564039409 | V39: 0.006535947712 | W39: =(K39-GrosBovins2020!K39)/GrosBovins2020!K39 -> 0.07317073171 | X39: =(K39-MoyQuinqHebdoGB!BD27)/MoyQuinqHebdoGB!BD27 -> -0.2257415787
B40: 24 | C40: 4 | D40: 3.84 | E40: 3.5 | F40: 3.48 | G40: 4.73 | H40: 4.14 | I40: 5.36 | J40: 3.43 | K40: 3.11 | L40: 5.02 | M40: 4.11 | P40: 2.73 | Q40: 24 | S40: 0.007299270073 | T40: =(H40-GrosBovins2020!H40)/GrosBovins2020!H40 -> 0.03241895262 | U40: =(H40-MoyQuinqHebdoGB!AL28)/MoyQuinqHebdoGB!AL28 -> -0.1533742331 | V40: 0.00974025974 | W40: =(K40-GrosBovins2020!K40)/GrosBovins2020!K40 -> 0.07986111111 | X40: =(K40-MoyQuinqHebdoGB!BD28)/MoyQuinqHebdoGB!BD28 -> -0.2205513784
B41: 25 | C41: 4.01 | D41: 3.84 | E41: 3.47 | F41: 3.52 | G41: 4.78 | H41: 4.1 | I41: 5.45 | J41: 3.44 | K41: 3.12 | L41: 5.09 | M41: 4.06 | P41: 2.73 | Q41: 25 | S41: -0.009661835749 | T41: =(H41-GrosBovins2020!H41)/GrosBovins2020!H41 -> 0.01736972705 | U41: =(H41-MoyQuinqHebdoGB!AL29)/MoyQuinqHebdoGB!AL29 -> -0.1598360656 | V41: 0.003215434084 | W41: =(K41-GrosBovins2020!K41)/GrosBovins2020!K41 -> 0.08333333333 | X41: =(K41-MoyQuinqHebdoGB!BD29)/MoyQuinqHebdoGB!BD29 -> -0.2184368737
A42: J | B42: 26 | C42: 4.01 | D42: 3.82 | E42: 3.53 | F42: 3.53 | G42: 4.68 | H42: 4.12 | I42: 5.45 | J42: 3.46 | K42: 3.14 | L42: 5.06 | M42: 4.11 | P42: 2.73 | Q42: 26 | S42: 0.00487804878 | T42: =(H42-GrosBovins2020!H42)/GrosBovins2020!H42 -> 0.01228501229 | U42: =(H42-MoyQuinqHebdoGB!AL30)/MoyQuinqHebdoGB!AL30 -> -0.158840343 | V42: 0.00641025641 | W42: =(K42-GrosBovins2020!K42)/GrosBovins2020!K42 -> 0.09407665505 | X42: =(K42-MoyQuinqHebdoGB!BD30)/MoyQuinqHebdoGB!BD30 -> -0.2126379137
B43: 27 | C43: 4.01 | D43: 3.85 | E43: 3.5 | F43: 3.55 | G43: 4.76 | H43: 4.14 | I43: 5.37 | J43: 3.46 | K43: 3.15 | L43: 4.99 | M43: 4.08 | P43: 2.73 | Q43: 27 | S43: 0.004854368932 | T43: =(H43-GrosBovins2020!H43)/GrosBovins2020!H43 -> 0.02222222222 | U43: =(H43-MoyQuinqHebdoGB!AL31)/MoyQuinqHebdoGB!AL31 -> -0.1533742331 | V43: 0.003184713376 | W43: =(K43-GrosBovins2020!K43)/GrosBovins2020!K43 -> 0.09756097561 | X43: =(K43-MoyQuinqHebdoGB!BD31)/MoyQuinqHebdoGB!BD31 -> -0.2085427136
B44: 28 | C44: 4.02 | D44: 3.85 | E44: 3.51 | F44: 3.53 | G44: 4.77 | H44: 4.14 | I44: 5.39 | J44: 3.48 | K44: 3.16 | L44: 5.13 | M44: 4.13 | P44: 2.73 | Q44: 28 | S44: 0 | T44: =(H44-GrosBovins2020!H44)/GrosBovins2020!H44 -> 0.0197044335 | U44: =(H44-MoyQuinqHebdoGB!AL32)/MoyQuinqHebdoGB!AL32 -> -0.1526811298 | V44: 0.003174603175 | W44: =(K44-GrosBovins2020!K44)/GrosBovins2020!K44 -> 0.09722222222 | X44: =(K44-MoyQuinqHebdoGB!BD32)/MoyQuinqHebdoGB!BD32 -> -0.2052313883
B45: 29 | C45: 4.03 | D45: 3.87 | E45: 3.5 | F45: 3.57 | G45: 4.75 | H45: 4.13 | I45: 5.38 | J45: 3.48 | K45: 3.18 | L45: 4.98 | M45: 4.11 | P45: 2.73 | Q45: 29 | S45: -0.002415458937 | T45: =(H45-GrosBovins2020!H45)/GrosBovins2020!H45 -> 0.0097799511 | U45: =(H45-MoyQuinqHebdoGB!AL33)/MoyQuinqHebdoGB!AL33 -> -0.1557645135 | V45: 0.006329113924 | W45: =(K45-GrosBovins2020!K45)/GrosBovins2020!K45 -> 0.1041666667 | X45: =(K45-MoyQuinqHebdoGB!BD33)/MoyQuinqHebdoGB!BD33 -> -0.2006033183
A46: J | B46: 30 | C46: 4.05 | D46: 3.9 | E46: 3.54 | F46: 3.59 | G46: 4.73 | H46: 4.13 | I46: 5.49 | J46: 3.5 | K46: 3.2 | L46: 4.95 | M46: 4.1 | P46: 2.73 | Q46: 30 | S46: 0 | T46: =(H46-GrosBovins2020!H46)/GrosBovins2020!H46 -> 0.01225490196 | U46: =(H46-MoyQuinqHebdoGB!AL34)/MoyQuinqHebdoGB!AL34 -> -0.1547277937 | V46: 0.006289308176 | W46: =(K46-GrosBovins2020!K46)/GrosBovins2020!K46 -> 0.1111111111 | X46: =(K46-MoyQuinqHebdoGB!BD34)/MoyQuinqHebdoGB!BD34 -> -0.1947659789
B47: 31 | C47: 4.07 | D47: 3.9 | E47: 3.54 | F47: 3.6 | G47: 4.67 | H47: 4.16 | I47: 5.44 | J47: 3.52 | K47: 3.22 | L47: 4.97 | M47: 4.09 | P47: 2.73 | Q47: 31 | S47: 0.007263922518 | T47: =(H47-GrosBovins2020!H47)/GrosBovins2020!H47 -> 0.02211302211 | U47: =(H47-MoyQuinqHebdoGB!AL35)/MoyQuinqHebdoGB!AL35 -> -0.1471914719 | V47: 0.00625 | W47: =(K47-GrosBovins2020!K47)/GrosBovins2020!K47 -> 0.1180555556 | X47: =(K47-MoyQuinqHebdoGB!BD35)/MoyQuinqHebdoGB!BD35 -> -0.1897332662
B48: 32 | C48: 4.11 | D48: 3.91 | E48: 3.56 | F48: 3.61 | G48: 4.78 | H48: 4.15 | I48: 5.41 | J48: 3.53 | K48: 3.25 | L48: 5.05 | M48: 4.14 | P48: 2.73 | Q48: 32 | S48: -0.002403846154 | T48: =(H48-GrosBovins2020!H48)/GrosBovins2020!H48 -> 0.01715686275 | U48: =(H48-MoyQuinqHebdoGB!AL36)/MoyQuinqHebdoGB!AL36 -> -0.1537520392 | V48: 0.009316770186 | W48: =(K48-GrosBovins2020!K48)/GrosBovins2020!K48 -> 0.1324041812 | X48: =(K48-MoyQuinqHebdoGB!BD36)/MoyQuinqHebdoGB!BD36 -> -0.1846462619
B49: 33 | C49: 4.11 | D49: 3.92 | E49: 3.56 | F49: 3.63 | G49: 4.79 | H49: 4.16 | I49: 5.48 | J49: 3.56 | K49: 3.26 | L49: 5.07 | M49: 4.1 | P49: 2.73 | Q49: 33 | S49: 0.002409638554 | T49: =(H49-GrosBovins2020!H49)/GrosBovins2020!H49 -> 0.01711491443 | U49: =(H49-MoyQuinqHebdoGB!AL37)/MoyQuinqHebdoGB!AL37 -> -0.1544715447 | V49: 0.003076923077 | W49: =(K49-GrosBovins2020!K49)/GrosBovins2020!K49 -> 0.1319444444 | X49: =(K49-MoyQuinqHebdoGB!BD37)/MoyQuinqHebdoGB!BD37 -> -0.187032419
A50: A | B50: 34 | C50: 4.14 | D50: 3.96 | E50: 3.6 | F50: 3.64 | G50: 4.78 | H50: 4.19 | I50: 5.43 | J50: 3.58 | K50: 3.29 | L50: 5.13 | M50: 4.14 | P50: 2.73 | Q50: 34 | S50: =(H50-H49)/H49 -> 0.007211538462 | T50: =(H50-GrosBovins2020!H50)/GrosBovins2020!H50 -> 0.02696078431 | U50: =(H50-MoyQuinqHebdoGB!AL38)/MoyQuinqHebdoGB!AL38 -> -0.1511345219 | V50: =(K50-K49)/K49 -> 0.009202453988 | W50: =(K50-GrosBovins2020!K50)/GrosBovins2020!K50 -> 0.1423611111 | X50: =(K50-MoyQuinqHebdoGB!BD38)/MoyQuinqHebdoGB!BD38 -> -0.1848364718
B51: 35 | C51: 4.15 | D51: 3.98 | E51: 3.6 | F51: 3.65 | G51: 4.89 | H51: 4.21 | I51: 5.49 | J51: 3.58 | K51: 3.3 | L51: 5.11 | M51: 4.19 | P51: 2.76 | Q51: 35 | S51: 0.00477326969 | T51: =(H51-GrosBovins2020!H51)/GrosBovins2020!H51 -> 0.02682926829 | U51: =(H51-MoyQuinqHebdoGB!AL39)/MoyQuinqHebdoGB!AL39 -> -0.1508672852 | V51: 0.003039513678 | W51: =(K51-GrosBovins2020!K51)/GrosBovins2020!K51 -> 0.1458333333 | X51: =(K51-MoyQuinqHebdoGB!BD39)/MoyQuinqHebdoGB!BD39 -> -0.1851851852
B52: 36 | C52: 4.17 | D52: 4.02 | E52: 3.6 | F52: 3.66 | G52: 4.87 | H52: 4.21 | I52: 5.44 | J52: 3.59 | K52: 3.31 | L52: 5.13 | M52: 4.17 | P52: 2.76 | Q52: 36 | S52: 0 | T52: =(H52-GrosBovins2020!H52)/GrosBovins2020!H52 -> 0.0318627451 | U52: =(H52-MoyQuinqHebdoGB!AL40)/MoyQuinqHebdoGB!AL40 -> -0.1512096774 | V52: 0.00303030303 | W52: =(K52-GrosBovins2020!K52)/GrosBovins2020!K52 -> 0.1453287197 | X52: =(K52-MoyQuinqHebdoGB!BD40)/MoyQuinqHebdoGB!BD40 -> -0.1839250493
B53: 37 | C53: 4.19 | D53: 4.01 | E53: 3.61 | F53: 3.68 | G53: 4.78 | H53: 4.23 | I53: 5.43 | J53: 3.6 | K53: 3.31 | L53: 5.04 | M53: 4.19 | P53: 2.76 | Q53: 37 | S53: 0.004750593824 | T53: =(H53-GrosBovins2020!H53)/GrosBovins2020!H53 -> 0.03931203931 | U53: =(H53-MoyQuinqHebdoGB!AL41)/MoyQuinqHebdoGB!AL41 -> -0.1461445297 | V53: 0 | W53: =(K53-GrosBovins2020!K53)/GrosBovins2020!K53 -> 0.1493055556 | X53: =(K53-MoyQuinqHebdoGB!BD41)/MoyQuinqHebdoGB!BD41 -> -0.1827160494
B54: 38 | C54: 4.2 | D54: 4.03 | E54: 3.6 | F54: 3.66 | G54: 4.84 | H54: 4.21 | I54: 5.5 | J54: 3.6 | K54: 3.31 | L54: 5.1 | M54: 4.16 | P54: 2.8 | Q54: 38 | S54: -0.004728132388 | T54: =(H54-GrosBovins2020!H54)/GrosBovins2020!H54 -> 0.0318627451 | U54: =(H54-MoyQuinqHebdoGB!AL42)/MoyQuinqHebdoGB!AL42 -> -0.1494949495 | V54: 0 | W54: =(K54-GrosBovins2020!K54)/GrosBovins2020!K54 -> 0.1493055556 | X54: =(K54-MoyQuinqHebdoGB!BD42)/MoyQuinqHebdoGB!BD42 -> -0.1798810704
A55: S | B55: 39 | C55: 4.22 | D55: 4.05 | E55: 3.66 | F55: 3.68 | G55: 4.89 | H55: 4.21 | I55: 5.51 | J55: 3.6 | K55: 3.31 | L55: 5.11 | M55: 4.17 | P55: 2.8 | Q55: 39 | S55: 0 | T55: =(H55-GrosBovins2020!H55)/GrosBovins2020!H55 -> 0.0293398533 | U55: =(H55-MoyQuinqHebdoGB!AL43)/MoyQuinqHebdoGB!AL43 -> -0.1498384491 | V55: 0 | W55: =(K55-GrosBovins2020!K55)/GrosBovins2020!K55 -> 0.1493055556 | X55: =(K55-MoyQuinqHebdoGB!BD43)/MoyQuinqHebdoGB!BD43 -> -0.177026355
B56: 40 | C56: 4.26 | D56: 4.07 | E56: 3.62 | F56: 3.67 | G56: 4.84 | H56: 4.23 | I56: 5.43 | J56: 3.6 | K56: 3.3 | L56: 5.11 | M56: 4.16 | P56: 2.82 | Q56: 40 | S56: 0.004750593824 | T56: =(H56-GrosBovins2020!H56)/GrosBovins2020!H56 -> 0.03931203931 | U56: =(H56-MoyQuinqHebdoGB!AL44)/MoyQuinqHebdoGB!AL44 -> -0.1478646253 | V56: -0.003021148036 | W56: =(K56-GrosBovins2020!K56)/GrosBovins2020!K56 -> 0.1458333333 | X56: =(K56-MoyQuinqHebdoGB!BD44)/MoyQuinqHebdoGB!BD44 -> -0.1754122939
B57: 41 | C57: 4.28 | D57: 4.1 | E57: 3.65 | F57: 3.66 | G57: 4.79 | H57: 4.21 | I57: 5.49 | J57: 3.61 | K57: 3.31 | L57: 5.06 | M57: 4.15 | P57: 2.82 | Q57: 41 | S57: -0.004728132388 | T57: =(H57-GrosBovins2020!H57)/GrosBovins2020!H57 -> 0.0343980344 | U57: =(H57-MoyQuinqHebdoGB!AL45)/MoyQuinqHebdoGB!AL45 -> -0.1515517936 | V57: 0.00303030303 | W57: =(K57-GrosBovins2020!K57)/GrosBovins2020!K57 -> 0.1533101045 | X57: =(K57-MoyQuinqHebdoGB!BD45)/MoyQuinqHebdoGB!BD45 -> -0.1691767068
B58: 42 | C58: 4.32 | D58: 4.14 | E58: 3.67 | F58: 3.7 | G58: 4.92 | H58: 4.23 | I58: 5.5 | J58: 3.63 | K58: 3.34 | L58: 5.06 | M58: 4.19 | P58: 2.82 | Q58: 42 | S58: 0.004750593824 | T58: =(H58-GrosBovins2020!H58)/GrosBovins2020!H58 -> 0.03170731707 | U58: =(H58-MoyQuinqHebdoGB!AL46)/MoyQuinqHebdoGB!AL46 -> -0.1488933602 | V58: 0.009063444109 | W58: =(K58-GrosBovins2020!K58)/GrosBovins2020!K58 -> 0.1678321678 | X58: =(K58-MoyQuinqHebdoGB!BD46)/MoyQuinqHebdoGB!BD46 -> -0.1586901763
A59: O | B59: 43 | C59: 4.36 | D59: 4.2 | E59: 3.69 | F59: 3.7 | G59: 4.87 | H59: 4.26 | I59: 5.48 | J59: 3.65 | K59: 3.35 | L59: 5.14 | M59: 4.19 | P59: 2.82 | Q59: 43 | S59: 0.007092198582 | T59: =(H59-GrosBovins2020!H59)/GrosBovins2020!H59 -> 0.04156479218 | U59: =(H59-MoyQuinqHebdoGB!AL47)/MoyQuinqHebdoGB!AL47 -> -0.1411290323 | V59: 0.002994011976 | W59: =(K59-GrosBovins2020!K59)/GrosBovins2020!K59 -> 0.1672473868 | X59: =(K59-MoyQuinqHebdoGB!BD47)/MoyQuinqHebdoGB!BD47 -> -0.1510390269
B60: 44 | C60: 4.41 | D60: 4.25 | E60: 3.7 | F60: 3.73 | G60: 4.95 | H60: 4.27 | I60: 5.52 | J60: 3.66 | K60: 3.38 | L60: 5.13 | M60: 4.23 | P60: 2.82 | Q60: 44 | S60: 0.00234741784 | T60: =(H60-GrosBovins2020!H60)/GrosBovins2020!H60 -> 0.04914004914 | U60: =(H60-MoyQuinqHebdoGB!AL48)/MoyQuinqHebdoGB!AL48 -> -0.1394598952 | V60: 0.008955223881 | W60: =(K60-GrosBovins2020!K60)/GrosBovins2020!K60 -> 0.1859649123 | X60: =(K60-MoyQuinqHebdoGB!BD48)/MoyQuinqHebdoGB!BD48 -> -0.1368743616
B61: 45 | C61: 4.46 | D61: 4.29 | E61: 3.7 | F61: 3.75 | G61: 4.85 | H61: 4.31 | I61: 5.56 | J61: 3.69 | K61: 3.4 | L61: 5.18 | M61: 4.23 | P61: 2.82 | Q61: 45 | S61: 0.009367681499 | T61: =(H61-GrosBovins2020!H61)/GrosBovins2020!H61 -> 0.06157635468 | U61: =(H61-MoyQuinqHebdoGB!AL49)/MoyQuinqHebdoGB!AL49 -> -0.1299959629 | V61: 0.005917159763 | W61: =(K61-GrosBovins2020!K61)/GrosBovins2020!K61 -> 0.2056737589 | X61: =(K61-MoyQuinqHebdoGB!BD49)/MoyQuinqHebdoGB!BD49 -> -0.1259640103
B62: 46 | C62: 4.49 | D62: 4.34 | E62: 3.74 | F62: 3.74 | G62: 4.89 | H62: 4.32 | I62: 5.53 | J62: 3.71 | K62: 3.43 | L62: 5.17 | M62: 4.26 | P62: 2.82 | Q62: 46 | S62: 0.002320185615 | T62: =(H62-GrosBovins2020!H62)/GrosBovins2020!H62 -> 0.06142506143 | U62: =(H62-MoyQuinqHebdoGB!AL50)/MoyQuinqHebdoGB!AL50 -> -0.1297340854 | V62: 0.008823529412 | W62: =(K62-GrosBovins2020!K62)/GrosBovins2020!K62 -> 0.238267148 | X62: =(K62-MoyQuinqHebdoGB!BD50)/MoyQuinqHebdoGB!BD50 -> -0.1104771784
A63: N | B63: 47 | C63: 4.53 | D63: 4.39 | E63: 3.74 | F63: 3.77 | G63: 4.84 | H63: 4.32 | I63: 5.54 | J63: 3.73 | K63: 3.45 | L63: 5.14 | M63: 4.28 | P63: 2.82 | Q63: 47 | S63: 0 | T63: =(H63-GrosBovins2020!H63)/GrosBovins2020!H63 -> 0.06930693069 | U63: =(H63-MoyQuinqHebdoGB!AL51)/MoyQuinqHebdoGB!AL51 -> -0.1269199677 | V63: 0.00583090379 | W63: =(K63-GrosBovins2020!K63)/GrosBovins2020!K63 -> 0.2591240876 | X63: =(K63-MoyQuinqHebdoGB!BD51)/MoyQuinqHebdoGB!BD51 -> -0.0996868476
B64: 48 | C64: 4.57 | D64: 4.41 | E64: 3.74 | F64: 3.78 | G64: 4.84 | H64: 4.35 | I64: 5.47 | J64: 3.74 | K64: 3.45 | L64: 5.22 | M64: 4.28 | P64: 2.82 | Q64: 48 | S64: 0.006944444444 | T64: =(H64-GrosBovins2020!H64)/GrosBovins2020!H64 -> 0.07407407407 | U64: =(H64-MoyQuinqHebdoGB!AL52)/MoyQuinqHebdoGB!AL52 -> -0.122983871 | V64: 0 | W64: =(K64-GrosBovins2020!K64)/GrosBovins2020!K64 -> 0.2637362637 | X64: =(K64-MoyQuinqHebdoGB!BD52)/MoyQuinqHebdoGB!BD52 -> -0.09210526316
B65: 49 | C65: 4.59 | D65: 4.4 | E65: 3.76 | F65: 3.78 | G65: 5.25 | H65: 4.35 | I65: 5.62 | J65: 3.73 | K65: 3.46 | L65: 5.24 | M65: 4.32 | P65: 2.79 | Q65: 49 | S65: 0 | T65: =(H65-GrosBovins2020!H65)/GrosBovins2020!H65 -> 0.07407407407 | U65: =(H65-MoyQuinqHebdoGB!AL53)/MoyQuinqHebdoGB!AL53 -> -0.1219216795 | V65: 0.002898550725 | W65: =(K65-GrosBovins2020!K65)/GrosBovins2020!K65 -> 0.2673992674 | X65: =(K65-MoyQuinqHebdoGB!BD53)/MoyQuinqHebdoGB!BD53 -> -0.08514013749
B66: 50 | C66: 4.59 | D66: 4.41 | E66: 3.78 | F66: 3.79 | G66: 4.96 | H66: 4.35 | I66: 5.58 | J66: 3.73 | K66: 3.42 | L66: 5.28 | M66: 4.3 | P66: 2.79 | Q66: 50 | S66: 0 | T66: =(H66-GrosBovins2020!H66)/GrosBovins2020!H66 -> 0.07673267327 | U66: =(H66-MoyQuinqHebdoGB!AL54)/MoyQuinqHebdoGB!AL54 -> -0.1017036655 | V66: -0.01156069364 | W66: =(K66-GrosBovins2020!K66)/GrosBovins2020!K66 -> 0.2527472527 | X66: =(K66-MoyQuinqHebdoGB!BD54)/MoyQuinqHebdoGB!BD54 -> -0.08556149733
B67: 51 | C67: 4.59 | D67: 4.41 | E67: 3.78 | F67: 3.79 | G67: 4.87 | H67: 4.36 | I67: 5.56 | J67: 3.73 | K67: 3.41 | L67: 5.13 | M67: 4.29 | P67: 2.79 | Q67: 51 | S67: 0.002298850575 | T67: =(H67-GrosBovins2020!H67)/GrosBovins2020!H67 -> 0.07920792079 | U67: =(H67-MoyQuinqHebdoGB!AL55)/MoyQuinqHebdoGB!AL55 -> -0.1005673027 | V67: -0.002923976608 | W67: =(K67-GrosBovins2020!K67)/GrosBovins2020!K67 -> 0.2490842491 | X67: =(K67-MoyQuinqHebdoGB!BD55)/MoyQuinqHebdoGB!BD55 -> -0.086403215
A68: D | B68: 52 | C68: 4.59 | D68: 4.42 | E68: 3.75 | F68: 3.8 | G68: 4.88 | H68: 4.38 | I68: 5.49 | J68: 3.74 | K68: 3.43 | L68: 5.22 | M68: 4.34 | P68: NC | Q68: 52 | S68: 0.004587155963 | T68: =(H68-GrosBovins2020!H68)/GrosBovins2020!H68 -> 0.08148148148 | U68: =(H68-MoyQuinqHebdoGB!AL56)/MoyQuinqHebdoGB!AL56 -> -0.05126353791 | V68: 0.005865102639 | W68: =(K68-GrosBovins2020!K68)/GrosBovins2020!K68 -> 0.2518248175 | X68: =(K68-MoyQuinqHebdoGB!BD56)/MoyQuinqHebdoGB!BD56 -> -0.0436802974
A71: 3 – COTATION DES GROS BOVINS VIFS SUR LE MARCHE DE CHOLET (en Euro/Kg Net)
C73: GENISSES | E73: VACHES | I73: JEUNES BOVINS | J73: TAUREAUX
A74: semaines | B74: année+mois | C74: Viande, mixte, lait | D74: Viande, mixte, lait | E74: Blonde | F74: Blonde | G74: Mixte | H74: Lait | I74: Viande | J74: Viande, mixte, lait
A75: 2021 | C75: U | D75: R | E75: U | F75: R | G75: O | H75: P | I75: U | J75: URO
A76: 1 | B76: 202101 | C76: 4.45 | D76: 4.03 | E76: 4.8 | F76: 4.1 | G76: 2.87 | H76: 2.6 | I76: 3.64
A77: 2 | B77: 202101 | C77: 4.45 | D77: 4.03 | E77: 4.8 | F77: 4.1 | G77: 2.87 | H77: 2.6 | I77: 3.64
A78: 3 | B78: 202101 | C78: 4.45 | D78: 4.03 | E78: 4.83 | F78: 4.1 | G78: 2.87 | H78: 2.6 | I78: 3.64 | J78: 3.05
A79: 4 | B79: 202101 | C79: 4.46 | D79: 4.03 | E79: 4.85 | F79: 4.1 | G79: 2.87 | H79: 2.6 | I79: 3.66 | J79: 3.05
A80: 5 | B80: 202102 | C80: 4.45 | D80: 4.04 | E80: 4.85 | F80: 4.1 | G80: 2.87 | H80: 2.6 | I80: 3.68
A81: 6 | B81: 202102 | C81: 4.45 | D81: 4.05 | E81: 4.88 | F81: 4.15 | G81: 2.87 | H81: 2.6 | I81: 3.71
A82: 7 | B82: 202102 | C82: 4.45 | D82: 4.05 | E82: 4.9 | F82: 4.15 | G82: 2.9 | H82: 2.63 | I82: 3.75 | J82: 3.05
A83: 8 | B83: 202102 | C83: 4.46 | D83: 4.06 | E83: 4.95 | F83: 4.15 | G83: 2.9 | H83: 2.65 | I83: 3.77
A84: 9 | B84: 202103 | C84: 4.46 | D84: 4.06 | E84: 4.97 | F84: 4.15 | G84: 2.9 | H84: 2.67 | I84: 3.8
A85: 10 | B85: 202103 | C85: 4.47 | D85: 4.06 | E85: 5 | F85: 4.15 | G85: 2.95 | H85: 2.72 | I85: 3.83
A86: 11 | B86: 202103 | C86: 4.49 | D86: 4.06 | E86: 5 | F86: 4.15 | G86: 2.98 | H86: 2.77 | I86: 3.86
A87: 12 | B87: 202103 | C87: 4.5 | D87: 4.06 | E87: 5 | F87: 4.15 | G87: 3 | H87: 2.79 | I87: 3.88 | J87: 3.05
A88: 13 | B88: 202103 | C88: 4.52 | D88: 4.06 | E88: 5.05 | F88: 4.15 | G88: 3.02 | H88: 2.8 | I88: 3.9
A89: 14 | B89: 202104 | C89: 4.52 | D89: 4.09 | E89: 5.05 | F89: 4.15 | G89: 3.02 | H89: 2.8 | I89: 3.9
A90: 15 | B90: 202104 | C90: 4.53 | D90: 4.09 | E90: 5.05 | F90: 4.15 | G90: 3.02 | H90: 2.8 | I90: 3.9 | J90: 3.08
A91: 16 | B91: 202104 | C91: 4.53 | D91: 4.09 | E91: 5.05 | F91: 4.15 | G91: 3.02 | H91: 2.8 | I91: 3.9 | J91: 3.08
A92: 17 | B92: 202104 | C92: 4.53 | D92: 4.09 | E92: 5.05 | F92: 4.15 | G92: 3.02 | H92: 2.8 | I92: 3.88 | J92: 3.08
A93: 18 | B93: 202105 | C93: 4.53 | D93: 4.09 | E93: 5.05 | F93: 4.15 | G93: 3.02 | H93: 2.8 | I93: 3.86
A94: 19 | B94: 202105 | C94: 4.53 | D94: 4.09 | E94: 5.05 | F94: 4.15 | G94: 3.05 | H94: 2.8 | I94: 3.86
A95: 20 | B95: 202105 | C95: 4.53 | D95: 4.1 | E95: 5.1 | F95: 4.15 | G95: 3.05 | H95: 2.82 | I95: 3.86
A96: 21 | B96: 202105 | C96: 4.53 | D96: 4.1 | E96: 5.1 | F96: 4.15 | G96: 3.07 | H96: 2.85 | I96: 3.86 | J96: 3.08
A97: 22 | B97: 202106 | C97: 4.53 | D97: 4.1 | E97: 5.1 | F97: 4.17 | G97: 3.1 | H97: 2.88 | I97: 3.86 | J97: 3.1
A98: 23 | B98: 202106 | C98: 4.53 | D98: 4.1 | E98: 5.1 | F98: 4.17 | G98: 3.1 | H98: 2.9 | I98: 3.86
A99: 24 | B99: 202106 | C99: 4.53 | D99: 4.1 | E99: 5.1 | F99: 4.17 | G99: 3.1 | H99: 2.9 | I99: 3.86
A100: 25 | B100: 202106 | C100: 4.53 | D100: 4.1 | E100: 5.1 | F100: 4.17 | G100: 3.1 | H100: 2.9 | I100: 3.86
A101: 26 | B101: 202106 | C101: 4.53 | D101: 4.1 | E101: 5.1 | F101: 4.17 | G101: 3.15 | H101: 2.93 | I101: 3.86
A102: 27 | B102: 202107 | C102: 4.53 | D102: 4.1 | E102: 5.1 | F102: 4.17 | G102: 3.2 | H102: 2.98 | I102: 3.88
A103: 28 | B103: 202107 | C103: 4.53 | D103: 4.1 | E103: 5.1 | F103: 4.17 | G103: 3.2 | H103: 2.98 | I103: 3.9
A104: 29 | B104: 202107 | C104: 4.53 | D104: 4.1 | E104: 5.1 | F104: 4.17 | G104: 3.2 | H104: 2.98 | I104: 3.9
A105: 30 | B105: 202107 | C105: 4.53 | D105: 4.1 | E105: 5.1 | F105: 4.17 | G105: 3.23 | H105: 3.01 | I105: 3.93
A106: 31 | B106: 202108 | E106: 5.1 | F106: 4.17 | G106: 3.25 | H106: 3.03 | I106: 3.96 | J106: 3.1
A107: 32 | B107: 202108 | E107: 5.1 | F107: 4.17 | G107: 3.27 | H107: 3.05 | I107: 3.98 | J107: 3.1
A108: 33 | B108: 202108 | E108: 5.1 | F108: 4.17 | G108: 3.3 | H108: 3.08 | I108: 4
A109: 34 | B109: 202108 | C109: 4.57 | D109: 4.14 | E109: 5.15 | F109: 4.2 | G109: 3.35 | H109: 3.12 | I109: 4.03
A110: 35 | B110: 202109 | C110: 4.57 | D110: 4.14 | E110: 5.15 | F110: 4.22 | G110: 3.38 | H110: 3.15 | I110: 4.05 | J110: 3.15
A111: 36 | B111: 202109 | C111: 4.57 | D111: 4.14 | E111: 5.15 | F111: 4.22 | G111: 3.38 | H111: 3.15 | I111: 4.05
A112: 37 | B112: 202109 | C112: 4.58 | D112: 4.14 | E112: 5.15 | F112: 4.22 | G112: 3.4 | H112: 3.15 | I112: 4.07
A113: 38 | B113: 202109 | C113: 4.58 | D113: 4.14 | E113: 5.15 | F113: 4.22 | G113: 3.4 | H113: 3.15 | I113: 4.1
A114: 39 | B114: 202109 | C114: 4.58 | D114: 4.14 | E114: 5.15 | F114: 4.22 | G114: 3.4 | H114: 3.15 | I114: 4.1
A115: 40 | B115: 202110 | C115: 4.58 | D115: 4.14 | E115: 5.15 | F115: 4.22 | G115: 3.4 | H115: 3.15 | I115: 4.12
A116: 41 | B116: 202110 | C116: 4.58 | D116: 4.14 | E116: 5.15 | F116: 4.22 | G116: 3.4 | H116: 3.15 | I116: 4.15
A117: 42 | B117: 202110 | C117: 4.61 | D117: 4.14 | E117: 5.15 | F117: 4.22 | G117: 3.43 | H117: 3.18 | I117: 4.18
A118: 43 | B118: 202110 | C118: 4.63 | D118: 4.16 | E118: 5.15 | F118: 4.22 | G118: 3.45 | H118: 3.2 | I118: 4.2
A119: 44 | B119: 202111 | C119: 4.64 | D119: 4.18 | E119: 5.15 | F119: 4.25 | G119: 3.45 | H119: 3.2 | I119: 4.25
A120: 45 | B120: 202111 | C120: 4.65 | D120: 4.19 | E120: 5.15 | F120: 4.25 | G120: 3.45 | H120: 3.23 | I120: 4.3
A121: 46 | B121: 202111 | C121: 4.67 | D121: 4.21 | E121: 5.15 | F121: 4.25 | G121: 3.48 | H121: 3.26 | I121: 4.35
A122: 47 | B122: 202111 | C122: 4.68 | D122: 4.22 | E122: 5.15 | F122: 4.25 | G122: 3.53 | H122: 3.28 | I122: 4.4
A123: 48 | B123: 202112 | C123: 4.71 | D123: 4.25 | E123: 5.15 | F123: 4.25 | G123: 3.55 | H123: 3.28 | I123: 4.4
A124: 49 | B124: 202112 | C124: 4.71 | D124: 4.25 | E124: 5.15 | F124: 4.25 | G124: 3.58 | H124: 3.28 | I124: 4.4
A125: 50 | B125: 202112 | C125: 4.71 | D125: 4.25 | E125: 5.15 | F125: 4.25 | G125: 3.61 | H125: 3.28 | I125: 4.4 | J125: 3.3
A126: 51 | B126: 202112 | C126: 4.71 | D126: 4.25 | E126: 5.15 | F126: 4.25 | G126: 3.6 | H126: 3.28 | I126: 4.4 | J126: 3.3
A127: 52 | B127: 202112 | C127: 4.71 | D127: 4.25 | E127: 5.15 | F127: 4.25 | G127: 3.6 | H127: 3.28 | I127: 4.4

Sheet GrosBovins2020
A1: COTATIONS DES GROS BOVINS
A2: Source : DRAAF Pays de la Loire - SRISE - FranceAgriMer | K2: mise à jour : 06/01/2021
A5: 1 – COTATION REGIONALE GRAND OUEST ENTREE ABATTOIR en €/Kg net
A7: 2 – MOYENNE NATIONALE DES BOVINS MAIGRES DESTINES A L'ENGRAISSEMENT CHAROLAIS MALE de 6-12 mois catégorie U (300kg) en €/kg vif
A9: 3 – OTATION DES GROS BOVINS VIFS SUR LE MARCHE DE CHOLET (en Euro/Kg Net) – à partir de la ligne 72
P11: 2 – COT. HEBDO
D12: 1 – COTATION REGIONALE ENTREE ABATTOIR GRAND OUEST FRANCEAGRIMER-HEBDOMADAIRE (€/Kg net) | P12: MAIGRE €/kg vif
P13: Ref. nationale
A14: Année | B14: Sem. | C14: JEUNES BOVINS | F14: BOEUFS | G14: VACHES | L14: GENISSES | P14: Charolais Mâles | Q14: Sem.
C15: VIANDE | E15: MIXTE | F15: MIXTE | G15: VIANDE | I15: Blonde | J15: MIXTE | K15: LAIT | L15: VIANDES + 350kg
C16: U | D16: R | E16: O | F16: O | G16: U | H16: R | I16: U | J16: O | K16: P | L16: U | M16: R | P16: 6/12 mois ( U )
A17: 2020 | B17: 1 | C17: 4.07 | D17: 3.9 | E17: 3.46 | F17: 3.22 | G17: 4.42 | H17: 3.72 | I17: 5.1 | J17: 3.14 | K17: 2.54 | L17: 4.63 | M17: 3.8 | P17: 2.69 | Q17: 1
B18: 2 | C18: 4.07 | D18: 3.91 | E18: 3.51 | F18: 3.25 | G18: 4.37 | H18: 3.75 | I18: 5.07 | J18: 3.15 | K18: 2.57 | L18: 4.63 | M18: 3.84 | P18: 2.69 | Q18: 2
B19: 3 | C19: 4.07 | D19: 3.9 | E19: 3.49 | F19: 3.24 | G19: 4.38 | H19: 3.72 | I19: 5.04 | J19: 3.16 | K19: 2.56 | L19: 4.7 | M19: 3.85 | P19: 2.69 | Q19: 3
B20: 4 | C20: 4.07 | D20: 3.89 | E20: 3.52 | F20: 3.23 | G20: 4.36 | H20: 3.71 | I20: 5.05 | J20: 3.15 | K20: 2.55 | L20: 4.7 | M20: 3.81 | P20: 2.69 | Q20: 4
A21: J | B21: 5 | C21: 4.06 | D21: 3.88 | E21: 3.52 | F21: 3.22 | G21: 4.44 | H21: 3.72 | I21: 5.02 | J21: 3.14 | K21: 2.54 | L21: 4.64 | M21: 3.82 | P21: 2.69 | Q21: 5
B22: 6 | C22: 4.05 | D22: 3.88 | E22: 3.51 | F22: 3.25 | G22: 4.46 | H22: 3.73 | I22: 5.06 | J22: 3.13 | K22: 2.53 | L22: 4.62 | M22: 3.81 | P22: 2.69 | Q22: 6
B23: 7 | C23: 4.04 | D23: 3.85 | E23: 3.49 | F23: 3.22 | G23: 4.46 | H23: 3.7 | I23: 5.02 | J23: 3.14 | K23: 2.55 | L23: 4.61 | M23: 3.81 | P23: 2.69 | Q23: 7
B24: 8 | C24: 4.01 | D24: 3.84 | E24: 3.49 | F24: 3.25 | G24: 4.4 | H24: 3.72 | I24: 5 | J24: 3.16 | K24: 2.58 | L24: 4.6 | M24: 3.83 | P24: 2.72 | Q24: 8
A25: F | B25: 9 | C25: 4 | D25: 3.84 | E25: 3.51 | F25: 3.26 | G25: 4.42 | H25: 3.75 | I25: 5.14 | J25: 3.16 | K25: 2.62 | L25: 4.69 | M25: 3.82 | P25: 2.75 | Q25: 9
B26: 10 | C26: 4 | D26: 3.82 | E26: 3.53 | F26: 3.27 | G26: 4.44 | H26: 3.77 | I26: 5.03 | J26: 3.18 | K26: 2.66 | L26: 4.67 | M26: 3.84 | P26: 2.75 | Q26: 10
B27: 11 | C27: 3.98 | D27: 3.81 | E27: 3.5 | F27: 3.28 | G27: 4.43 | H27: 3.78 | I27: 5.14 | J27: 3.18 | K27: 2.66 | L27: 4.64 | M27: 3.84 | P27: 2.78 | Q27: 11
B28: 12 | C28: 3.96 | D28: 3.78 | E28: 3.55 | F28: 3.27 | G28: 4.49 | H28: 3.78 | I28: 5.12 | J28: 3.18 | K28: 2.67 | L28: 4.65 | M28: 3.85 | P28: 2.8 | Q28: 12
A29: M | B29: 13 | C29: 3.94 | D29: 3.77 | E29: 3.47 | F29: 3.25 | G29: 4.44 | H29: 3.74 | I29: 5.17 | J29: 3.17 | K29: 2.68 | L29: 4.73 | M29: 3.85 | P29: 2.8 | Q29: 13
B30: 14 | C30: 3.9 | D30: 3.73 | E30: 3.43 | F30: 3.19 | G30: 4.5 | H30: 3.74 | I30: 5.17 | J30: 3.09 | K30: 2.66 | L30: 4.78 | M30: 3.84 | P30: 2.82 | Q30: 14
B31: 15 | C31: 3.88 | D31: 3.69 | E31: 3.35 | F31: 3.08 | G31: 4.45 | H31: 3.72 | I31: 5.1 | J31: 3.04 | K31: 2.64 | L31: 4.7 | M31: 3.82 | P31: 2.82 | Q31: 15
B32: 16 | C32: 3.86 | D32: 3.71 | E32: 3.36 | F32: 3.07 | G32: 4.51 | H32: 3.72 | I32: 5.05 | J32: 3.01 | K32: 2.64 | L32: 4.77 | M32: 3.86 | P32: 2.82 | Q32: 16
B33: 17 | C33: 3.85 | D33: 3.69 | E33: 3.34 | F33: 3.07 | G33: 4.42 | H33: 3.71 | I33: 5.12 | J33: 3.01 | K33: 2.67 | L33: 4.75 | M33: 3.82 | P33: 2.84 | Q33: 17
A34: A | B34: 18 | C34: 3.85 | D34: 3.68 | E34: 3.37 | F34: 3.11 | G34: 4.39 | H34: 3.75 | I34: 5.06 | J34: 3.03 | K34: 2.71 | L34: 4.81 | M34: 3.82 | P34: 2.84 | Q34: 18
B35: 19 | C35: 3.85 | D35: 3.7 | E35: 3.34 | F35: 3.11 | G35: 4.47 | H35: 3.76 | I35: 5.11 | J35: 3.05 | K35: 2.74 | L35: 4.68 | M35: 3.84 | P35: 2.84 | Q35: 19
B36: 20 | C36: 3.84 | D36: 3.69 | E36: 3.37 | F36: 3.14 | G36: 4.57 | H36: 3.8 | I36: 5.12 | J36: 3.08 | K36: 2.79 | L36: 4.71 | M36: 3.87 | P36: 2.84 | Q36: 20
B37: 21 | C37: 3.84 | D37: 3.68 | E37: 3.38 | F37: 3.16 | G37: 4.49 | H37: 3.82 | I37: 5.08 | J37: 3.12 | K37: 2.83 | L37: 4.76 | M37: 3.87 | P37: 2.84 | Q37: 21
A38: M | B38: 22 | C38: 3.85 | D38: 3.69 | E38: 3.41 | F38: 3.2 | G38: 4.6 | H38: 3.88 | I38: 5.1 | J38: 3.15 | K38: 2.86 | L38: 4.79 | M38: 3.97 | P38: 2.84 | Q38: 22
B39: 23 | C39: 3.84 | D39: 3.72 | E39: 3.37 | F39: 3.22 | G39: 4.59 | H39: 3.95 | I39: 5.16 | J39: 3.18 | K39: 2.87 | L39: 4.83 | M39: 3.98 | P39: 2.84 | Q39: 23
B40: 24 | C40: 3.85 | D40: 3.72 | E40: 3.39 | F40: 3.23 | G40: 4.53 | H40: 4.01 | I40: 5.17 | J40: 3.18 | K40: 2.88 | L40: 4.73 | M40: 4.05 | P40: 2.84 | Q40: 24
B41: 25 | C41: 3.85 | D41: 3.71 | E41: 3.4 | F41: 3.23 | G41: 4.62 | H41: 4.03 | I41: 5.16 | J41: 3.18 | K41: 2.88 | L41: 4.86 | M41: 4.07 | P41: 2.82 | Q41: 25
A42: J | B42: 26 | C42: 3.85 | D42: 3.72 | E42: 3.39 | F42: 3.23 | G42: 4.6 | H42: 4.07 | I42: 5.13 | J42: 3.19 | K42: 2.87 | L42: 4.97 | M42: 4.05 | P42: 2.82 | Q42: 26
B43: 27 | C43: 3.85 | D43: 3.71 | E43: 3.4 | F43: 3.23 | G43: 4.59 | H43: 4.05 | I43: 5.13 | J43: 3.19 | K43: 2.87 | L43: 4.79 | M43: 4.08 | P43: 2.8 | Q43: 27
B44: 28 | C44: 3.85 | D44: 3.7 | E44: 3.37 | F44: 3.22 | G44: 4.56 | H44: 4.06 | I44: 5.16 | J44: 3.19 | K44: 2.88 | L44: 4.84 | M44: 4.09 | P44: 2.8 | Q44: 28
B45: 29 | C45: 3.86 | D45: 3.69 | E45: 3.37 | F45: 3.24 | G45: 4.53 | H45: 4.09 | I45: 5.2 | J45: 3.2 | K45: 2.88 | L45: 4.79 | M45: 4.1 | P45: 2.8 | Q45: 29
B46: 30 | C46: 3.85 | D46: 3.69 | E46: 3.38 | F46: 3.24 | G46: 4.52 | H46: 4.08 | I46: 5.19 | J46: 3.21 | K46: 2.88 | L46: 4.87 | M46: 4.06 | P46: 2.8 | Q46: 30
A47: J | B47: 31 | C47: 3.85 | D47: 3.68 | E47: 3.37 | F47: 3.24 | G47: 4.52 | H47: 4.07 | I47: 5.24 | J47: 3.21 | K47: 2.88 | L47: 4.81 | M47: 4.09 | P47: 2.77 | Q47: 31
B48: 32 | C48: 3.83 | D48: 3.66 | E48: 3.35 | F48: 3.24 | G48: 4.59 | H48: 4.08 | I48: 5.13 | J48: 3.2 | K48: 2.87 | L48: 4.93 | M48: 4.06 | P48: 2.77 | Q48: 32
B49: 33 | C49: 3.82 | D49: 3.66 | E49: 3.35 | F49: 3.24 | G49: 4.46 | H49: 4.09 | I49: 5.16 | J49: 3.21 | K49: 2.88 | L49: 4.83 | M49: 4.03 | P49: 2.77 | Q49: 33
B50: 34 | C50: 3.81 | D50: 3.66 | E50: 3.34 | F50: 3.25 | G50: 4.57 | H50: 4.08 | I50: 5.24 | J50: 3.21 | K50: 2.88 | L50: 4.83 | M50: 4.03 | P50: 2.72 | Q50: 34
A51: A | B51: 35 | C51: 3.81 | D51: 3.65 | E51: 3.34 | F51: 3.23 | G51: 4.52 | H51: 4.1 | I51: 5.23 | J51: 3.21 | K51: 2.88 | L51: 4.88 | M51: 4.04 | P51: 2.69 | Q51: 35
B52: 36 | C52: 3.8 | D52: 3.65 | E52: 3.35 | F52: 3.24 | G52: 4.6 | H52: 4.08 | I52: 5.16 | J52: 3.21 | K52: 2.89 | L52: 4.85 | M52: 4.03 | P52: 2.69 | Q52: 36
B53: 37 | C53: 3.82 | D53: 3.63 | E53: 3.36 | F53: 3.26 | G53: 4.75 | H53: 4.07 | I53: 5.22 | J53: 3.22 | K53: 2.88 | L53: 4.87 | M53: 4.04 | P53: 2.69 | Q53: 37
B54: 38 | C54: 3.79 | D54: 3.63 | E54: 3.33 | F54: 3.25 | G54: 4.71 | H54: 4.08 | I54: 5.26 | J54: 3.22 | K54: 2.88 | L54: 4.84 | M54: 4.02 | P54: 2.69 | Q54: 38
B55: 39 | C55: 3.79 | D55: 3.65 | E55: 3.3 | F55: 3.24 | G55: 4.62 | H55: 4.09 | I55: 5.14 | J55: 3.22 | K55: 2.88 | L55: 4.84 | M55: 4.07 | P55: 2.67 | Q55: 39
A56: S | B56: 40 | C56: 3.8 | D56: 3.65 | E56: 3.3 | F56: 3.25 | G56: 4.58 | H56: 4.07 | I56: 5.19 | J56: 3.21 | K56: 2.88 | L56: 4.9 | M56: 4.04 | P56: 2.67 | Q56: 40
B57: 41 | C57: 3.79 | D57: 3.62 | E57: 3.32 | F57: 3.25 | G57: 4.57 | H57: 4.07 | I57: 5.17 | J57: 3.21 | K57: 2.87 | L57: 4.85 | M57: 4.03 | P57: 2.67 | Q57: 41
B58: 42 | C58: 3.78 | D58: 3.62 | E58: 3.33 | F58: 3.22 | G58: 4.68 | H58: 4.1 | I58: 5.14 | J58: 3.21 | K58: 2.86 | L58: 4.86 | M58: 4.02 | P58: 2.64 | Q58: 42
B59: 43 | C59: 3.79 | D59: 3.6 | E59: 3.35 | F59: 3.25 | G59: 4.53 | H59: 4.09 | I59: 5.19 | J59: 3.21 | K59: 2.87 | L59: 4.83 | M59: 4.02 | P59: 2.62 | Q59: 43
A60: O | B60: 44 | C60: 3.8 | D60: 3.6 | E60: 3.34 | F60: 3.24 | G60: 4.58 | H60: 4.07 | I60: 5.22 | J60: 3.19 | K60: 2.85 | L60: 4.81 | M60: 4.01 | P60: 2.62 | Q60: 44
B61: 45 | C61: 3.78 | D61: 3.61 | E61: 3.35 | F61: 3.23 | G61: 4.53 | H61: 4.06 | I61: 5.1 | J61: 3.18 | K61: 2.82 | L61: 4.91 | M61: 3.95 | P61: 2.62 | Q61: 45
B62: 46 | C62: 3.77 | D62: 3.61 | E62: 3.37 | F62: 3.19 | G62: 4.59 | H62: 4.07 | I62: 5.2 | J62: 3.13 | K62: 2.77 | L62: 4.85 | M62: 4 | P62: 2.62 | Q62: 46
B63: 47 | C63: 3.78 | D63: 3.61 | E63: 3.33 | F63: 3.15 | G63: 4.45 | H63: 4.04 | I63: 5.24 | J63: 3.08 | K63: 2.74 | L63: 4.86 | M63: 4.01 | P63: 2.62 | Q63: 47
A64: N | B64: 48 | C64: 3.79 | D64: 3.62 | E64: 3.36 | F64: 3.14 | G64: 4.56 | H64: 4.05 | I64: 5.22 | J64: 3.06 | K64: 2.73 | L64: 4.87 | M64: 4.02 | P64: 2.62 | Q64: 48
B65: 49 | C65: 3.8 | D65: 3.61 | E65: 3.38 | F65: 3.13 | G65: 4.57 | H65: 4.05 | I65: 5.22 | J65: 3.04 | K65: 2.73 | L65: 4.84 | M65: 4.02 | P65: 2.62 | Q65: 49
B66: 50 | C66: 3.79 | D66: 3.62 | E66: 3.41 | F66: 3.15 | G66: 4.79 | H66: 4.04 | I66: 5.33 | J66: 3.04 | K66: 2.73 | L66: 5 | M66: 4.01 | P66: 2.62 | Q66: 50
B67: 51 | C67: 3.8 | D67: 3.63 | E67: 3.37 | F67: 3.13 | G67: 4.75 | H67: 4.04 | I67: 5.24 | J67: 3.06 | K67: 2.73 | L67: 4.9 | M67: 4.03 | P67: 2.62 | Q67: 51
B68: 52 | C68: 3.82 | D68: 3.65 | E68: 3.35 | F68: 3.13 | G68: 4.5 | H68: 4.05 | I68: 5.21 | J68: 3.07 | K68: 2.74 | L68: 4.94 | M68: 3.97 | P68: 2.62 | Q68: 52
A69: D | B69: 53 | C69: 3.82 | D69: 3.66 | E69: 3.37 | F69: 3.13 | G69: 4.56 | H69: 4.04 | I69: 5.19 | J69: 3.07 | K69: 2.75 | L69: 4.81 | M69: 4.03 | P69: 2.62 | Q69: 53
A72: 3 – COTATION DES GROS BOVINS VIFS SUR LE MARCHE DE CHOLET (en Euro/Kg Net)
C74: GENISSES | E74: VACHES | I74: JEUNES BOVINS | J74: TAUREAUX
A75: semaines | B75: année+mois | C75: Viande, mixte, lait | D75: Viande, mixte, lait | E75: Blonde | F75: Blonde | G75: Mixte | H75: Lait | I75: Viande | J75: Viande, mixte, lait
A76: 2020 | C76: U | D76: R | E76: U | F76: R | G76: O | H76: P | I76: U | J76: URO
A77: 1 | B77: 202001 | C77: 4.29 | D77: 3.72 | E77: 4.7 | F77: 3.9 | G77: 3.05 | H77: 2.4 | I77: 3.93
A78: 2 | B78: 202001 | C78: 4.29 | D78: 3.72 | E78: 4.7 | F78: 3.9 | G78: 3.05 | H78: 2.4 | I78: 3.93
A79: 3 | B79: 202001 | C79: 4.29 | D79: 3.74 | E79: 4.7 | F79: 3.9 | G79: 3.05 | H79: 2.4 | I79: 3.93
A80: 4 | B80: 202001 | C80: 4.29 | D80: 3.74 | E80: 4.7 | F80: 3.9 | G80: 3.05 | H80: 2.38 | I80: 3.91
A81: 5 | B81: 202001 | C81: 4.29 | D81: 3.76 | E81: 4.7 | F81: 3.92 | G81: 3.05 | H81: 2.38 | I81: 3.89
A82: 6 | B82: 202002 | C82: 4.29 | D82: 3.77 | E82: 4.7 | F82: 3.92 | G82: 3.05 | H82: 2.4 | I82: 3.87
A83: 7 | B83: 202002 | C83: 4.29 | D83: 3.78 | E83: 4.7 | F83: 3.92 | G83: 3.05 | H83: 2.43 | I83: 3.87
A84: 8 | B84: 202002 | C84: 4.29 | D84: 3.8 | E84: 4.7 | F84: 3.92 | G84: 3.08 | H84: 2.46 | I84: 3.83
A85: 9 | B85: 202002 | C85: 4.29 | D85: 3.81 | E85: 4.7 | F85: 3.92 | G85: 3.08 | H85: 2.49 | I85: 3.82
A86: 10 | B86: 202003 | C86: 4.3 | D86: 3.82 | E86: 4.7 | F86: 3.92 | G86: 3.08 | H86: 2.52 | I86: 3.81
A87: 11 | B87: 202003 | C87: 4.3 | D87: 3.82 | E87: 4.7 | F87: 3.92 | G87: 3.08 | H87: 2.52 | I87: 3.81
A88: 12 | B88: 202003
A89: 13 | B89: 202003
A90: 14 | B90: 202004
A91: 15 | B91: 202004
A92: 16 | B92: 202004
A93: 17 | B93: 202004 | C93: 4.26 | D93: 3.78 | E93: 4.7 | F93: 3.85 | G93: 2.87 | H93: 2.56 | I93: 3.75 | J93: 3
A94: 18 | B94: 202004 | C94: 4.26 | D94: 3.78 | E94: 4.7 | F94: 3.85 | G94: 2.87 | H94: 2.58 | I94: 3.75 | J94: 3.02
A95: 19 | B95: 202005
A96: 20 | B96: 202005
A97: 21 | B97: 202005
A98: 22 | B98: 202005
A99: 23 | B99: 202006 | C99: 4.38 | D99: 3.93 | E99: 4.75 | F99: 4.05 | G99: 3 | H99: 2.77 | I99: 3.75
A100: 24 | B100: 202006 | C100: 4.43 | D100: 4.01 | E100: 4.8 | F100: 4.1 | G100: 3 | H100: 2.77 | I100: 3.75 | J100: 3.02
A101: 25 | B101: 202006 | C101: 4.46 | D101: 4.04 | E101: 4.8 | F101: 4.1 | G101: 3 | H101: 2.77 | I101: 3.75
A102: 26 | B102: 202006 | C102: 4.46 | D102: 4.04 | E102: 4.8 | F102: 4.1 | G102: 3 | H102: 2.74 | I102: 3.75
A103: 27 | B103: 202007 | C103: 4.46 | D103: 4.04 | E103: 4.8 | F103: 4.1 | G103: 3 | H103: 2.74 | I103: 3.75
A104: 28 | B104: 202007 | C104: 4.46 | D104: 4.04 | E104: 4.8 | F104: 4.1 | G104: 3 | H104: 2.74 | I104: 3.75
A105: 29 | B105: 202007 | C105: 4.46 | D105: 4.04 | E105: 4.8 | F105: 4.1 | G105: 3 | H105: 2.74 | I105: 3.75
A106: 30 | B106: 202007 | C106: 4.46 | D106: 4.04 | E106: 4.8 | F106: 4.1 | G106: 3 | H106: 2.74 | I106: 3.75
A107: 31 | B107: 202007 | E107: 4.8 | F107: 4.1 | G107: 3 | H107: 2.74 | I107: 3.75 | J107: 3.05
A108: 32 | B108: 202008 | C108: 4.46 | D108: 4.04 | E108: 4.8 | F108: 4.1 | G108: 3 | H108: 2.74 | I108: 3.72
A109: 33 | B109: 202008 | C109: 4.46 | D109: 4.04 | E109: 4.8 | F109: 4.1 | G109: 3 | H109: 2.74 | I109: 3.7
A110: 34 | B110: 202008 | C110: 4.46 | D110: 4.04 | E110: 4.8 | F110: 4.1 | G110: 3 | H110: 2.74 | I110: 3.68 | J110: 3.05
A111: 35 | B111: 202008 | C111: 4.46 | D111: 4.04 | E111: 4.8 | F111: 4.1 | G111: 3 | H111: 2.74 | I111: 3.66
A112: 36 | B112: 202009 | C112: 4.46 | D112: 4.04 | E112: 4.8 | F112: 4.1 | G112: 3 | H112: 2.74 | I112: 3.66
A113: 37 | B113: 202009 | C113: 4.46 | D113: 4.04 | E113: 4.8 | F113: 4.1 | G113: 3 | H113: 2.74 | I113: 3.66
A114: 38 | B114: 202009 | C114: 4.46 | D114: 4.04 | E114: 4.8 | F114: 4.1 | G114: 3 | H114: 2.74 | I114: 3.66
A115: 39 | B115: 202009 | C115: 4.46 | D115: 4.04 | E115: 4.8 | F115: 4.1 | G115: 3 | H115: 2.74 | I115: 3.66 | J115: 3.05
A116: 40 | B116: 202009 | C116: 4.46 | D116: 4.04 | E116: 4.8 | F116: 4.1 | G116: 3 | H116: 2.74 | I116: 3.66
A117: 41 | B117: 202010 | C117: 4.46 | D117: 4.04 | E117: 4.8 | F117: 4.1 | G117: 3 | H117: 2.74 | I117: 3.66
A118: 42 | B118: 202010 | C118: 4.46 | D118: 4.04 | E118: 4.8 | F118: 4.1 | G118: 3 | H118: 2.74 | I118: 3.66
A119: 43 | B119: 202010 | C119: 4.46 | D119: 4.04 | E119: 4.8 | F119: 4.1 | G119: 3 | H119: 2.74 | I119: 3.66
A120: 44 | B120: 202010 | C120: 4.46 | D120: 4.04 | E120: 4.8 | F120: 4.1 | G120: 3 | H120: 2.74 | I120: 3.66
A121: 45 | B121: 202011 | C121: 4.46 | D121: 4.04 | E121: 4.8 | F121: 4.1 | G121: 3 | H121: 2.71 | I121: 3.64
A122: 46 | B122: 202011 | C122: 4.46 | D122: 4.04 | E122: 4.8 | F122: 4.1 | G122: 2.95 | H122: 2.67 | I122: 3.64 | J122: 3.05
A123: 47 | B123: 202011 | C123: 4.46 | D123: 4.04 | E123: 4.8 | F123: 4.1 | G123: 2.95 | H123: 2.65 | I123: 3.64 | J123: 3.05
A124: 48 | B124: 202011 | C124: 4.46 | D124: 4.04 | E124: 4.8 | F124: 4.1 | G124: 2.9 | H124: 2.62 | I124: 3.64
A125: 49 | B125: 202012 | C125: 4.46 | D125: 4.04 | E125: 4.8 | F125: 4.1 | G125: 2.9 | H125: 2.6 | I125: 3.64
A126: 50 | B126: 202012 | C126: 4.46 | D126: 4.04 | E126: 4.8 | F126: 4.1 | G126: 2.87 | H126: 2.6 | I126: 3.64
A127: 51 | B127: 202012 | C127: 4.46 | D127: 4.04 | E127: 4.8 | F127: 4.1 | G127: 2.87 | H127: 2.6 | I127: 3.64
A128: 52 | B128: 202012 | C128: 4.46 | D128: 4.03 | E128: 4.8 | F128: 4.1 | G128: 2.87 | H128: 2.6 | I128: 3.64
A129: 53 | B129: 202012 | C129: 4.46 | D129: 4.03 | E129: 4.8 | F129: 4.1 | G129: 2.87 | H129: 2.6 | I129: 3.64

Sheet GrosBovins2019 (hidden)
A1: COTATIONS DES GROS BOVINS
A2: Source : DRAAF Pays de la Loire - SRISE - FranceAgriMer | K2: mise à jour : 06/01/2020
A5: 1 – COTATION REGIONALE GRAND OUEST ENTREE ABATTOIR en €/Kg net
A7: 2 – MOYENNE NATIONALE DES BOVINS MAIGRES DESTINES A L'ENGRAISSEMENT CHAROLAIS MALE de 6-12 mois catégorie U (300kg) en €/kg vif
A9: 3 – OTATION DES GROS BOVINS VIFS SUR LE MARCHE DE CHOLET (en Euro/Kg Net) – à partir de la ligne 72
P11: 2 – COT. HEBDO
D12: 1 – COTATION REGIONALE ENTREE ABATTOIR GRAND OUEST FRANCEAGRIMER-HEBDOMADAIRE (€/Kg net) | P12: MAIGRE €/kg vif
P13: Ref. nationale
A14: Année | B14: Sem. | C14: JEUNES BOVINS | F14: BOEUFS | G14: VACHES | L14: GENISSES | P14: Charolais Mâles
C15: VIANDE | E15: MIXTE | F15: MIXTE | G15: VIANDE | I15: Blonde | J15: MIXTE | K15: LAIT | L15: VIANDES + 350kg
C16: U | D16: R | E16: O | F16: O | G16: U | H16: R | I16: U | J16: O | K16: P | L16: U | M16: R | P16: 6/12 mois ( U )
A17: 2019 | B17: 1 | C17: 3.99 | D17: 3.81 | E17: 3.5 | F17: 3.3 | G17: 4.34 | H17: 3.78 | I17: 4.95 | J17: 3.27 | K17: 2.64 | L17: 4.6 | M17: 3.86 | P17: 2.73
B18: 2 | C18: 3.99 | D18: 3.82 | E18: 3.49 | F18: 3.34 | G18: 4.43 | H18: 3.77 | I18: 5.03 | J18: 3.28 | K18: 2.66 | L18: 4.64 | M18: 3.89 | P18: 2.73
B19: 3 | C19: 4 | D19: 3.82 | E19: 3.49 | F19: 3.33 | G19: 4.38 | H19: 3.77 | I19: 5.02 | J19: 3.28 | K19: 2.67 | L19: 4.69 | M19: 3.86 | P19: 2.73
B20: 4 | C20: 4.01 | D20: 3.82 | E20: 3.48 | F20: 3.34 | G20: 4.43 | H20: 3.77 | I20: 5.11 | J20: 3.28 | K20: 2.68 | L20: 4.73 | M20: 3.86 | P20: 2.73
A21: J | B21: 5 | C21: 4.02 | D21: 3.85 | E21: 3.52 | F21: 3.36 | G21: 4.36 | H21: 3.77 | I21: 5.03 | J21: 3.31 | K21: 2.71 | L21: 4.64 | M21: 3.89 | P21: 2.73
B22: 6 | C22: 4.02 | D22: 3.84 | E22: 3.5 | F22: 3.36 | G22: 4.44 | H22: 3.79 | I22: 5.05 | J22: 3.33 | K22: 2.72 | L22: 4.66 | M22: 3.86 | P22: 2.73
B23: 7 | C23: 4.02 | D23: 3.84 | E23: 3.49 | F23: 3.36 | G23: 4.42 | H23: 3.79 | I23: 4.99 | J23: 3.34 | K23: 2.74 | L23: 4.71 | M23: 3.84 | P23: 2.78
B24: 8 | C24: 4.03 | D24: 3.86 | E24: 3.54 | F24: 3.4 | G24: 4.5 | H24: 3.8 | I24: 5.11 | J24: 3.37 | K24: 2.76 | L24: 4.74 | M24: 3.86 | P24: 2.78
A25: F | B25: 9 | C25: 4.04 | D25: 3.86 | E25: 3.54 | F25: 3.43 | G25: 4.52 | H25: 3.81 | I25: 5.04 | J25: 3.38 | K25: 2.78 | L25: 4.7 | M25: 3.86 | P25: 2.82
B26: 10 | C26: 4.05 | D26: 3.86 | E26: 3.55 | F26: 3.43 | G26: 4.46 | H26: 3.81 | I26: 5.02 | J26: 3.39 | K26: 2.79 | L26: 4.75 | M26: 3.9 | P26: 2.82
B27: 11 | C27: 4.03 | D27: 3.85 | E27: 3.52 | F27: 3.44 | G27: 4.62 | H27: 3.83 | I27: 5.14 | J27: 3.42 | K27: 2.8 | L27: 4.79 | M27: 3.87 | P27: 2.87
B28: 12 | C28: 4.02 | D28: 3.84 | E28: 3.54 | F28: 3.43 | G28: 4.52 | H28: 3.84 | I28: 4.99 | J28: 3.43 | K28: 2.81 | L28: 4.74 | M28: 3.88 | P28: 2.87
A29: M | B29: 13 | C29: 4.01 | D29: 3.81 | E29: 3.52 | F29: 3.45 | G29: 4.52 | H29: 3.85 | I29: 5.09 | J29: 3.41 | K29: 2.81 | L29: 4.81 | M29: 3.88 | P29: 2.87
B30: 14 | C30: 3.99 | D30: 3.81 | E30: 3.54 | F30: 3.43 | G30: 4.56 | H30: 3.84 | I30: 5.04 | J30: 3.4 | K30: 2.81 | L30: 4.87 | M30: 3.89 | P30: 2.87
B31: 15 | C31: 3.98 | D31: 3.8 | E31: 3.5 | F31: 3.43 | G31: 5.06 | H31: 3.82 | I31: 5.2 | J31: 3.41 | K31: 2.8 | L31: 4.94 | M31: 3.89 | P31: 2.87
B32: 16 | C32: 3.97 | D32: 3.78 | E32: 3.45 | F32: 3.43 | G32: 4.56 | H32: 3.83 | I32: 5.13 | J32: 3.42 | K32: 2.82 | L32: 4.78 | M32: 3.9 | P32: 2.87
A33: A | B33: 17 | C33: 3.97 | D33: 3.78 | E33: 3.43 | F33: 3.45 | G33: 4.57 | H33: 3.85 | I33: 5.12 | J33: 3.44 | K33: 2.84 | L33: 4.8 | M33: 3.94 | P33: 2.87
B34: 18 | C34: 3.96 | D34: 3.77 | E34: 3.44 | F34: 3.46 | G34: 4.51 | H34: 3.84 | I34: 5.18 | J34: 3.42 | K34: 2.86 | L34: 4.8 | M34: 3.87 | P34: 2.87
B35: 19 | C35: 3.96 | D35: 3.77 | E35: 3.42 | F35: 3.45 | G35: 4.63 | H35: 3.85 | I35: 5.05 | J35: 3.43 | K35: 2.88 | L35: 4.77 | M35: 3.9
B36: 20 | C36: 3.96 | D36: 3.79 | E36: 3.38 | F36: 3.47 | G36: 4.52 | H36: 3.87 | I36: 5.13 | J36: 3.45 | K36: 2.9 | L36: 4.72 | M36: 3.93 | P36: 2.92
B37: 21 | C37: 3.97 | D37: 3.79 | E37: 3.44 | F37: 3.47 | G37: 4.63 | H37: 3.86 | I37: 5.08 | J37: 3.46 | K37: 2.92 | L37: 4.82 | M37: 3.91
A38: M | B38: 22 | C38: 3.97 | D38: 3.79 | E38: 3.41 | F38: 3.49 | G38: 4.59 | H38: 3.86 | I38: 5.08 | J38: 3.46 | K38: 2.92 | L38: 4.78 | M38: 3.88
B39: 23 | C39: 3.97 | D39: 3.78 | E39: 3.38 | F39: 3.48 | G39: 4.45 | H39: 3.86 | I39: 5.08 | J39: 3.46 | K39: 2.92 | L39: 4.78 | M39: 3.89
B40: 24 | C40: 3.96 | D40: 3.77 | E40: 3.41 | F40: 3.44 | G40: 4.51 | H40: 3.93 | I40: 5.09 | J40: 3.45 | K40: 2.91 | L40: 4.75 | M40: 3.93
B41: 25 | C41: 3.95 | D41: 3.77 | E41: 3.36 | F41: 3.46 | G41: 4.4 | H41: 3.83 | I41: 5.03 | J41: 3.44 | K41: 2.89 | L41: 4.77 | M41: 3.84
A42: J | B42: 26 | C42: 3.94 | D42: 3.75 | E42: 3.37 | F42: 3.47 | G42: 4.54 | H42: 3.84 | I42: 5.07 | J42: 3.43 | K42: 2.89 | L42: 4.75 | M42: 3.89
B43: 27 | C43: 3.94 | D43: 3.76 | E43: 3.33 | F43: 3.44 | G43: 4.51 | H43: 3.84 | I43: 5.07 | J43: 3.44 | K43: 2.89 | L43: 4.72 | M43: 3.89
B44: 28 | C44: 3.93 | D44: 3.75 | E44: 3.34 | F44: 3.44 | G44: 4.6 | H44: 3.83 | I44: 5.09 | J44: 3.43 | K44: 2.87 | L44: 4.7 | M44: 3.9
B45: 29 | C45: 3.94 | D45: 3.73 | E45: 3.35 | F45: 3.45 | G45: 4.47 | H45: 3.82 | I45: 5.06 | J45: 3.44 | K45: 2.86 | L45: 4.81 | M45: 3.87
B46: 30 | C46: 3.95 | D46: 3.76 | E46: 3.35 | F46: 3.43 | G46: 4.42 | H46: 3.77 | I46: 5.08 | J46: 3.4 | K46: 2.84 | L46: 4.63 | M46: 3.84 | P46: 2.8
A47: J | B47: 31 | C47: 3.96 | D47: 3.78 | E47: 3.34 | F47: 3.41 | G47: 4.52 | H47: 3.79 | I47: 5.05 | J47: 3.37 | K47: 2.8 | L47: 4.66 | M47: 3.87 | P47: 2.8
B48: 32 | C48: 3.97 | D48: 3.78 | E48: 3.35 | F48: 3.41 | G48: 4.43 | H48: 3.76 | I48: 5.02 | J48: 3.35 | K48: 2.77 | L48: 4.69 | M48: 3.83 | P48: 2.8
B49: 33 | C49: 3.99 | D49: 3.78 | E49: 3.33 | F49: 3.4 | G49: 4.46 | H49: 3.75 | I49: 5.05 | J49: 3.37 | K49: 2.77 | L49: 4.77 | M49: 3.88 | P49: 2.8
B50: 34 | C50: 4 | D50: 3.82 | E50: 3.36 | F50: 3.4 | G50: 4.45 | H50: 3.76 | I50: 5.07 | J50: 3.39 | K50: 2.79 | L50: 4.76 | M50: 3.83 | P50: 2.8
A51: A | B51: 35 | C51: 4.01 | D51: 3.82 | E51: 3.35 | F51: 3.43 | G51: 4.52 | H51: 3.8 | I51: 5.33 | J51: 3.37 | K51: 2.81 | L51: 4.78 | M51: 3.87 | P51: 2.8
B52: 36 | C52: 4.02 | D52: 3.82 | E52: 3.41 | F52: 3.41 | G52: 4.6 | H52: 3.81 | I52: 5.11 | J52: 3.37 | K52: 2.82 | L52: 4.8 | M52: 3.86 | P52: 2.8
B53: 37 | C53: 4.02 | D53: 3.84 | E53: 3.41 | F53: 3.4 | G53: 4.56 | H53: 3.78 | I53: 5.1 | J53: 3.35 | K53: 2.82 | L53: 4.8 | M53: 3.84 | P53: 2.77
B54: 38 | C54: 4.01 | D54: 3.82 | E54: 3.4 | F54: 3.42 | G54: 4.67 | H54: 3.78 | I54: 5.09 | J54: 3.34 | K54: 2.79 | L54: 4.77 | M54: 3.83 | P54: 2.77
A55: S | B55: 39 | C55: 3.99 | D55: 3.8 | E55: 3.36 | F55: 3.35 | G55: 4.52 | H55: 3.76 | I55: 5.08 | J55: 3.31 | K55: 2.75 | L55: 4.72 | M55: 3.81 | P55: 2.77
B56: 40 | C56: 3.98 | D56: 3.8 | E56: 3.4 | F56: 3.34 | G56: 4.63 | H56: 3.75 | I56: 5.16 | J56: 3.28 | K56: 2.71 | L56: 4.75 | M56: 3.83 | P56: 2.76
B57: 41 | C57: 3.97 | D57: 3.79 | E57: 3.36 | F57: 3.3 | G57: 4.51 | H57: 3.74 | I57: 5.05 | J57: 3.25 | K57: 2.67 | L57: 4.64 | M57: 3.86 | P57: 2.74
B58: 42 | C58: 3.97 | D58: 3.77 | E58: 3.38 | F58: 3.28 | G58: 4.6 | H58: 3.75 | I58: 5.13 | J58: 3.23 | K58: 2.62 | L58: 4.73 | M58: 3.81 | P58: 2.74
B59: 43 | C59: 3.97 | D59: 3.78 | E59: 3.35 | F59: 3.26 | G59: 4.43 | H59: 3.73 | I59: 5.01 | J59: 3.2 | K59: 2.58 | L59: 4.79 | M59: 3.83 | P59: 2.74
A60: O | B60: 44 | C60: 3.98 | D60: 3.81 | E60: 3.39 | F60: 3.24 | G60: 4.66 | H60: 3.73 | I60: 5.09 | J60: 3.18 | K60: 2.55 | L60: 4.73 | M60: 3.83 | P60: 2.72
B61: 45 | C61: 4 | D61: 3.81 | E61: 3.42 | F61: 3.23 | G61: 4.56 | H61: 3.7 | I61: 5.02 | J61: 3.17 | K61: 2.54 | L61: 4.72 | M61: 3.85 | P61: 2.72
B62: 46 | C62: 4.01 | D62: 3.84 | E62: 3.4 | F62: 3.22 | G62: 4.61 | H62: 3.73 | I62: 5.1 | J62: 3.15 | K62: 2.53 | L62: 4.69 | M62: 3.78 | P62: 2.72
B63: 47 | C63: 4.03 | D63: 3.85 | E63: 3.42 | F63: 3.22 | G63: 4.44 | H63: 3.72 | I63: 5.07 | J63: 3.14 | K63: 2.52 | L63: 4.69 | M63: 3.81 | P63: 2.69
A64: N | B64: 48 | C64: 4.05 | D64: 3.87 | E64: 3.44 | F64: 3.18 | G64: 4.44 | H64: 3.71 | I64: 5.02 | J64: 3.12 | K64: 2.52 | L64: 4.73 | M64: 3.8 | P64: 2.69
B65: 49 | C65: 4.07 | D65: 3.9 | E65: 3.43 | F65: 3.19 | G65: 4.54 | H65: 3.7 | I65: 5.13 | J65: 3.12 | K65: 2.52 | L65: 4.67 | M65: 3.84 | P65: 2.69
B66: 50 | C66: 4.08 | D66: 3.9 | E66: 3.45 | F66: 3.2 | G66: 4.79 | H66: 3.71 | I66: 5.19 | J66: 3.12 | K66: 2.52 | L66: 4.84 | M66: 3.81 | P66: 2.69
B67: 51 | C67: 4.08 | D67: 3.9 | E67: 3.46 | F67: 3.21 | G67: 4.43 | H67: 3.71 | I67: 5.12 | J67: 3.13 | K67: 2.53 | L67: 4.75 | M67: 3.82 | P67: 2.69
A68: D | B68: 52 | C68: 4.07 | D68: 3.89 | E68: 3.45 | F68: 3.2 | G68: 4.59 | H68: 3.71 | I68: 5.06 | J68: 3.14 | K68: 2.54 | L68: 4.74 | M68: 3.83 | P68: 2.69
A72: 3 – COTATION DES GROS BOVINS VIFS SUR LE MARCHE DE CHOLET (en Euro/Kg Net)
C74: GENISSES | E74: VACHES | I74: JEUNES BOVINS | J74: TAUREAUX
A75: semaines | B75: année+mois | C75: Viande, mixte, lait | D75: Viande, mixte, lait | E75: Blonde | F75: Blonde | G75: Mixte | H75: Lait | I75: Viande | J75: Viande, mixte, lait
A76: 2019 | C76: U | D76: R | E76: U | F76: R | G76: O | H76: P | I76: U | J76: URO
A77: 1 | B77: 201901 | C77: 4.31 | D77: 3.72 | E77: 4.5 | F77: 3.78 | G77: 3 | H77: 2.41 | I77: 3.8 | J77: 2.97
A78: 2 | B78: 201901 | C78: 4.31 | D78: 3.72 | E78: 4.53 | F78: 3.8 | G78: 3 | H78: 2.44 | I78: 3.8 | J78: 3
A79: 3 | B79: 201901 | C79: 4.33 | D79: 3.74 | E79: 4.55 | F79: 3.8 | G79: 3 | H79: 2.44 | I79: 3.8 | J79: 3
A80: 4 | B80: 201901 | C80: 4.34 | D80: 3.78 | E80: 4.58 | F80: 3.85 | G80: 3.05 | H80: 2.47 | I80: 3.83 | J80: 3.05
A81: 5 | B81: 201901 | C81: 4.34 | D81: 3.78 | E81: 4.58 | F81: 3.85 | G81: 3.05 | H81: 2.47 | I81: 3.83 | J81: 3.05
A82: 6 | B82: 201902 | C82: 4.34 | D82: 3.8 | E82: 4.58 | F82: 3.9 | G82: 3.08 | H82: 2.5 | I82: 3.85 | J82: 3.05
A83: 7 | B83: 201902 | C83: 4.34 | D83: 3.8 | E83: 4.58 | F83: 3.9 | G83: 3.08 | H83: 2.5 | I83: 3.85 | J83: 3.05
A84: 8 | B84: 201902 | C84: 4.35 | D84: 3.82 | E84: 4.6 | F84: 3.9 | G84: 3.1 | H84: 2.55 | I84: 3.85 | J84: 3.05
A85: 9 | B85: 201902 | C85: 4.35 | D85: 3.82 | E85: 4.6 | F85: 3.9 | G85: 3.1 | H85: 2.57 | I85: 3.85 | J85: 3.05
A86: 10 | B86: 201903 | C86: 4.35 | D86: 3.83 | E86: 4.63 | F86: 3.9 | G86: 3.1 | H86: 2.59 | I86: 3.85 | J86: 3.05
A87: 11 | B87: 201903 | C87: 4.35 | D87: 3.85 | E87: 4.63 | F87: 3.9 | G87: 3.13 | H87: 2.62 | I87: 3.85 | J87: 3.05
A88: 12 | B88: 201903 | C88: 4.35 | D88: 3.85 | E88: 4.63 | F88: 3.9 | G88: 3.13 | H88: 2.62 | I88: 3.83 | J88: 3.05
A89: 13 | B89: 201903 | C89: 4.35 | D89: 3.85 | E89: 4.63 | F89: 3.9 | G89: 3.13 | H89: 2.62 | I89: 3.81 | J89: 3.05
A90: 14 | B90: 201904 | C90: 4.35 | D90: 3.85 | E90: 4.63 | F90: 3.9 | G90: 3.13 | H90: 2.62 | I90: 3.8 | J90: 3.05
A91: 15 | B91: 201904 | C91: 4.35 | D91: 3.85 | E91: 4.63 | F91: 3.92 | G91: 3.13 | H91: 2.65 | I91: 3.8 | J91: 3.05
A92: 16 | B92: 201904 | C92: 4.36 | D92: 3.86 | E92: 4.68 | F92: 3.95 | G92: 3.15 | H92: 2.68 | I92: 3.8 | J92: 3.05
A93: 17 | B93: 201904 | C93: 4.37 | D93: 3.86 | E93: 4.68 | F93: 3.95 | G93: 3.15 | H93: 2.7 | I93: 3.8 | J93: 3.05
A94: 18 | B94: 201905 | C94: 4.37 | D94: 3.86 | E94: 4.68 | F94: 3.95 | G94: 3.15 | H94: 2.72 | I94: 3.8 | J94: 3.05
A95: 19 | B95: 201905 | C95: 4.37 | D95: 3.86 | E95: 4.68 | F95: 3.95 | G95: 3.18 | H95: 2.75 | I95: 3.8 | J95: 3.05
A96: 20 | B96: 201905 | C96: 4.39 | D96: 3.86 | E96: 4.7 | F96: 3.95 | G96: 3.2 | H96: 2.77 | I96: 3.8 | J96: 3.05
A97: 21 | B97: 201905 | C97: 4.39 | D97: 3.86 | E97: 4.7 | F97: 3.95 | G97: 3.2 | H97: 2.77 | I97: 3.8 | J97: 3.05
A98: 22 | B98: 201905 | C98: 4.39 | D98: 3.86 | E98: 4.73 | F98: 3.95 | G98: 3.2 | H98: 2.8 | I98: 3.8 | J98: 3.05
A99: 23 | B99: 201906 | C99: 4.39 | D99: 3.86 | E99: 4.73 | F99: 3.95 | G99: 3.2 | H99: 2.8 | I99: 3.8 | J99: 3.05
A100: 24 | B100: 201906 | C100: 4.39 | D100: 3.86 | E100: 4.73 | F100: 3.95 | G100: 3.2 | H100: 2.77 | I100: 3.8 | J100: 3.05
A101: 25 | B101: 201906 | C101: 4.39 | D101: 3.86 | E101: 4.73 | F101: 3.95 | G101: 3.2 | H101: 2.77 | I101: 3.8 | J101: 3.05
A102: 26 | B102: 201906 | C102: 4.39 | D102: 3.86 | E102: 4.73 | F102: 3.95 | G102: 3.2 | H102: 2.77 | I102: 3.8 | J102: 3.05
A103: 27 | B103: 201907 | C103: 4.39 | D103: 3.84 | E103: 4.73 | F103: 3.95 | G103: 3.2 | H103: 2.75 | I103: 3.8 | J103: 3.05
A104: 28 | B104: 201907 | C104: 4.39 | D104: 3.84 | E104: 4.73 | F104: 3.95 | G104: 3.2 | H104: 2.75 | I104: 3.8 | J104: 3.05
A105: 29 | B105: 201907 | C105: 4.39 | D105: 3.83 | E105: 4.73 | F105: 3.95 | G105: 3.2 | H105: 2.72 | I105: 3.8 | J105: 3.05
A106: 30 | B106: 201907 | C106: 4.38 | D106: 3.81 | E106: 4.73 | F106: 3.95 | G106: 3.18 | H106: 2.7 | I106: 3.82 | J106: 3.05
A107: 31 | B107: 201908 | C107: 4.38 | D107: 3.81 | E107: 4.73 | F107: 3.95 | G107: 3.18 | H107: 2.68 | I107: 3.85 | J107: 3.05
A108: 32 | B108: 201908 | C108: 4.38 | D108: 3.81 | E108: 4.73 | F108: 3.95 | G108: 3.18 | H108: 2.68 | I108: 3.87 | J108: 3.05
A109: 33 | B109: 201908 | C109: 4.38 | D109: 3.82 | E109: 4.75 | F109: 3.96 | G109: 3.2 | H109: 2.7 | I109: 3.89 | J109: 3.05
A110: 34 | B110: 201908 | C110: 4.36 | D110: 3.82 | E110: 4.75 | F110: 3.96 | G110: 3.2 | H110: 2.7 | I110: 3.91 | J110: 3.05
A111: 35 | B111: 201908 | E111: 4.75 | F111: 3.96 | G111: 3.2 | H111: 2.7 | I111: 3.91 | J111: 3.05
A112: 36 | B112: 201909 | C112: 4.36 | D112: 3.81 | E112: 4.75 | F112: 3.96 | G112: 3.2 | H112: 2.7 | I112: 3.9 | J112: 3.05
A113: 37 | B113: 201909 | C113: 4.35 | D113: 3.78 | E113: 4.75 | F113: 3.95 | G113: 3.2 | H113: 2.67 | I113: 3.88 | J113: 3.05
A114: 38 | B114: 201909 | C114: 4.33 | D114: 3.74 | E114: 4.75 | F114: 3.95 | G114: 3.18 | H114: 2.64 | I114: 3.86 | J114: 3.05
A115: 39 | B115: 201909 | C115: 4.33 | D115: 3.74 | E115: 4.75 | F115: 3.95 | G115: 3.16 | H115: 2.61 | I115: 3.84 | J115: 3.05
A116: 40 | B116: 201910 | C116: 4.32 | D116: 3.74 | E116: 4.75 | F116: 3.95 | G116: 3.13 | H116: 2.56 | I116: 3.82 | J116: 3
A117: 41 | B117: 201910 | C117: 4.29 | D117: 3.72 | E117: 4.72 | F117: 3.92 | G117: 3.1 | H117: 2.65 | I117: 3.82 | J117: 3
A118: 42 | B118: 201910 | C118: 4.29 | D118: 3.72 | E118: 4.72 | F118: 3.92 | G118: 3.1 | H118: 2.5 | I118: 3.82 | J118: 3
A119: 43 | B119: 201910 | C119: 4.29 | D119: 3.72 | E119: 4.72 | F119: 3.92 | G119: 3.1 | H119: 2.45 | I119: 3.82
A120: 44 | B120: 201910 | C120: 4.29 | D120: 3.72 | E120: 4.72 | F120: 3.92 | G120: 3.08 | H120: 2.45 | I120: 3.85
A121: 45 | B121: 201911 | C121: 4.29 | D121: 3.72 | E121: 4.7 | F121: 3.9 | G121: 3.05 | H121: 2.43 | I121: 3.87
A122: 46 | B122: 201911 | C122: 4.29 | D122: 3.72 | E122: 4.7 | F122: 3.9 | G122: 3.05 | H122: 2.43 | I122: 3.87
A123: 47 | B123: 201911 | C123: 4.29 | D123: 3.72 | E123: 4.7 | F123: 3.9 | G123: 3.05 | H123: 2.4 | I123: 3.9
A124: 48 | B124: 201911 | C124: 4.29 | D124: 3.72 | E124: 4.7 | F124: 3.9 | G124: 3.05 | H124: 2.4 | I124: 3.93
A125: 49 | B125: 201912 | C125: 4.29 | D125: 3.72 | E125: 4.7 | F125: 3.9 | G125: 3.05 | H125: 2.4 | I125: 3.93
A126: 50 | B126: 201912 | C126: 4.29 | D126: 3.72 | E126: 4.7 | F126: 3.9 | G126: 3.05 | H126: 2.4 | I126: 3.93
A127: 51 | B127: 201912 | C127: 4.29 | D127: 3.72 | E127: 4.7 | F127: 3.9 | G127: 3.05 | H127: 2.4 | I127: 3.93
A128: 52 | B128: 201912

Sheet GrosBovins 2018 (hidden)
A1: COTATIONS DES GROS BOVINS
A2: Source : DRAAF Pays de la Loire - SRISE - FranceAgriMer | K2: mise à jour : 07/01/2019
A5: 1 – COTATION REGIONALE GRAND OUEST ENTREE ABATTOIR en €/Kg net
A7: 2 – MOYENNE NATIONALE DES BOVINS MAIGRES DESTINES A L'ENGRAISSEMENT CHAROLAIS MALE de 6-12 mois catégorie U (300kg) en €/kg vif
A9: 3 – COTATION DES GROS BOVINS VIFS SUR LE MARCHE DE CHOLET (en Euro/Kg Net) – à partir de la ligne 72
P11: 2- COT. HEBDO
A12: 1 – COTATION REGIONALE ENTREE ABATTOIR GRAND OUEST FRANCEAGRIMER-HEBDOMADAIRE (€/Kg net) | P12: MAIGRE €/kg vif
P13: Ref. nationale
A14: Année | B14: Sem. | C14: JEUNES BOVINS | F14: BOEUFS | G14: VACHES | L14: GENISSES | P14: Charolais Mâles
C15: VIANDE | E15: MIXTE | F15: MIXTE | G15: VIANDE | I15: Blonde | J15: MIXTE | K15: LAIT | L15: VIANDES + 350kg
C16: U | D16: R | E16: O | F16: O | G16: U | H16: R | I16: U | J16: O | K16: P | L16: U | M16: R | P16: 6/12 mois ( U )
A17: 2018 | B17: 1 | C17: 4.2 | D17: 3.98 | E17: 3.62 | F17: 3.31 | G17: 4.4 | H17: 3.71 | I17: 5.05 | J17: 3.26 | K17: 2.67 | L17: 4.86 | M17: 3.78 | P17: 2.76
B18: 2 | C18: 4.18 | D18: 3.96 | E18: 3.64 | F18: 3.3 | G18: 4.35 | H18: 3.68 | I18: 5.02 | J18: 3.26 | K18: 2.7 | L18: 4.77 | M18: 3.8 | P18: 2.78
B19: 3 | C19: 4.16 | D19: 3.95 | E19: 3.63 | F19: 3.32 | G19: 4.44 | H19: 3.66 | I19: 5.09 | J19: 3.26 | K19: 2.71 | L19: 4.65 | M19: 3.8 | P19: 2.8
B20: 4 | C20: 4.13 | D20: 3.93 | E20: 3.63 | F20: 3.3 | G20: 4.39 | H20: 3.68 | I20: 5.04 | J20: 3.24 | K20: 2.7 | L20: 4.73 | M20: 3.81 | P20: 2.81
A21: J | B21: 5 | C21: 4.11 | D21: 3.91 | E21: 3.66 | F21: 3.29 | G21: 4.41 | H21: 3.67 | I21: 4.99 | J21: 3.23 | K21: 2.7 | L21: 4.79 | M21: 3.84 | P21: 2.84
B22: 6 | C22: 4.09 | D22: 3.87 | E22: 3.65 | F22: 3.27 | G22: 4.38 | H22: 3.65 | I22: 4.96 | J22: 3.23 | K22: 2.71 | L22: 4.69 | M22: 3.77 | P22: 2.85
B23: 7 | C23: 4.07 | D23: 3.86 | E23: 3.64 | F23: 3.27 | G23: 4.39 | H23: 3.63 | I23: 5.04 | J23: 3.25 | K23: 2.74 | L23: 4.66 | M23: 3.8 | P23: 2.85
B24: 8 | C24: 4.05 | D24: 3.85 | E24: 3.64 | F24: 3.26 | G24: 4.34 | H24: 3.64 | I24: 4.99 | J24: 3.28 | K24: 2.76 | L24: 4.64 | M24: 3.78 | P24: 2.85
A25: F | B25: 9 | C25: 4.04 | D25: 3.84 | E25: 3.65 | F25: 3.31 | G25: 4.41 | H25: 3.63 | I25: 5.05 | J25: 3.29 | K25: 2.79 | L25: 4.75 | M25: 3.74 | P25: 2.85
B26: 10 | C26: 4.06 | D26: 3.88 | E26: 3.67 | F26: 3.32 | G26: 4.4 | H26: 3.68 | I26: 5.02 | J26: 3.32 | K26: 2.84 | L26: 4.66 | M26: 3.78 | P26: 2.86
B27: 11 | C27: 4.07 | D27: 3.89 | E27: 3.68 | F27: 3.34 | G27: 4.49 | H27: 3.68 | I27: 5.02 | J27: 3.34 | K27: 2.87 | L27: 4.8 | M27: 3.82 | P27: 2.9
B28: 12 | C28: 4.08 | D28: 3.89 | E28: 3.68 | F28: 3.37 | G28: 4.84 | H28: 3.69 | I28: 5.11 | J28: 3.34 | K28: 2.88 | L28: 4.91 | M28: 3.8 | P28: 2.9
A29: M | B29: 13 | C29: 4.07 | D29: 3.87 | E29: 3.65 | F29: 3.36 | G29: 4.44 | H29: 3.7 | I29: 5.03 | J29: 3.34 | K29: 2.88 | L29: 4.7 | M29: 3.8 | P29: 2.9
B30: 14 | C30: 4.06 | D30: 3.85 | E30: 3.6 | F30: 3.35 | G30: 4.64 | H30: 3.71 | I30: 5.05 | J30: 3.31 | K30: 2.86 | L30: 4.81 | M30: 3.77 | P30: 2.92
B31: 15 | C31: 4.03 | D31: 3.81 | E31: 3.57 | F31: 3.33 | G31: 4.45 | H31: 3.7 | I31: 5.02 | J31: 3.29 | K31: 2.83 | L31: 4.68 | M31: 3.81 | P31: 2.91
B32: 16 | C32: 3.99 | D32: 3.79 | E32: 3.51 | F32: 3.32 | G32: 4.45 | H32: 3.7 | I32: 5.09 | J32: 3.29 | K32: 2.84 | L32: 4.76 | M32: 3.8 | P32: 2.92
A33: A | B33: 17 | C33: 3.96 | D33: 3.75 | E33: 3.48 | F33: 3.31 | G33: 4.46 | H33: 3.71 | I33: 5.04 | J33: 3.31 | K33: 2.87 | L33: 4.76 | M33: 3.82 | P33: 2.92
B34: 18 | C34: 3.93 | D34: 3.71 | E34: 3.47 | F34: 3.35 | G34: 4.41 | H34: 3.71 | I34: 5.04 | J34: 3.34 | K34: 2.9 | L34: 4.72 | M34: 3.81 | P34: 2.92
B35: 19 | C35: 3.91 | D35: 3.71 | E35: 3.47 | F35: 3.37 | G35: 4.44 | H35: 3.72 | I35: 5.14 | J35: 3.36 | K35: 2.94 | L35: 4.75 | M35: 3.81 | P35: 2.92
B36: 20 | C36: 3.9 | D36: 3.72 | E36: 3.47 | F36: 3.39 | G36: 4.4 | H36: 3.71 | I36: 5.08 | J36: 3.37 | K36: 2.96 | L36: 4.73 | M36: 3.82 | P36: 2.96
B37: 21 | C37: 3.9 | D37: 3.7 | E37: 3.46 | F37: 3.43 | G37: 4.46 | H37: 3.76 | I37: 5.04 | J37: 3.37 | K37: 2.96 | L37: 4.78 | M37: 3.85 | P37: 2.96
A38: M | B38: 22 | C38: 3.91 | D38: 3.71 | E38: 3.44 | F38: 3.43 | G38: 4.37 | H38: 3.75 | I38: 5.14 | J38: 3.38 | K38: 2.97 | L38: 4.82 | M38: 3.82 | P38: 2.97
B39: 23 | C39: 3.89 | D39: 3.71 | E39: 3.38 | F39: 3.42 | G39: 4.37 | H39: 3.73 | I39: 5.04 | J39: 3.38 | K39: 2.96 | L39: 4.74 | M39: 3.83 | P39: 2.97
B40: 24 | C40: 3.89 | D40: 3.69 | E40: 3.36 | F40: 3.42 | G40: 4.42 | H40: 3.73 | I40: 5.06 | J40: 3.37 | K40: 2.94 | L40: 4.7 | M40: 3.85 | P40: 2.97
B41: 25 | C41: 3.88 | D41: 3.68 | E41: 3.32 | F41: 3.43 | G41: 4.53 | H41: 3.73 | I41: 5.05 | J41: 3.38 | K41: 2.94 | L41: 4.74 | M41: 3.98 | P41: 2.97
A42: J | B42: 26 | C42: 3.9 | D42: 3.69 | E42: 3.35 | F42: 3.45 | G42: 4.54 | H42: 3.76 | I42: 5.09 | J42: 3.4 | K42: 2.96 | L42: 4.74 | M42: 3.85 | P42: 2.97
B43: 27 | C43: 3.89 | D43: 3.7 | E43: 3.37 | F43: 3.44 | G43: 4.46 | H43: 3.76 | I43: 5.09 | J43: 3.42 | K43: 2.99 | L43: 4.8 | M43: 3.83 | P43: 2.98
B44: 28 | C44: 3.9 | D44: 3.72 | E44: 3.38 | F44: 3.48 | G44: 4.58 | H44: 3.78 | I44: 5.08 | J44: 3.42 | K44: 3.01 | L44: 4.8 | M44: 3.83 | P44: 2.94
B45: 29 | C45: 3.92 | D45: 3.73 | E45: 3.41 | F45: 3.47 | G45: 4.53 | H45: 3.78 | I45: 5.04 | J45: 3.44 | K45: 3.04 | L45: 4.74 | M45: 3.87 | P45: 2.94
A46: J | B46: 30 | C46: 3.93 | D46: 3.75 | E46: 3.41 | F46: 3.49 | G46: 4.57 | H46: 3.8 | I46: 5.07 | J46: 3.43 | K46: 3.03 | L46: 4.76 | M46: 3.88 | P46: 2.94
B47: 31 | C47: 3.92 | D47: 3.76 | E47: 3.39 | F47: 3.47 | G47: 4.51 | H47: 3.77 | I47: 5.09 | J47: 3.42 | K47: 3 | L47: 4.84 | M47: 3.86 | P47: 2.94
B48: 32 | C48: 3.91 | D48: 3.73 | E48: 3.34 | F48: 3.44 | G48: 4.53 | H48: 3.8 | I48: 5.09 | J48: 3.41 | K48: 2.99 | L48: 4.69 | M48: 3.89 | P48: 2.94
B49: 33 | C49: 3.9 | D49: 3.71 | E49: 3.35 | F49: 3.44 | G49: 4.55 | H49: 3.77 | I49: 5.17 | J49: 3.42 | K49: 2.95 | L49: 4.68 | M49: 3.88 | P49: 2.99
B50: 34 | C50: 3.9 | D50: 3.71 | E50: 3.34 | F50: 3.45 | G50: 4.54 | H50: 3.81 | I50: 5.07 | J50: 3.43 | K50: 2.96 | L50: 4.86 | M50: 3.92 | P50: 2.92
A51: A | B51: 35 | C51: 3.9 | D51: 3.71 | E51: 3.4 | F51: 3.46 | G51: 4.56 | H51: 3.81 | I51: 4.98 | J51: 3.41 | K51: 2.98 | L51: 4.72 | M51: 3.88 | P51: 2.92
B52: 36 | C52: 3.91 | D52: 3.71 | E52: 3.33 | F52: 3.47 | G52: 4.62 | H52: 3.82 | I52: 5.12 | J52: 3.42 | K52: 2.98 | L52: 4.8 | M52: 3.89 | P52: 2.89
B53: 37 | C53: 3.9 | D53: 3.72 | E53: 3.35 | F53: 3.5 | G53: 4.53 | H53: 3.82 | I53: 5.05 | J53: 3.42 | K53: 2.98 | L53: 4.79 | M53: 3.89 | P53: 2.85
B54: 38 | C54: 3.91 | D54: 3.71 | E54: 3.34 | F54: 3.5 | G54: 4.62 | H54: 3.84 | I54: 5.13 | J54: 3.43 | K54: 2.98 | L54: 4.7 | M54: 3.87 | P54: 2.85
A55: S | B55: 39 | C55: 3.91 | D55: 3.73 | E55: 3.34 | F55: 3.49 | G55: 4.6 | H55: 3.83 | I55: 5 | J55: 3.42 | K55: 2.98 | L55: 4.75 | M55: 3.89 | P55: 2.83
B56: 40 | C56: 3.9 | D56: 3.7 | E56: 3.35 | F56: 3.46 | G56: 4.72 | H56: 3.82 | I56: 5.09 | J56: 3.41 | K56: 2.95 | L56: 4.85 | M56: 3.87 | P56: 2.83
B57: 41 | C57: 3.89 | D57: 3.72 | E57: 3.36 | F57: 3.44 | G57: 4.58 | H57: 3.8 | I57: 5.12 | J57: 3.38 | K57: 2.9 | L57: 4.79 | M57: 3.91 | P57: 2.8
B58: 42 | C58: 3.89 | D58: 3.7 | E58: 3.35 | F58: 3.42 | G58: 4.47 | H58: 3.78 | I58: 5.07 | J58: 3.34 | K58: 2.85 | L58: 4.81 | M58: 3.86 | P58: 2.8
B59: 43 | C59: 3.87 | D59: 3.68 | E59: 3.37 | F59: 3.37 | G59: 4.61 | H59: 3.76 | I59: 5.13 | J59: 3.31 | K59: 2.78 | L59: 4.78 | M59: 3.87 | P59: 2.77
A60: O | B60: 44 | C60: 3.88 | D60: 3.68 | E60: 3.38 | F60: 3.33 | G60: 4.49 | H60: 3.75 | I60: 5.04 | J60: 3.27 | K60: 2.71 | L60: 4.75 | M60: 3.84 | P60: 2.75
B61: 45 | C61: 3.87 | D61: 3.69 | E61: 3.38 | F61: 3.29 | G61: 4.5 | H61: 3.73 | I61: 5.06 | J61: 3.25 | K61: 2.65 | L61: 4.7 | M61: 3.84 | P61: 2.73
B62: 46 | C62: 3.9 | D62: 3.71 | E62: 3.4 | F62: 3.27 | G62: 4.52 | H62: 3.74 | I62: 4.99 | J62: 3.23 | K62: 2.61 | L62: 4.77 | M62: 3.83 | P62: 2.73
B63: 47 | C63: 3.92 | D63: 3.72 | E63: 3.39 | F63: 3.26 | G63: 4.5 | H63: 3.73 | I63: 5.14 | J63: 3.19 | K63: 2.6 | L63: 4.75 | M63: 3.8 | P63: 2.73
A64: N | B64: 48 | C64: 3.94 | D64: 3.76 | E64: 3.43 | F64: 3.26 | G64: 4.42 | H64: 3.75 | I64: 5.1 | J64: 3.2 | K64: 2.6 | L64: 4.74 | M64: 3.81 | P64: 2.73
B65: 49 | C65: 3.97 | D65: 3.78 | E65: 3.43 | F65: 3.26 | G65: 4.69 | H65: 3.75 | I65: 5.19 | J65: 3.21 | K65: 2.61 | L65: 4.81 | M65: 3.82 | P65: 2.73
B66: 50 | C66: 3.98 | D66: 3.78 | E66: 3.48 | F66: 3.26 | G66: 4.81 | H66: 3.75 | I66: 5.12 | J66: 3.23 | K66: 2.6 | L66: 4.92 | M66: 3.84 | P66: 2.73
B67: 51 | C67: 3.98 | D67: 3.79 | E67: 3.45 | F67: 3.29 | G67: 4.41 | H67: 3.74 | I67: 5.08 | J67: 3.24 | K67: 2.61 | L67: 4.75 | M67: 3.87 | P67: 2.73
A68: D | B68: 52 | C68: 3.98 | D68: 3.81 | E68: 3.45 | F68: 3.3 | G68: 4.46 | H68: 3.76 | I68: 5.07 | J68: 3.25 | K68: 2.62 | L68: 4.73 | M68: 3.85 | P68: 2.73
A72: 3- COTATION DES GROS BOVINS VIFS SUR LE MARCHE DE CHOLET (en Euro/Kg Net)
C74: GENISSES | E74: VACHES | I74: JEUNES BOVINS | J74: TAUREAUX
A75: semaines | B75: année+mois | C75: Viande, mixte, lait | D75: Viande, mixte, lait | E75: Blonde | F75: Blonde | G75: Mixte | H75: Lait | I75: Viande | J75: Viande, mixte, lait
A76: 2018 | C76: U | D76: R | E76: U | F76: R | G76: O | H76: P | I76: U | J76: URO
A77: 1 | B77: 201801 | C77: 4.27 | D77: 3.62 | E77: 4.42 | F77: 3.65 | G77: 3.07 | H77: 2.41 | I77: 4.03
A78: 2 | B78: 201801 | C78: 4.27 | D78: 3.6 | E78: 4.42 | F78: 3.65 | G78: 3.07 | H78: 2.41 | I78: 4.01
A79: 3 | B79: 201801 | C79: 4.27 | D79: 3.6 | E79: 4.42 | F79: 3.65 | G79: 3.07 | H79: 2.41 | I79: 4
A80: 4 | B80: 201801 | C80: 4.27 | D80: 3.6 | E80: 4.42 | F80: 3.65 | G80: 3.07 | H80: 2.41 | I80: 4
A81: 5 | B81: 201801 | C81: 4.27 | D81: 3.59 | E81: 4.42 | F81: 3.65 | G81: 3.07 | H81: 2.41 | I81: 3.98
A82: 6 | B82: 201802 | C82: 4.27 | D82: 3.59 | E82: 4.42 | F82: 3.59 | G82: 3.07 | H82: 2.41 | I82: 3.96
A83: 7 | B83: 201802 | C83: 4.27 | D83: 3.6 | E83: 4.42 | F83: 3.65 | G83: 3.1 | H83: 2.44 | I83: 3.94
A84: 8 | B84: 201802 | C84: 4.27 | D84: 3.63 | E84: 4.42 | F84: 3.67 | G84: 3.13 | H84: 2.47 | I84: 3.94
A85: 9 | B85: 201802 | C85: 4.29 | D85: 3.66 | E85: 4.42 | F85: 3.7 | G85: 3.15 | H85: 2.53 | I85: 3.94
A86: 10 | B86: 201803 | C86: 4.3 | D86: 3.7 | E86: 4.42 | F86: 3.7 | G86: 3.2 | H86: 2.58 | I86: 3.95
A87: 11 | B87: 201803 | C87: 4.3 | D87: 3.7 | E87: 4.42 | F87: 3.74 | G87: 3.22 | H87: 2.58 | I87: 3.95
A88: 12 | B88: 201803 | C88: 4.3 | D88: 3.7 | E88: 4.42 | F88: 3.74 | G88: 3.22 | H88: 2.6 | I88: 3.95
A89: 13 | B89: 201803 | C89: 4.3 | D89: 3.7 | E89: 4.42 | F89: 3.74 | G89: 3.22 | H89: 2.6 | I89: 3.95
A90: 14 | B90: 201804 | C90: 4.3 | D90: 3.68 | E90: 4.4 | F90: 3.74 | G90: 3.2 | H90: 2.58 | I90: 3.93
A91: 15 | B91: 201804 | C91: 4.3 | D91: 3.68 | E91: 4.4 | F91: 3.74 | G91: 3.2 | H91: 2.58 | I91: 3.9
A92: 16 | B92: 201804 | C92: 4.3 | D92: 3.68 | E92: 4.4 | F92: 3.74 | G92: 3.2 | H92: 2.6 | I92: 3.87
A93: 17 | B93: 201804 | C93: 4.3 | D93: 3.68 | E93: 4.4 | F93: 3.74 | G93: 3.2 | H93: 2.6 | I93: 3.84
A94: 18 | B94: 201805 | C94: 4.3 | D94: 3.71 | E94: 4.4 | F94: 3.74 | G94: 3.25 | H94: 2.65 | I94: 3.82
A95: 19 | B95: 201805 | C95: 4.33 | D95: 3.73 | E95: 4.43 | F95: 3.76 | G95: 3.28 | H95: 2.68 | I95: 3.82
A96: 20 | B96: 201805 | C96: 4.33 | D96: 3.73 | E96: 4.43 | F96: 3.76 | G96: 3.3 | H96: 2.7 | I96: 3.82
A97: 21 | B97: 201805 | C97: 4.33 | D97: 3.73 | E97: 4.43 | F97: 3.76 | G97: 3.3 | H97: 2.7 | I97: 3.82
A98: 22 | B98: 201805 | C98: 4.33 | D98: 3.73 | E98: 4.43 | F98: 3.76 | G98: 3.3 | H98: 2.7 | I98: 3.82
A99: 23 | B99: 201806 | C99: 4.33 | D99: 3.72 | E99: 4.43 | F99: 3.76 | G99: 3.28 | H99: 2.68 | I99: 3.8
A100: 24 | B100: 201806 | C100: 4.33 | D100: 3.72 | E100: 4.43 | F100: 3.76 | G100: 3.28 | H100: 2.68 | I100: 3.78
A101: 25 | B101: 201806 | C101: 4.33 | D101: 3.72 | E101: 4.43 | F101: 3.76 | G101: 3.28 | H101: 2.68 | I101: 3.78
A102: 26 | B102: 201806 | C102: 4.33 | D102: 3.74 | E102: 4.43 | F102: 3.78 | G102: 3.3 | H102: 2.72 | I102: 3.78
A103: 27 | B103: 201807 | C103: 4.33 | D103: 3.74 | E103: 4.43 | F103: 3.78 | G103: 3.33 | H103: 2.76 | I103: 3.78
A104: 28 | B104: 201807 | C104: 4.33 | D104: 3.75 | E104: 4.43 | F104: 3.78 | G104: 3.35 | H104: 2.79 | I104: 3.8
A105: 29 | B105: 201807 | C105: 4.33 | D105: 3.75 | E105: 4.43 | F105: 3.78 | G105: 3.35 | H105: 2.82 | I105: 3.8
A106: 30 | B106: 201807 | C106: 4.33 | D106: 3.75 | E106: 4.43 | F106: 3.78 | G106: 3.35 | H106: 2.82 | I106: 3.8
A107: 31 | B107: 201808 | C107: 4.33 | D107: 3.75 | E107: 4.43 | F107: 3.78 | G107: 3.32 | H107: 2.8 | I107: 3.8
A108: 32 | B108: 201808 | C108: 4.33 | D108: 3.75 | E108: 4.43 | F108: 3.78 | G108: 3.32 | H108: 2.77 | I108: 3.8
A109: 33 | B109: 201808 | C109: 4.31 | D109: 3.75 | E109: 4.43 | F109: 3.78 | G109: 3.3 | H109: 2.75 | I109: 3.8
A110: 34 | B110: 201808 | C110: 4.32 | D110: 3.76 | E110: 4.45 | F110: 3.8 | G110: 3.3 | H110: 2.75 | I110: 3.8
A111: 35 | B111: 201808 | C111: 4.32 | D111: 3.76 | E111: 4.45 | F111: 3.8 | G111: 3.3 | H111: 2.75 | I111: 3.8
A112: 36 | B112: 201809 | C112: 4.32 | D112: 3.76 | E112: 4.5 | F112: 3.8 | G112: 3.3 | H112: 2.78 | I112: 3.8
A113: 37 | B113: 201809 | C113: 4.32 | D113: 3.76 | E113: 4.5 | F113: 3.8 | G113: 3.3 | H113: 2.78 | I113: 3.8
A114: 38 | B114: 201809 | C114: 4.32 | D114: 3.77 | E114: 4.53 | F114: 3.82 | G114: 3.3 | H114: 2.78 | I114: 3.8 | J114: 3.03
A115: 39 | B115: 201809 | C115: 4.32 | D115: 3.77 | E115: 4.53 | F115: 3.82 | G115: 3.3 | H115: 2.78 | I115: 3.8 | J115: 3.03
A116: 40 | B116: 201810 | C116: 4.32 | D116: 3.77 | E116: 4.53 | F116: 3.82 | G116: 3.27 | H116: 2.75 | I116: 3.8
A117: 41 | B117: 201810 | C117: 4.32 | D117: 3.76 | E117: 4.53 | F117: 3.8 | G117: 3.25 | H117: 2.72 | I117: 3.78
A118: 42 | B118: 201810 | C118: 4.32 | D118: 3.73 | E118: 4.5 | F118: 3.78 | G118: 3.2 | H118: 2.67 | I118: 3.76 | J118: 2.97
A119: 43 | B119: 201810 | C119: 4.31 | D119: 3.72 | E119: 4.5 | F119: 3.76 | G119: 3.15 | H119: 2.6 | I119: 3.76 | J119: 2.97
A120: 44 | B120: 201810 | C120: 4.31 | D120: 3.72 | E120: 4.5 | F120: 3.76 | G120: 3.1 | H120: 2.54 | I120: 3.76 | J120: 2.97
A121: 45 | B121: 201811 | C121: 4.31 | D121: 3.72 | E121: 4.5 | F121: 3.76 | G121: 3.05 | H121: 2.46 | I121: 3.76 | J121: 2.97
A122: 46 | B122: 201811 | C122: 4.31 | D122: 3.72 | E122: 4.5 | F122: 3.76 | G122: 3 | H122: 2.41 | I122: 3.76 | J122: 2.97
A123: 47 | B123: 201811 | C123: 4.31 | D123: 3.72 | E123: 4.5 | F123: 3.76 | G123: 3 | H123: 2.41 | I123: 3.8 | J123: 2.97
A124: 48 | B124: 201811 | C124: 4.31 | D124: 3.72 | E124: 4.5 | F124: 3.76 | G124: 3 | H124: 2.41 | I124: 3.8 | J124: 2.97
A125: 49 | B125: 201812 | C125: 4.31 | D125: 3.7 | E125: 4.5 | F125: 3.76 | G125: 3 | H125: 2.41 | I125: 3.8 | J125: 2.97
A126: 50 | B126: 201812 | C126: 4.31 | D126: 3.69 | E126: 4.5 | F126: 3.76 | G126: 3 | H126: 2.41 | I126: 3.8 | J126: 2.97
A127: 51 | B127: 201812
A128: 52 | B128: 201812

Sheet GrosBovins2017 (hidden)
A1: COTATIONS DES GROS BOVINS
A2: Source : DRAAF Pays de la Loire - SRISE - FranceAgriMer
A5: 1- COTATION REGIONALE GRAND OUEST ENTREE ABATTOIR en €/Kg net
A7: 2- MOYENNE NATIONALE DES BOVINS MAIGRES DESTINES A L'ENGRAISSEMENT CHAROLAIS MALE de 6-12 mois catégorie U (300kg) en €/kg vif
A9: 3- COTATION DES GROS BOVINS VIFS SUR LE MARCHE DE CHOLET (en Euro/Kg Net) – à partir de la ligne 72
P11: 2- COT. HEBDO
A12: 1- COTATION REGIONALE ENTREE ABATTOIR GRAND OUEST FRANCEAGRIMER-HEBDOMADAIRE (€/Kg net) | P12: MAIGRE €/kg vif
P13: Ref. nationale
A14: Année | B14: Sem. | C14: JEUNES BOVINS | F14: BOEUFS | G14: VACHES | L14: GENISSES | P14: Charolais Mâles
C15: VIANDE | E15: MIXTE | F15: MIXTE | G15: VIANDE | I15: Blonde | J15: MIXTE | K15: LAIT | L15: VIANDES + 350kg
C16: U | D16: R | E16: O | F16: O | G16: U | H16: R | I16: U | J16: O | K16: P | L16: U | M16: R | P16: 6/12 mois ( U )
A17: 2017 | B17: 1 | C17: 3.95 | D17: 3.77 | E17: 3.18 | F17: 3.2 | G17: 4.41 | H17: 3.74 | I17: 5.12 | J17: 3.17 | K17: 2.6 | L17: 4.78 | M17: 3.85 | P17: 2.59
B18: 2 | C18: 3.95 | D18: 3.75 | E18: 3.19 | F18: 3.21 | G18: 4.42 | H18: 3.75 | I18: 5.15 | J18: 3.18 | K18: 2.63 | L18: 4.79 | M18: 3.84 | P18: 2.6
B19: 3 | C19: 3.93 | D19: 3.72 | E19: 3.21 | F19: 3.22 | G19: 4.46 | H19: 3.78 | I19: 5.06 | J19: 3.19 | K19: 2.64 | L19: 4.82 | M19: 3.83 | P19: 2.6
A20: J | B20: 4 | C20: 3.92 | D20: 3.72 | E20: 3.2 | F20: 3.22 | G20: 4.39 | H20: 3.74 | I20: 5.16 | J20: 3.2 | K20: 2.65 | L20: 4.74 | M20: 3.86 | P20: 2.62
B21: 5 | C21: 3.92 | D21: 3.72 | E21: 3.25 | F21: 3.23 | G21: 4.39 | H21: 3.77 | I21: 5.05 | J21: 3.23 | K21: 2.67 | L21: 4.69 | M21: 3.84 | P21: 2.64
B22: 6 | C22: 3.92 | D22: 3.72 | E22: 3.28 | F22: 3.25 | G22: 4.56 | H22: 3.77 | I22: 5.2 | J22: 3.24 | K22: 2.69 | L22: 4.78 | M22: 3.84 | P22: 2.67
B23: 7 | C23: 3.94 | D23: 3.74 | E23: 3.3 | F23: 3.28 | G23: 4.58 | H23: 3.79 | I23: 5.17 | J23: 3.26 | K23: 2.72 | L23: 4.69 | M23: 3.83 | P23: 2.67
A24: F | B24: 8 | C24: 3.95 | D24: 3.74 | E24: 3.33 | F24: 3.32 | G24: 4.53 | H24: 3.8 | I24: 5.18 | J24: 3.28 | K24: 2.75 | L24: 4.88 | M24: 3.82 | P24: 2.7
B25: 9 | C25: 3.96 | D25: 3.75 | E25: 3.33 | F25: 3.32 | G25: 4.73 | H25: 3.81 | I25: 5.16 | J25: 3.3 | K25: 2.78 | L25: 4.81 | M25: 3.89 | P25: 2.73
B26: 10 | C26: 3.96 | D26: 3.76 | E26: 3.36 | F26: 3.34 | G26: 4.47 | H26: 3.84 | I26: 5.17 | J26: 3.33 | K26: 2.8 | L26: 4.77 | M26: 3.9 | P26: 2.75
B27: 11 | C27: 3.96 | D27: 3.77 | E27: 3.37 | F27: 3.35 | G27: 4.55 | H27: 3.9 | I27: 5.2 | J27: 3.34 | K27: 2.82 | L27: 4.85 | M27: 3.9 | P27: 2.78
B28: 12 | C28: 3.96 | D28: 3.76 | E28: 3.38 | F28: 3.37 | G28: 4.5 | H28: 3.88 | I28: 5.2 | J28: 3.35 | K28: 2.85 | L28: 4.84 | M28: 3.92 | P28: 2.78
A29: M | B29: 13 | C29: 3.96 | D29: 3.76 | E29: 3.38 | F29: 3.37 | G29: 4.54 | H29: 3.87 | I29: 5.23 | J29: 3.37 | K29: 2.87 | L29: 4.92 | M29: 3.9 | P29: 2.79
B30: 14 | C30: 3.95 | D30: 3.77 | E30: 3.41 | F30: 3.39 | G30: 4.88 | H30: 3.84 | I30: 5.24 | J30: 3.38 | K30: 2.88 | L30: 4.99 | M30: 3.88 | P30: 2.79
B31: 15 | C31: 3.94 | D31: 3.76 | E31: 3.47 | F31: 3.42 | G31: 4.62 | H31: 3.88 | I31: 5.08 | J31: 3.4 | K31: 2.9 | L31: 5 | M31: 3.95 | P31: 2.78
B32: 16 | C32: 3.95 | D32: 3.77 | E32: 3.42 | F32: 3.46 | G32: 4.68 | H32: 3.89 | I32: 5.13 | J32: 3.43 | K32: 2.91 | L32: 4.84 | M32: 3.93 | P32: 2.78
